Workbook

Sheet Attestation Form
A2: Private and Confidential
A3: Central Bank of The Bahamas - Financial Return
B6: Licensee Name:
B8: Licensee Code:
B10: Reporting Date: | E10: (mmm/yy)
B12: We certify that the figures in these forms present a true and fair view of the SFI's position as at the above reporting date. We undertake that if there are further material facts affecting the SFI's affairs which, in our judgment, should be disclosed, we will promptly advise the Central Bank of The Bahamas.
B16: Director/Senior Officer I - Name: | I16: Director/Senior Officer II/Authorized Person - Name:
B19: Director/Senior Officer I - Signature: | I19: Director/Senior Officer II/Authorized Person - Signature:
B23: Date signed: | I23: Date signed:
B25: We certify that the re-submission of figures in these forms present a true and fair view of the licensee's position as at the above reporting date. We undertake that if there are further material facts affecting the licensee's affairs which, in our judgment, should be disclosed, we will promptly advise the Central Bank of The Bahamas.
B29: Director/Senior Officer I - Name: | I29: Director/Senior Officer II/Authorized Person - Name:
B32: Director/Senior Officer I - Signature: | I32: Director/Senior Officer II/Authorized Person - Signature:
B36: Date signed: | I36: Date signed:
A39: Notes on Completion:
A40: 1. Complete the form monthly and quarterly as at the last day of each month/quarter unless otherwise agreed.
A41: 2. For definitions of the items refer to the guideline notes.
A42: 3. Where an (*) appears, please give details.
A43: 4. Amount(s) must be entered in dollars to the nearest thousand, omitting decimals.
A44: 5. Submit the attestation form within twenty-one (21) days of the reporting date via the ORIMS Portal.
A46: Resubmission Instructions:
A47: Should a resubmission of the financial return be required, a request for resubmission via the ORIMS Portal is required.
A48: Once the request has been granted, the financial return must be uploaded into the ORIMS Portal.
A50: Also, this page must be printed, signed and returned via the ORIMS Portal.
A52: Help is Available:
A53: Email: orimshelp@centralbankbahamas.com
A54: Phone: 302-9843

Sheet Form 1
F2: Statement of Liabilities & Capital Reserves
N8: ($000s)
B9: L I A B I L I T I E S | K9: B$ | L9: US$ | M9: OTHER | N9: TOTAL
B11: 1. | C11: Deposits | K11: =K12+K13+K14+K19 -> 0 | L11: =L12+L13+L14+L19 -> 0 | M11: =M12+M13+M14+M19 -> 0 | N11: =K11+L11+M11 -> 0
C12: a) | D12: Demand Deposits (Checking Accounts) | N12: =K12+L12+M12 -> 0
C13: b) | D13: Savings Deposits | N13: =K13+L13+M13 -> 0
C14: c) | D14: Fixed Deposits: | K14: =SUM(K15:K18) -> 0 | L14: =SUM(L15:L18) -> 0 | M14: 0 | N14: =K14+L14+M14 -> 0
D15: (i) | E15: Up to 3 Months | N15: =K15+L15+M15 -> 0
D16: (ii) | E16: Up to 6 Months | N16: =K16+L16+M16 -> 0
D17: (iii) | E17: Up to 12 Months | N17: 0
D18: (iv) | E18: Over 12 Months | N18: 0
C19: d) | D19: Negotiable Certificates of Deposit Issued | N19: 0
B20: 2. | C20: Due to Central Bank | K20: =K21+K22 -> 0 | L20: =L21+L22 -> 0 | M20: =M21+M22 -> 0 | N20: 0
C21: a) | D21: Borrowings from Central Bank | N21: 0
C22: b) | D22: Deposits held for Central Bank | N22: 0
B23: 3. | C23: Due to Financial Institutions (in Bahamas) | K23: =K24+K28+K32 -> 0 | L23: =L24+L28+L32 -> 0 | M23: =M24+M28+M32 -> 0 | N23: 0
C24: a) | D24: Commercial Banks (Authorised Dealers) | K24: =K25+K26+K27 -> 0 | L24: =L25+L26+L27 -> 0 | M24: =M25+M26+M27 -> 0 | N24: 0
D25: (i) | E25: Demand Deposits | N25: 0
D26: (ii) | E26: Fixed Deposits | N26: 0
D27: (iii) | E27: Borrowings | N27: 0
C28: b) | D28: Other Local Financial Institutions (Authorized Agents) | K28: =K29+K30+K31 -> 0 | L28: =L29+L30+L31 -> 0 | M28: =M29+M30+M31 -> 0 | N28: 0
D29: (i) | E29: Demand Deposits | N29: 0
D30: (ii) | E30: Fixed Deposits | N30: 0
D31: (iii) | E31: Borrowings | N31: 0
C32: c) | D32: Due to "Offshore" Financial Institutions in Bahamas | K32: =SUM(K33:K35) -> 0 | L32: =SUM(L33:L35) -> 0 | M32: 0 | N32: 0
D33: (i) | E33: Demand Deposits | N33: =SUM(K33:M33) -> 0
D34: (ii) | E34: Fixed Deposits | N34: =SUM(K34:M34) -> 0
D35: (iii) | E35: Borrowings | N35: 0
B36: 4. | C36: Due to Financial Institutions (outside Bahamas) | K36: =K37+K42 -> 0 | L36: =L37+L42 -> 0 | M36: =M37+M42 -> 0 | N36: 0
C37: a) | D37: Head Office, Subsidiaries, Branches or Affiliates | K37: =K39+K40+K41 -> 0 | L37: =L39+L40+L41 -> 0 | M37: =M39+M40+M41 -> 0 | N37: 0
D38: of which: Accrued Interest on Affiliates | N38: 0
D39: (i) | E39: Demand Deposits | N39: 0
D40: (ii) | E40: Fixed Deposits | N40: 0
D41: (iii) | E41: Borrowings | N41: 0
C42: b) | D42: Others | K42: =K43+K44+K45 -> 0 | L42: =L43+L44+L45 -> 0 | M42: =M43+M44+M45 -> 0 | N42: 0
D43: (i) | E43: Demand Deposits | N43: 0
D44: (ii) | E44: Fixed Deposits | N44: 0
D45: (iii) | E45: Borrowings | N45: 0
B46: 5. | C46: Bills Payable | K46: =K47+K48 -> 0 | L46: =L47+L48 -> 0 | M46: =M47+M48 -> 0 | N46: 0
C47: a) | D47: In The Bahamas | N47: 0
C48: b) | D48: Outside The Bahamas | N48: 0
B49: 6. | C49: Debentures Issued | K49: =K50+K51 -> 0 | L49: =L50+L51 -> 0 | M49: =M50+M51 -> 0 | N49: 0
C50: a) | D50: In The Bahamas | N50: 0
C51: b) | D51: Outside The Bahamas | N51: 0
B52: 7. | C52: Cheques and Other Instruments | K52: 0 | L52: 0 | M52: 0 | N52: 0
B53: 8. | C53: Other Liabilities | K53: =K54+K55+K56+K57 -> 0 | L53: =L54+L55+L56+L57 -> 0 | M53: =M54+M55+M56+M57 -> 0 | N53: 0
C54: a) | D54: Accrued Interest | N54: 0
C55: b) | D55: Accounts Payable | N55: 0
C56: c) | D56: Suspense Account | N56: 0
C57: d) | D57: Other | N57: 0
B58: 9. | C58: Long-Term Debt (Tier 2 Capital) | K58: =K59+K60 -> 0 | L58: =L59+L60 -> 0 | M58: =M59+M60 -> 0 | N58: 0
C59: a) | D59: Hybrid Debt/Equity | N59: 0
C60: b) | D60: Unsecured Subordinated Loan Stock | N60: 0
B61: 10. | C61: Shareholders Funds | K61: =SUM(K62:K64) -> 0 | L61: =SUM(L62:L64) -> 0 | M61: =SUM(M62:M64) -> 0 | N61: =K61+L61+M61 -> 0
C62: a) | D62: Paid-Up Share Capital | N62: 0
C63: b) | D63: Minority Interest | N63: 0
C64: c) | D64: Contributed Surplus | N64: 0
B65: 11. | C65: Reserves | N65: 0
B66: 12. | C66: Provisions | K66: =K67+K68 -> 0 | L66: =L67+L68 -> 0 | M66: =M67+M68 -> 0 | N66: 0
C67: a) | D67: Specific | N67: 0
C68: b) | D68: General Loan Loss Reserves
B69: 13. | C69: Profit & Loss Account | K69: =K70+K71 -> 0 | L69: =L70+L71 -> 0 | M69: =M70+M71 -> 0 | N69: 0
C70: a) | D70: Retained Earnings | N70: 0
C71: b) | D71: Accrued Profit for the Current Year | N71: 0
B72: 14. | C72: Total Liabilities & Capital Reserves | K72: =K11+K20+K23+K36+K46+K49+K52+K53+K58+K61+K65+K66+K69 -> 0 | L72: =L11+L20+L23+L36+L46+L49+L52+L53+L58+L61+L65+L66+L69 -> 0 | M72: =M11+M20+M23+M36+M46+M49+M52+M53+M58+M61+M65+M66+M69 -> 0 | N72: 0
B73: 15. | C73: Foreign Exchange Forward Contracts: Sale | N73: 0
B74: 16. | C74: Related Party Deposits | N74: 0

Sheet Form2
E2: Statement of Assets & Contingent Liabilities
N6: ($000s)
B7: A S S E T S | K7: B$ | L7: US$ | M7: OTHER | N7: TOTAL
B9: 1. | C9: Notes & Coins | N9: =K9+L9+M9 -> 0
B10: 2. | C10: Balance with Central Bank | N10: =K10+L10+M10 -> 0
B11: 3. | C11: Government Securities | K11: =K12+K19 -> 0 | L11: =L12+L19 -> 0 | M11: =M12+M19 -> 0 | N11: 0
C12: a) Bahamas Government | K12: =SUM(K13,K16) -> 0 | L12: =SUM(L13,L16) -> 0 | M12: =SUM(M13,M16) -> 0 | N12: 0
C13: (i) Locally Issued | K13: =SUM(K14:K15) -> 0 | L13: =SUM(L14:L15) -> 0 | M13: =SUM(M14:M15) -> 0 | N13: 0
D14: a) Treasury Bills (up to 1 Year Original Maturity) | N14: 0
D15: b) Long-Term Securities | N15: 0
C16: (ii) Externally Issued | K16: =SUM(K17:K18) -> 0 | L16: =SUM(L17:L18) -> 0 | M16: =SUM(M17:M18) -> 0 | N16: 0
D17: a) Treasury Bills (up to 1 Year Original Maturity) | N17: 0
D18: b) Long-Term Securities | N18: 0
C19: b) Other Governments | L19: =SUM(L20:L21) -> 0 | M19: =SUM(M20:M21) -> 0 | N19: =L19+M19 -> 0
D20: a) Treasury Bills (up to 1 Year Original Maturity) | N20: =L20+M20 -> 0
D21: b) Long-Term Securities | N21: =L21+M21 -> 0
B22: 4. | C22: Balance with Financial Institutions (in Bahamas) | K22: =K23+K28+K33 -> 0 | L22: =L23+L28+L33 -> 0 | M22: =M23+M28+M33 -> 0 | N22: 0
C23: a) Commercial Banks (Authorized Dealers) | K23: =K24+K25+K26+K27 -> 0 | L23: =L24+L25+L26+L27 -> 0 | M23: =M24+M25+M26+M27 -> 0 | N23: 0
D24: (i) | E24: Demand Deposits | N24: 0
D25: (ii) | E25: Fixed Deposits | N25: 0
D26: (iii) | E26: Loans | N26: 0
D27: (iv) | E27: Negotiable Paper Issued by Other Banks | N27: 0
C28: b) Other Local Financial Institutions (Authorized Agents) | K28: =K29+K30+K31+K32 -> 0 | L28: =L29+L30+L31+L32 -> 0 | M28: =M29+M30+M31+M32 -> 0 | N28: 0
D29: (i) | E29: Demand Deposits | N29: 0
D30: (ii) | E30: Fixed Deposits | N30: 0
D31: (iii) | E31: Loans | N31: =K31+L31+M31 -> 0
D32: (iv) | E32: Negotiable Paper Issued by Other Banks | N32: =K32+L32+M32 -> 0
C33: c) Balance with "Offshore" Financial Institutions in Bahamas | K33: =SUM(K34:K37) -> 0 | L33: =SUM(L34:L37) -> 0 | M33: 0 | N33: =SUM(N34:N37) -> 0
D34: (i) | E34: Demand Deposits | N34: =SUM(K34:M34) -> 0
D35: (ii) | E35: Fixed Deposits | N35: =SUM(K35:M35) -> 0
D36: (iii) | E36: Loans | N36: 0
D37: (iv) | E37: Negotiable Paper Issued by Other Banks | N37: 0
B38: 5. | C38: Balance with Financial Institutions (outside Bahamas) | K38: =K39+K44 -> 0 | L38: =L39+L44 -> 0 | M38: =M39+M44 -> 0 | N38: 0
C39: a) Head Office, Subsidiaries, Branches or Affiliates | K39: =K40+K41+K42+K43 -> 0 | L39: =L40+L41+L42+L43 -> 0 | M39: =M40+M41+M42+M43 -> 0 | N39: 0
D40: (i) | E40: Demand Deposits | N40: =K40+L40+M40 -> 0
D41: (ii) | E41: Fixed Deposits | N41: 0
D42: (iii) | E42: Loans | N42: 0
D43: (iv) | E43: Negotiable Paper Issued by Other Banks | N43: 0
C44: b) Others | K44: =K45+K46+K47+K48 -> 0 | L44: =L45+L46+L47+L48 -> 0 | M44: =M45+M46+M47+M48 -> 0 | N44: 0
D45: (i) | E45: Demand Deposits | N45: 0
D46: (ii) | E46: Fixed Deposits | N46: 0
D47: (iii) | E47: Loans | N47: 0
D48: (iv) | E48: Negotiable Paper Issued by Other Banks | N48: 0
B49: 6. | C49: Claims on Multilateral Development Banks (MDBs) | N49: =K49+L49+M49 -> 0
B50: 7. | C50: Loans and Advances | K50: =K52+K65 -> 0 | L50: =L52+L65 -> 0 | M50: =M52+M65 -> 0 | N50: =K50+L50+M50 -> 0
D51: of which: Non-Performing Loans (Over 90 Days) | N51: =K51+L51+M51 -> 0
C52: a) Resident | K52: =K57+K58+K59+K60+K64 -> 0 | L52: =L57+L58+L59+L60+L64 -> 0 | M52: =M57+M58+M59+M60+M64 -> 0 | N52: 0
D53: of which: Loans Fully Collateralized by Deposits | N53: =K53+L53+M53 -> 0
D54: of which: Loans Partially Collateralized by Deposits | N54: 0
D55: of which: Loans Collateralized by Real Estate | N55: 0
D56: of which: Loans Collateralized by Chattel | N56: 0
D57: (i) | E57: Government | N57: 0
D58: (ii) | E58: Public Corporations | N58: 0
D59: (iii) | E59: Public Financial Institutions | N59: 0
D60: (iv) | E60: Mortgages | K60: =SUM(K61,K63) -> 0 | L60: =SUM(L61,L63) -> 0 | M60: =SUM(M61,M63) -> 0 | N60: 0
E61: a) Residential Mortgages | N61: 0
F62: of which: Equity Loans | N62: 0
E63: b) Commercial Mortgages | N63: 0
D64: (v) | E64: Others | N64: 0
C65: b) Non-Resident | K65: =SUM(K70,K71,K72,K73,K74) -> 0 | L65: =SUM(L70,L71,L72,L73,L74) -> 0 | M65: =SUM(M70,M71,M72,M73,M74) -> 0 | N65: =K65+L65+M65 -> 0
D66: of which: Loans Fully Collateralized by Deposits | N66: =K66+L66+M66 -> 0
D67: of which: Loans Partially Collateralized by Deposits | N67: 0
D68: of which: Loans Collateralized by Real Estate | N68: 0
D69: of which: Loans Collateralized by Chattel | N69: 0
D70: (i) | E70: Government | N70: 0
D71: (ii) | E71: Corporations | N71: 0
D72: (iii) | E72: Individuals | N72: 0
D73: (iv) | E73: Mortgages - Residential or Commercial | N73: 0
D74: (v) | E74: Others | N74: 0
B75: 8. | C75: Investment (in Stocks, Shares & Funds) | K75: =K76+K79+K80 -> 0 | L75: =L76+L79+L80 -> 0 | M75: =M76+M79+M80 -> 0 | N75: 0
C76: a) Domestic Securities | K76: =K77+K78 -> 0 | L76: =L77+L78 -> 0 | M76: =M77+M78 -> 0 | N76: 0
D77: (i) | E77: Public Corporation Bonds | N77: 0
D78: (ii) | E78: Other Domestic Securities | N78: 0
C79: b) Foreign Securities | N79: 0
C80: c) Other Investments | N80: 0
B81: 9. | C81: Cheques & Other Instruments in Course of Collection | N81: 0
B82: 10. | C82: Fixed Assets | K82: =K83+K84+K85 -> 0 | L82: =L83+L84+L85 -> 0 | M82: =M83+M84+M85 -> 0 | N82: 0
C83: a) Premises | N83: 0
C84: b) Other Land and Property | N84: 0
C85: c) Plant and Equipment | N85: 0
B86: 11. | C86: Gold and Silver Bullion | N86: =K86+L86+M86 -> 0
B87: 12. | C87: Other Assets | K87: =K88+K89+K90+K91 -> 0 | L87: =L88+L89+L90+L91 -> 0 | M87: =M88+M89+M90+M91 -> 0 | N87: 0
C88: a) Unearned Interest | N88: 0
C89: b) Accounts Receivable | N89: 0
C90: c) Suspense Account | N90: 0
C91: d) Other | N91: 0
B92: 13. | C92: Total Assets | K92: =K9+K10+K22+K38+K49+K50+K11+K75+K81+K82+K86+K87 -> 0 | L92: =L9+L10+L22+L38+L49+L50+L11+L75+L81+L82+L86+L87 -> 0 | M92: =M9+M10+M22+M38+M49+M50+M11+M75+M81+M82+M86+M87 -> 0 | N92: =K92+L92+M92 -> 0
B93: 14. | C93: Memorandum Items
C94: a) Encumbered Assets | N94: =SUM(K94:M94) -> 0
C95: b) Related Party Loans and Advances | N95: =SUM(K95:M95) -> 0
C96: c) Wire transfers | N96: =SUM(K96:M96) -> 0
D97: of which: Outgoing - ACH
D98: of which: Outgoing - RTGS
C99: d) Stored Value Cards | N99: =SUM(K99:M99) -> 0
C100: e) Lombard Loans | N100: =SUM(K100:M100) -> 0
C101: f) Manager's Cheques | N101: =SUM(K101:M101) -> 0
C102: g) Number of Loans Fully Collateralized by Deposits
C103: h) Number of Loans Partially Collateralized by Deposits
C104: i) Number of Loans Collateralized by Real Estate
C105: j) Number of Loans Collateralized by Chattel
B106: 15. | C106: Contingent Liabilities | K106: =SUM(K107:K111) -> 0 | L106: =SUM(L107:L111) -> 0 | M106: =SUM(M107:M111) -> 0 | N106: 0
C107: a) Acceptances | N107: 0
C108: b) Guarantees given on behalf of Group Companies | D108: Guarantees given on behalf of Group Companies | N108: 0
C109: c) Guarantees given on behalf of Customers | N109: 0
C110: d) Letters of Credit | N110: 0
C111: e) Loan Commitments | N111: 0
B112: 16. | C112: Foreign Exchange Forward Contract: Purchases | N112: 0
B113: 17. | C113: Unused Overdrafts (Facilities over $100,000 only) | N113: 0

Sheet Form2A
D2: Statement of Other Assets & Liabilities
G7: ($000s)
B8: OTHER ASSETS: OTHER | D8: B$ | E8: US$ | F8: OTHER | G8: TOTAL
B10: 1. | G10: =D10+E10+F10 -> 0
B11: 2. | G11: 0
B12: 3. | G12: 0
B13: 4. | G13: 0
B14: 5. | G14: 0
B15: 6. | G15: 0
B16: 7. | G16: 0
B17: 8. | G17: 0
B18: 9. | G18: 0
B19: 10. | G19: 0
B20: 11 | G20: 0
B21: 12. | G21: 0
B22: 13. | G22: 0
B23: 14. | G23: 0
B24: 15. | G24: 0
B25: 16. | G25: 0
B26: 17. | G26: 0
B27: 18. | G27: 0
B28: 19. | G28: 0
B29: 20. | G29: 0
C30: TOTAL | D30: =SUM(D10:D29) -> 0 | E30: =SUM(E10:E29) -> 0 | F30: =SUM(F10:F29) -> 0 | G30: =SUM(G10:G29) -> 0 | H30: Should Equal | I30: =Form2!N91 -> 0
B34: OTHER LIABILITIES: OTHER | D34: B$ | E34: US$ | F34: OTHER | G34: TOTAL
B36: 1. | G36: =D36+E36+F36 -> 0
B37: 2. | G37: 0
B38: 3. | G38: 0
B39: 4. | G39: 0
B40: 5. | G40: 0
B41: 6. | G41: 0
B42: 7. | G42: 0
B43: 8. | G43: 0
B44: 9. | G44: 0
B45: 10. | G45: 0
B46: 11. | G46: 0
B47: 12. | G47: 0
B48: 13. | G48: 0
B49: 14. | G49: 0
B50: 15. | G50: 0
B51: 16. | G51: 0
B52: 17. | G52: 0
B53: 18. | G53: 0
B54: 19. | G54: 0
B55: 20. | G55: 0
C56: TOTAL | D56: =SUM(D36:D55) -> 0 | E56: =SUM(E36:E55) -> 0 | F56: =SUM(F36:F55) -> 0 | G56: =SUM(G36:G55) -> 0 | H56: Should Equal | I56: ='Form 1'!N57 -> 0

Sheet Form3
E3: Analysis of Deposits by Depositors
I8: ($000s)
F9: B$ | G9: US$ | H9: OTHER | I9: TOTAL
B11: 1. | C11: Demand Deposits | F11: =F12+F20 -> 0 | G11: =G12+G20 -> 0 | H11: =H12+H20 -> 0 | I11: =F11+G11+H11 -> 0
C12: a) | D12: Resident | F12: =F13+F14+F15+F16+F17+F18+F19 -> 0 | G12: =G13+G14+G15+G16+G17+G18+G19 -> 0 | H12: =H13+H14+H15+H16+H17+H18+H19 -> 0 | I12: 0
D13: (i) | E13: Government | I13: 0
D14: (ii) | E14: Public Corporations | I14: 0
D15: (iii) | E15: Public Financial Institutions | I15: 0
D16: (iv) | E16: Private Financial Institutions | I16: 0
D17: (v) | E17: Business Firms | I17: 0
D18: (vi) | E18: Private Individuals | I18: 0
D19: (vii) | E19: Other | I19: 0
C20: b) | D20: Non-Resident | I20: 0
C21: Memorandum: of which:- | F21: =F22+F23+F24+F25 -> 0 | G21: =G22+G23+G24+G25 -> 0 | H21: =H22+H23+H24+H25 -> 0 | I21: 0
D22: (i) | E22: Central Govt. - Consolidated Fund Accounts | I22: 0
D23: (ii) | E23: Commissioners' Accounts | I23: 0
D24: (iii) | E24: Gov't. Ministries/Departments (See App. III) | I24: 0
D25: (iv) | E25: Deposit Fund | I25: 0
B26: 2. | C26: Savings Deposits | F26: =F27+F34 -> 0 | G26: =G27+G34 -> 0 | H26: =H27+H34 -> 0 | I26: 0
C27: a) | D27: Resident | F27: =F28+F29+F30+F31+F32+F33 -> 0 | G27: =G28+G29+G30+G31+G32+G33 -> 0 | H27: =H28+H29+H30+H31+H32+H33 -> 0 | I27: =I28+I29+I30+I31+I32+I33 -> 0
D28: (i) | E28: Public Corporations | I28: 0
D29: (ii) | E29: Public Financial Institutions | I29: 0
D30: (iii) | E30: Private Financial Institutions | I30: 0
D31: (iv) | E31: Business Firms | I31: 0
D32: (v) | E32: Private Individuals | I32: 0
D33: (vi) | E33: Other | I33: 0
C34: b) | D34: Non-Resident | I34: 0
B35: 3. | C35: Fixed Deposits | F35: =F36+F44 -> 0 | G35: =G36+G44 -> 0 | H35: =H36+H44 -> 0 | I35: 0
C36: a) | D36: Resident | F36: =F37+F38+F39+F40+F41+F42+F43 -> 0 | G36: =G37+G38+G39+G40+G41+G42+G43 -> 0 | H36: =H37+H38+H39+H40+H41+H42+H43 -> 0 | I36: 0
D37: (i) | E37: Government | I37: 0
D38: (ii) | E38: Public Corporations | I38: 0
D39: (iii) | E39: Public Financial Institutions | I39: 0
D40: (iv) | E40: Private Financial Institutions | I40: 0
D41: (v) | E41: Business Firms | I41: 0
D42: (vi) | E42: Private Individuals | I42: 0
D43: (vii) | E43: Other | I43: 0
C44: b) | D44: Non-Resident | I44: 0
C45: Memorandum: of which:- | F45: =F46+F47+F48+F49 -> 0 | G45: =G46+G47+G48+G49 -> 0 | H45: =H46+H47+H48+H49 -> 0 | I45: 0
D46: (i) | E46: Central Govt. - Consolidated Fund Accounts | I46: 0
D47: (ii) | E47: Commissioners' Accounts | I47: 0
D48: (iii) | E48: Gov't. Ministries/Departments (See App. III) | I48: 0
D49: (iv) | E49: Deposit Fund | I49: 0
B50: 4. | C50: Negotiable Certificates of Deposits | F50: =F51+F59 -> 0 | G50: =G51+G59 -> 0 | H50: =H51+H59 -> 0 | I50: 0
C51: a) | D51: Resident | F51: =F52+F53+F54+F55+F56+F57+F58 -> 0 | G51: =G52+G53+G54+G55+G56+G57+G58 -> 0 | H51: =H52+H53+H54+H55+H56+H57+H58 -> 0 | I51: 0
D52: (i) | E52: Government | I52: 0
D53: (ii) | E53: Public Corporations | I53: 0
D54: (iii) | E54: Public Financial Institutions | I54: 0
D55: (iv) | E55: Private Financial Institutions | I55: 0
D56: (v) | E56: Business Firms | I56: 0
D57: (vi) | E57: Private Individuals | I57: 0
D58: (vii) | E58: Other | I58: 0
C59: b) | D59: Non-Resident | I59: 0
C60: Memorandum: of which:- | F60: =F61+F62+F63+F64 -> 0 | G60: =G61+G62+G63+G64 -> 0 | H60: =H61+H62+H63+H64 -> 0 | I60: 0
D61: (i) | E61: Central Govt. - Consolidated Fund Accounts | I61: 0
D62: (ii) | E62: Commissioners' Accounts | I62: 0
D63: (iii) | E63: Gov't. Ministries/Departments (See App. III) | I63: 0
D64: (iv) | E64: Deposit Fund | I64: 0
B65: 5. | C65: Total Deposits | F65: =F67+F75 -> 0 | G65: =G67+G75 -> 0 | H65: =H67+H75 -> 0 | I65: =F65+G65+H65 -> 0
C67: a) | D67: Resident | F67: =F68+F69+F70+F71+F72+F73+F74 -> 0 | G67: =G68+G69+G70+G71+G72+G73+G74 -> 0 | H67: =H68+H69+H70+H71+H72+H73+H74 -> 0 | I67: 0
D68: (i) | E68: Government | F68: =F13+F37+F52 -> 0 | G68: =G13+G37+G52 -> 0 | H68: =H13+H37+H52 -> 0 | I68: =I13+I37+I52 -> 0
D69: (ii) | E69: Public Corporations | F69: =F14+F28+F38+F53 -> 0 | G69: 0 | H69: 0 | I69: 0
D70: (iii) | E70: Public Financial Institutions | F70: 0 | G70: 0 | H70: 0 | I70: 0
D71: (iv) | E71: Private Financial Institutions | F71: 0 | G71: 0 | H71: 0 | I71: 0
D72: (v) | E72: Business Firms | F72: 0 | G72: 0 | H72: 0 | I72: 0
D73: (vi) | E73: Private Individuals | F73: 0 | G73: 0 | H73: 0 | I73: 0
D74: (vii) | E74: Other | F74: 0 | G74: 0 | H74: 0 | I74: 0
C75: b) | D75: Non-Resident | F75: 0 | G75: 0 | H75: 0 | I75: =F75+G75+H75 -> 0
C76: Memorandum: of which:- | F76: =F21+F45+F60 -> 0 | G76: 0 | H76: 0 | I76: 0
D77: (i) | E77: Central Govt. - Consolidated Fund Accounts | F77: 0 | G77: 0 | H77: 0 | I77: 0
D78: (ii) | E78: Commissioners' Accounts | F78: 0 | G78: 0 | H78: 0 | I78: 0
D79: (iii) | E79: Gov't. Ministries/Departments (See App. III) | F79: 0 | G79: 0 | H79: 0 | I79: 0
D80: (iv) | E80: Deposit Fund | F80: 0 | G80: 0 | H80: 0 | I80: 0

Sheet F3C
C2: Analysis of F/C Deposits of Residents
F4: ($000s)
D5: US$ | E5: OTHER | F5: TOTAL
B7: 1. | C7: Resident Demand Deposits | D7: =SUM(D8+D109+D210+D311+D412+D513+D614) -> 0 | E7: =SUM(E8+E109+E210+E311+E412+E513+E614) -> 0 | F7: =D7+E7 -> 0 | H7: Should Equal | I7: =Form3!G12+Form3!H12 -> 0
C8: (i) Government | D8: =SUM(D9:D108) -> 0 | E8: =SUM(E9:E108) -> 0 | F8: =SUM(F9:F108) -> 0 | H8: Should Equal | I8: =Form3!G13+Form3!H13 -> 0
F9: =D9+E9 -> 0
F10: 0
F11: 0
F12: 0
F13: =D13+E13 -> 0
F14: =D14+E14 -> 0
F15: 0
F16: 0
F17: 0
F18: 0
F19: 0
F20: =D20+E20 -> 0
F21: =D21+E21 -> 0
F22: 0
F23: 0
F24: 0
F25: 0
F26: 0
F27: 0
F28: 0
F29: 0
F30: 0
F31: 0
F32: 0
F33: 0
F34: 0
F35: 0
F36: 0
F37: 0
F38: 0
F39: 0
F40: 0
F41: 0
F42: 0
F43: 0
F44: 0
F45: 0
F46: 0
F47: 0
F48: 0
F49: 0
F50: 0
F51: 0
F52: 0
F53: 0
F54: 0
F55: 0
F56: 0
F57: 0
F58: 0
F59: 0
F60: 0
F61: 0
F62: 0
F63: 0
F64: 0
F65: 0
F66: 0
F67: 0
F68: 0
F69: 0
F70: 0
F71: 0
F72: 0
F73: =D73+E73 -> 0
F74: 0
F75: 0
F76: 0
F77: 0
F78: 0
F79: 0
F80: 0
F81: 0
F82: 0
F83: 0
F84: 0
F85: 0
F86: 0
F87: 0
F88: 0
F89: 0
F90: 0
F91: 0
F92: 0
F93: 0
F94: 0
F95: 0
F96: 0
F97: 0
F98: 0
F99: 0
F100: 0
F101: 0
F103: 0
F104: 0
F105: 0
F106: 0
F107: 0
F108: 0
C109: (ii) Public Corporations | D109: =SUM(D110:D209) -> 0 | E109: =SUM(E110:E209) -> 0 | F109: =SUM(F110:F209) -> 0 | H109: Should Equal | I109: =Form3!G14+Form3!H14 -> 0
F110: 0
F111: 0
F112: 0
F113: 0
F114: 0
F115: 0
F116: 0
F117: 0
F118: 0
F119: 0
F120: 0
F121: 0
F122: 0
F123: 0
F124: 0
F125: 0
F126: 0
F127: 0
F128: 0
F129: 0
F130: 0
F131: 0
F132: 0
F133: 0
F134: 0
F135: 0
F136: 0
F137: =D137+E137 -> 0
F138: 0
F139: 0
F140: 0
F141: 0
F142: 0
F143: 0
F144: 0
F145: 0
F146: 0
F147: 0
F148: 0
F149: 0
F150: 0
F151: 0
F152: 0
F153: 0
F154: 0
F155: 0
F156: 0
F157: 0
F158: 0
F159: 0
F160: 0
F161: 0
F162: 0
F163: 0
F164: 0
F165: 0
F166: 0
F167: 0
F168: 0
F169: 0
F170: 0
F171: 0
F172: 0
F173: 0
F174: 0
F175: 0
F176: 0
F177: 0
F178: 0
F179: 0
F180: 0
F181: 0
F182: 0
F183: 0
F184: 0
F185: 0
F186: 0
F187: 0
F188: 0
F189: 0
F190: 0
F191: 0
F192: 0
F193: 0
F194: 0
F195: 0
F196: 0
F197: 0
F198: 0
F199: 0
F200: 0
F201: =D201+E201 -> 0
F202: 0
F203: 0
F204: 0
... 2814 more rows

Sheet AnalyLnsOvr
L19: Analysis of Loans & Overdrafts Classified by Sector, Currency & Maturity
L21: Number of Accounts and Amounts Outstanding
L22: (Value in $000s)
L24: L O A N S | AF24: Total On- and Off-Balance Sheet Loans
I26: OVERDRAFTS | L26: Up to 2 Years | O26: 3 to 5 Years | R26: 6 to 10 Years | U26: Over 10 Years | X26: Off Balance Sheet | Z26: TOTAL LOANS | AC26: GRAND TOTAL
F28: S E C T O R | I28: NO. | J28: B$ | K28: F/C | L28: NO. | M28: B$ | N28: F/C | O28: NO. | P28: B$ | Q28: F/C | R28: NO. | S28: B$ | T28: F/C | U28: NO. | V28: B$ | W28: F/C | X28: B$ | Y28: F/C | Z28: NO. | AA28: B$ | AB28: F/C | AC28: NO. | AD28: B$ | AE28: F/C | AF28: B$ | AG28: F/C
F30: 1. Agriculture | I30: =I31+I32+I33 -> 0 | J30: =J31+J32+J33 -> 0 | K30: 0 | L30: 0 | M30: 0 | N30: 0 | O30: 0 | P30: 0 | Q30: 0 | R30: 0 | S30: 0 | T30: 0 | U30: 0 | V30: 0 | W30: 0 | X30: 0 | Y30: 0 | Z30: =L30+O30+R30+U30 -> 0 | AA30: 0 | AB30: 0 | AC30: =I30+L30+O30+R30+U30 -> 0 | AD30: 0 | AE30: 0 | AF30: =AD30+X30 -> 0 | AG30: =AE30+Y30 -> 0
F31: a) Livestock & Dairying | Z31: 0 | AA31: 0 | AB31: 0 | AC31: 0 | AD31: 0 | AE31: 0 | AF31: =AD31+X31 -> 0 | AG31: 0
F32: b) Food Crops | Z32: 0 | AA32: 0 | AB32: 0 | AC32: 0 | AD32: 0 | AE32: 0 | AF32: 0 | AG32: 0
F33: c) Other | Z33: 0 | AA33: 0 | AB33: 0 | AC33: 0 | AD33: 0 | AE33: 0 | AF33: 0 | AG33: 0
F34: 2. Fisheries | Z34: 0 | AA34: 0 | AB34: 0 | AC34: 0 | AD34: 0 | AE34: 0 | AF34: 0 | AG34: 0
F35: 3. Mining & Quarrying | Z35: 0 | AA35: 0 | AB35: 0 | AC35: 0 | AD35: 0 | AE35: 0 | AF35: 0 | AG35: 0
F36: 4. Manufacturing | I36: =I37+I38+I39+I40+I41+I42+I43 -> 0 | J36: =J37+J38+J39+J40+J41+J42+J43 -> 0 | K36: 0 | L36: 0 | M36: 0 | N36: 0 | O36: 0 | P36: 0 | Q36: 0 | R36: 0 | S36: 0 | T36: 0 | U36: 0 | V36: 0 | W36: 0 | X36: =SUM(X37:X43) -> 0 | Y36: =SUM(Y37:Y43) -> 0 | Z36: 0 | AA36: 0 | AB36: 0 | AC36: 0 | AD36: 0 | AE36: 0 | AF36: 0 | AG36: 0
F37: a) Food & Non-Alcoholic Beverages | Z37: 0 | AA37: 0 | AB37: 0 | AC37: 0 | AD37: 0 | AE37: 0 | AF37: 0 | AG37: 0
F38: b) Alcoholic Beverages & Tobacco | Z38: 0 | AA38: 0 | AB38: 0 | AC38: 0 | AD38: 0 | AE38: 0 | AF38: 0 | AG38: 0
F39: c) Building Material & Metal Products | Z39: 0 | AA39: 0 | AB39: 0 | AC39: 0 | AD39: 0 | AE39: 0 | AF39: 0 | AG39: 0
F40: d) Furniture & Wood Products | Z40: 0 | AA40: 0 | AB40: 0 | AC40: 0 | AD40: 0 | AE40: 0 | AF40: 0 | AG40: 0
F41: e) Textiles, Clothing, etc. | Z41: 0 | AA41: 0 | AB41: 0 | AC41: 0 | AD41: 0 | AE41: 0 | AF41: 0 | AG41: 0
F42: f) Petro-Chemicals, Chemical & Plastic Products | Z42: 0 | AA42: 0 | AB42: 0 | AC42: 0 | AD42: 0 | AE42: 0 | AF42: 0 | AG42: 0
F43: g) Other Manufacturing | Z43: 0 | AA43: 0 | AB43: 0 | AC43: 0 | AD43: 0 | AE43: 0 | AF43: 0 | AG43: 0
F44: 5. Distribution | I44: =I45+I46+I47+I48 -> 0 | J44: =J45+J46+J47+J48 -> 0 | K44: 0 | L44: 0 | M44: 0 | N44: 0 | O44: 0 | P44: 0 | Q44: 0 | R44: 0 | S44: 0 | T44: 0 | U44: 0 | V44: 0 | W44: 0 | X44: =SUM(X45:X48) -> 0 | Y44: =SUM(Y45:Y48) -> 0 | Z44: 0 | AA44: 0 | AB44: 0 | AC44: 0 | AD44: 0 | AE44: 0 | AF44: 0 | AG44: 0
F45: a) Commission Agents | Z45: 0 | AA45: 0 | AB45: 0 | AC45: 0 | AD45: 0 | AE45: 0 | AF45: 0 | AG45: 0
F46: b) Wholesale | Z46: 0 | AA46: 0 | AB46: 0 | AC46: 0 | AD46: 0 | AE46: 0 | AF46: 0 | AG46: 0
F47: c) Retail | Z47: =L47+O47+R47+U47 -> 0 | AA47: 0 | AB47: 0 | AC47: =I47+L47+O47+R47+U47 -> 0 | AD47: 0 | AE47: 0 | AF47: 0 | AG47: 0
F48: d) Other | Z48: 0 | AA48: 0 | AB48: 0 | AC48: 0 | AD48: 0 | AE48: 0 | AF48: 0 | AG48: 0
F49: 6. Tourism | I49: =I50+I51+I52 -> 0 | J49: =J50+J51+J52 -> 0 | K49: 0 | L49: 0 | M49: 0 | N49: 0 | O49: 0 | P49: 0 | Q49: 0 | R49: 0 | S49: 0 | T49: 0 | U49: 0 | V49: 0 | W49: 0 | X49: 0 | Y49: 0 | Z49: 0 | AA49: 0 | AB49: 0 | AC49: 0 | AD49: 0 | AE49: 0 | AF49: 0 | AG49: 0
F50: a) Hotels | Z50: 0 | AA50: 0 | AB50: 0 | AC50: 0 | AD50: 0 | AE50: 0 | AF50: 0 | AG50: 0
F51: b) Apartments | Z51: 0 | AA51: 0 | AB51: 0 | AC51: 0 | AD51: 0 | AE51: 0 | AF51: 0 | AG51: 0
F52: c) Other | Z52: 0 | AA52: 0 | AB52: 0 | AC52: 0 | AD52: =J52+M52+P52+S52+V52 -> 0 | AE52: 0 | AF52: 0 | AG52: 0
F53: 7. Entertainment & Catering | Z53: 0 | AA53: 0 | AB53: 0 | AC53: 0 | AD53: 0 | AE53: 0 | AF53: 0 | AG53: 0
F54: 8. Transport | Z54: 0 | AA54: 0 | AB54: 0 | AC54: 0 | AD54: 0 | AE54: 0 | AF54: 0 | AG54: 0
F55: 9. Public Corporations | Z55: 0 | AA55: 0 | AB55: 0 | AC55: 0 | AD55: 0 | AE55: 0 | AF55: 0 | AG55: 0
F56: 10. Construction | I56: =I57+I58 -> 0 | J56: =J57+J58 -> 0 | K56: 0 | L56: 0 | M56: 0 | N56: 0 | O56: 0 | P56: 0 | Q56: 0 | R56: 0 | S56: 0 | T56: 0 | U56: 0 | V56: 0 | W56: 0 | X56: =X57+X58 -> 0 | Y56: =Y57+Y58 -> 0 | Z56: 0 | AA56: 0 | AB56: 0 | AC56: 0 | AD56: 0 | AE56: 0 | AF56: 0 | AG56: 0
F57: a) Land Development | Z57: 0 | AA57: 0 | AB57: 0 | AC57: 0 | AD57: 0 | AE57: 0 | AF57: 0 | AG57: 0
F58: b) Other Construction | I58: =I59+I60 -> 0 | J58: =J59+J60 -> 0 | K58: 0 | L58: 0 | M58: 0 | N58: 0 | O58: 0 | P58: 0 | Q58: 0 | R58: 0 | S58: 0 | T58: 0 | U58: 0 | V58: 0 | W58: 0 | X58: 0 | Y58: 0 | Z58: 0 | AA58: 0 | AB58: 0 | AC58: 0 | AD58: 0 | AE58: 0 | AF58: 0 | AG58: 0
F59: (i) Private Residence | Z59: 0 | AA59: 0 | AB59: 0 | AC59: 0 | AD59: 0 | AE59: 0 | AF59: 0 | AG59: 0
F60: (ii) Commercial & Industrial | Z60: 0 | AA60: 0 | AB60: 0 | AC60: 0 | AD60: 0 | AE60: 0 | AF60: 0 | AG60: 0
F61: 11. Government | Z61: 0 | AA61: 0 | AB61: 0 | AC61: 0 | AD61: 0 | AE61: 0 | AF61: 0 | AG61: 0
F62: 12. Public Financial Institutions | Z62: 0 | AA62: 0 | AB62: 0 | AC62: 0 | AD62: 0 | AE62: 0 | AF62: 0 | AG62: 0
F63: 13. Private Financial Institutions | Z63: =L63+O63+R63+U63 -> 0 | AA63: 0 | AB63: 0 | AC63: =I63+L63+O63+R63+U63 -> 0 | AD63: 0 | AE63: 0 | AF63: 0 | AG63: 0
F64: 14. Professional & Other Services | Z64: 0 | AA64: 0 | AB64: 0 | AC64: 0 | AD64: 0 | AE64: 0 | AF64: 0 | AG64: 0
F65: 15. Personal | I65: =I66+I70+I71 -> 0 | J65: 0 | K65: 0 | L65: 0 | M65: 0 | N65: 0 | O65: 0 | P65: 0 | Q65: 0 | R65: 0 | S65: 0 | T65: 0 | U65: 0 | V65: 0 | W65: 0 | X65: 0 | Y65: 0 | Z65: 0 | AA65: 0 | AB65: 0 | AC65: 0 | AD65: 0 | AE65: 0 | AF65: 0 | AG65: 0
F66: a) Housing | I66: =I67+I69 -> 0 | J66: =J67+J69 -> 0 | K66: 0 | L66: 0 | M66: 0 | N66: 0 | O66: 0 | P66: 0 | Q66: 0 | R66: 0 | S66: 0 | T66: 0 | U66: 0 | V66: 0 | W66: 0 | X66: 0 | Y66: 0 | Z66: 0 | AA66: 0 | AB66: 0 | AC66: 0 | AD66: 0 | AE66: 0 | AF66: 0 | AG66: 0
F67: (i) Residential Mortgages | Z67: 0 | AA67: 0 | AB67: 0 | AC67: 0 | AD67: 0 | AE67: 0 | AF67: 0 | AG67: 0
F68: Equity Loans | Z68: =L68+O68+R68+U68 -> 0 | AA68: =M68+P68+S68+V68 -> 0 | AB68: =N68+Q68+T68+W68 -> 0 | AC68: =I68+L68+O68+R68+U68 -> 0 | AD68: =J68+M68+P68+S68+V68 -> 0 | AE68: =K68+N68+Q68+T68+W68 -> 0 | AF68: 0 | AG68: 0
F69: (ii) Home Improvement | Z69: 0 | AA69: 0 | AB69: 0 | AC69: 0 | AD69: 0 | AE69: 0 | AF69: 0 | AG69: 0
F70: b) Land Purchase | Z70: 0 | AA70: 0 | AB70: 0 | AC70: 0 | AD70: 0 | AE70: 0 | AF70: 0 | AG70: 0
F71: c) Other | Z71: 0 | AA71: 0 | AB71: 0 | AC71: 0 | AD71: 0 | AE71: 0 | AF71: 0 | AG71: 0
F72: 16. Miscellaneous | Z72: 0 | AA72: 0 | AB72: 0 | AC72: 0 | AD72: 0 | AE72: 0 | AF72: 0 | AG72: 0
F73: 17. Total Resident | I73: =I30+I34+I35+I36+I44+I49+I53+I54+I55+I56+I61+I62+I63+I64+I65+I72 -> 0 | J73: 0 | K73: 0 | L73: 0 | M73: 0 | N73: 0 | O73: 0 | P73: 0 | Q73: 0 | R73: 0 | S73: 0 | T73: 0 | U73: 0 | V73: 0 | W73: =W30+W34+W35+W36+W44+W49+W53+W54+W55+W56+W61+W62+W63+W64+W65+W72 -> 0 | X73: 0 | Y73: =Y30+Y34+Y35+Y36+Y44+Y49+Y53+Y54+Y55+Y56+Y61+Y62+Y63+Y64+Y65+Y72 -> 0 | Z73: 0 | AA73: 0 | AB73: 0 | AC73: 0 | AD73: 0 | AE73: 0 | AF73: 0 | AG73: 0
F74: 18. Total Non-Resident | Z74: 0 | AA74: 0 | AB74: 0 | AC74: 0 | AD74: 0 | AE74: 0 | AF74: 0 | AG74: 0

Sheet Form5
C3: Analysis of Commodity Composition on Consumer Credit
H5: (Value in $000s)
H6: DEMAND - UP TO 7 YEARS
D8: Type of Commodity | G8: Value of Debt Outstanding | H8: Value of Repayments | I8: Value of New Credit Extended | J8: Number of Agreements | K8: Value of Non-Performing Accounts | L8: Number of Non-Performing Accounts
C10: 1. | D10: Private Cars
C11: 2. | D11: Taxis or Rented Cars
C12: 3. | D12: Commercial Vehicles
C13: 4. | D13: Furnishings and Domestic Appliances
C14: 5. | D14: Travel
C15: 6. | D15: Education
C16: 7. | D16: Medical
C17: 8. | D17: Home Improvement
C18: 9. | D18: Land Purchase (i.e. Lots)
C19: 10. | D19: Consolidation of Debts
C20: 11. | D20: Credit Cards
C21: 12. | D21: Miscellaneous
D22: TOTAL | G22: =SUM(G10:G21) -> 0 | H22: 0 | I22: 0 | J22: 0 | K22: 0 | L22: 0
H25: DEMAND - OVER 7 YEARS
D27: Type of Commodity | G27: Value of Debt Outstanding | H27: Value of Repayments | I27: Value of New Credit Extended | J27: Number of Agreements | K27: Value of Non-Performing Accounts | L27: Number of Non-Performing Accounts
C29: 1. | D29: Private Cars
C30: 2. | D30: Taxis or Rented Cars
C31: 3. | D31: Commercial Vehicles
C32: 4. | D32: Furnishings and Domestic Appliances
C33: 5. | D33: Travel
C34: 6. | D34: Education
C35: 7. | D35: Medical
C36: 8. | D36: Home Improvement
C37: 9. | D37: Land Purchase (i.e. Lots)
C38: 10. | D38: Consolidation of Debts
C39: 11. | D39: Credit Cards
C40: 12. | D40: Miscellaneous
D41: TOTAL | G41: =SUM(G29:G40) -> 0 | H41: 0 | I41: 0 | J41: 0 | K41: 0 | L41: 0

Sheet Form10
B2: Analysis of Inter-Financial Institutions' Transactions
K4: Commercial Banks
K5: BOB - Bank of The Bahamas Ltd.
B6: A: BAHAMIAN DOLLAR TRANSACTIONS | K6: BNS - Scotiabank (Bahamas) Ltd.
B7: COMMERCIAL BANKS (AUTHORIZED DEALERS) | K7: CIBC - CIBC Caribbean Bank (Bahamas) Ltd.
C8: DUE TO | F8: DUE FROM | K8: CIT - Citibank N.A.
B9: Institution | C9: Demand/Call | D9: Fixed | E9: Borrowings | F9: Demand/Call | G9: Fixed | H9: Loans | I9: Negotiable Paper | K9: CBL - Commonwealth Bank Ltd.
K10: EBT - Equity Bank & Trust Ltd.
K11: FBB - Fidelity Bank (Bahamas) Ltd.
K12: FIN - Finance Corporation of Bahamas Ltd.
K13: RBC - RBC Royal Bank (Bahamas) Ltd.
K14: RFMB - RF Bank & Trust (Bahamas) Limited
K16: OLFIs
K17: BNT - Bank of Nova Scotia Trus Co. (Bahamas) Ltd., The
K18: BBL - Butterfield Trust (Bahamas) Ltd.
K19: CBT - CIBC Caribbean Trust Co. (Bahamas) Ltd.
K20: COR - Corner Bank (Overseas) Ltd.
K21: CUB - Capital Union Bank Ltd.
B22: (B$000s) Total: | C22: =SUM(C11:C21) -> 0 | D22: =SUM(D11:D21) -> 0 | E22: 0 | F22: 0 | G22: 0 | H22: 0 | I22: 0 | K22: DBT - Deltec Bank & Trust Ltd.
B23: Should Equal: | C23: ='Form 1'!K25 -> 0 | D23: ='Form 1'!K26 -> 0 | E23: ='Form 1'!K27 -> 0 | F23: =Form2!K24 -> 0 | G23: =Form2!K25 -> 0 | H23: =Form2!K26 -> 0 | I23: =Form2!K27 -> 0 | K23: JTC - JTC Private Trust Co. (Bahamas) Ltd.
K24: MTC - J.P. Morgan Trust Co. (Bahamas) Ltd.
B25: OTHER LOCAL FINANCIAL INSTITUTIONS (AUTHORIZED AGENTS) | K25: LTL - Leno Trust Ltd.
C26: DUE TO | F26: DUE FROM | K26: TTC - Trident Trust Co.(Bahamas) Ltd.
B27: Institution | C27: Demand/Call | D27: Fixed | E27: Borrowings | F27: Demand/Call | G27: Fixed | H27: Loans | I27: Negotiable Paper
B39: (B$000s) Total: | C39: =SUM(C28:C38) -> 0 | D39: =SUM(D28:D38) -> 0 | E39: 0 | F39: 0 | G39: 0 | H39: 0 | I39: =SUM(I28:I38) -> 0
B40: Should Equal: | C40: ='Form 1'!K29 -> 0 | D40: ='Form 1'!K30 -> 0 | E40: ='Form 1'!K31 -> 0 | F40: =Form2!K29 -> 0 | G40: =Form2!K30 -> 0 | H40: =Form2!K31 -> 0 | I40: =Form2!K32 -> 0
B42: B: FOREIGN CURRENCY TRANSACTIONS
B43: COMMERCIAL BANKS (AUTHORIZED DEALERS)
C44: DUE TO | F44: DUE FROM
B45: Institution | C45: Demand/Call | D45: Fixed | E45: Borrowings | F45: Demand/Call | G45: Fixed | H45: Loans | I45: Negotiable Paper
B57: (B$000s) Total: | C57: =SUM(C46:C56) -> 0 | D57: =SUM(D46:D56) -> 0 | E57: 0 | F57: 0 | G57: 0 | H57: 0 | I57: 0
B58: Should Equal: | C58: ='Form 1'!L25+'Form 1'!M25 -> 0 | D58: ='Form 1'!L26+'Form 1'!M26 -> 0 | E58: ='Form 1'!L27+'Form 1'!M27 -> 0 | F58: =Form2!L24+Form2!M24 -> 0 | G58: =Form2!L25+Form2!M25 -> 0 | H58: =Form2!L26+Form2!M26 -> 0 | I58: =Form2!L27+Form2!M27 -> 0
B60: OTHER LOCAL FINANCIAL INSTITUTIONS (AUTHORIZED AGENTS)
C61: DUE TO | F61: DUE FROM
B62: Institution | C62: Demand/Call | D62: Fixed | E62: Borrowings | F62: Demand/Call | G62: Fixed | H62: Loans | I62: Negotiable Paper
B74: (B$000s) Total: | C74: =SUM(C63:C73) -> 0 | D74: =SUM(D63:D73) -> 0 | E74: 0 | F74: 0 | G74: 0 | H74: 0 | I74: =SUM(I63:I73) -> 0
B75: Should Equal: | C75: ='Form 1'!L29+'Form 1'!M29 -> 0 | D75: ='Form 1'!L30+'Form 1'!M30 -> 0 | E75: ='Form 1'!L31+'Form 1'!M31 -> 0 | F75: =Form2!L29+Form2!M29 -> 0 | G75: =Form2!L30+Form2!M30 -> 0 | H75: =Form2!L31+Form2!M31 -> 0 | I75: =Form2!L32+Form2!M32 -> 0

Sheet Sheet1 (hidden)
A1: Commercial Banks | B1: OLFIs
A2: BOB | B2: BNT
A3: BNS | B3: BBL
A4: CIBC | B4: CBT
A5: CIT | B5: COR
A6: CBL | B6: CUB
A7: EBT | B7: DBT
A8: FBB | B8: JTC
A9: FIN | B9: MTC
A10: RBC | B10: LTL
A11: RFMB | B11: TTC

Sheet Capital Composition (hidden)
D6: Breakdown Of Capital Base
F8: ($000s)
E9: Section I: Common Equity Tier 1 (CET1) Capital: Instruments and Reserves
D10: 1 | E10: Ordinary Shares/common stock (issued and paid up that relate to directly issued qualifying CET1 capital instruments) | F10: 4,379
D11: 2 | E11: Stock Surplus (Share Premiums arising from Item (1) above) | F11: 5,474
D12: 3 | E12: Disclosed Reserves & Accumulated Other Comprehensive Income (inclusive of interim other comprehensive income)
D13: 4a. | E13: Beginning Retained Earnings | F13: ='Form 1'!N70 -> 0
D14: 4b. | E14: Current Year Net Profit (Loss) | F14: 2,356
D15: 5 | E15: Ending Retained Earnings | F15: =SUM(F13:F14) -> 2,356
D16: 6 | E16: Minority Interest (arising from CET1 capital instruments issued by the consolidated bank subsidiaries and held by third parties)
D18: 7 | E18: CET1 Capital Before Deductions ( A ) | F18: =SUM(F10:F12,F15:F16) -> 12,209
D20: 8 | E20: Deductions (Regulatory Adjustments):
D21: 9 | E21: Valuation Adjustments
D22: 10 | E22: Goodwill
D23: 11 | E23: Other intangible assets
D24: 12 | E24: Cumulative cash flow hedge reserve (that relates to the hedging of financial instruments that are not fair valued on the balance sheet)
D25: 13 | E25: Gains and losses due to changes in own credit risk on fair valued liabilities
D26: 14 | E26: Defined benefit pension fund assets (and liabilities)
D27: 15 | E27: Deferred tax assets
D28: 16 | E28: Investments in own shares (Treasury stock CET1 capital instruments)
D29: 17 | E29: Reciprocal cross holdings in CET1 capital instruments issued by any financial sector entities
D30: 18 | E30: Gains on sale related to securitization transactions
D31: 19 | E31: Non-significant investments in the capital of banking, financial and insurance entities (outside the scope of regulatory consolidation and the bank does not own more than 10% of the issued common share capital of the entity)
D32: 20 | E32: Significant investments in the capital of banking, financial and insurance entities (outside the scope of regulatory consolidation and the bank owns more than 10% of the issued common share capital of the enitity or where the entity is an affiliate of the bank)
D33: 21 | E33: Other deduction or regulatory adjustments to CET1 as determined by the CBOB
D34: 22 | E34: Regulatory adjustments applied to CET1 due to insufficient Additional Tier 1 and Tier 2 to cover deductions
D35: 23
D36: 24 | E36: CET1 Capital After Deductions ( B ) | H36: =F18-SUM(G21:G34) -> 12,209
E38: Section II: Additional Tier 1 Capital: Instruments
D39: 24 | E39: Perpetual non-cumulative preferred share/stock (issued and paid up)
D40: 25 | E40: Additional Tier 1 capital instruments issued (meeting criteria for AT1 and are not included in CET1)
D41: 26 | E41: of which: amount that is subject to phase out
D42: 27 | E42: Stock surplus (i.e. share premium, if any, meeting the criteria for AT1)
D43: 28 | E43: Minority Interest, i.e. Additional Tier 1 capital instruments issued by consolidated bank subsidiaries and held by third parties and are not included in CET1
D44: 29 | E44: of which: amount that is subject to phase out
D46: 30 | E46: Additional Tier 1 Before Deductions ( C ) | F46: =SUM(F39,F40,F42,F43) -> 0
D48: 31 | E48: Deductions (Regulatory Adjustments):
D49: 32 | E49: Investment in own Additional Tier 1 instruments
D50: 33 | E50: Reciprocal cross holdings in Additional Tier 1 instruments
D51: 34 | E51: Non-significant capital investments in Additional Tier 1 of banking, financial and insurance entities (outside the scope of regulatory consolidation and the bank does not own more than 10% of the issued common share capital of the entity)
D52: 35 | E52: Significant capital investments in Additional Tier 1 of banking, financial and insurance entities (outside the scope of regulatory consolidation and the bank owns more than 10% of the issued common share capital of the enitity or where the entity is an affiliate of the bank)
D53: 36 | E53: Other deductions from Tier 1 capital as determined by the CBoB
D54: 37 | E54: Regulatory adjustments applied to Additional Tier 1 due to insufficient Tier 2 to cover deductions
D56: 38 | E56: Additional Tier 1 After Deductions ( D ) | H56: =F46-SUM(G49:G54) -> 0
D58: 39 | E58: Total Tier 1 Capital After Deductions ( B ) + ( D ) = ( E ) | H58: =SUM(H36,H56) -> 12,209
E61: Section III: Tier 2 Capital: Instruments and Provisions
D62: 40 | E62: Directly issued qualifying Tier 2 instruments (i.e. Subordinated term debt meeting criteria of Tier 2)
D63: 41 | E63: Stock surplus (i.e. share premium, if any, resulting from the issue of instruments included in Tier 2)
D64: 42 | E64: Minority Interest, i.e. Tier 2 instruments issued by consolidated bank subsidiaries and held by third parties (and are not included in CET1 and AT1)
D65: 43 | E65: Regulatory reserves
D66: 44 | E66: Revaluation Reserves
D67: 45 | E67: General provisions | F67: ='Form 1'!N68 -> 0
D69: 46 | E69: Tier 2 Capital Before Deductions ( F ) | F69: =SUM(F62:F67) -> 0
D71: 47 | E71: Deductions (Regulatory Adjustments):
D72: 48 | E72: Investments in own Tier 2 capital instruments
D73: 49 | E73: Reciprocal cross holdings in Tier 2 capital instruments
D74: 50 | E74: Non-significant capital investments in Tier 2 of banking, financial and insurance entities (outside the scope of regulatory consolidation and the bank does not own more than 10% of the issued common share capital of the entity)
D75: 51 | E75: Significant capital investments in Tier 2 of banking, financial and insurance entities (outside the scope of regulatory consolidation and the bank owns more than 10% of the issued common share capital of the enitity or where the entity is an affiliate of the bank)
D76: 52 | E76: General provisions (i.e. the amount which is in excess of the maximum 1.25% of credit risk-weighted assets eligible for inclusion in Tier 2) | G76: =IF((1.25%*CapSum!H24)<F67,F67-(1.25%*CapSum!H24),0) -> 0
D77: 53 | E77: Other deductions from Tier 2 capital as determined by the CBOB
D79: 54 | E79: Tier 2 Capital After Deductions ( G ) | H79: =F69-SUM(G72:G77) -> 0
D81: 55 | E81: Total Eligible Capital Base (Tier 1 + Tier 2) ( E ) + ( G ) = ( H ) | H81: =H58+H79 -> 12,209

Sheet New Capital Composition
D6: Breakdown of Capital Base
F8: ($000s)
E9: Common Equity Tier 1 (CET1) Capital: Instruments and Reserves
D10: 1.1 | E10: Ordinary Shares/common stock (issued and paid up that relate to directly issued qualifying CET1 capital instruments)
D11: 1.2 | E11: Stock Surplus (Share Premiums or additional paid-in capital arising from Item (1.1) above)
D12: 1.3 | E12: Accumulated Other Comprehensive Income (inclusive of interim other comprehensive income)
D13: 1.4 | E13: General or Statutory Reserves (as disclosed on the balance sheet)
D14: 1.5a | E14: Beginning Retained Earnings | F14: ='Form 1'!N70 -> 0
D15: 1.5b | E15: Current Year Net Profit (Loss) net of expected dividends
D16: 1.6 | E16: Ending Retained Earnings | F16: =SUM(F14:F15) -> 0
D18: 1.7 | E18: CET1 Capital Before Deductions | F18: =SUM(F10:F13,F16) -> 0
E20: Deductions (Regulatory Adjustments):
D21: 1.8 | E21: Valuation Adjustments
D22: 1.9 | E22: Goodwill
D23: 1.10 | E23: Other intangible assets
D24: 1.11 | E24: Cumulative cash flow hedge reserve (that relates to the hedging of financial instruments that are not fair valued on the balance sheet)
D25: 1.12 | E25: Gains and losses due to changes in own credit risk on fair valued liabilities
D26: 1.13 | E26: Negative amounts resulting from the calculation of expected losses
D27: 1.14 | E27: Defined benefit pension fund assets (and liabilities)
D28: 1.15 | E28: Investments in own shares (Treasury stock CET1 capital instruments)
D29: 1.16 | E29: Reciprocal cross holdings in CET1 capital instruments issued by any financial sector entities
D30: 1.17 | E30: Non-significant investments in the equity (CET1 instruments) of banking, financial and insurance entities (outside the scope of regulatory consolidation and the bank does not own more than 10% of the issued common share capital of the entity)
D31: 1.18 | E31: Significant investments in the equity (CET1 instruments) of banking, financial and insurance entities (outside the scope of regulatory consolidation and the bank owns more than 10% of the issued common share capital of the enitity or where the entity is an affiliate of the bank)
D32: 1.19 | E32: Any increase in equity that results from securitised assets
D33: 1.20 | E33: Other deduction or regulatory adjustments to CET1 as determined by the CBOB
D34: 1.21 | E34: Total Deduction from CET1 Capital | G34: =SUM(G21:G33) -> 0
D36: 1.22 | E36: Total Eligible Capital Base: CET1 Capital After Deductions | H36: =F18-G34 -> 0

Sheet CapSum (hidden)
D6: Summary Schedule Of Total Eligible Capital
H8: ($000s)
D10: Capital Base
D12: Common Equity Tier 1 Capital | H12: ='Capital Composition'!H36 -> 12,209
D13: Additional Tier 1 Capital | H13: ='Capital Composition'!H56 -> 0
D14: Total Tier 1 Capital | H14: =SUM(H12:H13) -> 12,209
D16: Total Tier 2 Capital | H16: ='Capital Composition'!H79 -> 0
D18: Total Eligible Capital | H18: =SUM(H14+H16) -> 12,209
D20: Credit Risk
D22: Using standardized approach
D23: Total Capital Required for Credit Risk | F23: 0.12 | G23: =H24*F23 -> 12,184.47
D24: Total Credit Risk adjusted risk-weighted assets | H24: ='OFF Balance Sheet (Non-Deriv)'!K114+'OFF Balance Sheet (Deriv)'!P91+'CR - ON Balance Sheet'!K272-H50 -> 101,537
D26: Operational Risk
D28: Using basic indicator approach | G28: =OpRisk!F15 -> 3,564.00
D29: Using standardized approach | G29: =OpRisk!F47 -> 0.00
D30: Total Capital Required For Operational Risk | G30: =SUM(G28:G29) -> 3,564.00
D32: Multiplier | G32: 12.50
D33: Total Operational Risk Adjusted Risk-Weighted Assets | H33: =G30*G32 -> 44,550.00
D35: Market Risk
D37: Using standardized approach
D38: 1. Interest Rate Risk | G38: =G39+G40+G41 -> 0.00
D39: a. Specific Risk | G39: ='IRR-Specific'!K18 -> 0.00
D40: b. General Market Risk | G40: ='IRR-Specific'!K19 -> 0.00
D41: c. Interest Rate Options | G41: ='IRR-Specific'!K20 -> 0.00
D42: 2. Equity Position Risk | G42: =G43+G44 -> 0.00
D43: a. Specific Risk | G43: =Equity!H28 -> 0.00
D44: b. General Market Risk | G44: =Equity!H29 -> 0.00
D45: 3. Foreign Exchange Risks | G45: =FX!E28 -> 0.00
D46: 4. Commodities Risks | G46: =Commodities!H31 -> 0.00
D47: Total Capital Required For Market Risk | G47: =SUM(G38+G42+G45+G46) -> 0.00
D49: Multiplier | G49: 12.50
D50: Total Market Risk Adjusted Risk-Weighted Assets | H50: =G47*G49 -> 0.00
D52: Total Risk-Weighted Assets | H52: =H24+H33+H50 -> 146,087.23
D54: Capital Adequacy Ratio | H54: =H18/H52 -> 8.4%
D56: Common Equity Tier 1 To Risk-Weighted Assets | H56: =H12/H52 -> 8.4%
D58: Tier 1 Capital To Risk-Weighted Assets | H58: =H14/H52 -> 8.4%
D60: Gearing Ratio (Total Eligible Capital/Total Assets) | H60: =H18/Form2!N92 -> 

Sheet New CapSum
D6: Summary Schedule of Total Eligible Capital
H8: ($000s)
D10: Capital Base
D11: Common Equity Tier 1 Capital | H11: ='New Capital Composition'!F18 -> 0
D12: Less: Regulatory Adjustments | H12: ='New Capital Composition'!G34 -> 0
D14: Total Eligible Capital | H14: =SUM(H11-H12) -> 0
D16: Credit Risk
D17: Using standardised approach
D18: Total Capital Required for Credit Risk | F18: 0.12 | G18: =H20*F18 -> 0.00
D20: Total Credit Risk Adjusted Risk-Weighted Assets | H20: ='New OFF Balance Sheet (Non-Der)'!K148+'New OFF Balance Sheet (Deriv)'!P91+'New CR - ON Balance Sheet'!K338-H44 -> 0
D22: Operational Risk
D23: Using standardised approach | G23: =SUM('New OpRisk'!I101:I101) -> 0
D25: Total Capital Required For Operational Risk | H25: =G23 -> 0
D27: Multiplier | G27: 12.50
D28: Total Operational Risk Adjusted Risk-Weighted Assets | H28: =H25*G27 -> 0
D30: Market Risk
D31: Using simple standardized approach
D32: 1. Interest Rate Risk | E32: 1.30 | F32: =F33+F34+F35 -> 0.00 | G32: =E32*F32 -> 0.00
D33: a. Specific Risk | F33: ='IRR-Specific'!K18 -> 0.00
D34: b. General Market Risk | F34: ='IRR-Specific'!K19 -> 0.00
D35: c. Interest Rate Options | F35: ='IRR-Specific'!K20 -> 0.00
D36: 2. Equity Position Risk | E36: 3.50 | F36: =F37+F38 -> 0.00 | G36: =E36*F36 -> 0.00
D37: a. Specific Risk | F37: =Equity!H28 -> 0.00
D38: b. General Market Risk | F38: =Equity!H29 -> 0.00
D39: 3. Foreign Exchange Risks | E39: 1.20 | F39: =FX!E28 -> 0.00 | G39: =E39*F39 -> 0.00
D40: 4. Commodities Risks | E40: 1.90 | F40: =Commodities!H31 -> 0.00 | G40: =E40*F40 -> 0.00
D41: Total Capital Required For Market Risk | F41: =SUM(F32+F36+F39+F40) -> 0.00 | G41: =SUM(G32+G36+G39+G40) -> 0.00
D43: Multiplier | G43: 12.50
D44: Total Market Risk Adjusted Risk-Weighted Assets | H44: =G41*G43 -> 0
D46: Total Risk-Weighted Assets | H46: =SUM(H20+H28+H44) -> 0
D48: Capital Adequacy Ratio | H48: =H14/H46 -> 
D50: Leverage Ratio | H50: =SUM('New Leverage Ratio'!F37:G37) -> 

Sheet CR - ON Balance Sheet (hidden)
D123: Credit Risk - Standardised Approach
D124: Item No. | E124: On Balance Sheet Items | G124: ($000s) | H124: CRM | I124: TOTAL (after CRM) | J124: Risk Weight (%) | K124: RWA
D127: 1 | E127: Cash Items | G127: =SUM(G129:G134) -> 3,653 | H127: =SUM(H129:H134) -> 3,653 | I127: =SUM(I129:I134) -> 0 | K127: =SUM(K129:K134) -> 0
D129: 1.1 | E129: Notes & Coins | G129: =Form2!N9 -> 0 | I129: =G129-H129 -> 0 | J129: 0 | K129: =I129*(J129/100) -> 0
D130: 1.2 | E130: Gold Bullion - In Vault | I130: 0 | J130: 0 | K130: 0
D131: 1.3 | E131: Gold Bullion - Other | I131: 0 | J131: 100 | K131: 0
D132: 1.4 | E132: Silver Bullion, Precious Metals & Other Gemstones | I132: 0 | J132: 100 | K132: 0
D133: 1.5 | E133: Cash Items in the Course of Collection | G133: =Form2!N81 -> 0 | I133: 0 | J133: 20 | K133: 0
D134: 1.6 | E134: Exposures Collateralized by Cash Deposits | G134: 3,653 | H134: 3,653 | I134: 0 | J134: 0 | K134: 0
D136: 2 | E136: Sovereign Securities | G136: =SUM(G138:G139) -> 155,675 | H136: =SUM(H138:H139) -> 0 | I136: =SUM(I138:I139) -> 155,675 | K136: =ROUND(SUM(K138:K145),0) -> 0
D138: 2.1 | E138: Bahamas Government | G138: =Form2!N12 -> 0 | I138: =G138-H138 -> 0 | J138: 0 | K138: =I138*(J138/100) -> 0
D139: 2.2 | E139: Other Governments | G139: =SUM(G140:G145) -> 155675 | H139: =SUM(H140:H145) -> 0 | I139: 155675
D140: 2.2.1 | E140: Credit Assessment of Sovereign Claims | F140: AAA to AA- | G140: 155675 | I140: 155675 | J140: 0 | K140: =I140*(J140/100) -> 0
D141: 2.2.2 | F141: A+ to A- | I141: 0 | J141: 20 | K141: 0
D142: 2.2.3 | F142: BBB+ to BBB- | I142: 0 | J142: 50 | K142: 0
D143: 2.2.4 | F143: BB+ to B- | I143: 0 | J143: 100 | K143: 0
D144: 2.2.5 | F144: Below B- | I144: 0 | J144: 150 | K144: 0
D145: 2.2.6 | F145: Unrated | I145: 0 | J145: 100 | K145: 0
D147: 3 | E147: Claims on Sovereigns and the Central Bank | G147: =SUM(G149:G151) -> 0 | H147: =SUM(H149:H151) -> 0 | I147: =G147-H147 -> 0 | K147: =SUM(K149:K151) -> 0
D149: 3.1 | E149: National Treatment - The Bahamas only | I149: =G149-H149 -> 0 | J149: 0 | K149: =I149*(J149/100) -> 0
D150: 3.2 | E150: Special Organizations | I150: 0 | J150: 0 | K150: =I151*(J150/100) -> 0
D151: 3.3 | E151: Other Governments and Central Banks | G151: =SUM(G152:G157) -> 0 | H151: =SUM(H152:H157) -> 0 | I151: 0 | K151: =SUM(K152:K157) -> 0
D152: 3.3.1 | E152: Credit Assessment of Sovereign Claims | F152: AAA to AA- | I152: 0 | J152: 0 | K152: =I152*(J152/100) -> 0
D153: 3.3.2 | F153: A+ to A- | I153: 0 | J153: 20 | K153: 0
D154: 3.3.3 | F154: BBB+ to BBB- | I154: 0 | J154: 50 | K154: 0
D155: 3.3.4 | F155: BB+ to B- | I155: 0 | J155: 100 | K155: 0
D156: 3.3.5 | F156: Below B- | I156: 0 | J156: 150 | K156: 0
D157: 3.3.6 | F157: Unrated | I157: 0 | J157: 100 | K157: 0
D159: 4 | E159: Claims on Public Sector Entities (PSEs) | G159: =SUM(G161,G162,G169) -> 0 | H159: =SUM(H161,H162,H169) -> 0 | I159: =SUM(I161,I162,I169) -> 0 | K159: =SUM(K161,K163:K168,K169) -> 0
D161: 4.1 | E161: Treatment as Sovereign | I161: =G161-H161 -> 0 | J161: 0 | K161: =I161*J161 -> 0
D162: 4.2 | E162: Treatment as Bank (Option 1) | G162: =SUM(G163:G168) -> 0 | H162: =SUM(H163:H168) -> 0 | I162: 0
D163: 4.2.1 | E163: Credit Assessment of PSEs | F163: AAA to AA- | I163: 0 | J163: 20 | K163: =I163*(J163/100) -> 0
D164: 4.2.2 | F164: A+ to A- | I164: 0 | J164: 50 | K164: 0
D165: 4.2.3 | F165: BBB+ to BBB- | I165: 0 | J165: 100 | K165: 0
D166: 4.2.4 | F166: BB+ to B- | I166: 0 | J166: 100 | K166: 0
D167: 4.2.5 | F167: Below B- | I167: 0 | J167: 150 | K167: 0
D168: 4.2.6 | F168: Unrated | I168: 0 | J168: 100 | K168: 0
D169: 4.3 | E169: Treatment as Corporate | I169: 0 | J169: 100 | K169: 0
D171: 5 | E171: Claims on Multi-Lateral Development Banks (MDBs) | G171: =Form2!N49 -> 0 | H171: =SUM(H173,H175:H180) -> 0 | I171: =SUM(I173,I175:I180) -> 0 | K171: =SUM(K173,K175:K180) -> 0
D173: 5.1 | E173: Special MDBs | I173: =G173-H173 -> 0 | J173: 0 | K173: =I173*J173 -> 0
D174: 5.2 | E174: Bank (Option 2)
D175: 5.2.1 | E175: Credit Assessment of MDBs | F175: AAA to AA- | I175: =G175-H175 -> 0 | J175: 20 | K175: =I175*(J175/100) -> 0
D176: 5.2.2 | F176: A+ to A- | I176: 0 | J176: 50 | K176: 0
D177: 5.2.3 | F177: BBB+ to BBB- | I177: 0 | J177: 50 | K177: 0
D178: 5.2.4 | F178: BB+ to B- | I178: 0 | J178: 100 | K178: 0
D179: 5.2.5 | F179: Below B- | I179: 0 | J179: 150 | K179: 0
D180: 5.2.6 | F180: Unrated | I180: 0 | J180: 50 | K180: 0
D182: 6 | E182: Claims on Banks | G182: =SUM(G184,G191,G195) -> 200945 | H182: =SUM(H184,H191,H195) -> 0 | I182: 200945 | K182: =SUM(K184,K191,K195) -> 40,484
D184: 6.1 | E184: Exposures with original maturity of more than three months: | G184: =SUM(G185:G190) -> 0 | H184: =SUM(H185:H190) -> 0 | I184: =SUM(I185:I190) -> 0 | K184: =SUM(K185:K190) -> 0
D185: 6.1.1 | E185: Credit assessment of Sovereign | F185: AAA to AA- | I185: =G185-H185 -> 0 | J185: 20 | K185: =I185*(J185/100) -> 0
D186: 6.1.2 | F186: A+ to A- | I186: 0 | J186: 50 | K186: 0
D187: 6.1.3 | F187: BBB+ to BBB- | I187: 0 | J187: 100 | K187: 0
D188: 6.1.4 | F188: BB+to B- | I188: 0 | J188: 100 | K188: 0
D189: 6.1.5 | F189: Below B- | I189: 0 | J189: 150 | K189: 0
D190: 6.1.6 | F190: Unrated | I190: 0 | J190: 100 | K190: 0
D191: 6.2 | E191: Exposures with original maturity of three months or less (in domestic currency): | G191: =SUM(G192:G192) -> 375 | H191: =SUM(H192:H192) -> 0 | I191: =SUM(I192:I192) -> 375 | K191: =K192 -> 75
D192: 6.2.1 | E192: Domestic Currency | G192: 375 | I192: =G192-H192 -> 375 | J192: 20 | K192: =I192*(J192/100) -> 75
D195: 6.3 | E195: Exposures with original maturity of three months or less (in foreign currency): | G195: =SUM(G196:G201) -> 200570 | H195: =SUM(H196:H201) -> 0 | I195: =SUM(I196:I201) -> 200570 | K195: =SUM(K196:K201) -> 40,409
D196: 6.3.1 | E196: Credit assessment of Sovereign | F196: AAA to AA- | G196: 200201 | I196: =G196-H196 -> 200201 | J196: 20 | K196: =I196*(J196/100) -> 40,040
D197: 6.3.2 | F197: A+ to A- | I197: 0 | J197: 50 | K197: 0
D198: 6.3.3 | F198: BBB+ to BBB- | I198: 0 | J198: 100 | K198: 0
D199: 6.3.4 | F199: BB+to B- | G199: 362 | I199: 362 | J199: 100 | K199: 362
D200: 6.3.5 | F200: Below B- | I200: 0 | J200: 150 | K200: 0
D201: 6.3.6 | F201: Unrated | G201: 7 | I201: 7 | J201: 100 | K201: 7
D203: 7 | E203: Claims on Securities Firm | G203: =SUM(G205:G210) -> 140 | H203: =SUM(H205:H210) -> 3 | I203: =SUM(I205:I210) -> 137 | K203: =SUM(K205:K210) -> 137
D205: 7.1.1 | E205: Credit assessment of Sovereign | F205: AAA to AA- | I205: =G205-H205 -> 0 | J205: 20 | K205: =I205*(J205/100) -> 0
D206: 7.1.2 | F206: A+ to A- | I206: 0 | J206: 50 | K206: 0
D207: 7.1.3 | F207: BBB+ to BBB- | I207: 0 | J207: 100 | K207: 0
D208: 7.1.4 | F208: BB+to B- | I208: 0 | J208: 100 | K208: 0
D209: 7.1.5 | F209: Below BB- | I209: 0 | J209: 150 | K209: 0
D210: 7.1.6 | F210: Unrated | G210: 140 | H210: 3 | I210: 137 | J210: 100 | K210: 137
D212: 8 | E212: Claims on Corporates | G212: =SUM(G214:G214) -> 87575 | H212: =SUM(H214:H214) -> 70060 | I212: =SUM(I214:I214) -> 17515 | K212: =ROUND(SUM(K214:K214),0) -> 17,515
D214: 8.1 | E214: Corporates | G214: 87575 | H214: 70060 | I214: =G214-H214 -> 17515 | J214: 100 | K214: =I214*(J214/100) -> 17,515
D216: 9 | E216: Collective Investment Scheme Exposures | I216: =G216-H216 -> 0 | J216: 100 | K216: =I216*(J216/100) -> 0
D218: 10 | E218: Investments (Shares and Securities) | G218: =SUM(G219,G222:G223) -> 634 | H218: =SUM(H219,H222:H223) -> 0 | I218: =SUM(I219,I222:I223) -> 634 | K218: =SUM(K220:K223) -> 634
D219: 10.1 | E219: Domestic Securities | G219: =SUM(G220:G221) -> 30 | H219: =SUM(H220:H221) -> 0 | I219: =G219-H219 -> 30
D220: 10.1.1 | E220: Public Corporation Bonds | I220: =G220-H220 -> 0 | J220: 20 | K220: =I220*(J220/100) -> 0
D221: 10.1.2 | E221: Other Domestic Securities | G221: 30 | I221: =G221-H221 -> 30 | J221: 100 | K221: =I221*(J221/100) -> 30
D222: 10.2 | E222: Foreign Securities | G222: 604 | I222: =G222-H222 -> 604 | J222: 100 | K222: =I222*(J222/100) -> 604
D223: 10.3 | E223: Other Investments | I223: =G223-H223 -> 0 | J223: 100 | K223: =I223*(J223/100) -> 0
D225: 11 | E225: Securitizations | G225: =SUM(G227:G232) -> 0 | H225: =SUM(H227:H232) -> 0 | I225: =SUM(I227:I232) -> 0 | K225: =ROUND(SUM(K227:K230)-K231-K232,0) -> 0
D227: 11.1.1 | E227: Credit Assessment | F227: AAA to AA- (A-1/P-1) | I227: =G227-H227 -> 0 | J227: 20 | K227: =I227*(J227/100) -> 0
D228: 11.1.2 | F228: A+ to A- (A-2/P-2) | I228: 0 | J228: 50 | K228: =I228*(J228/100) -> 0
D229: 11.1.3 | F229: BBB+ to BBB- (A-3/P-3) | I229: 0 | J229: 100 | K229: =I229*(J229/100) -> 0
D230: 11.1.4 | F230: BB+ to BB- | I230: 0 | J230: 350 | K230: =I230*(J230/100) -> 0
D231: 11.1.5 | F231: Below BB- | I231: 0 | K231: =IF(I231<>0,0,0) -> 0
D232: 11.1.6 | F232: Unrated | I232: 0 | J232: Deduction | K232: =IF(I232<>0,0,0) -> 0
D234: 12 | E234: Retail Portfolio | G234: =SUM(G236:G238) -> 204 | H234: =SUM(H236:H238) -> 67 | I234: =SUM(I236:I238) -> 137 | K234: =ROUND(SUM(K236:K238),0) -> 103
D236: 12.1 | E236: Individual | G236: 204 | H236: 67 | I236: =G236-H236 -> 137 | J236: 75 | K236: =I236*(J236/100) -> 103
D237: 12.2 | E237: Small Business | I237: =G237-H237 -> 0 | J237: 75 | K237: =I237*(J237/100) -> 0
D238: 12.3 | E238: Other Retail Exposures | I238: =G238-H238 -> 0 | J238: 75 | K238: =I238*(J238/100) -> 0
D240: 13 | E240: Residential Mortgages | G240: =SUM(G242:G243) -> 0 | H240: =SUM(H242:H243) -> 0 | I240: =SUM(I242:I243) -> 0 | K240: =ROUND(SUM(K242:K243),0) -> 0
D242: 13.1 | E242: Secured | I242: =G242-H242 -> 0 | J242: 50 | K242: =I242*(J242/100) -> 0
D243: 13.2 | E243: Past Due (net of Specific Provisions) | G243: =G244-G245 -> 0 | H243: =H244-H245 -> 0 | I243: =G243-H243 -> 0 | J243: 100 | K243: =I243*(J243/100) -> 0
D244: 13.2.1 | E244: of which: Past Due | K244: =I244*(J244/100) -> 0
D245: 13.2.2 | E245: of which: Specific Provisions | K245: =I245*(J245/100) -> 0
D247: 14 | E247: Commercial Mortgages | G247: =G249 -> 0 | H247: =H249 -> 0 | I247: =I249 -> 0 | K247: =K249 -> 0
D249: 14.1 | E249: Secured | I249: =G249-H249 -> 0 | J249: 100 | K249: =I249*(J249/100) -> 0
D251: 15 | E251: Past Due Exposures (Over 90 days) | G251: =SUM(G254:G257,G260:G261) -> 0 | H251: =SUM(H254:H257,H260:H261) -> 0 | I251: =SUM(I254:I257,I260:I261) -> 0 | K251: =ROUND(SUM(K254:K257,K260:K261),0) -> 0
D253: 15.1 | E253: Secured and Past Due (Over 90 days) | K253: =SUM(K254:K257) -> 0
D254: 15.1.1 | E254: Risk Weight 50% | I254: =G254-H254 -> 0 | J254: 50 | K254: =I254*(J254/100) -> 0
D255: 15.1.2 | E255: Risk Weight 75% | I255: 0 | J255: 75 | K255: =I255*(J255/100) -> 0
D256: 15.1.3 | E256: Risk Weight 100% | I256: 0 | J256: 100 | K256: =I256*(J256/100) -> 0
D257: 15.1.4 | E257: Risk Weight 150% | I257: 0 | J257: 150 | K257: =I257*(J257/100) -> 0
D259: 15.2 | E259: Unsecured and Past Due (Over 90 days) | K259: =SUM(K260:K261) -> 0
D260: 15.2.1 | E260: Specific Provisions ≥ 20% | I260: =G260-H260 -> 0 | J260: 100 | K260: =I260*(J260/100) -> 0
D261: 15.2.2 | E261: Specific Provisions < 20% | I261: =G261-H261 -> 0 | J261: 150 | K261: =I261*(J261/100) -> 0
D263: 16 | E263: Other Exposures which are not Past Due Exposures | G263: =SUM(G265:G271) -> 51194 | H263: =SUM(H265:H270) -> 12707 | I263: =SUM(I265:I271) -> 38487 | K263: =SUM(K265:K271) -> 38,487
D265: 16.1 | E265: Exposures to Individuals not elsewhere reported | G265: 35179 | H265: 11628 | I265: =G265-H265 -> 23551 | J265: 100 | K265: =I265*(J265/100) -> 23,551
D266: 16.2 | E266: Investments in equity or other capital instruments issued by financial sector entities (other than those subject to capital deduction or 250% risk weight) | I266: 0 | J266: 100 | K266: 0
D267: 16.3 | E267: Premises plant and equipment, other fixed assets for own use, and other interest in land | G267: 4453 | I267: 4453 | J267: 100 | K267: 4,453
D268: 16.4 | E268: Investments in capital instruments issued by financial sector entities (other than those subject to capital deduction) | I268: 0 | J268: 100 | K268: 0
D269: 16.5 | E269: High Risk Assets | I269: 0 | J269: 150 | K269: 0
D270: 16.6 | E270: Other on-balance sheet exposures which are not elsewhere reported | G270: 11562 | H270: 1079 | I270: 10483 | J270: 100 | K270: 10,483
D271: 16.7 | E271: Intangible assets and goodwill | I271: =G271-H271 -> 0 | K271: =IF(I271<>0,0,0) -> 0
D272: 17 | E272: TOTAL ON BALANCE SHEET CREDIT RISK ASSETS | G272: =SUM(G127,G136,G147,G159,G171,G182,G203,G212,G216,G218,G225,G234,G240,G247,G251,G263) -> 500020 | K272: =ROUND(K127+K136+K147+K159+K171+K182+K203+K212+K216+K218+K225+K234+K240+K247+K251+K263,0) -> 97,360
D275: Validation check between Total Assets (Form 2) and row G274 | G275: =Form2!N92-'CR - ON Balance Sheet'!G272 -> -500020

Sheet Capital Adequacy (hidden)
F2: Statement of Capital Adequacy
B4: CAPITAL BREAKDOWN
B5: Item | C5: Core Capital - Tier 1 | H5: ($000s)
B6: 6.1 | C6: Ordinary Shares/Common Stock (Issued and Paid Up)
B7: 6.2 | C7: Perpetual Non-Cumulative Preferred Share/Stock (Issued and Paid Up)
B8: 6.3 | C8: Reserves | H8: =SUM(H9:H11) -> 0
C9: 6.3.1 Share Premium Account
C10: 6.3.2 Disclosed Prior Year's Reserves (excluding Item 6.9), etc.
C11: 6.3.3 Current Year’s Retained Profit
B12: 6.4 | C12: Current Year’s Losses
B13: 6.5 | C13: Minority Interests (in Tier 1 Capital)
B14: 6.6 | C14: Total of Items 6.1 to 6.5 | H14: =SUM(H6+H7+H8+H12+H13) -> 0
B15: 6.7 | C15: Goodwill and Other Intangible Assets
B16: 6.8 | C16: Total Tier 1 Capital (Item 6.6 less 6.7) | H16: =SUM(H14-H15) -> 0
C18: Supplementary Capital - Tier 2
B19: 6.9 | C19: Fixed Asset Revaluation Reserve
B20: 6.10 | C20: Other Assets Revaluation Reserves
B21: 6.11 | C21: General Provisions | H21: ='Form 1'!N68 -> 0
B22: 6.12 | C22: Hybrid (Debt/Equity) Instruments | H22: ='Form 1'!N59 -> 0
B23: 6.13 | C23: Subordinated Term Debt | H23: ='Form 1'!N60 -> 0
B24: 6.14 | C24: Minority Interests (in Tier 2 Capital)
C26: Less Adjustments To Capital
B27: 6.15 | C27: Excess General Provisions | H27: =IF((1.25%*G169)<H21, H21-( 1.25% *G169),0) -> 0
B28: 6.16 | C28: Excess Tier 2 Subordinated Debt | H28: =IF(H23> (0.5 * H16),H23-(0.5 * H16),0) -> 0
B29: 6.17 | C29: Amortization on Tier 2 Subordinated Debt
B30: 6.18 | C30: Total of (Items 6.9 to 6.14) Less Total of (Items 6.15 to 6.17) | H30: =SUM(H19:H24)-SUM(H27:H29) -> 0
B31: 6.19 | C31: Tier 2 Capital in Excess of the Overall Limit/Excess Tier 2 Capital | H31: =IF(H30>H16, ABS(H16 - H30), 0) -> 0
B32: 6.20 | C32: Total Eligible Tier 2 Capital (Items 6.18 less 6.19) | H32: =SUM(H30-H31) -> 0
B34: 6.21 | C34: Total Base Capital (Tier 1 + Tier 2) | H34: =H16 + H32 -> 0
C36: Less Adjustments To Base Capital
B37: 6.22 | C37: Equity and other capital requirements in subsidiary companies or associate
C38: (where subsidiary is not consolidated with the bank).
B40: 6.23 | C40: Equity and other capital requirements in non-operating bank or financial holding company
C41: (where financial institution is not consolidated with the bank or its subsidiary).
B43: 6.24 | C43: Equity and other capital requirements in financial institutions held by the bank or its subsidiary
C44: companies (where financial institution is not consolidated with the bank or its subsidiary).
B46: 6.25 | C46: Any undertakings by the bank to absorb designated first level of losses on claims supported
C47: by the bank.
B48: 6.26 | C48: Total Deduction To Base Capital | H48: =SUM(H37, H40,H43,H46) -> 0
B49: 6.27 | D49: Total Eligible Base Capital | H49: =SUM(H34-H48) -> 0
H51: [A] | I51: [B] | J51: [C] | K51: [D] | L51: [E]
B53: ON-BALANCE SHEET ITEMS: | H53: Notional Amounts | I53: Risk Weight (%) | J53: Adjustments | K53: Net Assets | L53: Net Risk-Weighted Assets
B55: Item | C55: ASSETS
B56: 7. | C56: 1. | D56: Notes & Coins | H56: =Form2!N9 -> 0 | I56: 0 | J56: 0 | K56: =SUM(H56-J56) -> 0 | L56: =ROUND(K56*(I56/100),0) -> 0
B57: 8. | C57: 2. | D57: Balance with Central Bank | H57: =Form2!N10 -> 0 | I57: 0 | J57: 0 | K57: =SUM(H57-J57) -> 0 | L57: =ROUND(K57*(I57/100),0) -> 0
B58: 9. | C58: 3. | D58: Balance with Financial Institutions (in Bahamas) | H58: =Form2!N22 -> 0 | L58: =SUM(L59,L65,L71) -> 0
D59: a) Commercial Banks (Authorized Dealers) | H59: =Form2!N23 -> 0 | L59: =SUM(L60:L64) -> 0
D60: (i) Demand Deposits | H60: =Form2!N24 -> 0 | I60: 20 | J60: 0 | K60: =SUM(H60-J60) -> 0 | L60: =ROUND(K60*(I60/100),0) -> 0
D61: (ii) Fixed Deposits | H61: =Form2!N25 -> 0 | I61: 20 | J61: 0 | K61: =SUM(H61-J61) -> 0 | L61: =ROUND(K61*(I61/100),0) -> 0
D62: (iii) Loans | H62: =Form2!N26-H63 -> 0 | I62: 20 | J62: 0 | K62: =SUM(H62-J62) -> 0 | L62: =ROUND(K62*(I62/100),0) -> 0
D63: of which: Loans to Zone B Banks Over 1 Year | H63: 0 | I63: 100 | J63: 0 | K63: =SUM(H63-J63) -> 0 | L63: =ROUND(K63*(I63/100),0) -> 0
D64: (iv) Negotiable Paper Issued by Other Banks | H64: =Form2!N27 -> 0 | I64: 20 | J64: 0 | K64: =SUM(H64-J64) -> 0 | L64: =ROUND(K64*(I64/100),0) -> 0
D65: b) Other Local Financial Institutions (Authorized Agents) | H65: =Form2!N28 -> 0 | L65: =SUM(L66:L70) -> 0
D66: (i) Demand Deposits | H66: =Form2!N29 -> 0 | I66: 20 | J66: 0 | K66: =SUM(H66-J66) -> 0 | L66: =ROUND(K66*(I66/100),0) -> 0
D67: (ii) Fixed Deposits | H67: =Form2!N30 -> 0 | I67: 20 | J67: 0 | K67: 0 | L67: 0
D68: (iii) Loans | H68: =Form2!N31-H69 -> 0 | I68: 20 | J68: 0 | K68: 0 | L68: 0
D69: of which: Loans to Zone B Banks Over 1 Year | H69: 0 | I69: 100 | J69: 0 | K69: 0 | L69: 0
D70: (iv) Negotiable Paper Issued by Other Banks | H70: =Form2!N32 -> 0 | I70: 20 | J70: 0 | K70: 0 | L70: 0
D71: c) Balance with "Offshore" Financial Institutions in Bahamas | H71: =Form2!N33 -> 0 | I71: 20 | J71: 0 | K71: 0 | L71: 0
B72: 10. | C72: 4. | D72: Balance with Financial Institutions (outside Bahamas) | H72: =Form2!N38 -> 0 | L72: =SUM(L73,L79) -> 0
D73: a) Head Office or Branches: | H73: =Form2!N39 -> 0 | L73: =SUM(L74:L78) -> 0
D74: (i) Demand Deposits | H74: =Form2!N40 -> 0 | I74: 20 | J74: 0 | K74: =SUM(H74-J74) -> 0 | L74: =ROUND(K74*(I74/100),0) -> 0
D75: (ii) Fixed Deposits | H75: =Form2!N41 -> 0 | I75: 20 | J75: 0 | K75: =SUM(H75-J75) -> 0 | L75: =ROUND(K75*(I75/100),0) -> 0
D76: (iii) Loans | H76: =Form2!N42-H77 -> 0 | I76: 20 | J76: 0 | K76: =SUM(H76-J76) -> 0 | L76: =ROUND(K76*(I76/100),0) -> 0
D77: of which: Loans to Zone B Banks Over 1 Year | H77: 0 | I77: 100 | J77: 0 | K77: =SUM(H77-J77) -> 0 | L77: =ROUND(K77*(I77/100),0) -> 0
D78: (iv) Negotiable Paper Issued by Other Banks | H78: =Form2!N43 -> 0 | I78: 20 | J78: 0 | K78: =SUM(H78-J78) -> 0 | L78: =ROUND(IF(H78="","",K78*(I78/100)),0) -> 0
D79: b) Others: | H79: =Form2!N44 -> 0 | L79: =SUM(L80:L86) -> 0
D80: (i) Demand Deposits | H80: =Form2!N45 -> 0 | I80: 20 | J80: 0 | K80: =SUM(H80-J80) -> 0 | L80: =ROUND(K80*(I80/100),0) -> 0
D81: (ii) Fixed Deposits | H81: =Form2!N46-H82-H83 -> 0 | I81: 100 | J81: 0 | K81: 0 | L81: 0
D82: of which: Fixed Deposits to Zone A (excluding Bahamas) Banks < 1 Year | H82: 0 | I82: 20 | J82: 0 | K82: 0 | L82: 0
D83: of which: Fixed Deposits to Zone B Banks < 1 Year | H83: 0 | I83: 20 | J83: 0 | K83: 0 | L83: 0
D84: (iii) Loans | H84: =Form2!N47-H85 -> 0 | I84: 100 | J84: 0 | K84: 0 | L84: 0
D85: of which: Loans to Zone B Banks Over 1 Year | H85: 0 | I85: 100 | J85: 0 | K85: 0 | L85: 0
D86: (iv) Negotiable Paper Issued by Other Banks | H86: =Form2!N48 -> 0 | I86: 100 | J86: 0 | K86: 0 | L86: 0
B87: 11. | C87: 5. | D87: Loans and Advances | H87: =Form2!N50 -> 0
D88: a) Resident: | L88: =SUM(L89,L90,L93,L97,L98,L100,L101,L102,L104,L105) -> 0
D89: (i) Government | H89: =Form2!N57 -> 0 | I89: 0 | J89: 0 | K89: =SUM(H89-J89) -> 0 | L89: =ROUND(K89*(I89/100),0) -> 0
D90: (ii) Public Corporation: Performing | H90: =Form2!N58-H91-H92 -> 0 | I90: 20 | J90: 0 | K90: =SUM(H90-J90) -> 0 | L90: =ROUND(K90*(I90/100),0) -> 0
D91: Non-Performing (Net of Specific Provisions) | H91: 0 | I91: 100 | J91: 0 | K91: =SUM(H91-J91) -> 0 | L91: =ROUND(K91*(I91/100),0) -> 0
D92: Specific Provisions
D93: (iii) Public Financial Institutions: Performing | H93: =Form2!N59-H94-H95 -> 0 | I93: 20 | J93: 0 | K93: =SUM(H93-J93) -> 0 | L93: =ROUND(K93*(I93/100),0) -> 0
D94: Non-Performing (Net of Specific Provisions) | H94: 0 | I94: 100 | J94: 0 | K94: =SUM(H94-J94) -> 0 | L94: =ROUND(K94*(I94/100),0) -> 0
D95: Specific Provisions
D96: (iv) Mortgages | H96: =Form2!N60 -> 0
D97: a) Residential Mortgages: Performing | H97: =Form2!N61-H98-H99-H100 -> 0 | I97: 50 | J97: 0 | K97: =SUM(H97-J97) -> 0 | L97: =ROUND(K97*(I97/100),0) -> 0
D98: Non-Performing (Net of Specific Provisions) | H98: 0 | I98: 100 | J98: 0 | K98: =SUM(H98-J98) -> 0 | L98: =ROUND(K98*(I98/100),0) -> 0
D99: Specific Provisions
D100: of which: Equity Loans | H100: =Form2!N62 -> 0 | I100: 100 | J100: 0 | K100: =SUM(H100-J100) -> 0 | L100: =ROUND(K100*(I100/100),0) -> 0
D101: b) Commercial Mortgages: Performing | H101: =Form2!N63-H102-H103 -> 0 | I101: 100 | J101: 0 | K101: =SUM(H101-J101) -> 0 | L101: =ROUND(K101*(I101/100),0) -> 0
D102: Non-Performing (Net of Specific Provisions) | H102: 0 | I102: 100 | J102: 0 | K102: =SUM(H102-J102) -> 0 | L102: =ROUND(K102*(I102/100),0) -> 0
D103: Specific Provisions
D104: (v) Others: Performing | H104: =Form2!N64-H105-H106 -> 0 | I104: 100 | J104: 0 | K104: =SUM(H104-J104) -> 0 | L104: =ROUND(K104*(I104/100),0) -> 0
D105: Non-Performing (Net of Specific Provisions) | H105: 0 | I105: 100 | J105: 0 | K105: =SUM(H105-J105) -> 0 | L105: =ROUND(K105*(I105/100),0) -> 0
D106: Specific Provisions
D107: (vi) Loans Covered by Cash with Legal Right of Set-Off | H107: 0 | I107: 0 | J107: 0 | K107: =SUM(H107-J107) -> 0 | L107: =ROUND(K107*(I107/100),0) -> 0
D108: b) Non-Resident | H108: =Form2!N65 -> 0 | L108: =SUM(L109,L112,L119,L126,L133) -> 0
D109: (i) Government | H109: =Form2!N70 -> 0 | L109: =SUM(L110:L111) -> 0
D110: a) Zone A Governments or Government-Guaranteed | H110: 0 | I110: 0 | J110: 0 | K110: =SUM(H110-J110) -> 0 | L110: =ROUND(K110*(I110/100),0) -> 0
D111: b) Outside Zone A Governments | H111: 0 | I111: 100 | J111: 0 | K111: =SUM(H111-J111) -> 0 | L111: =ROUND(K111*(I111/100),0) -> 0
D112: (ii) Public Corporation | H112: =Form2!N71 -> 0 | L112: =SUM(L113:L114,L116:L117) -> 0
D113: a) Zone A Public Corporations: Performing | H113: 0 | I113: 20 | J113: 0 | K113: =SUM(H113-J113) -> 0 | L113: =ROUND(K113*(I113/100),0) -> 0
D114: Non-Performing (Net of Specific Provisions) | H114: 0 | I114: 100 | J114: 0 | K114: =SUM(H114-J114) -> 0 | L114: =ROUND(K114*(I114/100),0) -> 0
D115: Specific Provisions
D116: b) Outside Zone A Public Corporations: Performing | H116: 0 | I116: 100 | J116: 0 | K116: =SUM(H116-J116) -> 0 | L116: =ROUND(K116*(I116/100),0) -> 0
D117: Non-Performing (Net of Specific Provisions) | H117: 0 | I117: 100 | J117: 0 | K117: =SUM(H117-J117) -> 0 | L117: =ROUND(K117*(I117/100),0) -> 0
D118: Specific Provisions
D119: (iii) Public Financial Institutions | H119: =Form2!N72 -> 0 | L119: =SUM(L120:L121,L123:L124) -> 0
D120: a) Zone A Public Financial Institutions: Performing | H120: 0 | I120: 20 | J120: 0 | K120: =SUM(H120-J120) -> 0 | L120: =ROUND(K120*(I120/100),0) -> 0
D121: Non-Performing (Net of Specific Provisions) | H121: 0 | I121: 100 | J121: 0 | K121: =SUM(H121-J121) -> 0 | L121: =ROUND(K121*(I121/100),0) -> 0
D122: Specific Provisions | L122: =ROUND(K122*(I122/100),0) -> 0
D123: b) Outside Zone A Public Financial Institutions: Performing | H123: 0 | I123: 100 | K123: =SUM(H123-J123) -> 0 | L123: =ROUND(K123*(I123/100),0) -> 0
D124: Non-Performing (Net of Specific Provisions) | H124: 0 | I124: 100 | K124: =SUM(H124-J124) -> 0 | L124: =ROUND(K124*(I124/100),0) -> 0
D125: Specific Provisions
D126: (iv) Residential Mortgages | H126: =Form2!N73 -> 0 | L126: =SUM(L127:L128,L130:L131) -> 0
D127: a) Zone A Residential Mortgages: Performing | H127: 0 | I127: 50 | K127: =SUM(H127-J127) -> 0 | L127: =ROUND(K127*(I127/100),0) -> 0
D128: Non-Performing (Net of Specific Provisions) | H128: 0 | I128: 100 | J128: 0 | K128: =SUM(H128-J128) -> 0 | L128: =ROUND(K128*(I128/100),0) -> 0
D129: Specific Provisions
D130: b) Outside Zone A Residential Mortgages: Performing | H130: 0 | I130: 100 | K130: =SUM(H130-J130) -> 0 | L130: =ROUND(K130*(I130/100),0) -> 0
D131: Non-Performing (Net of Specific Provisions) | H131: 0 | I131: 100 | J131: 0 | K131: =SUM(H131-J131) -> 0 | L131: =ROUND(K131*(I131/100),0) -> 0
D132: Specific Provisions
D133: (v) Others | H133: =Form2!N74 -> 0 | L133: =SUM(L134:L135,L137:L138) -> 0
D134: a) Zone A Other: Performing | H134: 0 | I134: 100 | K134: =SUM(H134-J134) -> 0 | L134: =ROUND(K134*(I134/100),0) -> 0
D135: Non-Performing (Net of Specific Provisions) | H135: 0 | I135: 100 | J135: 0 | K135: =SUM(H135-J135) -> 0 | L135: =ROUND(K135*(I135/100),0) -> 0
D136: Specific Provisions
D137: b) Outside Zone A Other: Performing | H137: 0 | I137: 100 | K137: =SUM(H137-J137) -> 0 | L137: =ROUND(K137*(I137/100),0) -> 0
D138: Non-Performing (Net of Specific Provisions) | H138: 0 | I138: 100 | J138: 0 | K138: =SUM(H138-J138) -> 0 | L138: =ROUND(K138*(I138/100),0) -> 0
D139: Specific Provisions
B140: 12. | C140: 6. | D140: Government Securities | H140: =Form2!M58 -> 0 | L140: =SUM(L141,L145) -> 0
D141: a) Treasury Bills | H141: =Form2!N14 + Form2!N17 + Form2!N20 -> 0 | L141: =SUM(L142:L144) -> 0
D142: (i) Issued by Bahamas Government | H142: =Form2!N14 + Form2!N17 -> 0 | I142: 0 | J142: 0 | K142: =SUM(H142-J142) -> 0 | L142: =ROUND(K142*(I142/100),0) -> 0
D143: (ii) Issued by Other Zone A Regional and Local Government | H143: 0 | I143: 20 | J143: 0 | K143: =SUM(H143-J143) -> 0 | L143: =ROUND(K143*(I143/100),0) -> 0
D144: (iii) Issued Outside Zone A | H144: 0 | I144: 100 | J144: 0 | K144: =SUM(H144-J144) -> 0 | L144: =ROUND(K144*(I144/100),0) -> 0
D145: b) Long-Term Securities | H145: =Form2!N15 +Form2!N18 + Form2!N21 -> 0 | L145: =SUM(L146:L148) -> 0
D146: (i) Issued by Bahamas Government | H146: =Form2!N15 +Form2!N18 -> 0 | I146: 0 | J146: 0 | K146: =SUM(H146-J146) -> 0 | L146: =ROUND(K146*(I146/100),0) -> 0
D147: (ii) Issued by Other Zone A Regional and Local Government | H147: 0 | I147: 100 | J147: 0 | K147: =SUM(H147-J147) -> 0 | L147: =ROUND(K147*(I147/100),0) -> 0
D148: (iii) Issued Outside Zone A | H148: 0 | I148: 100 | J148: 0 | K148: =SUM(H148-J148) -> 0 | L148: =ROUND(K148*(I148/100),0) -> 0
B149: 13. | C149: 7. | D149: Investment (in Stocks & Shares) | H149: =Form2!N75 -> 0
D150: a) Domestic Securities | H150: =Form2!N76 -> 0 | L150: =SUM(L151:L152) -> 0
D151: (i) Public Financial Institutions Bonds | H151: =Form2!N77 -> 0 | I151: 20 | J151: 0 | K151: =SUM(H151-J151) -> 0 | L151: =ROUND(K151*(I151/100),0) -> 0
D152: (ii) Other Domestic Securities | H152: =Form2!N78 -> 0 | I152: 100 | J152: 0 | K152: 0 | L152: 0
D153: b) Foreign Securities | H153: =Form2!N79 -> 0 | I153: 100 | J153: 0 | K153: 0 | L153: 0
D154: c) Other Investments | H154: =Form2!N80 -> 0 | I154: 100 | J154: 0 | K154: 0 | L154: 0
B155: 14. | C155: 8. | D155: Cheques & Other Instruments in Course of Collection | H155: =Form2!N81 -> 0 | I155: 20 | J155: 0 | K155: 0 | L155: 0
B156: 15 | C156: 9. | D156: Fixed Assets | H156: =Form2!N82 -> 0 | I156: 100 | J156: 0 | K156: 0 | L156: 0
B157: 16. | C157: 10. | D157: Gold and Silver Bullion | H157: =Form2!N86 -> 0 | I157: 100 | J157: 0 | K157: 0 | L157: 0
B158: 17. | C158: 11. | D158: Other Assets: | H158: =Form2!N87 -> 0 | L158: =SUM(L159:L162) -> 0
D159: a) Unearned Interest | H159: =Form2!N88 -> 0 | I159: 100 | J159: 0 | K159: =SUM(H159-J159) -> 0 | L159: =ROUND(K159*(I159/100),0) -> 0
D160: b) Accounts Receivable | H160: =Form2!N89 -> 0 | I160: 100 | J160: 0 | K160: =SUM(H160-J160) -> 0 | L160: =ROUND(K160*(I160/100),0) -> 0
D161: c) Suspense Account | H161: =Form2!N90 -> 0 | I161: 100 | J161: 0 | K161: =SUM(H161-J161) -> 0 | L161: =ROUND(K161*(I161/100),0) -> 0
D162: d) Other | H162: =Form2!N91 -> 0 | I162: 100 | J162: 0 | K162: =SUM(H162-J162) -> 0 | L162: =ROUND(K162*(I162/100),0) -> 0
B163: 18. | C163: 12. | D163: Total Assets | H163: =Form2!N92 -> 0 | L163: =SUM(L56:L58,L72,L88,L108,L140,L150,L153,L154,L155,L156,L157,L158) -> 0
B166: T1 | C166: Total On-Balance Sheet (Risk Weighted) Assets | G166: =L163 -> 0.00
B167: T2 | C167: Total Off-Balance Sheet (Risk Weighted) Assets | G167: ='OFF Balance Sheet (Non-Deriv)'!K114 + 'OFF Balance Sheet (Deriv)'!P91 -> 4,177.23
B168: T3 | C168: of which: Total Market Risk Equivalent Assets | G168: =G173*12.5 -> 0.00
B169: T4 | C169: Total Risk Weighted Assets | G169: =SUM(G166:G167) -> 4,177.23
B170: T5 | C170: Target Ratio
B171: T6 | C171: Trigger Ratio
B172: T7 | C172: Total Capital Required for Credit Risk | G172: =IF(G170 = "",((G166 + G167)-G168)*0.08,((G166 + G167)-G168)*G170) -> 334.18
B173: T8 | C173: Total Capital Required for Market Risk | G173: ='IRR-Specific'!K21 + FX!E28 + Equity!H31 + Commodities!H31 -> 0.00
B174: T9 | C174: Total Required Capital | G174: =SUM(G172:G173) -> 334.18
B175: T10 | C175: Total Eligible Capital | G175: =H49 -> 0.00
B176: T11 | C176: Capital Surplus/(Deficit) | G176: =SUM(G175-G174) -> (334.18)
B177: T12 | C177: Capital Adequacy Ratio | G177: =G175/G169 -> 0.00% | H177: =IF(G177<G170,IF(G177<(G171 + 0.01), "Critically Non-Compliant", "Non-Compliant"), "Compliant") -> Compliant

Sheet New CR - ON Balance Sheet
D123: Credit Risk - Standardised Approach
D124: Item No. | E124: On Balance Sheet Items | G124: ($000s) | H124: CRM | I124: TOTAL (after CRM) | J124: Risk Weight (%) | K124: RWA
D127: 1 | E127: Cash Items | G127: =SUM(G129:G134) -> 0 | H127: =SUM(H129:H134) -> 0 | I127: =SUM(I129:I134) -> 0 | K127: =SUM(K129:K134) -> 0
D129: 1.1 | E129: Notes & Coins | G129: =Form2!N9 -> 0 | I129: =G129-H129 -> 0 | J129: 0 | K129: =I129*(J129/100) -> 0
D130: 1.2 | E130: Gold Bullion - In Vault | I130: =G130-H130 -> 0 | J130: 0 | K130: =I130*(J130/100) -> 0
D131: 1.3 | E131: Gold Bullion - Other | I131: =G131-H131 -> 0 | J131: 100 | K131: =I131*(J131/100) -> 0
D132: 1.4 | E132: Silver Bullion, Precious Metals & Other Gemstones | I132: 0 | J132: 100 | K132: 0
D133: 1.5 | E133: Cash Items in the Course of Collection | G133: =Form2!N81 -> 0 | I133: 0 | J133: 20 | K133: 0
D134: 1.6 | E134: Exposures Collateralized by Cash Deposits | I134: =G134-H134 -> 0 | J134: 0 | K134: =I134*(J134/100) -> 0
D136: 2 | E136: Sovereign Securities | G136: =SUM(G138:G139) -> 0 | H136: =SUM(H138:H139) -> 0 | I136: =SUM(I138:I139) -> 0 | K136: =ROUND(SUM(K138:K145),0) -> 0
D138: 2.1 | E138: Bahamas Government | G138: =Form2!N12 -> 0 | I138: =G138-H138 -> 0 | J138: 0 | K138: =I138*(J138/100) -> 0
D139: 2.2 | E139: Other Governments | G139: =SUM(G140:G145) -> 0 | H139: =SUM(H140:H145) -> 0 | I139: =G139-H139 -> 0
D140: 2.2.1 | E140: Credit Assessment of Sovereign Claims | F140: AAA to AA- | I140: =G140-H140 -> 0 | J140: 0 | K140: =I140*(J140/100) -> 0
D141: 2.2.2 | F141: A+ to A- | I141: =G141-H141 -> 0 | J141: 20 | K141: 0
D142: 2.2.3 | F142: BBB+ to BBB- | I142: 0 | J142: 50 | K142: 0
D143: 2.2.4 | F143: BB+ to B- | I143: 0 | J143: 100 | K143: 0
D144: 2.2.5 | F144: Below B- | I144: 0 | J144: 150 | K144: 0
D145: 2.2.6 | F145: Unrated | I145: =G145-H145 -> 0 | J145: 100 | K145: =I145*(J145/100) -> 0
D147: 3 | E147: Claims on Sovereigns and the Central Bank | G147: =SUM(G149:G151) -> 0 | H147: =SUM(H149:H151) -> 0 | I147: =G147-H147 -> 0 | K147: =ROUND(SUM(K149:K151),0) -> 0
D149: 3.1 | E149: National Treatment - The Bahamas only | I149: =G149-H149 -> 0 | J149: 0 | K149: =I149*(J149/100) -> 0
D150: 3.2 | E150: Special Organizations | I150: 0 | J150: 0 | K150: =I151*(J150/100) -> 0
D151: 3.3 | E151: Other Governments and Central Banks | G151: =SUM(G152:G157) -> 0 | H151: =SUM(H152:H157) -> 0 | I151: 0 | K151: =SUM(K152:K157) -> 0
D152: 3.3.1 | E152: Credit Assessment of Sovereign Claims | F152: AAA to AA- | I152: 0 | J152: 0 | K152: =I152*(J152/100) -> 0
D153: 3.3.2 | F153: A+ to A- | I153: 0 | J153: 20 | K153: 0
D154: 3.3.3 | F154: BBB+ to BBB- | I154: 0 | J154: 50 | K154: 0
D155: 3.3.4 | F155: BB+ to B- | I155: 0 | J155: 100 | K155: 0
D156: 3.3.5 | F156: Below B- | I156: 0 | J156: 150 | K156: 0
D157: 3.3.6 | F157: Unrated | I157: 0 | J157: 100 | K157: 0
D159: 4 | E159: Claims on Public Sector Entities (PSEs) | G159: =SUM(G161,G170,G181) -> 0 | H159: =SUM(H161,H170,H181) -> 0 | I159: =SUM(I161,I170,I181) -> 0 | K159: =SUM(K162:K168,K171:K176,K182:K186) -> 0
D161: 4.1 | E161: Treatment as Sovereign | G161: =SUM(G162:G168) -> 0 | H161: =SUM(H162:H168) -> 0 | I161: =G161-H161 -> 0
D162: 4.1.1 | E162: Treatment as Bahamas Sovereign | I162: =G162-H162 -> 0 | J162: 0 | K162: =I162*(J162/100) -> 0
D163: 4.1.2 | E163: Credit Assessment of PSEs | F163: AAA to AA- | I163: 0 | J163: 0 | K163: 0
D164: 4.1.3 | F164: A+ to A- | I164: 0 | J164: 20 | K164: 0
D165: 4.1.4 | F165: BBB+ to BBB- | I165: 0 | J165: 50 | K165: 0
D166: 4.1.5 | F166: BB+ to B- | I166: 0 | J166: 100 | K166: 0
D167: 4.1.6 | F167: Below B- | I167: 0 | J167: 150 | K167: 0
D168: 4.1.7 | F168: Unrated | I168: 0 | J168: 100 | K168: 0
D170: 4.2 | E170: Treatment as Bank | G170: =SUM(G171:G176) -> 0 | H170: =SUM(H171:H176) -> 0 | I170: =G170-H170 -> 0
D171: 4.2.1 | E171: Credit Assessment of PSEs | F171: AAA to AA- | I171: =G171-H171 -> 0 | J171: 20 | K171: =I171*(J171/100) -> 0
D172: 4.2.2 | F172: A+ to A- | I172: 0 | J172: 30 | K172: 0
D173: 4.2.3 | F173: BBB+ to BBB- | I173: 0 | J173: 50 | K173: 0
D174: 4.2.4 | F174: BB+ to B- | I174: 0 | J174: 100 | K174: 0
D175: 4.2.5 | F175: Below B- | I175: 0 | J175: 150 | K175: 0
D176: 4.2.6 | F176: Unrated | G176: =SUM(G177:G179) -> 0 | H176: =SUM(H177:H179) -> 0 | K176: =SUM(K177:K179) -> 0
D177: 4.2.7 | F177: Grade "A" | I177: 0 | J177: 40 | K177: =I177*(J177/100) -> 0
D178: 4.2.8 | F178: Grade "B" | I178: 0 | J178: 75 | K178: =I178*(J178/100) -> 0
D179: 4.2.9 | F179: Grade "C" | I179: 0 | J179: 100 | K179: =I179*(J179/100) -> 0
D181: 4.3 | E181: Treatment as Corporate | G181: =SUM(G182:G186) -> 0 | H181: =SUM(H182:H186) -> 0 | I181: =G181-H181 -> 0
D182: 4.3.1 | E182: Credit Assessment of PSEs | F182: AAA to AA- | I182: 0 | J182: 20 | K182: =I182*(J182/100) -> 0
D183: 4.3.2 | F183: A+ to A- | I183: 0 | J183: 50 | K183: =I183*(J183/100) -> 0
D184: 4.3.3 | F184: BBB+ to BB- | I184: 0 | J184: 100 | K184: =I184*(J184/100) -> 0
D185: 4.3.5 | F185: Below BB- | I185: 0 | J185: 150 | K185: =I185*(J185/100) -> 0
D186: 4.3.6 | F186: Unrated | I186: 0 | J186: 100 | K186: =I186*(J186/100) -> 0
D188: 5 | E188: Claims on Multi-Lateral Development Banks (MDBs) | G188: =Form2!N49 -> 0 | H188: =SUM(H191:H196) -> 0 | I188: =SUM(I191:I196) -> 0 | K188: =ROUND(SUM(K191:K196),0) -> 0
D190: 5.1 | E190: Treatment as MDBs
D191: 5.1.1 | E191: Credit Assessment of MDBs | F191: AAA to AA- | I191: =G191-H191 -> 0 | J191: 20 | K191: =I191*(J191/100) -> 0
D192: 5.1.2 | F192: A+ to A- | I192: 0 | J192: 100 | K192: 0
D193: 5.1.3 | F193: BBB+ to BBB- | I193: 0 | J193: 100 | K193: 0
D194: 5.1.4 | F194: BB+ to B- | I194: 0 | J194: 100 | K194: 0
D195: 5.1.5 | F195: Below B- | I195: 0 | J195: 100 | K195: 0
D196: 5.1.6 | F196: Unrated | I196: 0 | J196: 100 | K196: 0
D198: 6 | E198: Claims on Banks | G198: =SUM(G200,G211,G215) -> 0 | H198: =SUM(H200,H211,H215) -> 0 | I198: 0 | K198: 0
D200: 6.1 | E200: Exposures with original maturity of more than three months: | G200: =SUM(G201:G206) -> 0 | H200: =SUM(H201:H206) -> 0 | I200: =SUM(I201:I206) -> 0 | K200: =SUM(K201:K206) -> 0
D201: 6.1.1 | E201: Credit assessment of Banks | F201: AAA to AA- | I201: =G201-H201 -> 0 | J201: 20 | K201: =I201*(J201/100) -> 0
D202: 6.1.2 | F202: A+ to A- | I202: 0 | J202: 30 | K202: =I202*(J202/100) -> 0
D203: 6.1.3 | F203: BBB+ to BBB- | I203: 0 | J203: 50 | K203: =I203*(J203/100) -> 0
D204: 6.1.4 | F204: BB+to B- | I204: 0 | J204: 100 | K204: =I204*(J204/100) -> 0
D205: 6.1.5 | F205: Below B- | I205: 0 | J205: 150 | K205: =I205*(J205/100) -> 0
D206: 6.1.6 | F206: Unrated | G206: =SUM(G207:G209) -> 0 | H206: =SUM(H207:H209) -> 0 | I206: =G206-H206 -> 0 | K206: =SUM(K207:K209) -> 0
D207: 6.1.7 | F207: Grade "A" | I207: 0 | J207: 40 | K207: =I207*(J207/100) -> 0
D208: 6.1.8 | F208: Grade "B" | I208: 0 | J208: 75 | K208: =I208*(J208/100) -> 0
D209: 6.1.9 | F209: Grade "C" | I209: 0 | J209: 100 | K209: =I209*(J209/100) -> 0
D211: 6.2 | E211: Exposures with original maturity of three months or less (in domestic currency): | G211: =SUM(G212:G212) -> 0 | H211: =SUM(H212:H212) -> 0 | I211: =SUM(I212:I212) -> 0 | K211: =K212 -> 0
D212: 6.2.1 | E212: Domestic Currency | I212: =G212-H212 -> 0 | J212: 20 | K212: =I212*(J212/100) -> 0
D215: 6.3 | E215: Exposures with original maturity of three months or less: | G215: =SUM(G216:G221) -> 0 | H215: =SUM(H216:H221) -> 0 | I215: =SUM(I216:I221) -> 0 | K215: =SUM(K216:K221) -> 0
D216: 6.3.1 | E216: Credit assessment of Counterparty | F216: AAA to AA- | I216: =G216-H216 -> 0 | J216: 20 | K216: =I216*(J216/100) -> 0
D217: 6.3.2 | F217: A+ to A- | I217: 0 | J217: 20 | K217: 0
D218: 6.3.3 | F218: BBB+ to BBB- | I218: 0 | J218: 20 | K218: 0
D219: 6.3.4 | F219: BB+to B- | I219: 0 | J219: 50 | K219: 0
D220: 6.3.5 | F220: Below B- | I220: 0 | J220: 150 | K220: 0
D221: 6.3.6 | F221: Unrated | G221: =SUM(G222:G224) -> 0 | H221: =SUM(H222:H224) -> 0 | I221: =G221-H221 -> 0 | K221: =SUM(K222:K224) -> 0
D222: 6.3.7 | F222: Grade "A" | I222: 0 | J222: 20 | K222: 0
D223: 6.3.8 | F223: Grade "B" | I223: 0 | J223: 50 | K223: 0
D224: 6.3.9 | F224: Grade "C" | I224: 0 | J224: 100 | K224: 0
D226: 7 | E226: Claims on Securities Firm | G226: =SUM(G228:G233) -> 0 | H226: =SUM(H228:H233) -> 0 | I226: =SUM(I228:I233) -> 0 | K226: =SUM(K228:K232,K234:K236) -> 0
D228: 7.1.1 | E228: Credit assessment of Counterparty | F228: AAA to AA- | I228: =G228-H228 -> 0 | J228: 20 | K228: =I228*(J228/100) -> 0
D229: 7.1.2 | F229: A+ to A- | I229: =G229-H229 -> 0 | J229: 30 | K229: =I229*(J229/100) -> 0
D230: 7.1.3 | F230: BBB+ to BBB- | I230: 0 | J230: 50 | K230: 0
D231: 7.1.4 | F231: BB+to B- | I231: 0 | J231: 100 | K231: 0
D232: 7.1.5 | F232: Below BB- | I232: 0 | J232: 150 | K232: 0
D233: 7.1.6 | F233: Unrated | G233: =SUM(G234:G236) -> 0 | H233: =SUM(H234:H236) -> 0 | I233: =G233-H233 -> 0 | K233: =I233*(J233/100) -> 0
D234: 7.1.7 | F234: Grade "A" | I234: =G234-H234 -> 0 | J234: 40 | K234: 0
D235: 7.1.8 | F235: Grade "B" | I235: 0 | J235: 75 | K235: 0
D236: 7.1.9 | F236: Grade "C" | I236: 0 | J236: 100 | K236: 0
D238: 8 | E238: Claims on Corporates | G238: =SUM(G241:G245) -> 0 | H238: =SUM(H241:H245) -> 0 | I238: =G238-H238 -> 0 | K238: =ROUND(SUM(K241:K245),0) -> 0
D240: 8.1 | E240: Corporates
D241: 8.1.1 | E241: Credit assessment of Counterparty | F241: AAA to AA- | I241: =G241-H241 -> 0 | J241: 20 | K241: =I241*(J241/100) -> 0
D242: 8.1.2 | F242: A+ to A- | I242: =G242-H242 -> 0 | J242: 50 | K242: 0
D243: 8.1.3 | F243: BBB+ to BB- | I243: 0 | J243: 100 | K243: 0
D244: 8.1.5 | F244: Below BB- | I244: 0 | J244: 150 | K244: 0
D245: 8.1.6 | F245: Unrated | I245: 0 | J245: 100 | K245: 0
D247: 9 | E247: Collective Investment Scheme Exposures | I247: =G247-H247 -> 0 | J247: 100 | K247: =I247*(J247/100) -> 0
D249: 10 | E249: Investments (Shares and Securities) | G249: =SUM(G250,G253:G254) -> 0 | H249: =SUM(H250,H253:H254) -> 0 | I249: =SUM(I250,I253:I254) -> 0 | K249: =SUM(K251:K254) -> 0
D250: 10.1 | E250: Domestic Securities | G250: =SUM(G251:G252) -> 0 | H250: =SUM(H251:H252) -> 0 | I250: =G250-H250 -> 0
D251: 10.1.1 | E251: Public Corporation Bonds | I251: =G251-H251 -> 0 | J251: 20 | K251: =I251*(J251/100) -> 0
D252: 10.1.2 | E252: Other Domestic Securities | I252: =G252-H252 -> 0 | J252: 100 | K252: =I252*(J252/100) -> 0
D253: 10.2 | E253: Foreign Securities | I253: =G253-H253 -> 0 | J253: 100 | K253: =I253*(J253/100) -> 0
D254: 10.3 | E254: Other Investments | G254: =SUM(G255:G263) -> 0 | H254: =SUM(H255:H263) -> 0 | I254: =G254-H254 -> 0 | K254: =ROUND(SUM(K255:K263),0) -> 0
D255: 10.3.1 | E255: Credit Assessment | F255: Risk Weight 0% | I255: =G255-H255 -> 0 | J255: 0 | K255: =I255*(J255/100) -> 0
D256: 10.3.2 | F256: Risk Weight 20% | I256: 0 | J256: 20 | K256: 0
D257: 10.3.3 | F257: Risk Weight 30% | I257: 0 | J257: 30 | K257: 0
D258: 10.3.4 | F258: Risk Weight 40% | I258: 0 | J258: 40 | K258: 0
D259: 10.3.5 | F259: Risk Weight 50% | I259: 0 | J259: 50 | K259: 0
D260: 10.3.6 | F260: Risk Weight 75% | I260: 0 | J260: 75 | K260: 0
D261: 10.3.7 | F261: Risk Weight 100% | I261: 0 | J261: 100 | K261: 0
D262: 10.3.8 | F262: Risk Weight 150% | I262: 0 | J262: 150 | K262: 0
D263: 10.3.9 | F263: Other High Risk Assets - Deduction | I263: =G263-H263 -> 0 | J263: Deduction | K263: =IF(I263<>"0","0","0") -> 0
D265: 11 | E265: Securitizations | G265: =SUM(G267:G272) -> 0 | H265: =SUM(H267:H272) -> 0 | I265: =SUM(I267:I272) -> 0 | K265: =ROUND(SUM(K267:K268)-K269-K270-K271-K272,0) -> 0
D267: 11.1.1 | E267: Credit Assessment | F267: AAA to AA- (A-1/P-1) | I267: =G267-H267 -> 0 | J267: 20 | K267: =I267*(J267/100) -> 0
D268: 11.1.2 | F268: A+ to A- (A-2/P-2) | I268: 0 | J268: 100 | K268: =I268*(J268/100) -> 0
D269: 11.1.3 | F269: BBB+ to BBB- (A-3/P-3) | I269: 0 | J269: Deduction | K269: =IF(I269<>"0","0","0") -> 0
D270: 11.1.4 | F270: BB+ to BB- | I270: 0 | J270: Deduction | K270: =IF(I270<>"0","0","0") -> 0
D271: 11.1.5 | F271: Below BB- | I271: 0 | J271: Deduction | K271: 0
D272: 11.1.6 | F272: Unrated | I272: 0 | J272: Deduction | K272: =IF(I272<>"0","0","0") -> 0
D274: 12 | E274: Retail Portfolio | G274: =SUM(G276:G278) -> 0 | H274: =SUM(H276:H278) -> 0 | I274: =G274-H274 -> 0 | K274: =ROUND(SUM(K276:K278),0) -> 0
D276: 12.1 | E276: Individual | I276: =G276-H276 -> 0 | J276: 75 | K276: =I276*(J276/100) -> 0
D277: 12.2 | E277: Small and Medium Enterprises (SMEs) | I277: =G277-H277 -> 0 | J277: 75 | K277: =I277*(J277/100) -> 0
D278: 12.3 | E278: Other Retail Exposures | I278: =G278-H278 -> 0 | J278: 75 | K278: =I278*(J278/100) -> 0
D280: 13 | E280: Residential Mortgages (Residential Real Estate) | G280: =SUM(G282:G284) -> 0 | H280: =SUM(H282:H284) -> 0 | I280: =G280-H280 -> 0 | K280: =ROUND(SUM(K282:K284),0) -> 0
D282: 13.1 | E282: Loan to Value (LTV) ≤ 60% | I282: =G282-H282 -> 0 | J282: 25 | K282: =I282*(J282/100) -> 0
D283: 13.2 | E283: 60% < Loan to Value (LTV) ≤ 80% | I283: =G283-H283 -> 0 | J283: 50 | K283: =I283*(J283/100) -> 0
D284: 13.3 | E284: Loan to Value (LTV) > 80% | I284: =G284-H284 -> 0 | J284: 100 | K284: =I284*(J284/100) -> 0
D286: 14 | E286: Commercial Mortgages (Commercial Real Estate) | G286: =SUM(G288,G292) -> 0 | H286: =SUM(H288,H292) -> 0 | I286: =G286-H286 -> 0 | K286: =ROUND(SUM(K289:K290,K293:K295),0) -> 0
D288: 14.1 | E288: Not Materially Dependant on Cash Flow: | G288: =SUM(G289:G290) -> 0 | H288: =SUM(H289:H290) -> 0 | I288: =G288-H288 -> 0
D289: 14.1.1 | E289: Loan to Value (LTV) ≤ 60% | I289: =G289-H289 -> 0 | J289: 60 | K289: =I289*(J289/100) -> 0
D290: 14.1.2 | E290: Loan to Value (LTV) > 60% | I290: =G290-H290 -> 0 | J290: 100 | K290: =I290*(J290/100) -> 0
D292: 14.2 | E292: Materially Dependent on Cash Flow: | G292: =SUM(G293:G295) -> 0 | H292: =SUM(H293:H295) -> 0 | I292: =G292-H292 -> 0
D293: 14.2.1 | E293: Loan to Value (LTV) ≤ 60% | I293: =G293-H293 -> 0 | J293: 70 | K293: =I293*(J293/100) -> 0
D294: 14.2.2 | E294: 60% < Loan to Value (LTV) ≤ 80% | I294: =G294-H294 -> 0 | J294: 90 | K294: =I294*(J294/100) -> 0
D295: 14.2.3 | E295: Loan to Value (LTV) > 80% | I295: =G295-H295 -> 0 | J295: 110 | K295: =I295*(J295/100) -> 0
D297: 15 | E297: Land Acquisition, Development and Construction | G297: =SUM(G299,G304,G307,G311) -> 0 | H297: =SUM(H299,H304,H307,H311) -> 0 | I297: =G297-H297 -> 0 | K297: =ROUND(SUM(K300:K302,K304,K308:K309,K312:K314),0) -> 0
D299: 15.1 | E299: Residential Land and Construction Exposures | G299: =SUM(G300:G302) -> 0 | H299: =SUM(H300:H302) -> 0 | I299: =G299-H299 -> 0
D300: 15.1.1 | E300: Loan to Value (LTV) ≤ 60% | I300: =G300-H300 -> 0 | J300: 25 | K300: =I300*(J300/100) -> 0
D301: 15.1.2 | E301: 60% < Loan to Value (LTV) ≤ 80% | I301: =G301-H301 -> 0 | J301: 50 | K301: 0
D302: 15.1.3 | E302: Loan to Value (LTV) > 80% | I302: =G302-H302 -> 0 | J302: 100 | K302: 0
D304: 15.2 | E304: Uncompleted Commercial Land, Development and Construction Exposure | I304: =G304-H304 -> 0 | J304: 100 | K304: =I304*(J304/100) -> 0
D306: 15.3 | E306: Completed Commercial Land, Development and Construction Exposure
D307: 15.3.1 | E307: Not Materially Dependant on Cash Flow: | G307: =SUM(G308:G309) -> 0 | H307: =SUM(H308:H309) -> 0 | I307: =G307-H307 -> 0
D308: 15.3.1.1 | E308: Loan to Value (LTV) ≤ 60% | I308: =G308-H308 -> 0 | J308: 60 | K308: =I308*(J308/100) -> 0
D309: 15.3.1.2 | E309: Loan to Value (LTV) > 60% | I309: 0 | J309: 100 | K309: 0
D311: 15.3.2 | E311: Materially Dependent on Cash Flow: | G311: =SUM(G312:G314) -> 0 | H311: =SUM(H312:H314) -> 0 | I311: =G311-H311 -> 0
D312: 15.3.2.1 | E312: Loan to Value (LTV) ≤ 60% | I312: =G312-H312 -> 0 | J312: 70 | K312: =I312*(J312/100) -> 0
D313: 15.3.2.2 | E313: 60% < Loan to Value (LTV) ≤ 80% | I313: 0 | J313: 90 | K313: 0
D314: 15.3.2.3 | E314: Loan to Value (LTV) > 80% | I314: 0 | J314: 110 | K314: 0
D316: 16 | E316: Past Due Exposures (Over 90 days) | G316: =SUM(G319:G322,G325:G326) -> 0 | H316: =SUM(H319:H322,H325:H326) -> 0 | I316: =SUM(I319:I322,I325:I326) -> 0 | K316: =ROUND(SUM(K319:K322,K325:K326),0) -> 0
D318: 16.1 | E318: Secured Portion of Past Due Loans | K318: =SUM(K319:K322) -> 0
D319: 16.1.1 | E319: Risk Weight 50% | I319: =G319-H319 -> 0 | J319: 50 | K319: =I319*(J319/100) -> 0
D320: 16.1.2 | E320: Risk Weight 75% | I320: =G320-H320 -> 0 | J320: 75 | K320: =I320*(J320/100) -> 0
D321: 16.1.3 | E321: Risk Weight 100% | I321: =G321-H321 -> 0 | J321: 100 | K321: =I321*(J321/100) -> 0
D322: 16.1.4 | E322: Risk Weight 150% | I322: =G322-H322 -> 0 | J322: 150 | K322: =I322*(J322/100) -> 0
D324: 16.2 | E324: Unsecured Portion of Past Due Loans | K324: =SUM(K325:K326) -> 0
D325: 16.2.1 | E325: Specific Provisions ≥ 20% of the outstanding amount | I325: =G325-H325 -> 0 | J325: 100 | K325: =I325*(J325/100) -> 0
D326: 16.2.2 | E326: Specific Provisions < 20% of the outstanding amount | I326: =G326-H326 -> 0 | J326: 150 | K326: =I326*(J326/100) -> 0
D328: 17 | E328: Other Exposures which are not Past Due Exposures | G328: =SUM(G330:G336) -> 0 | H328: =SUM(H330:H336) -> 0 | I328: =SUM(I330:I336) -> 0 | K328: =SUM(K330:K336) -> 0
D330: 17.1 | E330: Exposures to Individuals not elsewhere reported | I330: =G330-H330 -> 0 | J330: 100 | K330: =I330*(J330/100) -> 0
D331: 17.2 | E331: Investments in equity or other capital instruments issued by financial sector entities (other than those subject to capital deduction or 250% risk weight) | I331: 0 | J331: 100 | K331: =I331*(J331/100) -> 0
D332: 17.3 | E332: Premises plant and equipment, other fixed assets for own use | I332: 0 | J332: 100 | K332: =I332*(J332/100) -> 0
D333: 17.4 | E333: Commercial property held other than for the SFI's own operations | I333: 0 | J333: 300 | K333: =I333*(J333/100) -> 0
D334: 17.5 | E334: High Risk Assets (e.g. crypto-asset, venture capital, private equity etc.) | I334: 0 | J334: Deduction | K334: =IF(I334<>"0","0","0") -> 0
D335: 17.6 | E335: Other on-balance sheet exposures which are not elsewhere reported | I335: 0 | J335: 100 | K335: =I335*(J335/100) -> 0
D336: 17.7 | E336: Intangible assets and goodwill | I336: 0 | J336: Deduction | K336: =IF(I336<>"0","0","0") -> 0
D338: 18 | E338: TOTAL ON BALANCE SHEET CREDIT RISK ASSETS | G338: =SUM(G127,G136,G147,G159,G188,G198,G226,G238,G247,G249,G265,G274,G280,G286,G297+G316,G328) -> 0 | K338: =ROUND(K127+K136+K147+K159+K188+K198+K226+K238+K247+K249+K265+K274+K280+K286+K297+K316+K328,0) -> 0
D341: Validation check between Total Assets (Form 2) and row G338 | G341: =Form2!N92-G338 -> 0

Sheet OFF Balance Sheet (Non-Deriv) (hidden)
E50: Standardized Approach - Off-Balance Sheet Assets (Non-Derivatives)
B51: Off-Balance Sheet Items (Non-Derivative Instruments) Indirect Credit Instruments | E51: Risk Weight (%) | F51: Exposures Without CRM ($000s) | H51: Exposures With CRM ($000s) | K51: Risk Weighted Amount
F52: Notional Principal Amount Before CCF | G52: Credit Equivalent Exposure | H52: Notional Principal Amount Before CCF | I52: Credit Equivalent Exposure pre-CRM | J52: Credit Equivalent Exposure post-CRM
C53: CCF 0%
B54: 1. | C54: Commitments That Are Unconditionally Cancellable Without Prior Notice
E55: ALL | F55: 133,374 | G55: =F55*0 -> 0.00 | I55: =H55*0 -> 0.00 | K55: =(G55+J55)*0 -> 0.00
C56: CCF 20%
B57: 2. | C57: Commitments With Original Maturity Of Less Than 1 Year
E58: 0 | G58: =F58*0.2 -> 0.00 | I58: =H58*0.2 -> 0.00 | K58: =(G58+J58)*(E58/100) -> 0.00
E59: 20 | G59: =F59*0.2 -> 0.00 | I59: =H59*0.2 -> 0.00 | K59: =(G59+J59)*(E59/100) -> 0.00
E60: 50 | G60: 0.00 | I60: 0.00 | K60: =(G60+J60)*(E60/100) -> 0.00
E61: 100 | G61: 0.00 | I61: 0.00 | K61: =(G61+J61)*(E61/100) -> 0.00
E62: 150 | G62: 0.00 | I62: 0.00 | K62: =(G62+J62)*(E62/100) -> 0.00
B63: 3. | C63: Short-Term, Self-Liquidating, Trade-Related Contingencies
E64: 0 | G64: 0.00 | I64: 0.00 | K64: =(G64+J64)*(E64/100) -> 0.00
E65: 20 | G65: 0.00 | I65: 0.00 | K65: =(G65+J65)*(E65/100) -> 0.00
E66: 50 | G66: 0.00 | I66: 0.00 | K66: =(G66+J66)*(E66/100) -> 0.00
E67: 100 | G67: 0.00 | I67: 0.00 | K67: =(G67+J67)*(E67/100) -> 0.00
E68: 150 | G68: 0.00 | I68: 0.00 | K68: =(G68+J68)*(E68/100) -> 0.00
C69: CCF 50%
B70: 4. | C70: Transaction-Related Contingencies
E71: 0 | G71: =F71*0.5 -> 0.00 | I71: =H71*0.5 -> 0.00 | K71: =(G71+J71)*(E71/100) -> 0.00
E72: 20 | F72: 192 | G72: =F72*0.5 -> 96.00 | I72: =H72*0.5 -> 0.00 | K72: =(G72+J72)*(E72/100) -> 19.20
E73: 50 | G73: =F73*0.5 -> 0.00 | I73: =H73*0.5 -> 0.00 | K73: =(G73+J73)*(E73/100) -> 0.00
E74: 100 | F74: 80 | G74: =F74*0.5 -> 40.00 | H74: 1,896 | I74: =H74*0.5 -> 948.00 | J74: 425 | K74: =(G74+J74)*(E74/100) -> 465.00
E75: 150 | G75: =F75*0.5 -> 0.00 | I75: =H75*0.5 -> 0.00 | K75: =(G75+J75)*(E75/100) -> 0.00
B76: 5. | C76: Note Issuance And Revolving Underwriting Facilities
E77: 0 | G77: =F77*0.5 -> 0.00 | I77: =H77*0.5 -> 0.00 | K77: =(G77+J77)*(E77/100) -> 0.00
E78: 20 | G78: =F78*0.5 -> 0.00 | I78: =H78*0.5 -> 0.00 | K78: =(G78+J78)*(E78/100) -> 0.00
E79: 50 | G79: =F79*0.5 -> 0.00 | I79: =H79*0.5 -> 0.00 | K79: =(G79+J79)*(E79/100) -> 0.00
E80: 100 | G80: =F80*0.5 -> 0.00 | I80: =H80*0.5 -> 0.00 | K80: =(G80+J80)*(E80/100) -> 0.00
E81: 150 | G81: =F81*0.5 -> 0.00 | I81: =H81*0.5 -> 0.00 | K81: =(G81+J81)*(E81/100) -> 0.00
B82: 6. | C82: Commitments With Original Maturity Of 1 Year And Over
E83: 0 | G83: =F83*0.5 -> 0.00 | I83: =H83*0.5 -> 0.00 | K83: =(G83+J83)*(E83/100) -> 0.00
E84: 20 | G84: =F84*0.5 -> 0.00 | I84: =H84*0.5 -> 0.00 | K84: =(G84+J84)*(E84/100) -> 0.00
E85: 50 | G85: =F85*0.5 -> 0.00 | I85: =H85*0.5 -> 0.00 | K85: =(G85+J85)*(E85/100) -> 0.00
E86: 100 | G86: =F86*0.5 -> 0.00 | I86: =H86*0.5 -> 0.00 | K86: =(G86+J86)*(E86/100) -> 0.00
E87: 150 | G87: =F87*0.5 -> 0.00 | I87: =H87*0.5 -> 0.00 | K87: =(G87+J87)*(E87/100) -> 0.00
C88: CCF 100%
B89: 7. | C89: Direct Credit Substitutes
E90: 0 | G90: =F90*1 -> 0.00 | I90: =H90*1 -> 0.00 | K90: =(G90+J90)*(E90/100) -> 0.00
E91: 20 | G91: =F91*1 -> 0.00 | I91: =H91*1 -> 0.00 | K91: =(G91+J91)*(E91/100) -> 0.00
E92: 50 | G92: =F92*1 -> 0.00 | I92: =H92*1 -> 0.00 | K92: =(G92+J92)*(E92/100) -> 0.00
E93: 100 | G93: =F93*1 -> 0.00 | I93: =H93*1 -> 0.00 | K93: =(G93+J93)*(E93/100) -> 0.00
E94: 150 | G94: =F94*1 -> 0.00 | I94: =H94*1 -> 0.00 | K94: =(G94+J94)*(E94/100) -> 0.00
B95: 8. | C95: Sale And Repurchase Agreements And Asset Sales With Recourse
E96: 0 | G96: =F96*1 -> 0.00 | I96: =H96*1 -> 0.00 | K96: =(G96+J96)*(E96/100) -> 0.00
E97: 20 | G97: =F97*1 -> 0.00 | I97: =H97*1 -> 0.00 | K97: =(G97+J97)*(E97/100) -> 0.00
E98: 50 | G98: =F98*1 -> 0.00 | I98: =H98*1 -> 0.00 | K98: =(G98+J98)*(E98/100) -> 0.00
E99: 100 | G99: =F99*1 -> 0.00 | I99: =H99*1 -> 0.00 | K99: =(G99+J99)*(E99/100) -> 0.00
E100: 150 | G100: =F100*1 -> 0.00 | I100: =H100*1 -> 0.00 | K100: =(G100+J100)*(E100/100) -> 0.00
B101: 9. | C101: Securities Lending Or Posting
E102: 0 | G102: =F102*1 -> 0.00 | I102: =H102*1 -> 0.00 | K102: =(G102+J102)*(E102/100) -> 0.00
E103: 20 | G103: =F103*1 -> 0.00 | I103: =H103*1 -> 0.00 | K103: =(G103+J103)*(E103/100) -> 0.00
E104: 50 | G104: =F104*1 -> 0.00 | I104: =H104*1 -> 0.00 | K104: =(G104+J104)*(E104/100) -> 0.00
E105: 100 | G105: =F105*1 -> 0.00 | I105: =H105*1 -> 0.00 | K105: =(G105+J105)*(E105/100) -> 0.00
E106: 150 | G106: =F106*1 -> 0.00 | I106: =H106*1 -> 0.00 | K106: =(G106+J106)*(E106/100) -> 0.00
B107: 10. | C107: Forward Asset Purchases, Forward Deposits And Partly-Paid Shares And Securities
E108: 0 | G108: =F108*1 -> 0.00 | I108: =H108*1 -> 0.00 | K108: =(G108+J108)*(E108/100) -> 0.00
E109: 20 | G109: =F109*1 -> 0.00 | I109: =H109*1 -> 0.00 | K109: =(G109+J109)*(E109/100) -> 0.00
E110: 50 | G110: =F110*1 -> 0.00 | I110: =H110*1 -> 0.00 | K110: =(G110+J110)*(E110/100) -> 0.00
E111: 100 | G111: =F111*1 -> 0.00 | I111: =H111*1 -> 0.00 | K111: =(G111+J111)*(E111/100) -> 0.00
E112: 150 | G112: =F112*1 -> 0.00 | I112: =H112*1 -> 0.00 | K112: =(G112+J112)*(E112/100) -> 0.00
B114: Total Risk Weighted Assets | K114: =SUM(K54:K112) -> 484.20
B116: Total Required Capital For Off-Balance Sheet (Non-Derivatives) Assets | K116: =K114*0.08 -> 38.74

Sheet New OFF Balance Sheet (Non-Der)
E50: Standardized Approach - Off-Balance Sheet Assets (Non-Derivatives)
B51: Off-Balance Sheet Items (Non-Derivative Instruments) Indirect Credit Instruments | E51: Risk Weight (%) | F51: Exposures Without CRM ($000s) | H51: Exposures With CRM ($000s) | K51: Risk Weighted Amount
F52: Notional Principal Amount Before CCF | G52: Credit Equivalent Exposure | H52: Notional Principal Amount Before CCF | I52: Credit Equivalent Exposure pre-CRM | J52: Credit Equivalent Exposure post-CRM
C53: CCF 10%
B54: 1. | C54: Commitments That Are Unconditionally Cancellable Without Prior Notice
E55: 10 | G55: =F55*0.1 -> 0.00 | I55: =H55*0.1 -> 0.00 | K55: =(G55+J55)*(E55/100) -> 0.00
E56: 20 | G56: 0.00 | I56: 0.00 | K56: 0.00
E57: 30 | G57: 0.00 | I57: 0.00 | K57: 0.00
E58: 40 | G58: 0.00 | I58: 0.00 | K58: 0.00
E59: 50 | G59: 0.00 | I59: 0.00 | K59: 0.00
E60: 75 | G60: 0.00 | I60: 0.00 | K60: 0.00
E61: 100 | G61: 0.00 | I61: 0.00 | K61: 0.00
E62: 150 | G62: 0.00 | I62: 0.00 | K62: 0.00
C63: CCF 20%
B64: 2. | C64: Commitments With Original Maturity Of Less Than 1 Year
E65: 10 | G65: =F65*0.2 -> 0.00 | I65: =H65*0.2 -> 0.00 | K65: =(G65+J65)*(E65/100) -> 0.00
E66: 20 | G66: 0.00 | I66: 0.00 | K66: 0.00
E67: 30 | G67: 0.00 | I67: 0.00 | K67: 0.00
E68: 40 | G68: 0.00 | I68: 0.00 | K68: 0.00
E69: 50 | G69: 0.00 | I69: 0.00 | K69: 0.00
E70: 75 | G70: 0.00 | I70: 0.00 | K70: 0.00
E71: 100 | G71: 0.00 | I71: 0.00 | K71: 0.00
E72: 150 | G72: 0.00 | I72: 0.00 | K72: 0.00
B73: 3. | C73: Short-Term, Self-Liquidating, Trade-Related Contingencies
E74: 10 | G74: =F74*0.2 -> 0.00 | I74: =H74*0.2 -> 0.00 | K74: =(G74+J74)*(E74/100) -> 0.00
E75: 20 | G75: 0.00 | I75: 0.00 | K75: 0.00
E76: 30 | G76: 0.00 | I76: 0.00 | K76: 0.00
E77: 40 | G77: 0.00 | I77: 0.00 | K77: 0.00
E78: 50 | G78: 0.00 | I78: 0.00 | K78: 0.00
E79: 75 | G79: 0.00 | I79: 0.00 | K79: 0.00
E80: 100 | G80: 0.00 | I80: 0.00 | K80: 0.00
E81: 150 | G81: =F81*0.2 -> 0.00 | I81: 0.00 | K81: 0.00
C82: CCF 50%
B83: 4. | C83: Transaction-Related Contingencies
E84: 10 | G84: =F84*0.5 -> 0.00 | I84: =H84*0.5 -> 0.00 | K84: =(G84+J84)*(E84/100) -> 0.00
E85: 20 | G85: 0.00 | I85: 0.00 | K85: 0.00
E86: 30 | G86: 0.00 | I86: 0.00 | K86: 0.00
E87: 40 | G87: 0.00 | I87: 0.00 | K87: 0.00
E88: 50 | G88: 0.00 | I88: 0.00 | K88: 0.00
E89: 75 | G89: 0.00 | I89: 0.00 | K89: 0.00
E90: 100 | G90: 0.00 | I90: 0.00 | K90: 0.00
E91: 150 | G91: 0.00 | I91: 0.00 | K91: 0.00
B92: 5. | C92: Note Issuance And Revolving Underwriting Facilities
E93: 10 | G93: =F93*0.5 -> 0.00 | I93: =H93*0.5 -> 0.00 | K93: =(G93+J93)*(E93/100) -> 0.00
E94: 20 | G94: 0.00 | I94: 0.00 | K94: 0.00
E95: 30 | G95: 0.00 | I95: 0.00 | K95: 0.00
E96: 40 | G96: 0.00 | I96: 0.00 | K96: 0.00
E97: 50 | G97: 0.00 | I97: 0.00 | K97: 0.00
E98: 75 | G98: 0.00 | I98: 0.00 | K98: 0.00
E99: 100 | G99: 0.00 | I99: 0.00 | K99: 0.00
E100: 150 | G100: 0.00 | I100: 0.00 | K100: 0.00
B101: 6. | C101: Commitments With Original Maturity Of 1 Year And Over
E102: 10 | G102: =F102*0.5 -> 0.00 | I102: =H102*0.5 -> 0.00 | K102: =(G102+J102)*(E102/100) -> 0.00
E103: 20 | G103: 0.00 | I103: 0.00 | K103: 0.00
E104: 30 | G104: 0.00 | I104: 0.00 | K104: 0.00
E105: 40 | G105: 0.00 | I105: 0.00 | K105: 0.00
E106: 50 | G106: 0.00 | I106: 0.00 | K106: 0.00
E107: 75 | G107: 0.00 | I107: 0.00 | K107: 0.00
E108: 100 | G108: 0.00 | I108: 0.00 | K108: 0.00
E109: 150 | G109: 0.00 | I109: 0.00 | K109: 0.00
C110: CCF 100%
B111: 7. | C111: Direct Credit Substitutes
E112: 10 | G112: =F112*1 -> 0.00 | I112: =H112*1 -> 0.00 | K112: =(G112+J112)*(E112/100) -> 0.00
E113: 20 | G113: 0.00 | I113: 0.00 | K113: 0.00
E114: 30 | G114: 0.00 | I114: 0.00 | K114: 0.00
E115: 40 | G115: 0.00 | I115: 0.00 | K115: 0.00
E116: 50 | G116: 0.00 | I116: 0.00 | K116: 0.00
E117: 75 | G117: 0.00 | I117: 0.00 | K117: 0.00
E118: 100 | G118: 0.00 | I118: 0.00 | K118: 0.00
E119: 150 | G119: 0.00 | I119: 0.00 | K119: 0.00
B120: 8. | C120: Sale And Repurchase Agreements And Asset Sales With Recourse
E121: 10 | G121: =F121*1 -> 0.00 | I121: =H121*1 -> 0.00 | K121: =(G121+J121)*(E121/100) -> 0.00
E122: 20 | G122: 0.00 | I122: 0.00 | K122: 0.00
E123: 30 | G123: 0.00 | I123: 0.00 | K123: 0.00
E124: 40 | G124: 0.00 | I124: 0.00 | K124: 0.00
E125: 50 | G125: 0.00 | I125: 0.00 | K125: 0.00
E126: 75 | G126: 0.00 | I126: 0.00 | K126: 0.00
E127: 100 | G127: 0.00 | I127: 0.00 | K127: 0.00
E128: 150 | G128: 0.00 | I128: 0.00 | K128: 0.00
B129: 9. | C129: Securities Lending Or Posting
E130: 10 | G130: =F130*1 -> 0.00 | I130: =H130*1 -> 0.00 | K130: =(G130+J130)*(E130/100) -> 0.00
E131: 20 | G131: 0.00 | I131: 0.00 | K131: 0.00
E132: 30 | G132: 0.00 | I132: 0.00 | K132: 0.00
E133: 40 | G133: 0.00 | I133: 0.00 | K133: 0.00
E134: 50 | G134: 0.00 | I134: 0.00 | K134: 0.00
E135: 75 | G135: 0.00 | I135: 0.00 | K135: 0.00
E136: 100 | G136: 0.00 | I136: 0.00 | K136: 0.00
E137: 150 | G137: 0.00 | I137: 0.00 | K137: 0.00
B138: 10. | C138: Forward Asset Purchases, Forward Deposits And Partly-Paid Shares And Securities
E139: 10 | G139: =F139*1 -> 0.00 | I139: =H139*1 -> 0.00 | K139: =(G139+J139)*(E139/100) -> 0.00
E140: 20 | G140: 0.00 | I140: 0.00 | K140: 0.00
E141: 30 | G141: 0.00 | I141: 0.00 | K141: 0.00
E142: 40 | G142: 0.00 | I142: 0.00 | K142: 0.00
E143: 50 | G143: 0.00 | I143: 0.00 | K143: 0.00
E144: 75 | G144: 0.00 | I144: 0.00 | K144: 0.00
E145: 100 | G145: 0.00 | I145: 0.00 | K145: 0.00
E146: 150 | G146: 0.00 | I146: 0.00 | K146: 0.00
B148: Total Risk Weighted Assets | K148: =SUM(K54:K146) -> 0.00
B150: Total Required Capital For Off-Balance Sheet (Non-Derivatives) Assets | K150: =K148*0.08 -> 0.00

Sheet OFF Balance Sheet (Deriv) (hidden)
E39: Standardized Approach - Off-Balance Sheet Assets (Derivatives)
E40: Off-Balance Sheet Items (Derivatives) | I40: Exposures Without CRM ($000s) | L40: Exposures With CRM ($000s) | P40: Risk Weighted Amount
G41: Risk Weight (%) | H41: Credit Conversion Factor | I41: Replacement Cost Of Contracts | J41: Notional Principal Amounts | K41: Credit Equivalent Exposure | L41: Replacement Cost Of Contracts | M41: Notional Principal Amounts | N41: Credit Equivalent Exposure pre-CRM | O41: Credit Equivalent Exposure post-CRM
E42: A | F42: Interest Rate-Related Contracts
E43: A.1 | F43: Residual Maturity 1 Year or Less | G43: 20 | H43: 0 | K43: =I43+(J43*(H43/100)) -> 0.00 | N43: =L43+(M43*(H43/100)) -> 0.00 | P43: =(K43+O43)*(G43/100) -> 0.00
E44: A.2 | F44: Residual Maturity > 1 Year to 5 Years | G44: 50 | H44: 0.50 | K44: 0.00 | N44: 0.00 | P44: 0.00
E45: A.3 | F45: Residual Maturity > 5 Years | G45: 50 | H45: 1.50 | K45: 0.00 | N45: 0.00 | P45: 0.00
E46: A.4 | F46: Contracts with Residual Maturity > 1 Year that are subject to a CCF Floor | G46: 50 | H46: 1.50 | K46: 0.00 | N46: 0.00 | P46: 0.00
E47: A.5 | F47: Contracts with Multiple Exchange of Principal | G47: 50 | K47: 0.00 | N47: 0.00 | P47: 0.00
E48: A.6 | F48: Counterparty Credit Risk | G48: 50 | K48: 0.00 | N48: 0.00 | P48: 0.00
E49: A.7 | F49: Total | P49: =SUM(P43:P48) -> 0.00
E51: B | F51: Foreign Exchange & Gold Contracts
E52: B.1 | F52: Residual Maturity 1 Year or Less | G52: 20 | H52: 1 | I52: 8,986 | J52: 947,916 | K52: =I52+(J52*(H52/100)) -> 18,465.16 | L52: 916 | M52: 774,455 | N52: =L52+(M52*(H52/100)) -> 8,660.55 | P52: =(K52+O52)*(G52/100) -> 3,693.03
E53: B.2 | F53: Residual Maturity > 1 Year to 5 Years | G53: 50 | H53: 5 | K53: =I53+(J53*(H53/100)) -> 0.00 | N53: =L53+(M53*(H53/100)) -> 0.00 | P53: =(K53+O53)*(G53/100) -> 0.00
E54: B.3 | F54: Residual Maturity > 5 Years | G54: 50 | H54: 7.50 | K54: =I54+(J54*(H54/100)) -> 0.00 | N54: =L54+(M54*(H54/100)) -> 0.00 | P54: =(K54+O54)*(G54/100) -> 0.00
E55: B.4 | F55: Contracts with Multiple Exchange of Principal | G55: 50 | K55: =I55+(J55*(H55/100)) -> 0.00 | N55: =L55+(M55*(H55/100)) -> 0.00 | P55: =(K55+O55)*(G55/100) -> 0.00
E56: B.5 | F56: Counterparty Credit Risk | G56: 50 | K56: =I56+(J56*(H56/100)) -> 0.00 | N56: =L56+(M56*(H56/100)) -> 0.00 | P56: =(K56+O56)*(G56/100) -> 0.00
E57: B.6 | F57: Total | P57: =SUM(P52:P56) -> 3,693.03
E59: C | F59: Equity Contracts
E60: C.1 | F60: Residual Maturity 1 Year or Less | G60: 20 | H60: 6 | K60: =I60+(J60*(H60/100)) -> 0.00 | N60: =L60+(M60*(H60/100)) -> 0.00 | P60: =(K60+O60)*(G60/100) -> 0.00
E61: C.2 | F61: Residual Maturity > 1 Year to 5 Years | G61: 50 | H61: 8 | K61: =I61+(J61*(H61/100)) -> 0.00 | N61: =L61+(M61*(H61/100)) -> 0.00 | P61: =(K61+O61)*(G61/100) -> 0.00
E62: C.3 | F62: Residual Maturity > 5 Years | G62: 50 | H62: 10 | K62: =I62+(J62*(H62/100)) -> 0.00 | N62: =L62+(M62*(H62/100)) -> 0.00 | P62: =(K62+O62)*(G62/100) -> 0.00
E63: C.4 | F63: Contracts with Multiple Exchange of Principal | G63: 50 | K63: =I63+(J63*(H63/100)) -> 0.00 | N63: =L63+(M63*(H63/100)) -> 0.00 | P63: =(K63+O63)*(G63/100) -> 0.00
E64: C.5 | F64: Counterparty Credit Risk | G64: 50 | K64: =I64+(J64*(H64/100)) -> 0.00 | N64: =L64+(M64*(H64/100)) -> 0.00 | P64: =(K64+O64)*(G64/100) -> 0.00
E65: C.6 | F65: Total | P65: =SUM(P60:P64) -> 0.00
E67: D | F67: Other Precious Metal Contracts
E68: D.1 | F68: Residual Maturity 1 Year or Less | G68: 20 | H68: 7 | K68: =I68+(J68*(H68/100)) -> 0.00 | N68: =L68+(M68*(H68/100)) -> 0.00 | P68: =(K68+O68)*(G68/100) -> 0.00
E69: D.2 | F69: Residual Maturity > 1 Year to 5 Years | G69: 50 | H69: 7 | K69: =I69+(J69*(H69/100)) -> 0.00 | N69: =L69+(M69*(H69/100)) -> 0.00 | P69: =(K69+O69)*(G69/100) -> 0.00
E70: D.3 | F70: Residual Maturity > 5 Years | G70: 50 | H70: 8 | K70: =I70+(J70*(H70/100)) -> 0.00 | N70: =L70+(M70*(H70/100)) -> 0.00 | P70: =(K70+O70)*(G70/100) -> 0.00
E71: D.4 | F71: Contracts with Multiple Exchange of Principal | G71: 50 | K71: =I71+(J71*(H71/100)) -> 0.00 | N71: =L71+(M71*(H71/100)) -> 0.00 | P71: =(K71+O71)*(G71/100) -> 0.00
E72: D.5 | F72: Counterparty Credit Risk | G72: 50 | K72: =I72+(J72*(H72/100)) -> 0.00 | N72: =L72+(M72*(H72/100)) -> 0.00 | P72: =(K72+O72)*(G72/100) -> 0.00
E73: D.6 | F73: Total | P73: =SUM(P68:P72) -> 0.00
E75: E | F75: Other Commodities Contracts
E76: E.1 | F76: Residual Maturity 1 Year or Less | G76: 20 | H76: 10 | K76: =I76+(J76*(H76/100)) -> 0.00 | N76: =L76+(M76*(H76/100)) -> 0.00 | P76: =(K76+O76)*(G76/100) -> 0.00
E77: E.2 | F77: Residual Maturity > 1 Year to 5 Years | G77: 50 | H77: 12 | K77: =I77+(J77*(H77/100)) -> 0.00 | N77: =L77+(M77*(H77/100)) -> 0.00 | P77: =(K77+O77)*(G77/100) -> 0.00
E78: E.3 | F78: Residual Maturity > 5 Years | G78: 50 | H78: 15 | K78: =I78+(J78*(H78/100)) -> 0.00 | N78: =L78+(M78*(H78/100)) -> 0.00 | P78: =(K78+O78)*(G78/100) -> 0.00
E79: E.4 | F79: Contracts with Multiple Exchange of Principal | G79: 50 | K79: =I79+(J79*(H79/100)) -> 0.00 | N79: =L79+(M79*(H79/100)) -> 0.00 | P79: =(K79+O79)*(G79/100) -> 0.00
E80: E.5 | F80: Counterparty Credit Risk | G80: 50 | K80: =I80+(J80*(H80/100)) -> 0.00 | N80: =L80+(M80*(H80/100)) -> 0.00 | P80: =(K80+O80)*(G80/100) -> 0.00
E81: E.6 | F81: Total | P81: =SUM(P76:P80) -> 0.00
E83: F | F83: Other Market-Related Contracts
E84: F.1 | F84: Residual Maturity 1 Year or Less | G84: 20 | H84: 10 | K84: =I84+(J84*(H84/100)) -> 0.00 | N84: =L84+(M84*(H84/100)) -> 0.00 | P84: =(K84+O84)*(G84/100) -> 0.00
E85: F.2 | F85: Residual Maturity > 1 Year to 5 Years | G85: 50 | H85: 12 | K85: =I85+(J85*(H85/100)) -> 0.00 | N85: =L85+(M85*(H85/100)) -> 0.00 | P85: =(K85+O85)*(G85/100) -> 0.00
E86: F.3 | F86: Residual Maturity > 5 Years | G86: 50 | H86: 15 | K86: =I86+(J86*(H86/100)) -> 0.00 | N86: =L86+(M86*(H86/100)) -> 0.00 | P86: =(K86+O86)*(G86/100) -> 0.00
E87: F.4 | F87: Contracts with Multiple Exchange of Principal | G87: 50 | K87: =I87+(J87*(H87/100)) -> 0.00 | N87: =L87+(M87*(H87/100)) -> 0.00 | P87: =(K87+O87)*(G87/100) -> 0.00
E88: F.5 | F88: Counterparty Credit Risk | G88: 50 | K88: =I88+(J88*(H88/100)) -> 0.00 | N88: =L88+(M88*(H88/100)) -> 0.00 | P88: =(K88+O88)*(G88/100) -> 0.00
E89: F.6 | F89: Total | P89: =SUM(P84:P88) -> 0.00
E91: Total Risk Weighted Assets | P91: =SUM(P49,P57,P65,P73,P81,P89) -> 3,693.03
E93: Total Required Capital For Off-Balance Sheet (Derivative) Assets | O93: =P91*0.08 -> 295.44

Sheet New OFF Balance Sheet (Deriv)
E39: Standardized Approach - Off-Balance Sheet Assets (Derivatives)
E40: Off-Balance Sheet Items (Derivatives) | I40: Exposures Without CRM ($000s) | L40: Exposures With CRM ($000s) | P40: Risk Weighted Amount
G41: Risk Weight (%) | H41: Credit Conversion Factor | I41: Replacement Cost (Current Exposure) | J41: Notional Principal Amounts | K41: Credit Equivalent Exposure | L41: Replacement Cost (Current Exposure) | M41: Notional Principal Amounts | N41: Credit Equivalent Exposure pre-CRM | O41: Credit Equivalent Exposure post-CRM
E42: A | F42: Interest Rate-Related Contracts
E43: A.1 | F43: Residual Maturity 1 Year or Less | G43: 100 | H43: 0 | K43: =I43+(J43*(H43/100)) -> 0.00 | N43: =L43+(M43*(H43/100)) -> 0.00 | P43: =(K43+O43)*(G43/100) -> 0.00
E44: A.2 | F44: Residual Maturity > 1 Year to 5 Years | G44: 100 | H44: 0.50 | K44: =I44+(J44*(H44/100)) -> 0.00 | N44: =L44+(M44*(H44/100)) -> 0.00 | P44: =(K44+O44)*(G44/100) -> 0.00
E45: A.3 | F45: Residual Maturity > 5 Years | G45: 100 | H45: 1.50 | K45: =I45+(J45*(H45/100)) -> 0.00 | N45: 0.00 | P45: 0.00
E46: A.4 | F46: Contracts with Residual Maturity > 1 Year that are subject to a CCF Floor | G46: 100 | H46: 1.50 | K46: =I46+(J46*(H46/100)) -> 0.00 | N46: 0.00 | P46: 0.00
E47: A.5 | F47: Contracts with Multiple Exchange of Principal | G47: 100 | K47: =I47+(J47*(H47/100)) -> 0.00 | N47: 0.00 | P47: 0.00
E48: A.6 | F48: Counterparty Credit Risk | G48: 100 | K48: 0.00 | N48: 0.00 | P48: 0.00
E49: A.7 | F49: Total | P49: =SUM(P43:P48) -> 0.00
E51: B | F51: Foreign Exchange & Gold Contracts
E52: B.1 | F52: Residual Maturity 1 Year or Less | G52: 100 | H52: 0 | K52: =I52+(J52*(H52/100)) -> 0.00 | N52: =L52+(M52*(H52/100)) -> 0.00 | P52: =(K52+O52)*(G52/100) -> 0.00
E53: B.2 | F53: Residual Maturity > 1 Year to 5 Years | G53: 100 | H53: 0.50 | K53: =I53+(J53*(H53/100)) -> 0.00 | N53: =L53+(M53*(H53/100)) -> 0.00 | P53: =(K53+O53)*(G53/100) -> 0.00
E54: B.3 | F54: Residual Maturity > 5 Years | G54: 100 | H54: 1.50 | K54: =I54+(J54*(H54/100)) -> 0.00 | N54: =L54+(M54*(H54/100)) -> 0.00 | P54: =(K54+O54)*(G54/100) -> 0.00
E55: B.4 | F55: Contracts with Multiple Exchange of Principal | G55: 100 | K55: =I55+(J55*(H55/100)) -> 0.00 | N55: =L55+(M55*(H55/100)) -> 0.00 | P55: =(K55+O55)*(G55/100) -> 0.00
E56: B.5 | F56: Counterparty Credit Risk | G56: 100 | K56: =I56+(J56*(H56/100)) -> 0.00 | N56: =L56+(M56*(H56/100)) -> 0.00 | P56: =(K56+O56)*(G56/100) -> 0.00
E57: B.6 | F57: Total | P57: =SUM(P52:P56) -> 0.00
E59: C | F59: Equity Contracts
E60: C.1 | F60: Residual Maturity 1 Year or Less | G60: 100 | H60: 6 | K60: =I60+(J60*(H60/100)) -> 0.00 | N60: =L60+(M60*(H60/100)) -> 0.00 | P60: =(K60+O60)*(G60/100) -> 0.00
E61: C.2 | F61: Residual Maturity > 1 Year to 5 Years | G61: 100 | H61: 8 | K61: =I61+(J61*(H61/100)) -> 0.00 | N61: =L61+(M61*(H61/100)) -> 0.00 | P61: =(K61+O61)*(G61/100) -> 0.00
E62: C.3 | F62: Residual Maturity > 5 Years | G62: 100 | H62: 10 | K62: =I62+(J62*(H62/100)) -> 0.00 | N62: =L62+(M62*(H62/100)) -> 0.00 | P62: =(K62+O62)*(G62/100) -> 0.00
E63: C.4 | F63: Contracts with Multiple Exchange of Principal | G63: 100 | K63: =I63+(J63*(H63/100)) -> 0.00 | N63: =L63+(M63*(H63/100)) -> 0.00 | P63: =(K63+O63)*(G63/100) -> 0.00
E64: C.5 | F64: Counterparty Credit Risk | G64: 100 | K64: =I64+(J64*(H64/100)) -> 0.00 | N64: =L64+(M64*(H64/100)) -> 0.00 | P64: =(K64+O64)*(G64/100) -> 0.00
E65: C.6 | F65: Total | P65: =SUM(P60:P64) -> 0.00
E67: D | F67: Other Precious Metal Contracts
E68: D.1 | F68: Residual Maturity 1 Year or Less | G68: 100 | H68: 7 | K68: =I68+(J68*(H68/100)) -> 0.00 | N68: =L68+(M68*(H68/100)) -> 0.00 | P68: =(K68+O68)*(G68/100) -> 0.00
E69: D.2 | F69: Residual Maturity > 1 Year to 5 Years | G69: 100 | H69: 7 | K69: =I69+(J69*(H69/100)) -> 0.00 | N69: =L69+(M69*(H69/100)) -> 0.00 | P69: =(K69+O69)*(G69/100) -> 0.00
E70: D.3 | F70: Residual Maturity > 5 Years | G70: 100 | H70: 8 | K70: =I70+(J70*(H70/100)) -> 0.00 | N70: =L70+(M70*(H70/100)) -> 0.00 | P70: =(K70+O70)*(G70/100) -> 0.00
E71: D.4 | F71: Contracts with Multiple Exchange of Principal | G71: 100 | K71: =I71+(J71*(H71/100)) -> 0.00 | N71: =L71+(M71*(H71/100)) -> 0.00 | P71: =(K71+O71)*(G71/100) -> 0.00
E72: D.5 | F72: Counterparty Credit Risk | G72: 100 | K72: =I72+(J72*(H72/100)) -> 0.00 | N72: =L72+(M72*(H72/100)) -> 0.00 | P72: =(K72+O72)*(G72/100) -> 0.00
E73: D.6 | F73: Total | P73: =SUM(P68:P72) -> 0.00
E75: E | F75: Other Commodities Contracts
E76: E.1 | F76: Residual Maturity 1 Year or Less | G76: 100 | H76: 10.00 | K76: =I76+(J76*(H76/100)) -> 0.00 | N76: =L76+(M76*(H76/100)) -> 0.00 | P76: =(K76+O76)*(G76/100) -> 0.00
E77: E.2 | F77: Residual Maturity > 1 Year to 5 Years | G77: 100 | H77: 12.00 | K77: =I77+(J77*(H77/100)) -> 0.00 | N77: =L77+(M77*(H77/100)) -> 0.00 | P77: =(K77+O77)*(G77/100) -> 0.00
E78: E.3 | F78: Residual Maturity > 5 Years | G78: 100 | H78: 15.00 | K78: =I78+(J78*(H78/100)) -> 0.00 | N78: =L78+(M78*(H78/100)) -> 0.00 | P78: =(K78+O78)*(G78/100) -> 0.00
E79: E.4 | F79: Contracts with Multiple Exchange of Principal | G79: 100 | K79: =I79+(J79*(H79/100)) -> 0.00 | N79: =L79+(M79*(H79/100)) -> 0.00 | P79: =(K79+O79)*(G79/100) -> 0.00
E80: E.5 | F80: Counterparty Credit Risk | G80: 100 | K80: =I80+(J80*(H80/100)) -> 0.00 | N80: =L80+(M80*(H80/100)) -> 0.00 | P80: =(K80+O80)*(G80/100) -> 0.00
E81: E.6 | F81: Total | P81: =SUM(P76:P80) -> 0.00
E83: F | F83: Other Market-Related Contracts
E84: F.1 | F84: Residual Maturity 1 Year or Less | G84: 100 | H84: 10.00 | K84: =I84+(J84*(H84/100)) -> 0.00 | N84: =L84+(M84*(H84/100)) -> 0.00 | P84: =(K84+O84)*(G84/100) -> 0.00
E85: F.2 | F85: Residual Maturity > 1 Year to 5 Years | G85: 100 | H85: 12.00 | K85: =I85+(J85*(H85/100)) -> 0.00 | N85: =L85+(M85*(H85/100)) -> 0.00 | P85: =(K85+O85)*(G85/100) -> 0.00
E86: F.3 | F86: Residual Maturity > 5 Years | G86: 100 | H86: 15.00 | K86: =I86+(J86*(H86/100)) -> 0.00 | N86: =L86+(M86*(H86/100)) -> 0.00 | P86: =(K86+O86)*(G86/100) -> 0.00
E87: F.4 | F87: Contracts with Multiple Exchange of Principal | G87: 100 | K87: =I87+(J87*(H87/100)) -> 0.00 | N87: =L87+(M87*(H87/100)) -> 0.00 | P87: =(K87+O87)*(G87/100) -> 0.00
E88: F.5 | F88: Counterparty Credit Risk | G88: 100 | K88: =I88+(J88*(H88/100)) -> 0.00 | N88: =L88+(M88*(H88/100)) -> 0.00 | P88: =(K88+O88)*(G88/100) -> 0.00
E89: F.6 | F89: Total | P89: =SUM(P84:P88) -> 0.00
E91: Total Risk Weighted Assets | P91: =SUM(P49,P57,P65,P73,P81,P89) -> 0.00
E93: Total Required Capital For Off-Balance Sheet (Derivative) Assets | O93: =P91*0.08 -> 0.00

Sheet OpRisk (hidden)
A1: Operational Risk
A3: A) Reporting Period
B4: Date of the Year-End (dd-mm-yyyy) | C4: NOTE: Licensees are required to complete ONLY one section below, either section B) - Basic Indicator Approach or section C) - Standardised Approach.
A5: Year 1 | B5: 2022-12-31
A6: Year 2 | B6: 2021-12-31
A7: Year 3 | B7: 2020-12-31
A9: B) Basic Indicator Approach (BIA)
A10: Year | B10: Total Gross Income ($000s) | C10: Total Gross (After Negative GI Adjustment) | E10: Alpha | F10: Capital Charge
A11: =+B5 -> 2022-12-31 | B11: 24,695 | C11: =IF(B11<=0,0,B11) -> 24,695 | E11: 15 | F11: =C11*E11/100 -> 3,704
A12: =+B6 -> 2021-12-31 | B12: 22,950 | C12: =IF(B12<=0,0,B12) -> 22,950 | E12: 15 | F12: =C12*E12/100 -> 3,443
A13: =+B7 -> 2020-12-31 | B13: 23,639 | C13: =IF(B13<=0,0,B13) -> 23,639 | E13: 15 | F13: =C13*E13/100 -> 3,546
A14: Number of Years with Positive Total Gross Income | F14: =COUNTIF(F11:F13,">0") -> 3
A15: Basic Indicator Approach Capital Charge | F15: =ROUND(IF(F14=0,0,SUM(F11:F13)/F14),0) -> 3,564
A16: Operational Risk Equivalent Assets | F16: =F15*12.5 -> 44,550.00
A18: C) Standardised Approach (TSA)
A19: Year | B19: Business line | C19: Total Gross Income ($000s) | E19: Beta | F19: Capital Charge
A20: =+B5 -> 2022-12-31 | B20: Corporate Finance | E20: 18 | F20: =MAX((C20*E20),0)/100 -> 0
B21: Trading & Sales | E21: 18 | F21: =MAX((C21*E21),0)/100 -> 0
B22: Retail Banking | E22: 12 | F22: 0
B23: Commercial Banking | E23: 15 | F23: 0
B24: Payment & Settlement | E24: 18 | F24: 0
B25: Agency Services | E25: 15 | F25: 0
B26: Asset Management | E26: 12 | F26: 0
B27: Retail Brokerage | E27: 12 | F27: 0
B28: Total Business | C28: =SUM(C20:C27) -> 0 | F28: =SUM(F20:F27) -> 0
A29: =B6 -> 2021-12-31 | B29: Corporate Finance | E29: 18 | F29: =MAX((C29*E29), 0)/100 -> 0
B30: Trading & Sales | E30: 18 | F30: =MAX((C30*E30), 0)/100 -> 0
B31: Retail Banking | E31: 12 | F31: 0
B32: Commercial Banking | E32: 15 | F32: 0
B33: Payment & Settlement | E33: 18 | F33: 0
B34: Agency Services | E34: 15 | F34: 0
B35: Asset Management | E35: 12 | F35: 0
B36: Retail Brokerage | E36: 12 | F36: 0
B37: Total Business | C37: =SUM(C29:C36) -> 0 | F37: =SUM(F29:F36) -> 0
A38: =B7 -> 2020-12-31 | B38: Corporate Finance | E38: 18 | F38: =MAX((C38*E38), 0)/100 -> 0
B39: Trading & Sales | E39: 18 | F39: =MAX((C39*E39), 0)/100 -> 0
B40: Retail Banking | E40: 12 | F40: 0
B41: Commercial Banking | E41: 15 | F41: 0
B42: Payment & Settlement | E42: 18 | F42: 0
B43: Agency Services | E43: 15 | F43: 0
B44: Asset Management | E44: 12 | F44: 0
B45: Retail Brokerage | E45: 12 | F45: 0
B46: Total Business | C46: =SUM(C38:C45) -> 0 | F46: =SUM(F38:F45) -> 0
A47: Standardised Approach Capital Charge | F47: =ROUND(AVERAGE(F28,F37,F46),0) -> 0
A48: Operational Risk Equivalent Assets | F48: =F47*12.5 -> 0.00

Sheet New OpRisk
B1: Operational Risk
B5: NOTE: All SFIs are required to complete Sections I - IV of the Operational Risk Forms. Section I will only be used for information purposes and not in the calculation of Operational RIsk.
B11: Section I: Minimum Loss Data Information
B12: Year (dd-mm-yyy) | C12: Business line | D12: Total Gross Income ($000s)
C13: Corporate Finance
C14: Trading & Sales
C15: Retail Banking
C16: Commercial Banking
C17: Payment & Settlement
C18: Agency Services
C19: Asset Management
C20: Retail Brokerage
C21: Total Business | D21: =SUM(D13:D20) -> 0
C22: Corporate Finance
C23: Trading & Sales
C24: Retail Banking
C25: Commercial Banking
C26: Payment & Settlement
C27: Agency Services
C28: Asset Management
C29: Retail Brokerage
C30: Total Business | D30: =SUM(D22:D29) -> 0
C31: Corporate Finance
C32: Trading & Sales
C33: Retail Banking
C34: Commercial Banking
C35: Payment & Settlement
C36: Agency Services
C37: Asset Management
C38: Retail Brokerage
C39: Total Business | D39: =SUM(D31:D38) -> 0
B43: Section II: Historical Losses Events
F44: Year T | G44: Year T-1 | H44: Year T-2 | I44: Year T-3 | J44: Year T-4 | K44: Year T-5 | L44: Year T-6 | M44: Year T-7 | N44: Year T-8 | O44: Year T-9 | P44: 10 Year Average
B45: A. Operational Risk Loss Event under $20,000
B46: 1 | C46: Total amount of gross operational losses | P46: =SUM((F46:O46),0)/10 -> 0
B47: 2 | C47: Total amount of loss recovery | P47: =SUM((F47:O47),0)/10 -> 0
B48: 2a | C48: of which: Insurance recovery | P48: =SUM((F48:O48),0)/10 -> 0
B49: 3 | C49: Total amount of net operational losses | F49: =F46-F47 -> 0 | G49: =G46-G47 -> 0 | H49: 0 | I49: 0 | J49: 0 | K49: 0 | L49: 0 | M49: 0 | N49: 0 | O49: 0 | P49: =SUM((F49:O49),0)/10 -> 0
B50: 4 | C50: Number of operational loss events | P50: =SUM((F50:O50),0)/10 -> 0
B51: B. Operational Risk Loss Event between $20,000 and $100,000
B52: 5 | C52: Total amount of gross operational losses | P52: =SUM((F52:O52),0)/10 -> 0
B53: 6 | C53: Total amount of loss recovery | P53: =SUM((F53:O53),0)/10 -> 0
B54: 6a | C54: of which: Insurance recovery | P54: =SUM((F54:O54),0)/10 -> 0
B55: 7 | C55: Total amount of net operational losses | F55: =F52-F53 -> 0 | G55: =G52-G53 -> 0 | H55: 0 | I55: 0 | J55: 0 | K55: 0 | L55: 0 | M55: 0 | N55: 0 | O55: 0 | P55: =SUM((F55:O55),0)/10 -> 0
B56: 8 | C56: Number of operational loss events | P56: =SUM((F56:O56),0)/10 -> 0
B57: C. Operational Risk Loss Event over $100,000 Threshold
B58: 9 | C58: Total amount of gross operational losses | P58: =SUM((F58:O58),0)/10 -> 0
B59: 10 | C59: Total amount of loss recovery | P59: =SUM((F59:O59),0)/10 -> 0
B60: 10a | C60: of which: Insurance recovery | P60: =SUM((F60:O60),0)/10 -> 0
B61: 11 | C61: Total amount of net operational losses | F61: =F58-F59 -> 0 | G61: =G58-G59 -> 0 | H61: 0 | I61: 0 | J61: 0 | K61: =K58-K59 -> 0 | L61: 0 | M61: 0 | N61: 0 | O61: 0 | P61: =SUM((F61:O61),0)/10 -> 0
B62: 12 | C62: Number of operational loss events | P62: =SUM((F62:O62),0)/10 -> 0
B65: Section III: Business Indicator and Subcomponents
F66: Year T | G66: Year T-1 | H66: Year T-2 | I66: 3 Year Average
C67: A) Business Indicator
B69: 1. | C69: Interest, Lease and Dividend | F69: =(F71-F72)+F73+F74 -> 0 | G69: =(G71-G72)+G73+G74 -> 0 | H69: 0 | I69: =MIN(I71,(0.0225*I73))+I74 -> 0
B71: 1.1 | C71: Interest Income | I71: =ABS((F71-F72)+(G71-G72)+(H71-H72))/3 -> 0
B72: 1.2 | C72: Interest Expenses
B73: 1.3 | C73: Interest Earning Assets (Balance Sheet Item) | I73: =(F73+G73+H73)/3 -> 0
B74: 1.4 | C74: Dividend Income | I74: =SUM(F74+G74+H74)/3 -> 0
B76: 2. | C76: Services | F76: =(F78-F79)+(F80-F81) -> 0 | G76: =(G78-G79)+(G80-G81) -> 0 | H76: 0 | I76: =MAX(I78,I79)+MAX(I80,I81) -> 0
B78: 2.1 | C78: Fee and commission income | I78: =SUM(F78+G78+H78)/3 -> 0
B79: 2.2 | C79: Fee and commission expense | I79: =SUM(F79+G79+H79)/3 -> 0
B80: 2.3 | C80: Other operating income | I80: =SUM(F80+G80+H80)/3 -> 0
B81: 2.4 | C81: Other operating expense | I81: =SUM(F81+G81+H81)/3 -> 0
B83: 3. | C83: Financial Component | F83: =SUM(F85:F86) -> 0 | G83: =SUM(G85:G86) -> 0 | H83: =SUM(H85:H86) -> 0 | I83: =SUM(I85+I86) -> 0
B85: 3.1 | C85: Net P&L on the trading book | I85: =ABS((F85+G85+H85)/3) -> 0
B86: 3.2 | C86: Net P&L on the banking book | I86: =ABS((F86+G86+H86)/3) -> 0
B88: 4. | C88: Gross Total Business (BI) | I88: =I83+I76+I69 -> 0
B89: 4.1 | C89: Exempted Excluded Divested Activities
B90: 4.1.1 | C90: Supervisory Approval Obtained?
B91: 4.2 | C91: Net Total Business Indicator (BI) | I91: =SUM(I88-I89,0) -> 0
B94: Section IV: Capital Required for Operational Risk
H95: Total ($000s)
B97: 1. | C97: Business Indicator Component (BIC) | I97: =MAX((I91*0.12),0) -> 0
B99: 2. | C99: Internal Loss Multiplier (ILM) will be equal to 1 | I99: 1
B101: 3. | C101: Operational Risk Capital Charge | I101: =I97*I99 -> 0
B103: 4. | C103: Operational Risk Equivalent Assets | I103: =I101*12.5 -> 0

Sheet New Leverage Ratio
B3: Leverage Ratio
B5: Item No. | C5: Summary Comparison of Accounting Assets vs Leverage Ratio Exposure Measure | F5: Total ($000s)
B6: 1 | C6: Total Consolidated Assets (latest published financial statement)
B7: 2 | C7: Adjustment for investments in banking, financial, insurance or commercial entities that are consolidated for accounting purposes but outside the scope of regulatory consolidation
B8: 3 | C8: Adjustment for fiduciary assets recognised on the balance sheet pursuant to the operative accounting framework but excluded from the leverage ratio exposure measure
B9: 4 | C9: Adjustments for derivative financial instruments
B10: 5 | C10: Adjustment for securities financing transactions (ie repos and similar secured lending)
B11: 6 | C11: Adjustment for off-balance sheet items (ie conversion to credit equivalent amounts of off-balance sheet exposures)
B12: 7 | C12: Other Adjustments
B13: 8 | C13: Leverage Ratio Exposure | F13: =SUM(F6:G12) -> 0
B16: Item No. | C16: Leverage Ratio Common Disclosure | F16: Accounting Balance Sheet Value ($000s)
B18: 1 | C18: Balance Sheet Exposures
B19: 1.1 | C19: On-Balance Sheet Assets | F19: =Form2!N92 -> 0
B20: 1.2 | C20: Derivatives | F20: ='New OFF Balance Sheet (Deriv)'!P91 -> 0
B21: 1.3 | C21: Securities Financing Transactions (SFTs)
C22: Less:
B23: 1.4 | C23: Items deducted from CET1 Capital (including specific provisions) | F23: ='New Capital Composition'!G34+'Form 1'!N67 -> 0
B24: 1.5 | C24: All other regulatory adjustments (in determining CET1 Capital)
B25: 1.6 | C25: Total on-balance sheet exposures (including Derivatives and SFTs) | F25: =SUM(F19-(F23+F24)) -> 0
B27: 2 | C27: Off-Balance Sheet Exposures
B28: 2.1 | C28: Off-balance sheet exposure at gross notional amount | F28: =SUM('New OFF Balance Sheet (Non-Der)'!F55:F62,'New OFF Balance Sheet (Non-Der)'!H55:H62,'New OFF Balance Sheet (Non-Der)'!F65:F72,'New OFF Balance Sheet (Non-Der)'!H65:H72,'New OFF Balance Sheet (Non-Der)'!F74:F81,'New OFF Balance Sheet (Non-Der)'!H74:H81,'New OFF Balance Sheet (Non-Der)'!F84:F91,'New OFF Balance Sheet (Non-Der)'!H84:H91,'New OFF Balance Sheet (Non-Der)'!F93:F100,'New OFF Balance Sheet (Non-Der)'!H93:H100,'New OFF Balance Sheet (Non-Der)'!F102:F109,'New OFF Balance Sheet (Non-Der)'!H102:H109,'New OFF Balance Sheet (Non-Der)'!F112:F119,'New OFF Balance Sheet (Non-Der)'!H112:H119,'New OFF Balance Sheet (Non-Der)'!F121:F128,'New OFF Balance Sheet (Non-Der)'!H121:H128,'New OFF Balance Sheet (Non-Der)'!F130:F137,'New OFF Balance Sheet (Non-Der)'!H130:H137,'New OFF Balance Sheet (Non-Der)'!F139:F146,'New OFF Balance Sheet (Non-Der)'!H139:H146) -> 0
B29: 2.2 | C29: (Adjustments for conversion to credit equivalent amounts) | F29: =SUM('New OFF Balance Sheet (Non-Der)'!G55:G62,'New OFF Balance Sheet (Non-Der)'!I55:I62,'New OFF Balance Sheet (Non-Der)'!G65:G72,'New OFF Balance Sheet (Non-Der)'!I65:I72,'New OFF Balance Sheet (Non-Der)'!G74:G81,'New OFF Balance Sheet (Non-Der)'!I74:I81,'New OFF Balance Sheet (Non-Der)'!G84:G91,'New OFF Balance Sheet (Non-Der)'!I84:I91,'New OFF Balance Sheet (Non-Der)'!G93:G100,'New OFF Balance Sheet (Non-Der)'!I93:I100,'New OFF Balance Sheet (Non-Der)'!G102:G109,'New OFF Balance Sheet (Non-Der)'!I102:I109,'New OFF Balance Sheet (Non-Der)'!G112:G119,'New OFF Balance Sheet (Non-Der)'!I112:I119,'New OFF Balance Sheet (Non-Der)'!G121:G128,'New OFF Balance Sheet (Non-Der)'!I121:I128,'New OFF Balance Sheet (Non-Der)'!G130:G137,'New OFF Balance Sheet (Non-Der)'!I130:I137,'New OFF Balance Sheet (Non-Der)'!G139:G146,'New OFF Balance Sheet (Non-Der)'!I139:I146) -> 0
B30: 2.3 | C30: Total Off-balance sheet exposures | F30: =F28-F29 -> 0
B32: 3 | C32: Capital and Total Exposures
B33: 3.1 | C33: CET1 Capital | F33: ='New Capital Composition'!H36 -> 0
B34: 3.2 | C34: Total Exposures | F34: =F25+F30 -> 0
B36: 4 | C36: Leverage Ratio
B37: 4.1 | C37: Leverage Ratio (%) | F37: =F33/F34 -> 

Sheet Assets by Zone
H7: Statement of Assets & Liabilities by Zones
Q10: ($000s)
E11: A S S E T S | N11: B$ | O11: US$ | P11: OTHER | Q11: TOTAL
E13: 1. | F13: Market Loans
F14: i) Balance with Financial Institutions (outside Bahamas)
F15: a) | G15: Head Office, Subsidiaries, Branches or Affiliates
G16: (i) Demand Deposits | N16: =Form2!K40 -> 0 | O16: =Form2!L40 -> 0 | P16: =Form2!M40 -> 0 | Q16: =N16+O16+P16 -> 0
H17: of which: at Zone A banks in freely convertible currency | Q17: =N17+O17+P17 -> 0
G18: (ii) Loans | N18: =Form2!K42 -> 0 | O18: =Form2!L42 -> 0 | P18: =Form2!M42 -> 0 | Q18: 0
H19: of which: at Zone A banks with a residual maturity up to 180 days | Q19: 0
G20: (iii) Negotiable Paper Issued by Other Banks | N20: =Form2!K43 -> 0 | O20: =Form2!L43 -> 0 | P20: =Form2!M43 -> 0 | Q20: 0
H21: of which: at Zone A banks | Q21: 0
F22: b) | G22: Others:
G23: (i) Demand Deposits | N23: =Form2!K45 -> 0 | O23: =Form2!L45 -> 0 | P23: =Form2!M45 -> 0 | Q23: =N23+O23+P23 -> 0
H24: of which: at Zone A banks in freely convertible currency | Q24: 0
G25: (ii) Loans | N25: =Form2!K47 -> 0 | O25: =Form2!L47 -> 0 | P25: =Form2!M47 -> 0 | Q25: 0
H26: of which: at Zone A banks with a residual maturity up to 180 days | Q26: 0
G27: (iii) Negotiable Paper Issued by Other Banks | N27: =Form2!K48 -> 0 | O27: =Form2!L48 -> 0 | P27: =Form2!M48 -> 0 | Q27: 0
H28: of which: at Zone A banks | Q28: 0
E30: 2. | F30: Government Securities - Other Government
F31: a) | G31: Treasury Bills (up to 1 year original maturity) | O31: =Form2!L20 -> 0 | P31: =Form2!M20 -> 0 | Q31: =N31+O31+P31 -> 0
G32: (i) | H32: Issued by Zone A Central Government | Q32: =N32+O32+P32 -> 0
F33: b) | G33: Long-term Securities | O33: =Form2!L21 -> 0 | P33: =Form2!M21 -> 0 | Q33: =N33+O33+P33 -> 0
G34: (i) | H34: Issued by Zone A Central Government | Q34: =N34+O34+P34 -> 0
E36: 3. | F36: Investment (in Stocks & Shares) | N36: =N38+N41 -> 0 | O36: =O38+O41 -> 0 | P36: =P38+P41 -> 0 | Q36: =N36+O36+P36 -> 0
F37: a) | G37: Domestic Securities | N37: =Form2!K76 -> 0 | O37: =Form2!L76 -> 0 | P37: =Form2!M76 -> 0 | Q37: =N37+O37+P37 -> 0
G38: (i) | H38: Public Corporation Bonds | N38: =Form2!K77 -> 0 | O38: =Form2!L77 -> 0 | P38: =Form2!M77 -> 0 | Q38: 0
H39: a) | I39: Financial | Q39: 0
H40: b) | I40: Non-Financial | Q40: 0
G41: (ii) | H41: Other Domestic Securities | N41: =Form2!K78 -> 0 | O41: =Form2!L78 -> 0 | P41: =Form2!M78 -> 0 | Q41: 0
H42: a) | I42: Banking and Other, Financial | Q42: 0
H43: b) | I43: Non-Financial | Q43: 0
E44: L I A B I L I T I E S | N44: B$ | O44: US$ | P44: OTHER | Q44: TOTAL
E46: 4. | F46: Market Receivables
F47: i) Due to Financial Institutions (outside Bahamas)
F48: a) | G48: Head Office, Subsidiaries, Branches or Affiliates
G49: (i) Demand Deposits | N49: ='Form 1'!K39 -> 0 | O49: ='Form 1'!L39 -> 0 | P49: ='Form 1'!M39 -> 0 | Q49: =N49+O49+P49 -> 0
H50: of which: at Zone A banks in freely convertible currency | Q50: =N50+O50+P50 -> 0
F51: b) | G51: Others:
G52: (i) Demand Deposits | N52: ='Form 1'!K43 -> 0 | O52: ='Form 1'!L43 -> 0 | P52: ='Form 1'!M43 -> 0 | Q52: =N52+O52+P52 -> 0
H53: of which: at Zone A banks in freely convertible currency | Q53: =N53+O53+P53 -> 0

Sheet Investments
B1: N.B. Please select from the drop down lists for Related Party, Type and Investment Level.
F2: Investments
B4: Twenty Largest Investments of All Investments ≥ 10% of Capital ($000s)
C6: N A M E | D6: Related Party | E6: Type | F6: Investment Level | G6: Amount $ | H6: Provision $ | I6: Gain/(Loss) $ | J6: Net Value $ | K6: Market Value $ | L6: Maturity Date
B8: 1.
B9: 2.
B10: 3.
B11: 4.
B12: 5.
B13: 6.
B14: 7.
B15: 8.
B16: 9.
B17: 10.
B18: 11.
B19: 12.
B20: 13.
B21: 14.
B22: 15.
B23: 16.
B24: 17.
B25: 18.
B26: 19.
B27: 20.
C28: Total | G28: =SUM(G8:G27) -> 0 | H28: =SUM(H8:H27) -> 0 | J28: =SUM(J8:J27) -> 0 | K28: =SUM(K8:K27) -> 0
B34: Security Investments ($000s)
C36: T Y P E | D36: Book Value | E36: Market Value | F36: Net Unrealized Gain/(Loss)
B39: 1 | C39: Total Trading Securities | D39: =IF(COUNTA(D40:D42)=0,"",SUM(D40:D42)) ->  | E39: =IF(COUNTA(E40:E42)=0,"",SUM(E40:E42)) ->  | F39: =IF(COUNTA(F40:F42)=0,"",SUM(F40:F42)) -> 0
B40: 1.1 | C40: Debt | F40: =IF(COUNTA(D40:E40)=0,"0",E40-D40) -> 0
B41: 1.2 | C41: Equity | F41: =IF(COUNTA(D41:E41)=0,"0",E41-D41) -> 0
B42: 1.3 | C42: Other | F42: =IF(COUNTA(D42:E42)=0,"0",E42-D42) -> 0
B44: 2 | C44: Total Investment and Held-to-Maturity | D44: =IF(COUNTA(D45:D47)=0,"",SUM(D45:D47)) ->  | E44: =IF(COUNTA(E45:E47)=0,"",SUM(E45:E47)) ->  | F44: =SUM(F45:F47) -> 0
B45: 2.1 | C45: Debt | F45: =IF(COUNTA(D45:E45)=0,"0",E45-D45) -> 0
B46: 2.2 | C46: Equity | F46: =IF(COUNTA(D46:E46)=0,"0",E46-D46) -> 0
B47: 2.3 | C47: Other | F47: =IF(COUNTA(D47:E47)=0,"0",E47-D47) -> 0
B49: 3 | C49: Other (Specify) | D49: =IF(COUNTA(D50:D54)=0,"",SUM(D50:D54)) ->  | E49: =IF(COUNTA(E50:E54)=0,"",SUM(E50:E54)) ->  | F49: =SUM(F50:F54) -> 0
B50: 3.1 | F50: =IF(COUNTA(D50:E50)=0,"0",E50-D50) -> 0
B51: 3.2 | F51: =IF(COUNTA(D51:E51)=0,"0",E51-D51) -> 0
B52: 3.3 | F52: =IF(COUNTA(D52:E52)=0,"0",E52-D52) -> 0
B53: 3.4 | F53: =IF(COUNTA(D53:E53)=0,"0",E53-D53) -> 0
B54: 3.5 | F54: =IF(COUNTA(D54:E54)=0,"0",E54-D54) -> 0
B56: 4 | C56: Grand Total | D56: =SUM(D50:D54,D45:D47,D40:D42) -> 0 | E56: =SUM(E50:E54,E45:E47,E40:E42) -> 0 | F56: =SUM(F50:F54,F45:F47,F40:F42) -> 0

Sheet Market Loans
B1: N.B. Please select from the drop down lists for Related Party, Exempt Exposure, Country of Office/Branch and Investment Level.
B3: Ten Largest Market Loans ($000s)
C5: Institution | D5: Amount | E5: Related Party | F5: Exempt Exposure | G5: Country of Office/Branch Where Loan Booked | H5: Maturity Date | I5: Investment Level | J5: Counterparty Rating | K5: Rating Agency
B7: 1.
B8: 2.
B9: 3.
B10: 4.
B11: 5.
B12: 6.
B13: 7.
B14: 8.
B15: 9.
B16: 10.
C17: Total | D17: =SUM(D7:D16) -> 0

Sheet Largest Depositors
B1: N.B. Please select from the drop down list for Related Party.
B2: Ten Largest Depositors ($000s)
C4: Customer | D4: Amount | E4: Related Party | F4: Maturity Date
B6: 1.
B7: 2.
B8: 3.
B9: 4.
B10: 5.
B11: 6.
B12: 7.
B13: 8.
B14: 9.
B15: 10.
C16: Total | D16: =SUM(D6:D15) -> 0

Sheet LargeExpos
A1: N.B. Please select from the drop down lists for Country, Exempt Exposure and Sector.
C2: Statements of Large Exposures
A5: 1. | B5: Ten Largest Exposures to Central Governments ($000s)
B7: Country | E7: Exposure at Reporting Date $ | F7: Maximum Exposure in Reporting Period $ | G7: Exempt Exposure | H7: Longest Maturity Date (dd/mm/yyyy)
B20: Total | E20: =SUM(E10:E19) -> 0 | F20: =SUM(F10:F19) -> 0
A24: 2. | B24: Country Exposures ($000s)
B26: Country | E26: Applicable Limit (Dollar Equivalent) | F26: Exposure | G26: Compliance
G29: =IF(B29="","",IF(E29>=F29,"Compliant","Non-Compliant")) -> 
G30: =IF(B30="","",IF(E30>=F30,"Compliant","Non-Compliant")) -> 
B39: Total | E39: =SUM(E29:E38) -> 0 | F39: =SUM(F29:F38) -> 0
A43: 3. | B43: Sectoral Exposures ($000s)
B45: Sector | E45: Applicable Limit (Dollar Equivalent) | F45: Exposure | G45: Compliance | I45: Count
G47: =IF(B47="","",IF(E47>=F47,"Compliant","Non-Compliant")) ->  | I47: =IF(G47="","",IF(G47="Compliant",0,1)) -> 
G48: =IF(B48="","",IF(E48>=F48,"Compliant","Non-Compliant")) ->  | I48: =IF(G48="","",IF(G48="Compliant",0,1)) -> 
I56: =IF(G56="","",IF(G56="Compliant",0,1)) -> 
B57: Total | F57: =SUM(F47:F56) -> 0 | I57: =SUM(I47:I56) -> 0

Sheet Largest Loan Arrears
B1: N.B. Please select from the drop down lists for Currency Type, Sector and Over 90 Days.
D2: Twenty Largest Loan Arrears
D4: Exposure at Reporting Date ($000s) | E4: Currency Type | F4: Sector | G4: Maturity Date | H4: Amounts Overdue ($000s) | I4: Specific Provisions ($000s) | J4: Monthly Repayment ($000s) | K4: Over 90 Days | L4: Value of Security Pledged
C6: Customer | L6: Description | M6: Value ($000s)
B8: 1.
B9: 2.
B10: 3.
B11: 4.
B12: 5.
B13: 6.
B14: 7.
B15: 8.
B16: 9.
B17: 10.
B18: 11.
B19: 12.
B20: 13.
B21: 14.
B22: 15.
B23: 16.
B24: 17.
B25: 18.
B26: 19.
B27: 20.
C28: TOTAL | D28: =SUM(D8:D27) -> 0 | H28: =SUM(H8:H27) -> 0 | I28: =SUM(I8:I27) -> 0 | J28: =SUM(J8:J27) -> 0 | M28: =SUM(M8:M27) -> 0
C30: AVERAGE | D30: =AVERAGEIF(D8:D27,"<>0") ->  | H30: =AVERAGEIF(H8:H27,"<>0") ->  | I30: =AVERAGEIF(I8:I27,"<>0") ->  | J30: =AVERAGEIF(J8:J27,"<>0") -> 

Sheet Large Exposures 2
B2: N.B. Please select from the drop down lists for Related Party, Exempt Exposure, Currency Type and Related Sector.
B6: Twenty Largest Exposures 2
D8: Related Party | E8: Exempt Exposure | F8: Exposure at Reporting Date ($000s) | G8: Currency Type | H8: Maximum Exposure in Reporting Period ($000s) | I8: Longest Maturity Date | J8: Amounts Overdue ($000s) | K8: Specific Provisions ($000s) | L8: Related Sector | M8: Value of Security Pledged
C10: Customer | M10: Description | N10: Value ($000s)
B12: 1.
B13: 2.
B14: 3.
B15: 4.
B16: 5.
B17: 6.
B18: 7.
B19: 8.
B20: 9.
B21: 10.
B22: 11.
B23: 12.
B24: 13.
B25: 14.
B26: 15.
B27: 16.
B28: 17.
B29: 18.
B30: 19.
B31: 20.
C32: TOTAL | F32: =SUM(F12:F31) -> 0 | H32: =SUM(H12:H31) -> 0 | J32: =SUM(J12:J31) -> 0 | K32: =SUM(K12:K31) -> 0 | N32: =SUM(N12:N31) -> 0
C34: AVERAGE | F34: =AVERAGEIF(F12:F31, "<>0") ->  | H34: =AVERAGEIF(H12:H31, "<>0") ->  | J34: =AVERAGEIF(J12:J31, "<>0") ->  | K34: =AVERAGEIF(K12:K31, "<>0") ->  | N34: =AVERAGEIF(N12:N31, "<>0") -> 

Sheet Form3B
B2: Analysis of B$ Deposits by Number & Range of Value (B$000s)
F6: Resident Only | I6: Non-Resident Only
C7: DEPOSITS | F7: NUMBER | G7: VALUE | H7: ACCRUED INTEREST | I7: NUMBER | J7: VALUE | K7: ACCRUED INTEREST
B9: 1. | C9: Demand Deposits
C10: Demand Deposits up to $5,000
C11: Demand Deposits over $5,000 up to $10,000
C12: Demand Deposits over $10,000 up to $15,000
C13: Demand Deposits over $15,000 up to $20,000
C14: Demand Deposits over $20,000 up to $25,000
C15: Demand Deposits over $25,000 up to $30,000
C16: Demand Deposits over $30,000 up to $35,000
C17: Demand Deposits over $35,000 up to $40,000
C18: Demand Deposits over $40,000 up to $45,000
C19: Demand Deposits over $45,000 up to $50,000
C20: Demand Deposits over $50,000
C21: Total Demand Deposits | F21: =SUM(F10:F20) -> 0 | G21: 0 | H21: 0 | I21: 0 | J21: 0 | K21: 0
B24: 2. | C24: Savings Deposits
C25: Savings Deposits up to $5,000
C26: Savings Deposits over $5,000 up to $10,000
C27: Savings Deposits over $10,000 up to $15,000
C28: Savings Deposits over $15,000 up to $20,000
C29: Savings Deposits over $20,000 up to $25,000
C30: Savings Deposits over $25,000 up to $30,000
C31: Savings Deposits over $30,000 up to $35,000
C32: Savings Deposits over $35,000 up to $40,000
C33: Savings Deposits over $40,000 up to $45,000
C34: Savings Deposits over $45,000 up to $50,000
C35: Savings Deposits over $50,000
C36: Total Savings Deposits | F36: =SUM(F25:F35) -> 0 | G36: =SUM(G25:G35) -> 0 | H36: =SUM(H25:H35) -> 0 | I36: 0 | J36: 0 | K36: 0
B39: 3. | C39: Fixed Deposits
C40: Fixed Deposits up to $5,000
C41: Fixed Deposits over $5,000 up to $10,000
C42: Fixed Deposits over $10,000 up to $15,000
C43: Fixed Deposits over $15,000 up to $20,000
C44: Fixed Deposits over $20,000 up to $25,000
C45: Fixed Deposits over $25,000 up to $30,000
C46: Fixed Deposits over $30,000 up to $35,000
C47: Fixed Deposits over $35,000 up to $40,000
C48: Fixed Deposits over $40,000 up to $45,000
C49: Fixed Deposits over $45,000 up to $50,000
C50: Fixed Deposits over $50,000
C51: Total Fixed Deposits | F51: =SUM(F40:F50) -> 0 | G51: =SUM(G40:G50) -> 0 | H51: =SUM(H40:H50) -> 0 | I51: 0 | J51: 0 | K51: 0
B54: 4. | C54: Negotiable Certificates of Deposits
C55: Negotiable Certificates of Deposits up to $5,000
C56: Negotiable Certificates of Deposits over $5,000 up to $10,000
C57: Negotiable Certificates of Deposits over $10,000 up to $15,000
C58: Negotiable Certificates of Deposits over $15,000 up to $20,000
C59: Negotiable Certificates of Deposits over $20,000 up to $25,000
C60: Negotiable Certificates of Deposits over $25,000 up to $30,000
C61: Negotiable Certificates of Deposits over $30,000 up to $35,000
C62: Negotiable Certificates of Deposits over $35,000 up to $40,000
C63: Negotiable Certificates of Deposits over $40,000 up to $45,000
C64: Negotiable Certificates of Deposits over $45,000 up to $50,000
C65: Negotiable Certificates of Deposits over $50,000
C66: Total Negotiable Certificates of Deposits | F66: =SUM(F55:F65) -> 0 | G66: =SUM(G55:G65) -> 0 | H66: =SUM(H55:H65) -> 0 | I66: 0 | J66: 0 | K66: 0
B69: 5. | C69: Total Deposits
C71: Total Deposits up to $5,000 | F71: =F10+F25+F40+F55 -> 0 | G71: =G10+G25+G40+G55 -> 0 | H71: 0 | I71: 0 | J71: 0 | K71: 0
C72: Total Deposits over $5,000 up to $10,000 | F72: =F11+F26+F41+F56 -> 0 | G72: 0 | H72: 0 | I72: 0 | J72: 0 | K72: 0
C73: Total Deposits over $10,000 up to $15,000 | F73: =F12+F27+F42+F57 -> 0 | G73: 0 | H73: 0 | I73: 0 | J73: 0 | K73: 0
C74: Total Deposits over $15,000 up to $20,000 | F74: =F13+F28+F43+F58 -> 0 | G74: 0 | H74: 0 | I74: 0 | J74: 0 | K74: 0
C75: Total Deposits over $20,000 up to $25,000 | F75: =F14+F29+F44+F59 -> 0 | G75: 0 | H75: 0 | I75: 0 | J75: 0 | K75: 0
C76: Total Deposits over $25,000 up to $30,000 | F76: =F15+F30+F45+F60 -> 0 | G76: 0 | H76: 0 | I76: 0 | J76: 0 | K76: 0
C77: Total Deposits over $30,000 up to $35,000 | F77: =F16+F31+F46+F61 -> 0 | G77: 0 | H77: 0 | I77: 0 | J77: 0 | K77: 0
C78: Total Deposits over $35,000 up to $40,000 | F78: =F17+F32+F47+F62 -> 0 | G78: 0 | H78: 0 | I78: 0 | J78: 0 | K78: 0
C79: Total Deposits over $40,000 up to $45,000 | F79: =F18+F33+F48+F63 -> 0 | G79: 0 | H79: 0 | I79: 0 | J79: 0 | K79: 0
C80: Total Deposits over $45,000 up to $50,000 | F80: =F19+F34+F49+F64 -> 0 | G80: 0 | H80: 0 | I80: 0 | J80: 0 | K80: 0
C81: Total Deposits over $50,000 | F81: =F20+F35+F50+F65 -> 0 | G81: 0 | H81: 0 | I81: 0 | J81: 0 | K81: 0
C82: Total Deposits | F82: =SUM(F71:F81) -> 0 | G82: =SUM(G71:G81) -> 0 | H82: =SUM(H71:H81) -> 0 | I82: 0 | J82: 0 | K82: 0
C85: MEMORANDUM ITEM | F85: NUMBER | G85: VALUE | H85: ACCRUED INTEREST | I85: NUMBER | J85: VALUE | K85: ACCRUED INTEREST
B86: 6. | C86: Demand Deposits - Interest Bearing A/Cs
C87: Demand Deposits up to $5,000
C88: Demand Deposits over $5,000 up to $10,000
C89: Demand Deposits over $10,000 up to $15,000
C90: Demand Deposits over $15,000 up to $20,000
C91: Demand Deposits over $20,000 up to $25,000
C92: Demand Deposits over $25,000 up to $30,000
C93: Demand Deposits over $30,000 up to $35,000
C94: Demand Deposits over $35,000 up to $40,000
C95: Demand Deposits over $40,000 up to $45,000
C96: Demand Deposits over $45,000 up to $50,000
C97: Demand Deposits over $50,000
C98: Total Demand Deposits - Interest Bearing A/Cs | F98: =SUM(F87:F97) -> 0 | G98: =SUM(G87:G97) -> 0 | H98: =SUM(H87:H97) -> 0 | I98: 0 | J98: 0 | K98: 0

Sheet Form3D
B2: Analysis of B$ Deposits by Number & Range of Value up to $10,000 (B$000s)
F6: Resident Only | I6: Non-Resident Only
C7: DEPOSITS | F7: NUMBER | G7: VALUE | H7: ACCRUED INTEREST | I7: NUMBER | J7: VALUE | K7: ACCRUED INTEREST
B9: 1. | C9: Total Deposits
C10: Total Deposits up to $250
C11: Total Deposits over $250 up to $500
C12: Total Deposits over $500 up to $1,000
C13: Total Deposits over $1,000 up to $2,000
C14: Total Deposits over $2,000 up to $3,000
C15: Total Deposits over $3,000 up to $4,000
C16: Total Deposits over $4,000 up to $5,000
C17: Total Deposits over $5,000 up to $6,000
C18: Total Deposits over $6,000 up to $7,000
C19: Total Deposits over $7,000 up to $8,000
C20: Total Deposits over $8,000 up to $9,000
C21: Total Deposits over $9,000 up to $10,000
C22: Total Deposits | F22: =SUM(F10:F21) -> 0 | G22: 0 | H22: 0 | I22: 0 | J22: 0 | K22: 0
B25: 2. | C25: Wire Transfers
C26: Wire Transfers up to $5,000
C27: Wire Transfers over $5,000 up to $10,000
C28: Wire Transfers over $10,000 up to $20,000
C29: Wire Transfers over $20,000 up to $30,000
C30: Wire Transfers over $30,000 up to $40,000
C31: Wire Transfers over $40,000 up to $50,000
C32: Wire Transfers over $50,000
C33: Total Wire Transfers | F33: =SUM(F26:F32) -> 0 | G33: 0 | H33: 0 | I33: 0 | J33: 0 | K33: 0
B36: 3. | C36: Stored Value Cards
C37: Stored Value Cards up to $250
C38: Stored Value Cards over $250 up to $500
C39: Stored Value Cards over $500 up to $1,000
C40: Stored Value Cards over $1,000 up to $2,500
C41: Stored Value Cards over $2,500 up to $5,000
C42: Stored ValueCards over $5,000 up to $7,500
C43: Stored ValueCards over $7,500 up to $10,000
C44: Stored Value Cards over $10,000 up to $15,000
C45: Stored Value Cards over $15,000 up to $25,000
C46: Stored Value Cards over $25,000 up to $50,000
C47: Stored Value Cards over $50,000
C48: Total Stored Value Cards | F48: =SUM(F37:F47) -> 0 | G48: =SUM(G37:G47) -> 0 | H48: =SUM(H37:H47) -> 0 | I48: 0 | J48: 0 | K48: 0

Sheet CredCards
B2: Credit Cards Report
B4: (Value in $000s)
F5: Visa | G5: MasterCard | H5: Other
B7: 1. | C7: Credit Cards Outstanding:
C8: Number of Card Accounts Outstanding | F8: =$F$17 -> 0 | G8: =$G$17 -> 0 | H8: =$H$17 -> 0
C9: By Range of Card Limit:
C10: $0-$500
C11: Over $500 - $1,000
C12: Over $1,000 - $2,000
C13: Over $2,000 - $3,000
C14: Over $3,000 - $5,000
C15: Over $5,000 - $10,000
C16: Over $10,000
C17: Total | F17: =F10+F11+F12+F13+F14+F15+F16 -> 0 | G17: =G10+G11+G12+G13+G14+G15+G16 -> 0 | H17: =H10+H11+H12+H13+H14+H15+H16 -> 0
C20: Value of Credit Cards Outstanding | F20: =F29 -> 0 | G20: =G29 -> 0 | H20: =H29 -> 0
C21: By Range of Card Limit:
C22: $0-$500
C23: Over $500 - $1,000
C24: Over $1,000 - $2,000
C25: Over $2,000 - $3,000
C26: Over $3,000 - $5,000
C27: Over $5,000 - $10,000
C28: Over $10,000
C29: Total | F29: =F22+F23+F24+F25+F26+F27+F28 -> 0 | G29: =G22+G23+G24+G25+G26+G27+G28 -> 0 | H29: =H22+H23+H24+H25+H26+H27+H28 -> 0
C32: Total Accrued Interest on Credit Cards Outstanding | F32: =F33 -> 0 | G32: =G33 -> 0 | H32: =H33 -> 0
C33: Accrued Interest applied to Credit Cards Outstanding
B35: 2. | C35: Limits:
C36: Aggregate Limits
B38: 3. | C38: Credit Utilized | F38: =F39+F40 -> 0 | G38: =G39+G40 -> 0 | H38: =H39+H40 -> 0
C39: In Bahamian Dollars
C40: In Foreign Currency
B42: 4. | C42: Cash Advances | F42: =F43+F44 -> 0 | G42: =G43+G44 -> 0 | H42: =H43+H44 -> 0
C43: In Bahamian Dollars
C44: In Foreign Currency
B46: 5. | C46: Merchants Receipts US$
B48: 6. | C48: Net Payments Received | F48: =F49-F50 -> 0 | G48: =G49-G50 -> 0 | H48: =H49-H50 -> 0
C49: Total Payments Received B$
C50: Less: Cardholders' Chargeback
B52: 7. | C52: Payments To Int'l Card Vendors (Net) | F52: =F53-F54 -> 0 | G52: =G53-G54 -> 0 | H52: =H53-H54 -> 0
C53: Payments To
C54: Payments From
B56: 8. | C56: Estimated F/C Usage
B58: 9. | C58: Memorandum Items:
C59: I. Minimum Card Limit
C60: II. Maximum Card Limit
C61: III. Interest Rate Charged

Sheet MortRep
D2: Mortgages Report
E4: (Value in $000s)
C5: R E S I D E N T I A L
B7: 1. | C7: Residential Mortgages Outstanding: | F7: Number | G7: Value
C8: New Construction Single Dwelling
C9: New Construction Duplex & Row
C10: Existing Single Dwelling
C11: Existing Duplex & Row
C12: Rehab./Additions Single Dwelling
C13: Rehab./Additions Duplex & Row
C14: Total | F14: =F8+F9+F10+F11+F12+F13 -> 0 | G14: =G8+G9+G10+G11+G12+G13 -> 0
C15: Average | G15: =G14/F14 -> 
B17: 2. | C17: Mortgage Loan Disbursements (For The Quarter) | G17: Value
C18: New Construction Single Dwelling
C19: New Construction Duplex & Row
C20: Existing Single Dwelling
C21: Existing Duplex & Row
C22: Rehab./Additions Single Dwelling
C23: Rehab./Additions Duplex & Row
C24: Total Disbursements | G24: =G18+G19+G20+G21+G22+G23 -> 0
B26: 3. | C26: Total Payments For The Quarter | F26: Principal & Int. | G26: Other
C27: New & Existing Single Dwelling
C28: Rehab./Additions Single Dwelling
C29: New & Existing Duplex & Row
C30: Rehab./Additions Duplex & Row
C31: Total Payments | F31: =F27+F28+F29+F30 -> 0 | G31: =G27+G28+G29+G30 -> 0
C32: Grand Total | G32: =F31+G31 -> 0
B34: 4. | C34: Mortgage Loan Commitments (For The Quarter) | F34: Number | G34: Value
C35: New Construction Single Dwelling
C36: New Construction Duplex & Row
C37: Existing Single Dwelling
C38: Existing Duplex & Row
C39: Rehab./Additions Single Dwelling
C40: Rehab./Additions Duplex & Row
C41: Total | F41: =F35+F36+F37+F38+F39+F40 -> 0 | G41: =G35+G36+G37+G38+G39+G40 -> 0
C42: Average | G42: =G41/F41 -> 
B44: 5. | C44: Loan/Market Value Ratio | G44: Ratio
C45: New & Existing Single Dwelling
C46: New & Existing Duplex & Row
B48: 6. | C48: Average Interest Rates | G48: Rate
C49: New & Existing Single Dwelling
C50: New & Existing Duplex & Row
C52: C O M M E R C I A L
B54: 1. | C54: Commercial Mortgages Outstanding: | F54: Number | G54: Value
C55: New Construction
C56: Existing Structure
C57: Rehab. & Additions
C58: Total | F58: =F55+F56+F57 -> 0 | G58: =G55+G56+G57 -> 0
C59: Average | G59: =G58/F58 -> 
B61: 2. | C61: Mortgage Loan Disbursements (Qtr.) | G61: Value
C62: New Construction
C63: Existing Structure
C64: Rehab. & Additions
C65: Total Disbursements | G65: =G62+G63+G64 -> 0
B67: 3. | C67: Total Payments For The Quarter (Value) | F67: Principal & Int. | G67: Other
C68: New Construction
C69: Existing Structure
C70: Rehab. & Additions
C71: Total Payments | F71: =F68+F69+F70 -> 0 | G71: =G68+G69+G70 -> 0
C72: Grand Total | G72: =F71+G71 -> 0
B74: 4. | C74: Mortgage Loan Commitments (For The Quarter) | F74: Number | G74: Value
C75: New Construction
C76: Existing Structure
C77: Rehab. & Additions
C78: Total | F78: =F75+F76+F77 -> 0 | G78: =G75+G76+G77 -> 0
B80: 5. | C80: Loan/Market Value Ratio | G80: Ratio
C81: New Construction
C82: Existing Structure
B84: 6. | C84: Average Interest Rates | G84: Rate
C85: New Construction
C86: Existing Structure
C88: O T H E R I T E M S
B91: 1. | C91: Foreclosures | F91: Number | G91: Value
C92: Residential
C93: Business (Secured by Property)

Sheet Cognos_Office_Connection_Cache (hidden)

Sheet Form7R
B2: Profit and Loss Statement
I6: ($000s)
B7: I. | C7: Operating Income: | G7: B$ | H7: F/C | I7: TOTAL
C8: 1. | D8: Interest Income | G8: =G9+G14 -> 0 | H8: =H9+H14 -> 0 | I8: =G8+H8 -> 0
D9: Resident | G9: =SUM(G10:G13) -> 0 | H9: =SUM(H10:H13) -> 0 | I9: =G9+H9 -> 0
D10: i. Loans | I10: 0
D11: ii. Interbank Loans/Deposits | I11: 0
D12: iii. Securities/Investments | I12: 0
D13: iv. Other Interest Income | I13: 0
D14: Non-Resident | G14: =SUM(G15:G18) -> 0 | H14: =SUM(H15:H18) -> 0 | I14: 0
D15: i. Loans | I15: 0
D16: ii. Interbank Loans/Deposits | I16: 0
D17: iii. Securities/Investments | I17: 0
D18: iv. Other Interest Income | I18: 0
C19: 2. | D19: Non-Interest Income | G19: =SUM(G20:G30) -> 0 | H19: =SUM(H20:H30) -> 0 | I19: 0
D20: Resident Loan Fees | I20: 0
D21: Non-Resident Loan Fees | I21: 0
D22: Securities Commission | I22: 0
D23: Dividend Income | I23: 0
D24: Net Foreign Exchange Income | I24: 0
D25: Trust & Administration Fee Income | I25: 0
D26: Custody Fee Income | I26: 0
D27: Asset Management Fee Income | I27: 0
D28: SLA or Retrocession Fee Income | I28: 0
D29: Extraordinary Gain | I29: 0
D30: Other Non-Interest Income | I30: 0
D31: Total Operating Income | G31: =G8+G19 -> 0 | H31: =H8+H19 -> 0 | I31: 0
B33: II. | C33: Operating Expense: | G33: B$ | H33: F/C | I33: TOTAL
C34: 1. Interest Expense | G34: =G35+G40+G41+G42+G43+G39 -> 0 | H34: =H35+H40+H41+H42+H43+H39 -> 0 | I34: =G34+H34 -> 0
D35: Resident Deposits | G35: =G36+G37+G38 -> 0 | H35: =H36+H37+H38 -> 0 | I35: 0
D36: Demand Deposits | I36: 0
D37: Savings Deposits | I37: 0
D38: Fixed Deposits | I38: 0
D39: Non-Resident Deposits | I39: 0
D40: Interbank Loans/Deposits | I40: =G40+H40 -> 0
D41: Borrowings from Head Office | I41: =G41+H41 -> 0
D42: Central Bank Loans/Deposits | I42: =G42+H42 -> 0
D43: Other Interest Expense | I43: =G43+H43 -> 0
C44: 2. Non-Interest Expense | G44: =G45+G46+G47+G48+G49+G50+G51+G52+G53+G54+G55 -> 0 | H44: =H45+H46+H47+H48+H49+H50+H51+H52+H53+H54+H55 -> 0 | I44: =I45+I46+I47+I48+I49+I50+I51+I52+I53+I54+I55 -> 0
D45: Salaries | I45: 0
D46: Other Staff Expense | I46: 0
D47: Professional Services Fees | I47: 0
D48: Government Fees | I48: 0
D49: Rental Expense | I49: 0
D50: Utilities Expense | I50: 0
D51: Maintenance of Furniture & Equipment | I51: 0
D52: Depreciation Expense | I52: 0
D53: Operational/Extraordinary Loss | I53: 0
D54: SLA Fee Expense | I54: 0
D55: Other Non-Interest Expense | I55: 0
C56: 3. Bad Debt And Provision Expense | G56: =G57+G58-G62 -> 0 | H56: =H57+H58-H62 -> 0 | I56: 0
D57: Provisions (Additions Less Reversals) | I57: 0
D58: Plus Loans Write-Offs | G58: =G59+G60+G61 -> 0 | H58: =H59+H60+H61 -> 0 | I58: 0
D59: Consumer | I59: 0
D60: Business | I60: 0
D61: Other | I61: 0
D62: Less: Recoveries | I62: 0
C63: Total Operating Expenses (1 + 2 + 3) | G63: =G34+G44+G56 -> 0 | H63: =H34+H44+H56 -> 0 | I63: 0
D64: of which: Local Expenses | I64: 0
B66: III. | C66: Net Income/Loss (I - II)
C67: (i) B$ Operations | G67: =G31-G63 -> 0 | H67: Note: Please check these figures against those recorded on your books.
C68: (ii) F/C Operations | G68: =H31-H63 -> 0
C69: (iii) Total Operations | G69: =I31-I63 -> 0
B71: IV. | C71: Allocation of Profits
C72: Dividends Paid/Payable
B74: V. | C74: MEMORANDUM ITEMS:
C75: 1. | D75: Interest, Dividends & Profits, Etc.
D76: Received on Non-Resident F/C Assets
D77: Paid on Non-Resident F/C Liabilities
C78: 2. | D78: Commissions, Charges, Fees, Etc.
D79: Received on Offshore Transactions
D80: Paid on Offshore Transactions
D81: Offshore Management Fees
C82: 3. | D82: Employment | G82: Bahamians | H82: Non-Bahamians | I82: Total
D83: Number of Employees: | G83: =SUM(G84:G85) -> 0 | H83: =SUM(H84:H85) -> 0 | I83: =SUM(G83:H83) -> 0
D84: 1. Males | I84: =SUM(G84:H84) -> 0
D85: 2. Females | I85: =SUM(G85:H85) -> 0
D86: Number of Temporary Bahamian Workers | G86: =SUM(G87:G88) -> 0 | I86: =SUM(G86) -> 0
D87: 1. Males | I87: =SUM(G87) -> 0
D88: 2. Females | I88: =SUM(G88) -> 0
D89: Number of Employees by Job Type: | G89: =SUM(G90:G94) -> 0 | H89: =SUM(H90:H94) -> 0 | I89: =SUM(I90:I94) -> 0
D90: 1. Executive Management | I90: =H90+G90 -> 0
D91: 2. Middle Management | I91: =G91+H91 -> 0
D92: 3. Technical/Non-Management | I92: =G92+H92 -> 0
D93: 4. Clerical/Administrative Support | I93: =G93+H93 -> 0
D94: 5. Other | I94: =G94+H94 -> 0
D95: Number of Employees employed permanently in: | G95: =SUM(G96:G99) -> 0 | H95: =SUM(H96:H99) -> 0 | I95: =SUM(I96:I99) -> 0
D96: 1. Local (Commercial) Banking | I96: =G96+H96 -> 0
D97: 2. Offshore Banking | I97: =G97+H97 -> 0
D98: 3. Trust Administration | I98: =G98+H98 -> 0
D99: 4. Other | I99: =H99+G99 -> 0

Sheet AnalyPaySys
B2: Analysis of Payments System
J5: (Value in $000s)
G6: Number | J6: Value
G8: B$ | H8: F/C | I8: Total | J8: B$ | K8: F/C | L8: Total
B10: A. | C10: ATMs/ABMs and POS Terminals
C11: (i) | D11: Number of Network Terminals (Total) | I11: =SUM(G11:H11) -> 0
D12: a) | E12: New Providence | I12: =SUM(G12:H12) -> 0
D13: b) | E13: Grand Bahama | I13: =SUM(G13:H13) -> 0
D14: c) | E14: Family Islands | I14: =SUM(G14:H14) -> 0
C16: (ii) | D16: Volume/Value of Transactions | I16: =SUM(G16:H16) -> 0 | L16: =SUM(J16:K16) -> 0
B18: B. | C18: Cashless Payment Instruments | G18: =SUM(G19,G21,G23,G28,G30) -> 0 | H18: =SUM(H19,H21,H23,H28,H30) -> 0 | I18: =SUM(G18:H18) -> 0 | J18: =SUM(J19,J21,J23,J28,J30) -> 0 | K18: =SUM(K19,K21,K23,K28,K30) -> 0 | L18: 0
C19: (i) | D19: Cash Cards | I19: 0 | L19: 0
C21: (ii) | D21: Cheques Issued (Total) | I21: 0 | L21: 0
C23: (iii) | D23: Payments by Card | G23: =SUM(G24:G26) -> 0 | H23: =SUM(H24:H26) -> 0 | I23: 0 | J23: =SUM(J24:J26) -> 0 | K23: =SUM(K24:K26) -> 0 | L23: 0
D24: a) | E24: Debit Cards | I24: 0 | L24: 0
D25: b) | E25: Credit Cards | I25: 0 | L25: 0
D26: c) | E26: Stored Value | I26: 0 | L26: 0
C28: (iv) | D28: Direct Debits | I28: 0 | L28: 0
C30: (v) | D30: Direct Credits/Credit Transfers | I30: 0 | L30: 0
B32: C. | C32: Merchant Accounts
C33: (i) | D33: Merchant Accounts - Terminals (Visa/Mastercard) | G33: =SUM(G34:G36) -> 0 | H33: =SUM(H34:H36) -> 0 | I33: =SUM(G33:H33) -> 0
D34: a) | E34: New Providence | I34: =SUM(G34:H34) -> 0
D35: b) | E35: Grand Bahama | I35: =SUM(G35:H35) -> 0
D36: c) | E36: Family Islands | I36: =SUM(G36:H36) -> 0
C38: (ii) | D38: Merchant Accounts (Value of Transactions) | J38: =SUM(J39:J41) -> 0 | K38: =SUM(K39:K41) -> 0 | L38: =SUM(J38:K38) -> 0
D39: a) | E39: New Providence | L39: =SUM(J39:K39) -> 0
D40: b) | E40: Grand Bahama | L40: =SUM(J40:K40) -> 0
D41: c) | E41: Family Islands | L41: =SUM(J41:K41) -> 0
B43: D. | C43: Electronic Banking
C44: (i) | D44: Registered Residential Users (by Island) | G44: =SUM(G45:G47) -> 0 | H44: =SUM(H45:H47) -> 0 | I44: =SUM(G44:H44) -> 0
D45: a) | E45: New Providence | I45: 0
D46: b) | E46: Grand Bahama | I46: 0
D47: c) | E47: Family Islands | I47: 0
C49: (ii) | D49: Registered Business Users (by Island) | G49: =SUM(G50:G52) -> 0 | H49: =SUM(H50:H52) -> 0 | I49: 0
D50: a) | E50: New Providence | I50: 0
D51: b) | E51: Grand Bahama | I51: 0
D52: c) | E52: Family Islands | I52: 0
C54: (iii) | D54: Registered Users Public Sector | I54: 0
C56: (iv) | D56: Other Registered Users | I56: 0 | L56: =SUM(J56:K56) -> 0
B61: E. | C61: Cases of Fraud
C62: (i) | D62: By Cheques | G62: =SUM(G66,G71,G76) -> 0 | H62: =SUM(H66,H71,H76) -> 0 | I62: 0 | J62: =SUM(J66,J71,J76) -> 0 | K62: =SUM(K66,K71,K76) -> 0 | L62: 0
D63: a) | E63: New Providence: ATM | F63: Debit Cards | I63: =SUM(G63:H63) -> 0 | L63: =SUM(J63:K63) -> 0
D64: b) | E64: New Providence: In-Branch | F64: Credit Cards | I64: 0 | L64: 0
D65: c) | E65: New Providence: Online | F65: Stored Value | I65: 0 | L65: 0
E66: Total New Providence | F66: Stored Value | G66: =SUM(G63:G65) -> 0 | H66: =SUM(H63:H65) -> 0 | I66: 0 | J66: =SUM(J63:J65) -> 0 | K66: =SUM(K63:K65) -> 0 | L66: 0
D68: a) | E68: Grand Bahama: ATM | F68: Debit Cards | I68: =SUM(G68:H68) -> 0 | L68: =SUM(J68:K68) -> 0
D69: b) | E69: Grand Bahama: In-Branch | F69: Credit Cards | I69: 0 | L69: 0
D70: c) | E70: Grand Bahama: Online | F70: Stored Value | I70: 0 | L70: 0
E71: Total Grand Bahama | G71: =SUM(G68:G70) -> 0 | H71: =SUM(H68:H70) -> 0 | I71: 0 | J71: =SUM(J68:J70) -> 0 | K71: =SUM(K68:K70) -> 0 | L71: 0
D73: a) | E73: Family Islands: ATM | F73: Debit Cards | I73: =SUM(G73:H73) -> 0 | L73: =SUM(J73:K73) -> 0
D74: b) | E74: Family Islands: In-Branch | F74: Credit Cards | I74: 0 | L74: 0
D75: c) | E75: Family Islands: Online | F75: Stored Value | I75: 0 | L75: 0
E76: Total Family Islands | F76: Debit Cards | G76: =SUM(G73:G75) -> 0 | H76: =SUM(H73:H75) -> 0 | I76: 0 | J76: =SUM(J73:J75) -> 0 | K76: =SUM(K73:K75) -> 0 | L76: 0
C78: (ii) | D78: By Debit Cards | G78: =SUM(G82,G87,G92) -> 0 | H78: =SUM(H82,H87,H92) -> 0 | I78: 0 | J78: =SUM(J82,J87,J92) -> 0 | K78: =SUM(K82,K87,K92) -> 0 | L78: 0
D79: a) | E79: New Providence: ATM | F79: Debit Cards | I79: =SUM(G79:H79) -> 0 | L79: =SUM(J79:K79) -> 0
D80: b) | E80: New Providence: In-Branch | F80: Credit Cards | I80: 0 | L80: 0
D81: c) | E81: New Providence: Online | F81: Stored Value | I81: 0 | L81: 0
E82: Total New Providence | F82: Stored Value | G82: =SUM(G79:G81) -> 0 | H82: =SUM(H79:H81) -> 0 | I82: 0 | J82: =SUM(J79:J81) -> 0 | K82: =SUM(K79:K81) -> 0 | L82: 0
D84: a) | E84: Grand Bahama: ATM | F84: Debit Cards | I84: =SUM(G84:H84) -> 0 | L84: =SUM(J84:K84) -> 0
D85: b) | E85: Grand Bahama: In-Branch | F85: Credit Cards | I85: 0 | L85: 0
D86: c) | E86: Grand Bahama: Online | F86: Stored Value | I86: 0 | L86: 0
E87: Total Grand Bahama | G87: =SUM(G84:G86) -> 0 | H87: =SUM(H84:H86) -> 0 | I87: 0 | J87: =SUM(J84:J86) -> 0 | K87: =SUM(K84:K86) -> 0 | L87: 0
D89: a) | E89: Family Islands: ATM | F89: Debit Cards | I89: =SUM(G89:H89) -> 0 | L89: =SUM(J89:K89) -> 0
D90: b) | E90: Family Islands: In-Branch | F90: Credit Cards | I90: 0 | L90: 0
D91: c) | E91: Family Islands: Online | F91: Stored Value | I91: 0 | L91: 0
E92: Total Family Islands | F92: Debit Cards | G92: =SUM(G89:G91) -> 0 | H92: =SUM(H89:H91) -> 0 | I92: 0 | J92: =SUM(J89:J91) -> 0 | K92: =SUM(K89:K91) -> 0 | L92: 0
C94: (iii) | D94: By Credit Cards | G94: =SUM(G98,G103,G108) -> 0 | H94: =SUM(H98,H103,H108) -> 0 | I94: 0 | J94: =SUM(J98,J103,J108) -> 0 | K94: =SUM(K98,K103,K108) -> 0 | L94: 0
D95: a) | E95: New Providence: ATM | F95: Debit Cards | I95: =SUM(G95:H95) -> 0 | L95: =SUM(J95:K95) -> 0
D96: b) | E96: New Providence: In-Branch | F96: Credit Cards | I96: 0 | L96: 0
D97: c) | E97: New Providence: Online | F97: Stored Value | I97: 0 | L97: 0
E98: Total New Providence | F98: Stored Value | G98: =SUM(G95:G97) -> 0 | H98: =SUM(H95:H97) -> 0 | I98: 0 | J98: =SUM(J95:J97) -> 0 | K98: =SUM(K95:K97) -> 0 | L98: 0
D100: a) | E100: Grand Bahama: ATM | F100: Debit Cards | I100: =SUM(G100:H100) -> 0 | L100: =SUM(J100:K100) -> 0
D101: b) | E101: Grand Bahama: In-Branch | F101: Credit Cards | I101: 0 | L101: 0
D102: c) | E102: Grand Bahama: Online | F102: Stored Value | I102: 0 | L102: 0
E103: Total Grand Bahama | G103: =SUM(G100:G102) -> 0 | H103: =SUM(H100:H102) -> 0 | I103: 0 | J103: =SUM(J100:J102) -> 0 | K103: =SUM(K100:K102) -> 0 | L103: 0
D105: a) | E105: Family Islands: ATM | F105: Debit Cards | I105: =SUM(G105:H105) -> 0 | L105: =SUM(J105:K105) -> 0
D106: b) | E106: Family Islands: In-Branch | F106: Credit Cards | I106: 0 | L106: 0
D107: c) | E107: Family Islands: Online | F107: Stored Value | I107: 0 | L107: 0
E108: Total Family Islands | F108: Debit Cards | G108: =SUM(G105:G107) -> 0 | H108: =SUM(H105:H107) -> 0 | I108: 0 | J108: =SUM(J105:J107) -> 0 | K108: =SUM(K105:K107) -> 0 | L108: 0

Sheet FidAsst
A1: Statement of Fiduciary Assets
M3: (Value in $000s)
B4: General Statistics - Value of Fiduciary Assets of which: [See Notes Below]
A6: 1. | B6: For Total Value of Fiduciary Assets - Breakdown by Asset Class | M6: =M7+M12+M17 -> 0
B7: A. | C7: Assets Under Administration | M7: =SUM(M8:M10) -> 0
C8: (i) | D8: Deposits
C9: (ii) | D9: Capital Market Instruments
C10: (iii) | D10: Other
B12: B. | C12: Assets Under Management | M12: =SUM(M13:M15) -> 0
C13: (i) | D13: Deposits
C14: (ii) | D14: Capital Market Instruments
C15: (iii) | D15: Other
B17: C. | C17: Assets Under Custody | M17: =SUM(M18:M20) -> 0
C18: (i) | D18: Deposits
C19: (ii) | D19: Capital Market Instruments
C20: (iii) | D20: Other
B21: General Statistics - Number of Investment Holding Structures/Vehicles
A23: 2. | B23: Total Number of Investment Holding Structures/Vehicles | M23: =SUM(M24:M33) -> 0
B24: A. | C24: International Business Companies
B25: B. | C25: Investment Funds/Collective Investment Schemes
B26: C. | C26: Trusts
B27: D. | C27: Limited Liability Companies (LLC)
B28: E. | C28: Private Trust Companies
B29: F. | C29: Foundations
B30: G. | C30: Bahamas Executive Entities (BEE)
B31: H. | C31: Investment Condominiums
B32: I. | C32: Individual
B33: J. | C33: Other
B34: Notes:
B35: Fiduciary Assets | E35: “assets under administration” means all assets that are managed by a bank or financial institution on behalf of clients. Assets under administration are beneficially owned by clients. For example: assets within a Trust structure held with External Asset Managers.
E36: “assets under management” means the 'securities portfolios' with respect to which an adviser (or investment company) provides continuous, regular and active superviosry or management services. For example: assets held under a discretionary or advisory investment portfolio where the Bahamian entity provides the investment management or advisory services.
E37: “assets under custody” means client funds or securities, held in ‘custody’ directly or indirectly by an advisor (or investment company) on their behalf, or where the adviser (or investment company) has any authority to obtain possession of them. For example: assets physically custodied inThe Bahamas.

Sheet MaturAnalSum
F2: Maturity-Wise Analysis of Liabilities and Assets
F3: ($000s)
C8: L I A B I L I T I E S | F8: Total | G8: Up to 1 Month | H8: Over 1 Month and up to 3 Months | I8: Over 3 Months and up to 6 Months | J8: Over 6 Months and up to 12 Months | K8: Over 1 Year and up to 5 Years | L8: Over 5 Years
B11: 1. | C11: Deposits | F11: ='Form 1'!N11 -> 0 | G11: =SUM(G12:G14) -> 0 | H11: 0 | I11: 0 | J11: 0 | K11: 0 | L11: 0
C12: B$ | F12: ='Form 1'!K11 -> 0
C13: US$ | F13: ='Form 1'!L11 -> 0
C14: Other | F14: ='Form 1'!M11 -> 0
B15: 2. | C15: Due to Central Bank | F15: ='Form 1'!N20 -> 0 | G15: =SUM(G16:G18) -> 0 | H15: 0 | I15: 0 | J15: 0 | K15: 0 | L15: 0
C16: B$ | F16: ='Form 1'!K20 -> 0
C17: US$ | F17: ='Form 1'!L20 -> 0
C18: Other | F18: ='Form 1'!M20 -> 0
B19: 3. | C19: Due to Financial Institutions (In Bahamas) | F19: ='Form 1'!N23 -> 0 | G19: =SUM(G20:G22) -> 0 | H19: 0 | I19: 0 | J19: 0 | K19: 0 | L19: 0
C20: B$ | F20: ='Form 1'!K23 -> 0
C21: US$ | F21: ='Form 1'!L23 -> 0
C22: Other | F22: ='Form 1'!M23 -> 0
B23: 4. | C23: Due to Financial Institutions (Out Bahamas) | F23: ='Form 1'!N36 -> 0 | G23: =SUM(G24:G26) -> 0 | H23: 0 | I23: 0 | J23: 0 | K23: 0 | L23: 0
C24: B$ | F24: ='Form 1'!K36 -> 0
C25: US$ | F25: ='Form 1'!L36 -> 0
C26: Other | F26: ='Form 1'!M36 -> 0
B27: 5. | C27: Bills Payable | F27: ='Form 1'!N46 -> 0 | G27: =SUM(G28:G30) -> 0 | H27: 0 | I27: 0 | J27: 0 | K27: 0 | L27: 0
C28: B$ | F28: ='Form 1'!K46 -> 0
C29: US$ | F29: ='Form 1'!L46 -> 0
C30: Other | F30: ='Form 1'!M46 -> 0
B31: 6. | C31: Debentures Issued | F31: ='Form 1'!N49 -> 0 | G31: =SUM(G32:G34) -> 0 | H31: 0 | I31: 0 | J31: 0 | K31: 0 | L31: 0
C32: B$ | F32: ='Form 1'!K49 -> 0
C33: US$ | F33: ='Form 1'!L49 -> 0
C34: Other | F34: ='Form 1'!M49 -> 0
B35: 7. | C35: All Other Liabilities | F35: =SUM('Form 1'!N52,'Form 1'!N53,'Form 1'!N58,'Form 1'!N61,'Form 1'!N65,'Form 1'!N66,'Form 1'!N69) -> 0 | G35: =SUM(G36:G38) -> 0 | H35: 0 | I35: 0 | J35: 0 | K35: 0 | L35: 0
C36: B$ | F36: =SUM('Form 1'!K52,'Form 1'!K53,'Form 1'!K58,'Form 1'!K61,'Form 1'!K65,'Form 1'!K66,'Form 1'!K69) -> 0
C37: US$ | F37: =SUM('Form 1'!L52,'Form 1'!L53,'Form 1'!L58,'Form 1'!L61,'Form 1'!L65,'Form 1'!L66,'Form 1'!L69) -> 0
C38: Other | F38: =SUM('Form 1'!M52,'Form 1'!M53,'Form 1'!M58,'Form 1'!M61,'Form 1'!M65,'Form 1'!M66,'Form 1'!M69) -> 0
B39: 8. | C39: Total Liabilities | F39: =SUM(F11,F15,F19,F23,F27,F31,F35) -> 0 | G39: =SUM(G11,G15,G19,G23,G27,G31,G35) -> 0 | H39: 0 | I39: 0 | J39: 0 | K39: 0 | L39: 0
C42: A S S E T S | F42: Total | G42: Up to 1 Month | H42: Over 1 Month and up to 3 Months | I42: Over 3 Months and up to 6 Months | J42: Over 6 Months and up to 12 Months | K42: Over 1 Year and up to 5 Years | L42: Over 5 Years
B45: 1. | C45: Notes and Coins | F45: =Form2!N9 -> 0 | G45: =SUM(G46:G48) -> 0 | H45: 0 | I45: 0 | J45: 0 | K45: 0 | L45: 0
C46: B$ | F46: =Form2!K9 -> 0
C47: US$ | F47: =Form2!L9 -> 0
C48: Other | F48: =Form2!M9 -> 0
B49: 2. | C49: Balance with Central Bank | F49: =Form2!N10 -> 0 | G49: =SUM(G50:G52) -> 0 | H49: 0 | I49: 0 | J49: 0 | K49: 0 | L49: 0
C50: B$ | F50: =Form2!K10 -> 0
C51: US$ | F51: =Form2!L10 -> 0
C52: Other | F52: =Form2!M10 -> 0
B53: 3. | C53: Due from Financial Institutions (In Bahamas) | F53: =Form2!N22 -> 0 | G53: =SUM(G54:G56) -> 0 | H53: 0 | I53: 0 | J53: 0 | K53: 0 | L53: 0
C54: B$ | F54: =Form2!K22 -> 0
C55: US$ | F55: =Form2!L22 -> 0
C56: Other | F56: =Form2!M22 -> 0
B57: 4. | C57: Due from Financial Institutions (Out Bahamas) | F57: =Form2!N38 -> 0 | G57: =SUM(G58:G60) -> 0 | H57: 0 | I57: 0 | J57: 0 | K57: 0 | L57: 0
C58: B$ | F58: =Form2!K38 -> 0
C59: US$ | F59: =Form2!L38 -> 0
C60: Other | F60: =Form2!M38 -> 0
B61: 5. | C61: Loans and Advances | F61: =Form2!N50 -> 0 | G61: =SUM(G62:G64) -> 0 | H61: 0 | I61: 0 | J61: 0 | K61: 0 | L61: 0
C62: B$ | F62: =Form2!K50 -> 0
C63: US$ | F63: =Form2!L50 -> 0
C64: Other | F64: =Form2!M50 -> 0
B65: 6. | C65: Government Securities | F65: =Form2!N11 -> 0 | G65: =SUM(G66:G68) -> 0 | H65: 0 | I65: 0 | J65: 0 | K65: 0 | L65: 0
C66: B$ | F66: =Form2!K11 -> 0
C67: US$ | F67: =Form2!L11 -> 0
C68: Other | F68: =Form2!M11 -> 0
B69: 7. | C69: Investments | F69: =Form2!N75 -> 0 | G69: =SUM(G70:G72) -> 0 | H69: 0 | I69: 0 | J69: 0 | K69: 0 | L69: 0
C70: B$ | F70: =Form2!K75 -> 0
C71: US$ | F71: =Form2!L75 -> 0
C72: Other | F72: =Form2!M75 -> 0
B73: 8. | C73: All Other Assets | F73: =Form2!N87+Form2!N86+Form2!N82+Form2!N81+Form2!N49 -> 0 | G73: =SUM(G74:G76) -> 0 | H73: 0 | I73: 0 | J73: 0 | K73: 0 | L73: 0
C74: B$ | F74: =Form2!K87+Form2!K86+Form2!K82+Form2!K81 + Form2!K49 -> 0
C75: US$ | F75: =Form2!L87+Form2!L86+Form2!L82+Form2!L81 + Form2!L49 -> 0
C76: Other | F76: =Form2!M87+Form2!M86+Form2!M82+Form2!M81 + Form2!M49 -> 0
B77: 9. | C77: Total Assets | F77: =SUM(F45,F49,F53,F57,F61,F65,F69,F73) -> 0 | G77: =SUM(G45,G49,G53,G57,G61,G65,G69,G73) -> 0 | H77: 0 | I77: 0 | J77: 0 | K77: 0 | L77: 0
C80: Net Position | F80: =F77-F39 -> 0 | G80: =G77-G39 -> 0 | H80: 0 | I80: 0 | J80: 0 | K80: 0 | L80: 0
C81: Cumulative Net Position | F81: =F80 -> 0 | G81: =F80+G80 -> 0 | H81: =F80+G80+H80 -> 0 | I81: =F80+G80+H80+I80 -> 0 | J81: =F80+G80+H80+I80+J80 -> 0 | K81: =F80+G80+H80+I80+J80+K80 -> 0 | L81: =F80+G80+H80+I80+J80+K80+L80 -> 0

Sheet IntRateSensit
L2: Interest Rate Sensitivity of Liabilities and Assets
L3: ($000s)
I8: L I A B I L I T I E S | L8: Total | M8: Variable Rate | N8: Up to 1 Month | O8: Over 1 Month and up to 3 Months | P8: Over 3 Months and up to 6 Months | Q8: Over 6 Months and up to 12 Months | R8: Over 1 Year and up to 5 Years | S8: Over 5 Years | T8: Non-Interest Sensitive
H11: 1. | I11: Deposits | L11: ='Form 1'!N11 -> 0 | M11: =SUM(M12:M14) -> 0 | N11: =SUM(N12:N14) -> 0 | O11: 0 | P11: 0 | Q11: 0 | R11: 0 | S11: 0 | T11: =SUM(T12:T14) -> 0
I12: B$ | L12: ='Form 1'!K11 -> 0
I13: US$ | L13: ='Form 1'!L11 -> 0
I14: Other | L14: ='Form 1'!M11 -> 0
H15: 2. | I15: Due to Central Bank | L15: ='Form 1'!N20 -> 0 | M15: =SUM(M16:M18) -> 0 | N15: =SUM(N16:N18) -> 0 | O15: 0 | P15: 0 | Q15: 0 | R15: 0 | S15: 0 | T15: =SUM(T16:T18) -> 0
I16: B$ | L16: ='Form 1'!K20 -> 0
I17: US$ | L17: ='Form 1'!L20 -> 0
I18: Other | L18: ='Form 1'!M20 -> 0
H19: 3. | I19: Due to Financial Institutions (In Bahamas) | L19: ='Form 1'!N23 -> 0 | M19: =SUM(M20:M22) -> 0 | N19: =SUM(N20:N22) -> 0 | O19: 0 | P19: 0 | Q19: 0 | R19: 0 | S19: 0 | T19: =SUM(T20:T22) -> 0
I20: B$ | L20: ='Form 1'!K23 -> 0
I21: US$ | L21: ='Form 1'!L23 -> 0
I22: Other | L22: ='Form 1'!M23 -> 0
H23: 4. | I23: Due to Financial Institutions (Out Bahamas) | L23: ='Form 1'!N36 -> 0 | M23: =SUM(M24:M26) -> 0 | N23: =SUM(N24:N26) -> 0 | O23: 0 | P23: 0 | Q23: 0 | R23: 0 | S23: 0 | T23: =SUM(T24:T26) -> 0
I24: B$ | L24: ='Form 1'!K36 -> 0
I25: US$ | L25: ='Form 1'!L36 -> 0
I26: Other | L26: ='Form 1'!M36 -> 0
H27: 5. | I27: Bills Payable | L27: ='Form 1'!N46 -> 0 | M27: =SUM(M28:M30) -> 0 | N27: =SUM(N28:N30) -> 0 | O27: 0 | P27: 0 | Q27: 0 | R27: 0 | S27: 0 | T27: =SUM(T28:T30) -> 0
I28: B$ | L28: ='Form 1'!K46 -> 0
I29: US$ | L29: ='Form 1'!L46 -> 0
I30: Other | L30: ='Form 1'!M46 -> 0
H31: 6. | I31: Debentures Issued | L31: ='Form 1'!N49 -> 0 | M31: =SUM(M32:M34) -> 0 | N31: =SUM(N32:N34) -> 0 | O31: 0 | P31: 0 | Q31: 0 | R31: 0 | S31: 0 | T31: =SUM(T32:T34) -> 0
I32: B$ | L32: ='Form 1'!K49 -> 0
I33: US$ | L33: ='Form 1'!L49 -> 0
I34: Other | L34: ='Form 1'!M49 -> 0
H35: 7. | I35: All Other Liabilities | L35: =SUM('Form 1'!N52,'Form 1'!N53,'Form 1'!N58,'Form 1'!N61,'Form 1'!N65,'Form 1'!N66,'Form 1'!N69) -> 0 | M35: =SUM(M36:M38) -> 0 | N35: =SUM(N36:N38) -> 0 | O35: 0 | P35: 0 | Q35: 0 | R35: 0 | S35: 0 | T35: =SUM(T36:T38) -> 0
I36: B$ | L36: =SUM('Form 1'!K52,'Form 1'!K53,'Form 1'!K58,'Form 1'!K61,'Form 1'!K65,'Form 1'!K66,'Form 1'!K69) -> 0
I37: US$ | L37: =SUM('Form 1'!L52,'Form 1'!L53,'Form 1'!L58,'Form 1'!L61,'Form 1'!L65,'Form 1'!L66,'Form 1'!L69) -> 0
I38: Other | L38: =SUM('Form 1'!M52,'Form 1'!M53,'Form 1'!M58,'Form 1'!M61,'Form 1'!M65,'Form 1'!M66,'Form 1'!M69) -> 0
H39: 8. | I39: Total Liabilities | L39: =SUM(L11,L15,L19,L23,L27,L31,L35) -> 0 | M39: 0 | N39: 0 | O39: 0 | P39: 0 | Q39: 0 | R39: 0 | S39: 0 | T39: 0
I42: A S S E T S | L42: Total | M42: Variable Rate | N42: Up to 1 Month | O42: Over 1 Month and up to 3 Months | P42: Over 3 Months and up to 6 Months | Q42: Over 6 Months and up to 12 Months | R42: Over 1 Year and up to 5 Years | S42: Over 5 Years | T42: Non-Interest Sensitive
H45: 1. | I45: Notes and Coins | L45: =Form2!N9 -> 0 | M45: =SUM(M46:M48) -> 0 | N45: =SUM(N46:N48) -> 0 | O45: 0 | P45: 0 | Q45: 0 | R45: 0 | S45: 0 | T45: =SUM(T46:T48) -> 0
I46: B$ | L46: =Form2!K9 -> 0
I47: US$ | L47: =Form2!L9 -> 0
I48: Other | L48: =Form2!M9 -> 0
H49: 2. | I49: Balance with Central Bank | L49: =Form2!N10 -> 0 | M49: =SUM(M50:M52) -> 0 | N49: =SUM(N50:N52) -> 0 | O49: 0 | P49: 0 | Q49: 0 | R49: 0 | S49: 0 | T49: =SUM(T50:T52) -> 0
I50: B$ | L50: =Form2!K10 -> 0
I51: US$ | L51: =Form2!L10 -> 0
I52: Other | L52: =Form2!M10 -> 0
H53: 3. | I53: Due from Financial Institutions (In Bahamas) | L53: =Form2!N22 -> 0 | M53: =SUM(M54:M56) -> 0 | N53: =SUM(N54:N56) -> 0 | O53: 0 | P53: 0 | Q53: 0 | R53: 0 | S53: 0 | T53: =SUM(T54:T56) -> 0
I54: B$ | L54: =Form2!K22 -> 0
I55: US$ | L55: =Form2!L22 -> 0
I56: Other | L56: =Form2!M22 -> 0
H57: 4. | I57: Due from Financial Institutions (Out Bahamas) | L57: =Form2!N38 -> 0 | M57: =SUM(M58:M60) -> 0 | N57: =SUM(N58:N60) -> 0 | O57: 0 | P57: 0 | Q57: 0 | R57: 0 | S57: 0 | T57: =SUM(T58:T60) -> 0
I58: B$ | L58: =Form2!K38 -> 0
I59: US$ | L59: =Form2!L38 -> 0
I60: Other | L60: =Form2!M38 -> 0
H61: 5. | I61: Loans and Advances | L61: =Form2!N50 -> 0 | M61: =SUM(M62:M64) -> 0 | N61: =SUM(N62:N64) -> 0 | O61: 0 | P61: 0 | Q61: 0 | R61: 0 | S61: 0 | T61: =SUM(T62:T64) -> 0
I62: B$ | L62: =Form2!K50 -> 0
I63: US$ | L63: =Form2!L50 -> 0
I64: Other | L64: =Form2!M50 -> 0
H65: 6. | I65: Government Securities | L65: =Form2!N11 -> 0 | M65: =SUM(M66:M68) -> 0 | N65: =SUM(N66:N68) -> 0 | O65: 0 | P65: 0 | Q65: 0 | R65: 0 | S65: 0 | T65: =SUM(T66:T68) -> 0
I66: B$ | L66: =Form2!K11 -> 0
I67: US$ | L67: =Form2!L11 -> 0
I68: Other | L68: =Form2!M11 -> 0
H69: 7. | I69: Investments | L69: =Form2!N75 -> 0 | M69: =SUM(M70:M72) -> 0 | N69: =SUM(N70:N72) -> 0 | O69: 0 | P69: 0 | Q69: 0 | R69: 0 | S69: 0 | T69: =SUM(T70:T72) -> 0
I70: B$ | L70: =Form2!K75 -> 0
I71: US$ | L71: =Form2!L75 -> 0
I72: Other | L72: =Form2!M75 -> 0
H73: 8. | I73: All Other Assets | L73: =Form2!N87+Form2!N86+Form2!N82+Form2!N81+Form2!N49 -> 0 | M73: =SUM(M74:M76) -> 0 | N73: =SUM(N74:N76) -> 0 | O73: 0 | P73: 0 | Q73: 0 | R73: 0 | S73: 0 | T73: =SUM(T74:T76) -> 0
I74: B$ | L74: =Form2!K87+Form2!K86+Form2!K82+Form2!K81+Form2!K49 -> 0
I75: US$ | L75: =Form2!L87+Form2!L86+Form2!L82+Form2!L81+Form2!L49 -> 0
I76: Other | L76: =Form2!M87+Form2!M86+Form2!M82+Form2!M81+Form2!M49 -> 0
H77: 9. | I77: Total Assets | L77: =SUM(L45,L49,L53,L57,L61,L65,L69,L73) -> 0 | M77: =SUM(M45,M49,M53,M57,M61,M65,M69,M73) -> 0 | N77: =SUM(N45,N49,N53,N57,N61,N65,N69,N73) -> 0 | O77: 0 | P77: 0 | Q77: 0 | R77: 0 | S77: 0 | T77: =SUM(T45,T49,T53,T57,T61,T65,T69,T73) -> 0
I80: Net Position | L80: =L77-L39 -> 0 | M80: =M77-M39 -> 0 | N80: =N77-N39 -> 0 | O80: 0 | P80: 0 | Q80: 0 | R80: 0 | S80: 0 | T80: =T77-T39 -> 0
I81: Cumulative Net Position | L81: =L80 -> 0 | M81: =L80+M80 -> 0 | N81: =L80+M80+N80 -> 0 | O81: =L80+M80+N80+O80 -> 0 | P81: =+L80+M80+N80+O80+P80 -> 0 | Q81: =L80+M80+N80+O80+P80+Q80 -> 0 | R81: =L80+M80+N80+O80+P80+Q80+R80 -> 0 | S81: =L80+M80+N80+O80+P80+Q80+R80+S80 -> 0 | T81: =L80+M80+N80+O80+P80+Q80+R80+S80+T80 -> 0

Sheet InvCurrType
D2: Investments by Currency Type
D3: ($000s)
C4: Part A.
B5: Investments | D5: Book Value | H5: Market Value | L5: Net Positions | P5: Average Maturity (In Years)
D6: B$ | E6: US$ | F6: € | G6: Oth$1 | H6: B$ | I6: US$ | J6: € | K6: Oth$1 | L6: B$ | M6: US$ | N6: € | O6: Oth$1
B7: 1. | C7: Government (Central Government and Other) | L7: =SUM(H7-D7) -> 0 | M7: 0 | N7: 0 | O7: 0
B8: 2. | C8: Public Sector Entities | L8: 0 | M8: 0 | N8: 0 | O8: 0
B9: 3. | C9: Multilateral Development Banks | L9: 0 | M9: 0 | N9: 0 | O9: 0
B10: 4. | C10: Corporate Bonds | L10: 0 | M10: 0 | N10: 0 | O10: 0
B11: 5. | C11: Collective Investment Schemes (e.g. Mutual Funds) | L11: 0 | M11: 0 | N11: 0 | O11: 0
B12: 6. | C12: Structured Products | D12: =SUM(D13:D15) -> 0 | E12: =SUM(E13:E15) -> 0 | F12: 0 | G12: 0 | H12: 0 | I12: 0 | J12: 0 | K12: 0 | L12: 0 | M12: 0 | N12: 0 | O12: 0
C13: a. Asset-Backed Securities | L13: 0 | M13: 0 | N13: 0 | O13: 0
C14: b. Mortgage-Backed Securities | L14: 0 | M14: 0 | N14: 0 | O14: 0
C15: c. Asset Swaps | L15: 0 | M15: 0 | N15: 0 | O15: 0
B16: 7. | C16: Money Market Instruments | D16: =SUM(D17:D20) -> 0 | E16: =SUM(E17:E20) -> 0 | F16: 0 | G16: 0 | H16: 0 | I16: 0 | J16: 0 | K16: 0 | L16: 0 | M16: 0 | N16: 0 | O16: 0
C17: a. Certificates of Deposit | L17: 0 | M17: 0 | N17: 0 | O17: 0
C18: b. Time Deposits | L18: 0 | M18: 0 | N18: 0 | O18: 0
C19: c. Repurchase Agreements | L19: 0 | M19: 0 | N19: 0 | O19: 0
C20: d. Resale Agreements | L20: 0 | M20: 0 | N20: 0 | O20: 0
B21: 8. | C21: Derivatives, Net | D21: =SUM(D22:D25) -> 0 | E21: =SUM(E22:E25) -> 0 | F21: 0 | G21: 0 | H21: 0 | I21: 0 | J21: 0 | K21: 0 | L21: 0 | M21: 0 | N21: 0 | O21: 0
C22: a. Swaps | L22: 0 | M22: 0 | N22: 0 | O22: 0
C23: b. Futures | L23: =SUM(H23-D23) -> 0 | M23: 0 | N23: 0 | O23: 0
C24: c. Options | L24: 0 | M24: 0 | N24: 0 | O24: 0
C25: d. Forward Contracts | L25: 0 | M25: 0 | N25: 0 | O25: 0
B26: 9. | C26: Quoted Equities, Net | L26: 0 | M26: 0 | N26: 0 | O26: 0
B27: 10. | C27: Unquoted Equities, Net | L27: 0 | M27: 0 | N27: 0 | O27: 0
B28: 11. | C28: Other | L28: 0 | M28: 0 | N28: 0 | O28: 0
B29: 12. | C29: Total Investments | D29: =SUM(D7:D12,D16,D21,D26:D28) -> 0 | E29: 0 | F29: 0 | G29: 0 | H29: 0 | I29: 0 | J29: 0 | K29: 0 | L29: =SUM(H29-D29) -> 0 | M29: =SUM(I29-E29) -> 0 | N29: =SUM(J29-F29) -> 0 | O29: =SUM(K29-G29) -> 0 | P29: =SUM(P7:P12,P16,P21,P26:P28) -> 0.00
C32: Part B.
B33: Foreign Investments | D33: Opening Position | E33: Change in Position | J33: Closing Position | K33: Income
E34: Transactions | H34: Other Changes
E35: Increases | F35: Decreases | G35: Net | H35: Exchange Rate | I35: Other
C36: Net Acquisition of Assets | D36: A | E36: B | F36: C | G36: D | H36: E | I36: F | J36: G | K36: H
B37: 1. | C37: Equity and Investment Fund Shares | G37: =+E37-F37 -> 0 | J37: =D37+G37+H37+I37 -> 0
B38: 2. | C38: Debt Instruments | D38: =SUM(D39:D40) -> 0 | E38: =SUM(E39:E40) -> 0 | F38: 0 | G38: =+E38-F38 -> 0 | H38: =SUM(H39:H40) -> 0 | I38: =SUM(I39:I40) -> 0 | J38: =D38+G38+H38+I38 -> 0
C39: a. Short-term | G39: 0 | J39: 0
C40: b. Long-term | G40: 0 | J40: 0
B41: 3. | C41: Derivatives, Net | D41: =SUM(D42:D45) -> 0 | E41: =SUM(E42:E45) -> 0 | F41: 0 | G41: 0 | H41: =SUM(H42:H45) -> 0 | I41: =SUM(I42:I45) -> 0 | J41: 0
C42: a. Swaps | G42: 0 | J42: 0
C43: b. Futures | G43: 0 | J43: 0
C44: c. Options | G44: 0 | J44: 0
C45: d. Forward Contracts | G45: 0 | J45: 0
C48: Net Incurrence of Liabilities
B49: 1. | C49: Equity and Investment Fund Shares | G49: 0 | J49: 0
B50: 2. | C50: Debt Instruments | D50: =SUM(D51:D52) -> 0 | E50: =SUM(E51:E52) -> 0 | F50: 0 | G50: 0 | H50: =SUM(H51:H52) -> 0 | I50: =SUM(I51:I52) -> 0 | J50: 0
C51: a. Short-term | G51: 0 | J51: 0
C52: b. Long-term | G52: 0 | J52: 0
B53: 3. | C53: Derivatives, Net | D53: =SUM(D54:D57) -> 0 | E53: =SUM(E54:E57) -> 0 | F53: 0 | G53: 0 | H53: =SUM(H54:H57) -> 0 | I53: =SUM(I54:I57) -> 0 | J53: 0
C54: a. Swaps | G54: 0 | J54: 0
C55: b. Futures | G55: 0 | J55: 0
C56: c. Options | G56: 0 | J56: 0
C57: d. Forward Contracts | G57: 0 | J57: 0
B71: 1 All currency should be converted to US$. Please also indicate in the box below currencies in the Oth$ category which were converted.
C73: Other Currency

Sheet Overall Checks
B2: CONSISTENCY CHECKS
B5: Total Assets = Total Liabilities | D5: =Form2!N92 - 'Form 1'!N72 -> 0
B7: Bahamian Dollar Assets - Bahamian Dollar Liabilities = B$ Position | D7: =Form2!K92 - 'Form 1'!K72 -> 0
B9: Bahamian Dollar Demand Deposits (Form 1) = Bahamian Dollar Demand Deposits (Form 3) | D9: ='Form 1'!K12 - Form3!F11 -> 0
B10: US Dollar Demand Deposits (Form 1) = US Dollar Demand Deposits (Form 3) | D10: ='Form 1'!L12 - Form3!G11 -> 0
B11: Other Currency Demand Deposits (Form 1) = Other Currency Demand Deposits (Form 3) | D11: ='Form 1'!M12 - Form3!H11 -> 0
B12: Bahamian Dollar Savings Deposits (Form 1) = Bahamian Dollar Savings Deposits (Form 3) | D12: ='Form 1'!K13 - Form3!F26 -> 0
B13: US Dollar Savings Deposits (Form 1) = US Dollar Savings Deposits (Form 3) | D13: ='Form 1'!L13 - Form3!G26 -> 0
B14: Other Currency Savings Deposits (Form 1) = Other Currency Savings Deposits (Form 3) | D14: ='Form 1'!M13 - Form3!H26 -> 0
B15: Bahamian Dollar Fixed Deposits (Form 1) = Bahamian Dollar Fixed Deposits (Form 3) | D15: ='Form 1'!K14 -Form3!F35 -> 0
B16: US Dollar Fixed Deposits (Form 1) = US Dollar Fixed Deposits (Form 3) | D16: ='Form 1'!L14 -Form3!G35 -> 0
B17: Other Currency Fixed Deposits (Form 1) = Other Currency Fixed Deposits (Form 3) | D17: ='Form 1'!M14 -Form3!H35 -> 0
B18: Bahamian Dollar Negotiable CDs (Form 1) = Bahamian Dollar Negotiable CDs (Form 3) | D18: ='Form 1'!K19 - Form3!F50 -> 0
B19: US Dollar Negotiable CDs (Form 1) = US Dollar Negotiable CDs (Form 3) | D19: ='Form 1'!L19 - Form3!G50 -> 0
B20: Other Currency Negotiable CDs (Form 1) = Other Currency Negotiable CDs (Form 3) | D20: ='Form 1'!M19 - Form3!H50 -> 0
B21: Total Deposits (B$) (Form 1) = Total Deposits (B$) (Form 3) | D21: ='Form 1'!K11 -Form3!F65 -> 0
B22: Total Deposits (US$) (Form 1) = Total Deposits (US$) (Form 3) | D22: ='Form 1'!L11 -Form3!G65 -> 0
B23: Total Deposits (OTH$) (Form 1) = Total Deposits (OTH$) (Form 3) | D23: ='Form 1'!M11 -Form3!H65 -> 0
B24: Total Deposits (Form 1) = Total Deposits (Form 3) | D24: ='Form 1'!N11 - Form3!I65 -> 0
B26: Other Liabilities: Other (Form 1:Item 8D) = Listing of Other Liabilities: Other (Form 2A) | D26: ='Form 1'!N57 - Form2A!G56 -> 0
B27: Other Liabilities (B$) (Form 1) = Other Liabilities (B$) (Form 2A) | D27: ='Form 1'!K57 - Form2A!D56 -> 0
B28: Other Liabilities (US$) (Form 1) = Other Liabilities (US$) (Form 2A) | D28: ='Form 1'!L57 - Form2A!E56 -> 0
B29: Other Liabilities (OTH$) (Form 1) = Other Liabilities (OTH$) (Form 2A) | D29: ='Form 1'!M57 - Form2A!F56 -> 0
B30: Other Assets: Other (Form 2:Item 11D) = Listing of Other Assets: Other (Form 2A) | D30: =Form2!N91 -Form2A!G30 -> 0
B31: Other Assets (B$) (Form 1) = Other Assets (B$) (Form 2A) | D31: =Form2!K91 -Form2A!D30 -> 0
B32: Other Assets (US$) (Form 1) = Other Assets (US$) (Form 2A) | D32: =Form2!L91 -Form2A!E30 -> 0
B33: Other Assets (OTH$) (Form 1) = Other Assets (OTH$) (Form 2A) | D33: =Form2!M91 -Form2A!F30 -> 0
B34: Total Resident F/C Deposits (Form 3) = Listing of Resident F/C Deposits (Form 3C) | D34: =(Form3!G67 +Form3!H67) -F3C!F2744 -> 0
B36: Government Demand Deposits B$ (Form 3) = Disaggregated Government Memo Items (Form 3) | D36: =Form3!F13 - (Form3!F22 + Form3!F23 + Form3!F24 + Form3!F25) -> 0
B37: Government Fixed Deposits B$ (Form 3) = Disaggregated Government Memo Items (Form 3) | D37: =Form3!F37 +Form3!F52 - (Form3!F46 + Form3!F47 + Form3!F48 + Form3!F49 +Form3!F61 + Form3!F62 + Form3!F62 + Form3!F64) -> 0
B39: B$ Government Loans (Form 2) = B$ Government Loans (Form 4) | D39: =Form2!K57 -AnalyLnsOvr!AD61 -> 0
B40: F/C Government Loans (Form 2) = F/C Government Loans (Form 4) | D40: =(Form2!L57 + Form2!M57 ) - AnalyLnsOvr!AE61 -> 0
B41: B$ Public Corporation Loans (Form 2) = B$ Public Corporations (Form 4) | D41: =Form2!K58-AnalyLnsOvr!AD55 -> 0
B42: F/C Public Corporation Loans (Form 2) = F/C Public Corporations (Form 4) | D42: =(Form2!L58 + Form2!M58 ) - AnalyLnsOvr!AE55 -> 0
B43: B$ Public Financial Institution Loans (Form 2) = B$ Public Financial Institution Loans (Form 4) | D43: =Form2!K59-AnalyLnsOvr!AD62 -> 0
B44: F/C Public Financial Institution Loans (Form 2) = F/C Public Financial Institution Loans (Form 4) | D44: =(Form2!L59 + Form2!M59 ) - AnalyLnsOvr!AE62 -> 0
B45: B$ Non-resident Loans (Form 2) = B$ Non-resident Loans (Form 4) | D45: =Form2!K65 -AnalyLnsOvr!AD74 -> 0
B46: F/C Non-resident Loans (Form 2) = F/C Non-resident Loans (Form 4) | D46: =(Form2!L65 + Form2!M65) - AnalyLnsOvr!AE74 -> 0
B47: B$ Total Loans (Form 2) = B$ Total Loans (Form 4) | D47: =Form2!K50 - (AnalyLnsOvr!AD73 + AnalyLnsOvr!AD74) -> 0
B48: F/C Total Loans (Form 2) = F/C Total Loans (Form 4) | D48: =(Form2!L50 + Form2!M50 )- (AnalyLnsOvr!AE73 + AnalyLnsOvr!AE74) -> 0
B49: Total Mortgages (Form 2) = Resid. Mortgage + Other Const'n: Priv Res and Comm & Ind. (Form 4) | D49: =Form2!N60 - (AnalyLnsOvr!AD58 + AnalyLnsOvr!AE58 + AnalyLnsOvr!AD67 + AnalyLnsOvr!AE67) -> 0
B50: Total B$ Mortgages (Form 2) = Resid. Mortgage + Other Con: Priv Res and Comm & Ind. (Form 4) | D50: =Form2!K60 - (AnalyLnsOvr!AD58 + AnalyLnsOvr!AD67) -> 0
B51: Total F/C Mortgages (Form 2) = Resid. Mortgage + Other Con: Priv Res and Comm & Ind. (Form 4) | D51: =(Form2!L60 + Form2!M60) - (AnalyLnsOvr!AE58 + AnalyLnsOvr!AE67) -> 0
B52: B$ Residential Mortgages (Form 2) = B$ Residential Mortgages (Form 4) | D52: =Form2!K61 -AnalyLnsOvr!AD67 -> 0
B53: F/C Residential Mortgages (Form 2) = F/C Residential Mortgages (Form 4) | D53: =(Form2!L61 + Form2!M61) - (AnalyLnsOvr!AE67) -> 0
B54: B$ Commercial Mortgages (Form 2) = B$ Commercial Mortgages (Form 4) | D54: =Form2!K63 -AnalyLnsOvr!AD58 -> 0
B55: F/C Commercial Mortgages (Form 2) = F/C Commercial Mortgages (Form 4) | D55: =(Form2!L63 + Form2!M63)- (AnalyLnsOvr!AE58) -> 0
B56: B$ Equity Loans (Form 2) = B$ Equity Loans (Form 4) | D56: =Form2!K62 - AnalyLnsOvr!AD68 -> 0
B57: F/C Equity Loans (Form 2) = F/C Equity Loans (Form 4) | D57: =(Form2!L62 + Form2!M62) - AnalyLnsOvr!AE68 -> 0
B59: Land Purchases (Form 4) = Land Purchases (Form 5) | D59: =AnalyLnsOvr!AA70 - (Form5!G18 + Form5!G37) -> 0
B60: Home Improvement (Form 4) = Home Improvement (Form 5) | D60: =AnalyLnsOvr!AA69 - (Form5!G17 + Form5!G36) -> 0
B61: Total Personal Loans (Form 4) = Total Consumer Credit (Form 5) | D61: =((AnalyLnsOvr!AA65 - AnalyLnsOvr!AA67) - (Form5!G22 +Form5!G41))+ (Form5!G20 + Form5!G39) -> 0
B62: Total Personal Loans Other (Form 4) = Total Consumer Credit Other (Form 5) | D62: =AnalyLnsOvr!AA71 - ((Form5!G22 -Form5!G17 - Form5!G18 - Form5!G20) + (Form5!G41 - Form5!G36 - Form5!G37 - Form5!G39)) -> 0
B64: B$ Demand Due to Com Banks (Form 1) = B$ Demand Due to Com Banks (Form 10) | D64: ='Form 1'!K25 -Form10!C22 -> 0
B65: B$ Fixed Due to Com Banks (Form 1) = B$ Fixed Due to Com Banks (Form 10) | D65: ='Form 1'!K26 -Form10!D22 -> 0
B66: B$ Borrowings Due to Com Banks (Form 1) = B$ Borrowings Due to Com Banks (Form 10) | D66: ='Form 1'!K27 -Form10!E22 -> 0
B67: B$ Demand Due from Com Banks (Form 2) = B$ Demand Due from Com Banks (Form 10) | D67: =Form2!K24 - Form10!F22 -> 0
B68: B$ Fixed Due from Com Banks (Form 2) = B$ Fixed Due from Com Banks (Form 10) | D68: =Form2!K25 - Form10!G22 -> 0
B69: B$ Loans Due from Com Banks (Form 2) = B$ Loans Due from Com Banks (Form 10) | D69: =Form2!K26 - Form10!H22 -> 0
B70: B$ Neg. Paper Due from Com Banks (Form 2) = B$ Neg. Paper Due from Com Banks (Form 10) | D70: =Form2!K27 - Form10!I22 -> 0
B71: F/C Demand Due to Com Banks (Form 1) = F/C Demand Due to Com Banks (Form 10) | D71: =('Form 1'!L25 + 'Form 1'!M25) - Form10!C57 -> 0
B72: F/C Fixed Due to Com Banks (Form 1) = F/C Fixed Due to Com Banks (Form 10) | D72: =('Form 1'!L26 + 'Form 1'!M26) - Form10!D57 -> 0
B73: F/C Borrowings Due to Com Banks (Form 1) = F/C Borrowings Due to Com Banks (Form 10) | D73: =('Form 1'!L27 + 'Form 1'!M27) - Form10!E57 -> 0
B74: F/C Demand Due from Com Banks (Form 2) = F/C Demand Due from Com Banks (Form 10) | D74: =Form2!L24 +Form2!M24 -Form10!F57 -> 0
B75: F/C Fixed Due from Com Banks (Form 2) = F/C Fixed Due from Com Banks (Form 10) | D75: =Form2!L25 +Form2!M25 -Form10!G57 -> 0
B76: F/C Loans Due from Com Banks (Form 2) = F/C Loans Due from Com Banks (Form 10) | D76: =Form2!L26 +Form2!M26 -Form10!H57 -> 0
B77: F/C Neg. Paper Due from Com Banks (Form 2) = F/C Neg. Paper Due from Com Banks (Form 10) | D77: =Form2!L27 +Form2!M27 -Form10!I57 -> 0
B78: B$ Demand Due to OLFI (Form 1) = B$ Demand Due to OLFI (Form 10) | D78: ='Form 1'!K29 - Form10!C39 -> 0
B79: B$ Fixed Due to OLFI (Form 1) = B$ Fixed Due to OLFI (Form 10) | D79: ='Form 1'!K30 - Form10!D39 -> 0
B80: B$ Borrowings Due to OLFI (Form 1) = B$ Borrowings Due to OLFI (Form 10) | D80: ='Form 1'!K31 - Form10!E39 -> 0
B81: B$ Demand Due from OLFI (Form 2) = B$ Demand Due from OLFI (Form 10) | D81: =Form2!K29 -Form10!F39 -> 0
B82: B$ Fixed Due from OLFI (Form 2) = B$ Fixed Due from OLFI (Form 10) | D82: =Form2!K30 -Form10!G39 -> 0
B83: B$ Loans Due from OLFI (Form 2) = B$ Loans Due from OLFI (Form 10) | D83: =Form2!K31 -Form10!H39 -> 0
B84: B$ Neg. Paper Due from OLFI (Form 2) = B$ Neg. Paper Due from OLFI (Form 10) | D84: =Form2!K32 -Form10!I39 -> 0
B85: F/C Demand Due to OLFI (Form 1) =F/C Demand Due to OLFI (Form 10) | D85: ='Form 1'!L29 +'Form 1'!M29 -Form10!C74 -> 0
B86: F/C Fixed Due to OLFI (Form 1) =F/C Fixed Due to OLFI (Form 10) | D86: ='Form 1'!L30 +'Form 1'!M30 -Form10!D74 -> 0
B87: F/C Borrowings Due to OLFI (Form 1) = F/C Borrowings Due to OLFI (Form 10) | D87: ='Form 1'!L31 +'Form 1'!M31 -Form10!E74 -> 0
B88: F/C Demand Due from OLFI (Form 2) = F/C Demand Due from OLFI (Form 10) | D88: =Form2!L29 + Form2!M29 - Form10!F74 -> 0
B89: F/C Fixed Due from OLFI (Form 2) = F/C Fixed Due from OLFI (Form 10) | D89: =Form2!L30 + Form2!M30 - Form10!G74 -> 0
B90: F/C Loans Due from OLFI (Form 2) = F/C Loans Due from OLFI (Form 10) | D90: =Form2!L31 + Form2!M31 - Form10!H74 -> 0
B91: F/C Neg. Paper Due from OLFI (Form 2) = F/C Neg. Paper Due from OLFI (Form 10) | D91: =Form2!L32 + Form2!M32 - Form10!I74 -> 0
B93: Quarterly Checks (will be zero only when quarterly data is provided)
B94: B$ Resident Demand Deposits (Form 3) = B$ Resident Demand Deposits (Form 3B) | D94: =Form3!F12 -Form3B!G21 -> 0
B95: B$ Resident Saving Deposits (Form 3) = B$ Resident Saving Deposits (Form 3B) | D95: =Form3!F27 -Form3B!G36 -> 0
B96: B$ Resident Fixed Deposits (Form 3) = B$ Resident Fixed Deposits (Form 3B) | D96: =Form3!F36 -Form3B!G51 -> 0
B97: B$ Resident Neg. CDs (Form 3) = B$ Resident Neg. CDs (Form 3B) | D97: =Form3!F51 - Form3B!G66 -> 0
B98: Total Resident B$ Deposits (Form 3) = Total Resident B$ Deposits (Form 3B) | D98: =Form3!F67 - Form3B!G82 -> 0
B99: Total Non-Resident B$ Deposits (Form 3) = Total Non-Resident B$ Deposits (Form 3B) | D99: =Form3!F75 - Form3B!J82 -> 0
B101: Total Number of B$ Resident Deposits up to $10,000 (Form 3B) = Total Number of B$ Resident Deposits up to $10,000 (Form 3D) | D101: =SUM((Form3B!F71+Form3B!F72)-SUM(Form3D!F22)) -> 0
B102: Total Value of B$ Resident Deposits up to $10,000 (Form 3B) = Total Value of B$ Resident Deposits up to $10,000 (Form 3D) | D102: =SUM((Form3B!G71+Form3B!G72)-SUM(Form3D!G22)) -> 0
B103: Total Accrued Interest of B$ Resident Deposits up to $10,000 (Form 3B) = Total Accrued Interest of B$ Resident Deposits up to $10,000 (Form 3D) | D103: =SUM((Form3B!H71+Form3B!H72)-SUM(Form3D!H22)) -> 0
B104: Total Number of B$ Non-Resident Deposits up to $10,000 (Form 3B) = Total Number of B$ Non-Resident Deposits up to $10,000 (Form 3D) | D104: =SUM((Form3B!I71+Form3B!I72)-SUM(Form3D!I22)) -> 0
B105: Total Value of B$ Non-Resident Deposits up to $10,000 (Form 3B) = Total Value of B$ Non-Resident Deposits up to $10,000 (Form 3D) | D105: =SUM((Form3B!J71+Form3B!J72)-SUM(Form3D!J22)) -> 0
B106: Total Accrued Interest of B$ Non-Resident Deposits up to $10,000 (Form 3B) = Total Accrued Interest of B$ Non-Resident Deposits up to $10,000 (Form 3D) | D106: =SUM((Form3B!K71+Form3B!K72)-SUM(Form3D!K22)) -> 0
B108: Wire Transfers B$ (Form 2) = Total Wire Transfers (Form 3D) | D108: =SUM((Form2!K96)-SUM(Form3D!G33+Form3D!J33)) -> 0
B109: Stored Value Cards B$ (Form 2) = Total Stored Value Cards (Form 3D) | D109: =SUM((Form2!K99)-SUM(Form3D!G48+Form3D!J48)) -> 0
B111: Mortgages - B$ (Form 2) = Total Mortgages - B$ (Form 6) | D111: =Form2!K60 -(MortRep!G14 +MortRep!G58) -> 0
B112: Residential Mortgages - B$ (Form 4) = Residential Mortgages - B$ (Form 6) | D112: =AnalyLnsOvr!AD67 -MortRep!G14 -> 0
B113: Residential Mortgages plus Commercial Mortages B$ (Form 6) = Res. Mortgages B$ (Form 4) plus Commercial Mortgages B$ (Form 4) | D113: =SUM(MortRep!G14+MortRep!G58)-SUM(AnalyLnsOvr!AD58+AnalyLnsOvr!AD67) -> 0
B114: Residential Mortgages (B$) (Form 2) = Residential Mortgages (B$) (Form 6) | D114: =Form2!K61 -MortRep!G14 -> 0
B115: Commerical Mortgages (B$) (Form 2) = Commercial Mortgages (B$) (Form 6) | D115: =Form2!K63 -MortRep!G58 -> 0
B116: Commerical Mortgages (B$) (Form 6) = Other Con: Priv Res plus Comm & Ind. (Form4) | D116: =MortRep!G58 -AnalyLnsOvr!AD58 -> 0
B118: Residential Mortgages: Loan/Market Value Ratio - New & Existing Single Dwelling | D118: =IF(((MortRep!G18>0)+(MortRep!G20>0)+(MortRep!G35>0)+(MortRep!G37>0)), MortRep!G45>0,0) -> 0
B119: Residential Mortgages: Loan/Market Value Ratio - New & Existing Duplex & Row | D119: =IF(((MortRep!G19>0)+(MortRep!G21>0)+(MortRep!G36>0)+(MortRep!G38>0)), MortRep!G46>0,0) -> 0
B120: Residential Mortgages: Average Interest Rates - New & Existing Single Dwelling | D120: =IF(((MortRep!G18>0)+(MortRep!G20>0)+(MortRep!G35>0)+(MortRep!G37>0)), MortRep!G49>0,0) -> 0
B121: Residential Mortgages: Average Interest Rates - New & Existing Duplex & Row | D121: =IF(((MortRep!G19>0)+(MortRep!G21>0)+(MortRep!G36>0)+(MortRep!G38>0)), MortRep!G50>0,0) -> 0
B122: Commercial Mortgages: Loan/Market Value Ratio - New Construction | D122: =IF(((MortRep!G62>0)+(MortRep!G75>0)), MortRep!G81>0,0) -> 0
B123: Commercial Mortgages: Loan/Market Value Ratio - Existing Structure | D123: =IF(((MortRep!G63>0)+(MortRep!G76>0)), MortRep!G82>0,0) -> 0
B124: Commercial Mortgages: Average Interest Rates - New Construction | D124: =IF(((MortRep!G62>0)+(MortRep!G75>0)), MortRep!G85>0,0) -> 0
B125: Commercial Mortgages: Average Interest Rates - Existing Structure | D125: =IF(((MortRep!G63>0)+(MortRep!G76>0)), MortRep!G86>0,0) -> 0
B127: Credit Cards (Form 5) = Value of Credit Cards Outstanding (Form 5B) | D127: =SUM(Form5!G20 +Form5!G39) - SUM(CredCards!F29 +CredCards!G29 + CredCards!H29) -> 0
B129: BSD Forms Cross Checks
B130: Related Party Deposits (Form 1) <= Deposit Liabilities (Form 1) | D130: =IF('Form 1'!$N$74<= 'Form 1'!$N$11, "OK", "ERROR") -> OK
B131: Related Party Loans & Advances (Form 2) <= Total Loans & Advances (Form 2) | D131: =IF(Form2!$N$95<=Form2!$N$50,"OK","ERROR") -> OK
B133: Lombard Loans (Form 2) <= Total Loans & Advances (Form 2) | D133: =IF(Form2!$N$100<=Form2!$N$50,"OK","ERROR") -> OK
B135: Audited Leverage Ratio Exposure (Leverage Ratio) = Unaudited Leverage Exposure (Leverage Ratio) | D135: =SUM('New Leverage Ratio'!F13:G13)-SUM('New Leverage Ratio'!F34:G34) -> 0
B137: Total Liablities (Form 1) = Total Liabilities (Maturity Analysis) | D137: ='Form 1'!N72 - SUM(MaturAnalSum!G39, MaturAnalSum!H39,MaturAnalSum!I39, MaturAnalSum!J39, MaturAnalSum!K39, MaturAnalSum!L39) -> 0
B138: Total Assets (Form 2) = Total Assets (Maturity Analysis) | D138: =Form2!N92 -SUM(MaturAnalSum!G77, MaturAnalSum!H77, MaturAnalSum!I77, MaturAnalSum!J77, MaturAnalSum!K77, MaturAnalSum!L77) -> 0
B140: Total Liablities (Form 1) = Total Liabilities (Interest Rate Sensitivity) | D140: ='Form 1'!N72 - SUM(IntRateSensit!M39,IntRateSensit!N39, IntRateSensit!O39, IntRateSensit!P39, IntRateSensit!Q39, IntRateSensit!R39, IntRateSensit!S39, IntRateSensit!T39) -> 0
B141: Total Assets (Form 2) = Total Assets (Interest Rate Sensitivity) | D141: =Form2!N92 - SUM(IntRateSensit!M77, IntRateSensit!N77, IntRateSensit!O77, IntRateSensit!P77, IntRateSensit!Q77, IntRateSensit!R77, IntRateSensit!S77, IntRateSensit!T77) -> 0

Sheet Trigger
H4: Please report in thousands ($000s)
B5: A | C5: Total Trading Book Values
B6: B | C6: Total On and Off-Balance Sheet Items
B7: C | C7: Trading Book Ratio A/B (%) | H7: =IF(ISERROR(H5/H6)," ",H5/H6) -> 
C13: Central Bank Licensees Apply I
B15: I | C15: =IF(OR(H5>=100000,H7>=5%),"You need to continue on, to fill out the remaining market risk sheets.","Thank you for filling out this form, there is no need to fill out the remaining market risk sheets.") -> You need to continue on, to fill out the remaining market risk sheets.
C18: Joint Licensees Apply H
B20: H | C20: =IF(H5 =" "," ",IF(H5>=25000,"If you are a joint licensee you need to continue on, to fill out the remaining market risk sheets.","Thank you for filling out this form, there is no need to fill out the remaining market risk sheets.")) -> Thank you for filling out this form, there is no need to fill out the remaining market risk sheets.

Sheet IRR-General - US
A2: General Interest Rate Risk
S5: ($000s)
D6: Zone 1 | H6: Zone 2 | K6: Zone 3
C7: Time Band: Coupon <3% | D7: 0 - 1 Mth | E7: 1 - 3 Mths | F7: 3 - 6 Mths | G7: 6 - 12 Mths | H7: 1 - 1.9 Yrs | I7: 1.9 - 2.8 Yrs | J7: 2.8 - 3.6 Yrs | K7: 3.6 - 4.3 Yrs | L7: 4.3 - 5.7 Yrs | M7: 5.7 - 7.3 Yrs | N7: 7.3 - 9.3 Yrs | O7: 9.3 - 10.6 Yrs | P7: 10.6-12 Yrs | Q7: 12-20 Yrs | R7: Ovr 20 Yrs | S7: Capital Charges
C8: Coupon =>3% | D8: 0 - 1 Mth | E8: 1 - 3 Mths | F8: 3 - 6 Mths | G8: 6 - 12 Mths | H8: 1 - 2 Yrs | I8: 2 - 3 Yrs | J8: 3 - 4 Yrs | K8: 4 - 5 Yrs | L8: 5 - 7 Yrs | M8: 7 - 10 Yrs | N8: 10 - 15 Yrs | O8: 15 - 20 Yrs | P8: Over 20 Yrs
C9: Position:
B10: 1.1 | C10: Total Long
B11: 1.2 | C11: Total Short
B12: 1A | C12: Weight (%) | D12: 0.000 | E12: 0.200 | F12: 0.400 | G12: 0.700 | H12: 1.250 | I12: 1.750 | J12: 2.250 | K12: 2.750 | L12: 3.250 | M12: 3.750 | N12: 4.500 | O12: 5.250 | P12: 6.000 | Q12: 8.000 | R12: 12.500
B13: 1.3 | C13: Weighted Long | D13: =(D12/100) *D10 -> 0.000 | E13: =(E12/100) *E10 -> 0.000 | F13: =(F12/100) *F10 -> 0.000 | G13: 0.000 | H13: 0.000 | I13: 0.000 | J13: 0.000 | K13: 0.000 | L13: 0.000 | M13: 0.000 | N13: 0.000 | O13: 0.000 | P13: 0.000 | Q13: 0.000 | R13: 0.000
B14: 1.4 | C14: Weighted Short | D14: =(D12/100)*D11 -> 0.000 | E14: =(E12/100)*E11 -> 0.000 | F14: =(F12/100)*F11 -> 0.000 | G14: 0.000 | H14: 0.000 | I14: 0.000 | J14: 0.000 | K14: 0.000 | L14: 0.000 | M14: 0.000 | N14: 0.000 | O14: 0.000 | P14: 0.000 | Q14: 0.000 | R14: 0.000
B15: 1.5 | C15: Matched | D15: =IF(ABS(D13)>ABS(D14),ABS(D14),ABS(D13)) -> 0.000 | E15: =IF(ABS(E13)>ABS(E14),ABS(E14),ABS(E13)) -> 0.000 | F15: 0.000 | G15: 0.000 | H15: 0.000 | I15: 0.000 | J15: 0.000 | K15: 0.000 | L15: 0.000 | M15: 0.000 | N15: 0.000 | O15: 0.000 | P15: 0.000 | Q15: 0.000 | R15: 0.000
B16: 1.6 | C16: Unmatched | D16: =IF(ABS(D13)>ABS(D14),D13+D14,D14+D13) -> 0.000 | E16: =IF(ABS(E13)>ABS(E14),E13+E14,E14+E13) -> 0.000 | F16: =IF(ABS(F13)>ABS(F14),F13+F14,F14+F13) -> 0.000 | G16: 0.000 | H16: 0.000 | I16: 0.000 | J16: 0.000 | K16: 0.000 | L16: 0.000 | M16: 0.000 | N16: 0.000 | O16: 0.000 | P16: 0.000 | Q16: 0.000 | R16: 0.000
B17: 1C | C17: Capital Required | D17: 10.000 | E17: 10.000 | F17: 10.000 | G17: 10.000 | H17: 10.000 | I17: 10.000 | J17: 10.000 | K17: 10.000 | L17: 10.000 | M17: 10.000 | N17: 10.000 | O17: 10.000 | P17: 10.000 | Q17: 10.000 | R17: 10.000
B18: 1.7 | C18: Capital Charge 1 | D18: =(D17/100)*D15 -> 0.000 | E18: =(E17/100)*E15 -> 0.000 | F18: 0.000 | G18: 0.000 | H18: 0.000 | I18: 0.000 | J18: 0.000 | K18: 0.000 | L18: 0.000 | M18: 0.000 | N18: 0.000 | O18: 0.000 | P18: 0.000 | Q18: 0.000 | R18: 0.000 | S18: =SUM(D18:R18) -> 0.000
B19: 2.1 | C19: Residual Matched | G19: =IF(ABS(SUMIF(D16:G16,">0"))>ABS(SUMIF(D16:G16,"<0")),ABS(SUMIF(D16:G16,"<0")),ABS(SUMIF(D16:G16,">0"))) -> 0.000 | J19: =IF(ABS(SUMIF(H16:J16,">0"))>ABS(SUMIF(H16:J16,">0")),ABS(SUMIF(H16:J16,"<0")),ABS(SUMIF(H16:J16,">0"))) -> 0.000 | R19: =IF(ABS(SUMIF(K16:R16,">0"))<ABS(SUMIF(K16:R16,"<0")),ABS(SUMIF(K16:R16,">0")),ABS(SUMIF(K16:R16,"<0"))) -> 0.000
B20: 2.2 | C20: Residual UnMatched | G20: =IF(ABS(SUMIF(D16:G16,">0"))>ABS(SUMIF(D16:G16,"<0")),ABS(SUMIF(D16:G16,">0"))+ABS(SUMIF(D16:G16,"<0")),ABS(SUMIF(D16:G16,"<0"))+ABS(SUMIF(D16:G16,">0"))) -> 0.000 | J20: =IF(ABS(SUMIF(H16:J16,">0"))>ABS(SUMIF(H16:J16,">0")),SUMIF(H16:J16,">0")+SUMIF(H16:J16,"<0"),SUMIF(H16:J16,"<0")+SUMIF(H16:J16,">0")) -> 0.000 | R20: =IF(ABS(SUMIF(K16:R16,">0"))<ABS(SUMIF(K16:R16,"<0")),SUMIF(K16:R16,"<0")+SUMIF(K16:R16,">0"),SUMIF(K16:R16,">0")+SUMIF(K16:R16,"<0")) -> 0.000
B21: 2C | C21: Capital Required | G21: 40.000 | J21: 30.000 | R21: 30.000
B22: 2.3 | C22: Capital Charge 2 | G22: =(G21/100)*G19 -> 0.000 | J22: =(J21/100)*J19 -> 0.000 | R22: =(R21/100)*R19 -> 0.000 | S22: =SUM(D22:R22) -> 0.000
B23: 3.1 | C23: Residual Matched | J23: =IF(ABS(G20)<ABS(J20),ABS(G20),ABS(J20)) -> 0.000
B24: 3.2 | C24: Residual Unmatched | J24: =IF(ABS(G20)>ABS(J20),(G20)+(J20),(J20)+(G20)) -> 0.000
B25: 3C | C25: Capital Required | J25: 40.000
B26: 3.3 | C26: Capital Charge 3 | J26: =(J25/100)*J23 -> 0.000 | S26: =SUM(D26:R26) -> 0.000
B27: 4.1 | C27: Residual Matched | R27: =IF(ABS(R20)<ABS(J24),ABS(R20),ABS(J24)) -> 0.000
B28: 4.2 | C28: Residual Unmatched | R28: =IF(ABS(R20)>ABS(J24),(R20)+(J24),(J24)+(R20)) -> 0.000
B29: 4C | C29: Capital Required | R29: 30.000
B30: 4.3 | C30: Capital Charge 4 | R30: =(R29/100)*R27 -> 0.000 | S30: =R30 -> 0.000
B31: 5.1 | C31: Overall Net Open / Capital Charge 5 (100%) | S31: =R28 -> 0.000
B32: 6.0 | C32: Total Capital Charge | S32: =SUM(S18 + S22 + S26+S30 + S31) -> 0.000
B33: 7.0 | C33: Interest Rate Risk Equivalent Assets (Total Capital Charge x Reciprocal CAR) | S33: =S32*12.5 -> 0.000
B35: Notes: | C35: Separate worksheets to be done for each currency in which there are significant interest rate risk exposures.
C36: 1. For each source of Interest Rate Risk exposure, insert long or short position in the appropriate Time Band according to residual maturity.
C37: 2. Multiply individual positions by the weight assigned to each time Band (to reflect price sensitivity to assumed changes in interest rates).
C38: 3. Determine matched (smaller of the weighted long or short position) and unmatched positions in each time band.
C39: 4. Calculate 'Capital Charge 1': 10% of the matched position in each Time Band. Then determine matched and unmatched positions from the residual balances in each Time Zone.
C40: 5. Calculate 'Capital Charge 2': 40% of matched position in Zone 1 plus 30% matched position in Zone 2 plus 30% matched position in Zone 3. Determine matched positions Zones 1 vs. Zone 2.
C41: 6. Calculate 'Capital charge 3': 40% matched position in Zones 1 & 2. Determine matched position Zones 1 and 2 vs. Zone 3.
C42: 7. Calculate 'Capital Charge 4': 40% of matched position in Zones 1 and 2 vs. Zone 3.
C43: 8. Calculate 'Capital Charge 5': 100% of the remaining open (unmatched) position.
C44: 9. Sum all calculations (Rows 1.7 + 2.3+ 3.3 + 4.3 + 5.1) to determine the total capital charge.

Sheet IRR-General - Great Britain
A2: General Interest Rate Risk
S5: ($000s)
D6: Zone 1 | H6: Zone 2 | K6: Zone 3
C7: Time Band: Coupon <3% | D7: 0 - 1 Mth | E7: 1 - 3 Mths | F7: 3 - 6 Mths | G7: 6 - 12 Mths | H7: 1 - 1.9 Yrs | I7: 1.9 - 2.8 Yrs | J7: 2.8 - 3.6 Yrs | K7: 3.6 - 4.3 Yrs | L7: 4.3 - 5.7 Yrs | M7: 5.7 - 7.3 Yrs | N7: 7.3 - 9.3 Yrs | O7: 9.3 - 10.6 Yrs | P7: 10.6-12 Yrs | Q7: 12-20 Yrs | R7: Ovr 20 Yrs | S7: Capital Charges
C8: Coupon =>3% | D8: 0 - 1 Mth | E8: 1 - 3 Mths | F8: 3 - 6 Mths | G8: 6 - 12 Mths | H8: 1 - 2 Yrs | I8: 2 - 3 Yrs | J8: 3 - 4 Yrs | K8: 4 - 5 Yrs | L8: 5 - 7 Yrs | M8: 7 - 10 Yrs | N8: 10 - 15 Yrs | O8: 15 - 20 Yrs | P8: Over 20 Yrs
C9: Position:
B10: 1.1 | C10: Total Long
B11: 1.2 | C11: Total Short
B12: 1A | C12: Weight (%) | D12: 0.000 | E12: 0.200 | F12: 0.400 | G12: 0.700 | H12: 1.250 | I12: 1.750 | J12: 2.250 | K12: 2.750 | L12: 3.250 | M12: 3.750 | N12: 4.500 | O12: 5.250 | P12: 6.000 | Q12: 8.000 | R12: 12.500
B13: 1.3 | C13: Weighted Long | D13: =(D12/100) *D10 -> 0.000 | E13: =(E12/100) *E10 -> 0.000 | F13: =(F12/100) *F10 -> 0.000 | G13: 0.000 | H13: 0.000 | I13: 0.000 | J13: 0.000 | K13: 0.000 | L13: 0.000 | M13: 0.000 | N13: 0.000 | O13: 0.000 | P13: 0.000 | Q13: 0.000 | R13: 0.000
B14: 1.4 | C14: Weighted Short | D14: =(D12/100)*D11 -> 0.000 | E14: =(E12/100)*E11 -> 0.000 | F14: =(F12/100)*F11 -> 0.000 | G14: 0.000 | H14: 0.000 | I14: 0.000 | J14: 0.000 | K14: 0.000 | L14: 0.000 | M14: 0.000 | N14: 0.000 | O14: 0.000 | P14: 0.000 | Q14: 0.000 | R14: 0.000
B15: 1.5 | C15: Matched | D15: =IF(ABS(D13)>ABS(D14),ABS(D14),ABS(D13)) -> 0.000 | E15: =IF(ABS(E13)>ABS(E14),ABS(E14),ABS(E13)) -> 0.000 | F15: 0.000 | G15: 0.000 | H15: 0.000 | I15: 0.000 | J15: 0.000 | K15: 0.000 | L15: 0.000 | M15: 0.000 | N15: 0.000 | O15: 0.000 | P15: 0.000 | Q15: 0.000 | R15: 0.000
B16: 1.6 | C16: Unmatched | D16: =IF(ABS(D13)>ABS(D14),D13+D14,D14+D13) -> 0.000 | E16: =IF(ABS(E13)>ABS(E14),E13+E14,E14+E13) -> 0.000 | F16: =IF(ABS(F13)>ABS(F14),F13+F14,F14+F13) -> 0.000 | G16: 0.000 | H16: 0.000 | I16: 0.000 | J16: 0.000 | K16: 0.000 | L16: 0.000 | M16: 0.000 | N16: 0.000 | O16: 0.000 | P16: 0.000 | Q16: 0.000 | R16: 0.000
B17: 1C | C17: Capital Required | D17: 10.000 | E17: 10.000 | F17: 10.000 | G17: 10.000 | H17: 90.000 | I17: 10.000 | J17: 10.000 | K17: 100.000 | L17: 10.000 | M17: 10.000 | N17: 10.000 | O17: 10.000 | P17: 25.000 | Q17: 10.000 | R17: 10.000
B18: 1.7 | C18: Capital Charge 1 | D18: =(D17/100)*D15 -> 0.000 | E18: =(E17/100)*E15 -> 0.000 | F18: 0.000 | G18: 0.000 | H18: 0.000 | I18: 0.000 | J18: 0.000 | K18: 0.000 | L18: 0.000 | M18: 0.000 | N18: 0.000 | O18: 0.000 | P18: 0.000 | Q18: 0.000 | R18: 0.000 | S18: =SUM(D18:R18) -> 0.000
B19: 2.1 | C19: Residual Matched | G19: =IF(ABS(SUMIF(D16:G16,">0"))>ABS(SUMIF(D16:G16,"<0")),ABS(SUMIF(D16:G16,"<0")),ABS(SUMIF(D16:G16,">0"))) -> 0.000 | J19: =IF(ABS(SUMIF(H16:J16,">0"))>ABS(SUMIF(H16:J16,">0")),ABS(SUMIF(H16:J16,"<0")),ABS(SUMIF(H16:J16,">0"))) -> 0.000 | R19: =IF(ABS(SUMIF(K16:R16,">0"))<ABS(SUMIF(K16:R16,"<0")),ABS(SUMIF(K16:R16,">0")),ABS(SUMIF(K16:R16,"<0"))) -> 0.000
B20: 2.2 | C20: Residual UnMatched | G20: =IF(ABS(SUMIF(D16:G16,">0"))>ABS(SUMIF(D16:G16,"<0")),ABS(SUMIF(D16:G16,">0"))+ABS(SUMIF(D16:G16,"<0")),ABS(SUMIF(D16:G16,"<0"))+ABS(SUMIF(D16:G16,">0"))) -> 0.000 | J20: =IF(ABS(SUMIF(H16:J16,">0"))>ABS(SUMIF(H16:J16,">0")),SUMIF(H16:J16,">0")+SUMIF(H16:J16,"<0"),SUMIF(H16:J16,"<0")+SUMIF(H16:J16,">0")) -> 0.000 | R20: =IF(ABS(SUMIF(K16:R16,">0"))<ABS(SUMIF(K16:R16,"<0")),SUMIF(K16:R16,"<0")+SUMIF(K16:R16,">0"),SUMIF(K16:R16,">0")+SUMIF(K16:R16,"<0")) -> 0.000
B21: 2C | C21: Capital Required | G21: 40.000 | J21: 30.000 | R21: 30.000
B22: 2.3 | C22: Capital Charge 2 | G22: =(G21/100)*G19 -> 0.000 | J22: =(J21/100)*J19 -> 0.000 | R22: =(R21/100)*R19 -> 0.000 | S22: =SUM(D22:R22) -> 0.000
B23: 3.1 | C23: Residual Matched | J23: =IF(ABS(G20)<ABS(J20),ABS(G20),ABS(J20)) -> 0.000
B24: 3.2 | C24: Residual Unmatched | J24: =IF(ABS(G20)>ABS(J20),(G20)+(J20),(J20)+(G20)) -> 0.000
B25: 3C | C25: Capital Required | J25: 40.000
B26: 3.3 | C26: Capital Charge 3 | J26: =(J25/100)*J23 -> 0.000 | S26: =ROUND(SUM(D26:R26),3) -> 0.000
B27: 4.1 | C27: Residual Matched | R27: =IF(ABS(R20)<ABS(J24),ABS(R20),ABS(J24)) -> 0.000
B28: 4.2 | C28: Residual Unmatched | R28: =IF(ABS(R20)>ABS(J24),(R20)+(J24),(J24)+(R20)) -> 0.000
B29: 4C | C29: Capital Required | R29: 50.000
B30: 4.3 | C30: Capital Charge 4 | R30: =(R29/100)*R27 -> 0.000 | S30: =ROUND(R30,3) -> 0.000
B31: 5.1 | C31: Overall Net Open / Capital Charge 5 (100%) | S31: =ROUND(R28,3) -> 0.000
B32: 6.0 | C32: Total Capital Charge | S32: =SUM(S18 + S22 + S26+S30 + S31) -> 0.000
B33: 7.0 | C33: Interest Rate Risk Equivalent Assets (Total Capital Charge x Reciprocal CAR) | S33: =S32*12.5 -> 0.000
B35: Notes: | C35: Separate worksheets to be done for each currency in which there are significant interest rate risk exposures.
C36: 1. For each source of Interest Rate Risk exposure, insert long or short position in the appropriate Time Band according to residual maturity.
C37: 2. Multiply individual positions by the weight assigned to each time Band (to reflect price sensitivity to assumed changes in interest rates).
C38: 3. Determine matched (smaller of the weighted long or short position) and unmatched positions in each time band.
C39: 4. Calculate 'Capital Charge 1': 10% of the matched position in each Time Band. Then determine matched and unmatched positions from the residual balances in each Time Zone.
C40: 5. Calculate 'Capital Charge 2': 40% of matched position in Zone 1 plus 30% matched position in Zone 2 plus 30% matched position in Zone 3. Determine matched positions Zones 1 vs. Zone 2.
C41: 6. Calculate 'Capital charge 3': 40% matched position in Zones 1 & 2. Determine matched position Zones 1 and 2 vs. Zone 3.
C42: 7. Calculate 'Capital Charge 4': 40% of matched position in Zones 1 and 2 vs. Zone 3.
C43: 8. Calculate 'Capital Charge 5': 100% of the remaining open (unmatched) position.
C44: 9. Sum all calculations (Rows 1.7 + 2.3+ 3.3 + 4.3 + 5.1) to determine the total capital charge.

Sheet IRR-General - Euro
A2: General Interest Rate Risk
S5: ($000s)
D6: Zone 1 | H6: Zone 2 | K6: Zone 3
C7: Time Band: Coupon <3% | D7: 0 - 1 Mth | E7: 1 - 3 Mths | F7: 3 - 6 Mths | G7: 6 - 12 Mths | H7: 1 - 1.9 Yrs | I7: 1.9 - 2.8 Yrs | J7: 2.8 - 3.6 Yrs | K7: 3.6 - 4.3 Yrs | L7: 4.3 - 5.7 Yrs | M7: 5.7 - 7.3 Yrs | N7: 7.3 - 9.3 Yrs | O7: 9.3 - 10.6 Yrs | P7: 10.6-12 Yrs | Q7: 12-20 Yrs | R7: Ovr 20 Yrs | S7: Capital Charges
C8: Coupon =>3% | D8: 0 - 1 Mth | E8: 1 - 3 Mths | F8: 3 - 6 Mths | G8: 6 - 12 Mths | H8: 1 - 2 Yrs | I8: 2 - 3 Yrs | J8: 3 - 4 Yrs | K8: 4 - 5 Yrs | L8: 5 - 7 Yrs | M8: 7 - 10 Yrs | N8: 10 - 15 Yrs | O8: 15 - 20 Yrs | P8: Over 20 Yrs
C9: Position:
B10: 1.1 | C10: Total Long
B11: 1.2 | C11: Total Short
B12: 1A | C12: Weight (%) | D12: 0.000 | E12: 0.200 | F12: 0.400 | G12: 0.700 | H12: 1.250 | I12: 1.750 | J12: 2.250 | K12: 2.750 | L12: 3.250 | M12: 3.750 | N12: 4.500 | O12: 5.250 | P12: 6.000 | Q12: 8.000 | R12: 12.500
B13: 1.3 | C13: Weighted Long | D13: =(D12/100) *D10 -> 0.000 | E13: =(E12/100) *E10 -> 0.000 | F13: =(F12/100) *F10 -> 0.000 | G13: 0.000 | H13: 0.000 | I13: 0.000 | J13: 0.000 | K13: 0.000 | L13: 0.000 | M13: 0.000 | N13: 0.000 | O13: 0.000 | P13: 0.000 | Q13: 0.000 | R13: 0.000
B14: 1.4 | C14: Weighted Short | D14: =(D12/100)*D11 -> 0.000 | E14: =(E12/100)*E11 -> 0.000 | F14: =(F12/100)*F11 -> 0.000 | G14: 0.000 | H14: 0.000 | I14: 0.000 | J14: 0.000 | K14: 0.000 | L14: 0.000 | M14: 0.000 | N14: 0.000 | O14: 0.000 | P14: 0.000 | Q14: 0.000 | R14: 0.000
B15: 1.5 | C15: Matched | D15: =IF(ABS(D13)>ABS(D14),ABS(D14),ABS(D13)) -> 0.000 | E15: =IF(ABS(E13)>ABS(E14),ABS(E14),ABS(E13)) -> 0.000 | F15: 0.000 | G15: 0.000 | H15: 0.000 | I15: 0.000 | J15: 0.000 | K15: 0.000 | L15: 0.000 | M15: 0.000 | N15: 0.000 | O15: 0.000 | P15: 0.000 | Q15: 0.000 | R15: 0.000
B16: 1.6 | C16: Unmatched | D16: =IF(ABS(D13)>ABS(D14),D13+D14,D14+D13) -> 0.000 | E16: =IF(ABS(E13)>ABS(E14),E13+E14,E14+E13) -> 0.000 | F16: =IF(ABS(F13)>ABS(F14),F13+F14,F14+F13) -> 0.000 | G16: 0.000 | H16: 0.000 | I16: 0.000 | J16: 0.000 | K16: 0.000 | L16: 0.000 | M16: 0.000 | N16: 0.000 | O16: 0.000 | P16: 0.000 | Q16: 0.000 | R16: 0.000
B17: 1C | C17: Capital Required | D17: 10.000 | E17: 10.000 | F17: 10.000 | G17: 10.000 | H17: 10.000 | I17: 10.000 | J17: 10.000 | K17: 10.000 | L17: 10.000 | M17: 10.000 | N17: 10.000 | O17: 10.000 | P17: 10.000 | Q17: 10.000 | R17: 10.000
B18: 1.7 | C18: Capital Charge 1 | D18: =(D17/100)*D15 -> 0.000 | E18: =(E17/100)*E15 -> 0.000 | F18: 0.000 | G18: 0.000 | H18: 0.000 | I18: 0.000 | J18: 0.000 | K18: 0.000 | L18: 0.000 | M18: 0.000 | N18: 0.000 | O18: 0.000 | P18: 0.000 | Q18: 0.000 | R18: 0.000 | S18: =SUM(D18:R18) -> 0.000
B19: 2.1 | C19: Residual Matched | G19: =IF(ABS(SUMIF(D16:G16,">0"))>ABS(SUMIF(D16:G16,"<0")),ABS(SUMIF(D16:G16,"<0")),ABS(SUMIF(D16:G16,">0"))) -> 0.000 | J19: =IF(ABS(SUMIF(H16:J16,">0"))>ABS(SUMIF(H16:J16,">0")),ABS(SUMIF(H16:J16,"<0")),ABS(SUMIF(H16:J16,">0"))) -> 0.000 | R19: =IF(ABS(SUMIF(K16:R16,">0"))<ABS(SUMIF(K16:R16,"<0")),ABS(SUMIF(K16:R16,">0")),ABS(SUMIF(K16:R16,"<0"))) -> 0.000
B20: 2.2 | C20: Residual UnMatched | G20: =IF(ABS(SUMIF(D16:G16,">0"))>ABS(SUMIF(D16:G16,"<0")),ABS(SUMIF(D16:G16,">0"))+ABS(SUMIF(D16:G16,"<0")),ABS(SUMIF(D16:G16,"<0"))+ABS(SUMIF(D16:G16,">0"))) -> 0.000 | J20: =IF(ABS(SUMIF(H16:J16,">0"))>ABS(SUMIF(H16:J16,">0")),SUMIF(H16:J16,">0")+SUMIF(H16:J16,"<0"),SUMIF(H16:J16,"<0")+SUMIF(H16:J16,">0")) -> 0.000 | R20: =IF(ABS(SUMIF(K16:R16,">0"))<ABS(SUMIF(K16:R16,"<0")),SUMIF(K16:R16,"<0")+SUMIF(K16:R16,">0"),SUMIF(K16:R16,">0")+SUMIF(K16:R16,"<0")) -> 0.000
B21: 2C | C21: Capital Required | G21: 40.000 | J21: 30.000 | R21: 30.000
B22: 2.3 | C22: Capital Charge 2 | G22: =(G21/100)*G19 -> 0.000 | J22: =(J21/100)*J19 -> 0.000 | R22: =(R21/100)*R19 -> 0.000 | S22: =SUM(D22:R22) -> 0.000
B23: 3.1 | C23: Residual Matched | J23: =IF(ABS(G20)<ABS(J20),ABS(G20),ABS(J20)) -> 0.000
B24: 3.2 | C24: Residual Unmatched | J24: =IF(ABS(G20)>ABS(J20),(G20)+(J20),(J20)+(G20)) -> 0.000
B25: 3C | C25: Capital Required | J25: 40.000
B26: 3.3 | C26: Capital Charge 3 | J26: =(J25/100)*J23 -> 0.000 | S26: =SUM(D26:R26) -> 0.000
B27: 4.1 | C27: Residual Matched | R27: =IF(ABS(R20)<ABS(J24),ABS(R20),ABS(J24)) -> 0.000
B28: 4.2 | C28: Residual Unmatched | R28: =IF(ABS(R20)>ABS(J24),(R20)+(J24),(J24)+(R20)) -> 0.000
B29: 4C | C29: Capital Required | R29: 40.000
B30: 4.3 | C30: Capital Charge 4 | R30: =(R29/100)*R27 -> 0.000 | S30: =R30 -> 0.000
B31: 5.1 | C31: Overall Net Open / Capital Charge 5 (100%) | S31: =R28 -> 0.000
B32: 6.0 | C32: Total Capital Charge | S32: =SUM(S18 + S22 + S26+S30 + S31) -> 0.000
B33: 7.0 | C33: Interest Rate Risk Equivalent Assets (Total Capital Charge x Reciprocal CAR) | S33: =S32*12.5 -> 0.000
B35: Notes: | C35: Separate worksheets to be done for each currency in which there are significant interest rate risk exposures.
C36: 1. For each source of Interest Rate Risk exposure, insert long or short position in the appropriate Time Band according to residual maturity.
C37: 2. Multiply individual positions by the weight assigned to each time Band (to reflect price sensitivity to assumed changes in interest rates).
C38: 3. Determine matched (smaller of the weighted long or short position) and unmatched positions in each time band.
C39: 4. Calculate 'Capital Charge 1': 10% of the matched position in each Time Band. Then determine matched and unmatched positions from the residual balances in each Time Zone.
C40: 5. Calculate 'Capital Charge 2': 40% of matched position in Zone 1 plus 30% matched position in Zone 2 plus 30% matched position in Zone 3. Determine matched positions Zones 1 vs. Zone 2.
C41: 6. Calculate 'Capital charge 3': 40% matched position in Zones 1 & 2. Determine matched position Zones 1 and 2 vs. Zone 3.
C42: 7. Calculate 'Capital Charge 4': 40% of matched position in Zones 1 and 2 vs. Zone 3.
C43: 8. Calculate 'Capital Charge 5': 100% of the remaining open (unmatched) position.
C44: 9. Sum all calculations (Rows 1.7 + 2.3+ 3.3 + 4.3 + 5.1) to determine the total capital charge.

Sheet IRR-General - Canadian
A2: General Interest Rate Risk
S5: ($000s)
D6: Zone 1 | H6: Zone 2 | K6: Zone 3
C7: Time Band: Coupon <3% | D7: 0 - 1 Mth | E7: 1 - 3 Mths | F7: 3 - 6 Mths | G7: 6 - 12 Mths | H7: 1 - 1.9 Yrs | I7: 1.9 - 2.8 Yrs | J7: 2.8 - 3.6 Yrs | K7: 3.6 - 4.3 Yrs | L7: 4.3 - 5.7 Yrs | M7: 5.7 - 7.3 Yrs | N7: 7.3 - 9.3 Yrs | O7: 9.3 - 10.6 Yrs | P7: 10.6-12 Yrs | Q7: 12-20 Yrs | R7: Ovr 20 Yrs | S7: Capital Charges
C8: Coupon =>3% | D8: 0 - 1 Mth | E8: 1 - 3 Mths | F8: 3 - 6 Mths | G8: 6 - 12 Mths | H8: 1 - 2 Yrs | I8: 2 - 3 Yrs | J8: 3 - 4 Yrs | K8: 4 - 5 Yrs | L8: 5 - 7 Yrs | M8: 7 - 10 Yrs | N8: 10 - 15 Yrs | O8: 15 - 20 Yrs | P8: Over 20 Yrs
C9: Position:
B10: 1.1 | C10: Total Long
B11: 1.2 | C11: Total Short
B12: 1A | C12: Weight (%) | D12: 0.000 | E12: 0.200 | F12: 0.400 | G12: 0.700 | H12: 1.250 | I12: 1.750 | J12: 2.250 | K12: 2.750 | L12: 3.250 | M12: 3.750 | N12: 4.500 | O12: 5.250 | P12: 6.000 | Q12: 8.000 | R12: 12.500
B13: 1.3 | C13: Weighted Long | D13: =(D12/100) *D10 -> 0.000 | E13: =(E12/100) *E10 -> 0.000 | F13: =(F12/100) *F10 -> 0.000 | G13: 0.000 | H13: 0.000 | I13: 0.000 | J13: 0.000 | K13: 0.000 | L13: 0.000 | M13: 0.000 | N13: 0.000 | O13: 0.000 | P13: 0.000 | Q13: 0.000 | R13: 0.000
B14: 1.4 | C14: Weighted Short | D14: =(D12/100)*D11 -> 0.000 | E14: =(E12/100)*E11 -> 0.000 | F14: =(F12/100)*F11 -> 0.000 | G14: 0.000 | H14: 0.000 | I14: 0.000 | J14: 0.000 | K14: 0.000 | L14: 0.000 | M14: 0.000 | N14: 0.000 | O14: 0.000 | P14: 0.000 | Q14: 0.000 | R14: 0.000
B15: 1.5 | C15: Matched | D15: =IF(ABS(D13)>ABS(D14),ABS(D14),ABS(D13)) -> 0.000 | E15: =IF(ABS(E13)>ABS(E14),ABS(E14),ABS(E13)) -> 0.000 | F15: 0.000 | G15: 0.000 | H15: 0.000 | I15: 0.000 | J15: 0.000 | K15: 0.000 | L15: 0.000 | M15: 0.000 | N15: 0.000 | O15: 0.000 | P15: 0.000 | Q15: 0.000 | R15: 0.000
B16: 1.6 | C16: Unmatched | D16: =IF(ABS(D13)>ABS(D14),D13+D14,D14+D13) -> 0.000 | E16: =IF(ABS(E13)>ABS(E14),E13+E14,E14+E13) -> 0.000 | F16: =IF(ABS(F13)>ABS(F14),F13+F14,F14+F13) -> 0.000 | G16: 0.000 | H16: 0.000 | I16: 0.000 | J16: 0.000 | K16: 0.000 | L16: 0.000 | M16: 0.000 | N16: 0.000 | O16: 0.000 | P16: 0.000 | Q16: 0.000 | R16: 0.000
B17: 1C | C17: Capital Required | D17: 10.000 | E17: 10.000 | F17: 10.000 | G17: 10.000 | H17: 10.000 | I17: 10.000 | J17: 10.000 | K17: 10.000 | L17: 10.000 | M17: 10.000 | N17: 10.000 | O17: 10.000 | P17: 10.000 | Q17: 10.000 | R17: 10.000
B18: 1.7 | C18: Capital Charge 1 | D18: =(D17/100)*D15 -> 0.000 | E18: =(E17/100)*E15 -> 0.000 | F18: 0.000 | G18: 0.000 | H18: 0.000 | I18: 0.000 | J18: 0.000 | K18: 0.000 | L18: 0.000 | M18: 0.000 | N18: 0.000 | O18: 0.000 | P18: 0.000 | Q18: 0.000 | R18: 0.000 | S18: =SUM(D18:R18) -> 0.000
B19: 2.1 | C19: Residual Matched | G19: =IF(ABS(SUMIF(D16:G16,">0"))>ABS(SUMIF(D16:G16,"<0")),ABS(SUMIF(D16:G16,"<0")),ABS(SUMIF(D16:G16,">0"))) -> 0.000 | J19: =IF(ABS(SUMIF(H16:J16,">0"))>ABS(SUMIF(H16:J16,">0")),ABS(SUMIF(H16:J16,"<0")),ABS(SUMIF(H16:J16,">0"))) -> 0.000 | R19: =IF(ABS(SUMIF(K16:R16,">0"))<ABS(SUMIF(K16:R16,"<0")),ABS(SUMIF(K16:R16,">0")),ABS(SUMIF(K16:R16,"<0"))) -> 0.000
B20: 2.2 | C20: Residual UnMatched | G20: =IF(ABS(SUMIF(D16:G16,">0"))>ABS(SUMIF(D16:G16,"<0")),ABS(SUMIF(D16:G16,">0"))+ABS(SUMIF(D16:G16,"<0")),ABS(SUMIF(D16:G16,"<0"))+ABS(SUMIF(D16:G16,">0"))) -> 0.000 | J20: =IF(ABS(SUMIF(H16:J16,">0"))>ABS(SUMIF(H16:J16,">0")),SUMIF(H16:J16,">0")+SUMIF(H16:J16,"<0"),SUMIF(H16:J16,"<0")+SUMIF(H16:J16,">0")) -> 0.000 | R20: =IF(ABS(SUMIF(K16:R16,">0"))<ABS(SUMIF(K16:R16,"<0")),SUMIF(K16:R16,"<0")+SUMIF(K16:R16,">0"),SUMIF(K16:R16,">0")+SUMIF(K16:R16,"<0")) -> 0.000
B21: 2C | C21: Capital Required | G21: 40.000 | J21: 30.000 | R21: 30.000
B22: 2.3 | C22: Capital Charge 2 | G22: =(G21/100)*G19 -> 0.000 | J22: =(J21/100)*J19 -> 0.000 | R22: =(R21/100)*R19 -> 0.000 | S22: =SUM(D22:R22) -> 0.000
B23: 3.1 | C23: Residual Matched | J23: =IF(ABS(G20)<ABS(J20),ABS(G20),ABS(J20)) -> 0.000
B24: 3.2 | C24: Residual Unmatched | J24: =IF(ABS(G20)>ABS(J20),(G20)+(J20),(J20)+(G20)) -> 0.000
B25: 3C | C25: Capital Required | J25: 40.000
B26: 3.3 | C26: Capital Charge 3 | J26: =(J25/100)*J23 -> 0.000 | S26: =SUM(D26:R26) -> 0.000
B27: 4.1 | C27: Residual Matched | R27: =IF(ABS(R20)<ABS(J24),ABS(R20),ABS(J24)) -> 0.000
B28: 4.2 | C28: Residual Unmatched | R28: =IF(ABS(R20)>ABS(J24),(R20)+(J24),(J24)+(R20)) -> 0.000
B29: 4C | C29: Capital Required | R29: 40.000
B30: 4.3 | C30: Capital Charge 4 | R30: =ROUND((R29/100)*R27,3) -> 0.000 | S30: =R30 -> 0.000
B31: 5.1 | C31: Overall Net Open / Capital Charge 5 (100%) | S31: =R28 -> 0.000
B32: 6.0 | C32: Total Capital Charge | S32: =ROUND(SUM(S18 + S22 + S26+S30 + S31),3) -> 0.000
B33: 7.0 | C33: Interest Rate Risk Equivalent Assets (Total Capital Charge x Reciprocal CAR) | S33: =ROUND(S32*12.5,3) -> 0.000
B35: Notes: | C35: Separate worksheets to be done for each currency in which there are significant interest rate risk exposures.
C36: 1. For each source of Interest Rate Risk exposure, insert long or short position in the appropriate Time Band according to residual maturity.
C37: 2. Multiply individual positions by the weight assigned to each time Band (to reflect price sensitivity to assumed changes in interest rates).
C38: 3. Determine matched (smaller of the weighted long or short position) and unmatched positions in each time band.
C39: 4. Calculate 'Capital Charge 1': 10% of the matched position in each Time Band. Then determine matched and unmatched positions from the residual balances in each Time Zone.
C40: 5. Calculate 'Capital Charge 2': 40% of matched position in Zone 1 plus 30% matched position in Zone 2 plus 30% matched position in Zone 3. Determine matched positions Zones 1 vs. Zone 2.
C41: 6. Calculate 'Capital charge 3': 40% matched position in Zones 1 & 2. Determine matched position Zones 1 and 2 vs. Zone 3.
C42: 7. Calculate 'Capital Charge 4': 40% of matched position in Zones 1 and 2 vs. Zone 3.
C43: 8. Calculate 'Capital Charge 5': 100% of the remaining open (unmatched) position.
C44: 9. Sum all calculations (Rows 1.7 + 2.3+ 3.3 + 4.3 + 5.1) to determine the total capital charge.

Sheet IRR-General - Swiss
A2: General Interest Rate Risk
S5: ($000s)
D6: Zone 1 | H6: Zone 2 | K6: Zone 3
C7: Time Band: Coupon <3% | D7: 0 - 1 Mth | E7: 1 - 3 Mths | F7: 3 - 6 Mths | G7: 6 - 12 Mths | H7: 1 - 1.9 Yrs | I7: 1.9 - 2.8 Yrs | J7: 2.8 - 3.6 Yrs | K7: 3.6 - 4.3 Yrs | L7: 4.3 - 5.7 Yrs | M7: 5.7 - 7.3 Yrs | N7: 7.3 - 9.3 Yrs | O7: 9.3 - 10.6 Yrs | P7: 10.6-12 Yrs | Q7: 12-20 Yrs | R7: Ovr 20 Yrs | S7: Capital Charges
C8: Coupon =>3% | D8: 0 - 1 Mth | E8: 1 - 3 Mths | F8: 3 - 6 Mths | G8: 6 - 12 Mths | H8: 1 - 2 Yrs | I8: 2 - 3 Yrs | J8: 3 - 4 Yrs | K8: 4 - 5 Yrs | L8: 5 - 7 Yrs | M8: 7 - 10 Yrs | N8: 10 - 15 Yrs | O8: 15 - 20 Yrs | P8: Over 20 Yrs
C9: Position:
B10: 1.1 | C10: Total Long
B11: 1.2 | C11: Total Short
B12: 1A | C12: Weight (%) | D12: 0.000 | E12: 0.200 | F12: 0.400 | G12: 0.700 | H12: 1.250 | I12: 1.750 | J12: 2.250 | K12: 2.750 | L12: 3.250 | M12: 3.750 | N12: 4.500 | O12: 5.250 | P12: 6.000 | Q12: 8.000 | R12: 12.500
B13: 1.3 | C13: Weighted Long | D13: =(D12/100) *D10 -> 0.000 | E13: =(E12/100) *E10 -> 0.000 | F13: =(F12/100) *F10 -> 0.000 | G13: 0.000 | H13: 0.000 | I13: 0.000 | J13: 0.000 | K13: 0.000 | L13: 0.000 | M13: 0.000 | N13: 0.000 | O13: 0.000 | P13: 0.000 | Q13: 0.000 | R13: 0.000
B14: 1.4 | C14: Weighted Short | D14: =(D12/100)*D11 -> 0.000 | E14: =(E12/100)*E11 -> 0.000 | F14: =(F12/100)*F11 -> 0.000 | G14: 0.000 | H14: 0.000 | I14: 0.000 | J14: 0.000 | K14: 0.000 | L14: 0.000 | M14: 0.000 | N14: 0.000 | O14: 0.000 | P14: 0.000 | Q14: 0.000 | R14: 0.000
B15: 1.5 | C15: Matched | D15: =IF(ABS(D13)>ABS(D14),ABS(D14),ABS(D13)) -> 0.000 | E15: =IF(ABS(E13)>ABS(E14),ABS(E14),ABS(E13)) -> 0.000 | F15: 0.000 | G15: 0.000 | H15: 0.000 | I15: 0.000 | J15: 0.000 | K15: 0.000 | L15: 0.000 | M15: 0.000 | N15: 0.000 | O15: 0.000 | P15: 0.000 | Q15: 0.000 | R15: 0.000
B16: 1.6 | C16: Unmatched | D16: =IF(ABS(D13)>ABS(D14),D13+D14,D14+D13) -> 0.000 | E16: =IF(ABS(E13)>ABS(E14),E13+E14,E14+E13) -> 0.000 | F16: =IF(ABS(F13)>ABS(F14),F13+F14,F14+F13) -> 0.000 | G16: 0.000 | H16: 0.000 | I16: 0.000 | J16: 0.000 | K16: 0.000 | L16: 0.000 | M16: 0.000 | N16: 0.000 | O16: 0.000 | P16: 0.000 | Q16: 0.000 | R16: 0.000
B17: 1C | C17: Capital Required | D17: 10.000 | E17: 10.000 | F17: 10.000 | G17: 10.000 | H17: 10.000 | I17: 10.000 | J17: 10.000 | K17: 10.000 | L17: 10.000 | M17: 10.000 | N17: 10.000 | O17: 10.000 | P17: 10.000 | Q17: 10.000 | R17: 10.000
B18: 1.7 | C18: Capital Charge 1 | D18: =(D17/100)*D15 -> 0.000 | E18: =(E17/100)*E15 -> 0.000 | F18: 0.000 | G18: 0.000 | H18: 0.000 | I18: 0.000 | J18: 0.000 | K18: 0.000 | L18: 0.000 | M18: 0.000 | N18: 0.000 | O18: 0.000 | P18: 0.000 | Q18: 0.000 | R18: 0.000 | S18: =SUM(D18:R18) -> 0.000
B19: 2.1 | C19: Residual Matched | G19: =IF(ABS(SUMIF(D16:G16,">0"))>ABS(SUMIF(D16:G16,"<0")),ABS(SUMIF(D16:G16,"<0")),ABS(SUMIF(D16:G16,">0"))) -> 0.000 | J19: =IF(ABS(SUMIF(H16:J16,">0"))>ABS(SUMIF(H16:J16,">0")),ABS(SUMIF(H16:J16,"<0")),ABS(SUMIF(H16:J16,">0"))) -> 0.000 | R19: =IF(ABS(SUMIF(K16:R16,">0"))<ABS(SUMIF(K16:R16,"<0")),ABS(SUMIF(K16:R16,">0")),ABS(SUMIF(K16:R16,"<0"))) -> 0.000
B20: 2.2 | C20: Residual UnMatched | G20: =IF(ABS(SUMIF(D16:G16,">0"))>ABS(SUMIF(D16:G16,"<0")),ABS(SUMIF(D16:G16,">0"))+ABS(SUMIF(D16:G16,"<0")),ABS(SUMIF(D16:G16,"<0"))+ABS(SUMIF(D16:G16,">0"))) -> 0.000 | J20: =IF(ABS(SUMIF(H16:J16,">0"))>ABS(SUMIF(H16:J16,">0")),SUMIF(H16:J16,">0")+SUMIF(H16:J16,"<0"),SUMIF(H16:J16,"<0")+SUMIF(H16:J16,">0")) -> 0.000 | R20: =IF(ABS(SUMIF(K16:R16,">0"))<ABS(SUMIF(K16:R16,"<0")),SUMIF(K16:R16,"<0")+SUMIF(K16:R16,">0"),SUMIF(K16:R16,">0")+SUMIF(K16:R16,"<0")) -> 0.000
B21: 2C | C21: Capital Required | G21: 40.000 | J21: 30.000 | R21: 30.000
B22: 2.3 | C22: Capital Charge 2 | G22: =(G21/100)*G19 -> 0.000 | J22: =(J21/100)*J19 -> 0.000 | R22: =(R21/100)*R19 -> 0.000 | S22: =SUM(D22:R22) -> 0.000
B23: 3.1 | C23: Residual Matched | J23: =IF(ABS(G20)<ABS(J20),ABS(G20),ABS(J20)) -> 0.000
B24: 3.2 | C24: Residual Unmatched | J24: =IF(ABS(G20)>ABS(J20),(G20)+(J20),(J20)+(G20)) -> 0.000
B25: 3C | C25: Capital Required | J25: 40.000
B26: 3.3 | C26: Capital Charge 3 | J26: =(J25/100)*J23 -> 0.000 | S26: =SUM(D26:R26) -> 0.000
B27: 4.1 | C27: Residual Matched | R27: =IF(ABS(R20)<ABS(J24),ABS(R20),ABS(J24)) -> 0.000
B28: 4.2 | C28: Residual Unmatched | R28: =IF(ABS(R20)>ABS(J24),(R20)+(J24),(J24)+(R20)) -> 0.000
B29: 4C | C29: Capital Required | R29: 40.000
B30: 4.3 | C30: Capital Charge 4 | R30: =(R29/100)*R27 -> 0.000 | S30: =R30 -> 0.000
B31: 5.1 | C31: Overall Net Open / Capital Charge 5 (100%) | S31: =R28 -> 0.000
B32: 6.0 | C32: Total Capital Charge | S32: =SUM(S18 + S22 + S26+S30 + S31) -> 0.000
B33: 7.0 | C33: Interest Rate Risk Equivalent Assets (Total Capital Charge x Reciprocal CAR) | S33: =S32*12.5 -> 0.000
B35: Notes: | C35: Separate worksheets to be done for each currency in which there are significant interest rate risk exposures.
C36: 1. For each source of Interest Rate Risk exposure, insert long or short position in the appropriate Time Band according to residual maturity.
C37: 2. Multiply individual positions by the weight assigned to each time Band (to reflect price sensitivity to assumed changes in interest rates).
C38: 3. Determine matched (smaller of the weighted long or short position) and unmatched positions in each time band.
C39: 4. Calculate 'Capital Charge 1': 10% of the matched position in each Time Band. Then determine matched and unmatched positions from the residual balances in each Time Zone.
C40: 5. Calculate 'Capital Charge 2': 40% of matched position in Zone 1 plus 30% matched position in Zone 2 plus 30% matched position in Zone 3. Determine matched positions Zones 1 vs. Zone 2.
C41: 6. Calculate 'Capital charge 3': 40% matched position in Zones 1 & 2. Determine matched position Zones 1 and 2 vs. Zone 3.
C42: 7. Calculate 'Capital Charge 4': 40% of matched position in Zones 1 and 2 vs. Zone 3.
C43: 8. Calculate 'Capital Charge 5': 100% of the remaining open (unmatched) position.
C44: 9. Sum all calculations (Rows 1.7 + 2.3+ 3.3 + 4.3 + 5.1) to determine the total capital charge.

Sheet IRR-General - Japanese
A2: General Interest Rate Risk
S5: ($000s)
D6: Zone 1 | H6: Zone 2 | K6: Zone 3
C7: Time Band: Coupon <3% | D7: 0 - 1 Mth | E7: 1 - 3 Mths | F7: 3 - 6 Mths | G7: 6 - 12 Mths | H7: 1 - 1.9 Yrs | I7: 1.9 - 2.8 Yrs | J7: 2.8 - 3.6 Yrs | K7: 3.6 - 4.3 Yrs | L7: 4.3 - 5.7 Yrs | M7: 5.7 - 7.3 Yrs | N7: 7.3 - 9.3 Yrs | O7: 9.3 - 10.6 Yrs | P7: 10.6-12 Yrs | Q7: 12-20 Yrs | R7: Ovr 20 Yrs | S7: Capital Charges
C8: Coupon =>3% | D8: 0 - 1 Mth | E8: 1 - 3 Mths | F8: 3 - 6 Mths | G8: 6 - 12 Mths | H8: 1 - 2 Yrs | I8: 2 - 3 Yrs | J8: 3 - 4 Yrs | K8: 4 - 5 Yrs | L8: 5 - 7 Yrs | M8: 7 - 10 Yrs | N8: 10 - 15 Yrs | O8: 15 - 20 Yrs | P8: Over 20 Yrs
C9: Position:
B10: 1.1 | C10: Total Long
B11: 1.2 | C11: Total Short
B12: 1A | C12: Weight (%) | D12: 0.000 | E12: 0.200 | F12: 0.400 | G12: 0.700 | H12: 1.250 | I12: 1.750 | J12: 2.250 | K12: 2.750 | L12: 3.250 | M12: 3.750 | N12: 4.500 | O12: 5.250 | P12: 6.000 | Q12: 8.000 | R12: 12.500
B13: 1.3 | C13: Weighted Long | D13: =(D12/100) *D10 -> 0.000 | E13: =(E12/100) *E10 -> 0.000 | F13: =(F12/100) *F10 -> 0.000 | G13: 0.000 | H13: 0.000 | I13: 0.000 | J13: 0.000 | K13: 0.000 | L13: 0.000 | M13: 0.000 | N13: 0.000 | O13: 0.000 | P13: 0.000 | Q13: 0.000 | R13: 0.000
B14: 1.4 | C14: Weighted Short | D14: =(D12/100)*D11 -> 0.000 | E14: =(E12/100)*E11 -> 0.000 | F14: =(F12/100)*F11 -> 0.000 | G14: 0.000 | H14: 0.000 | I14: 0.000 | J14: 0.000 | K14: 0.000 | L14: 0.000 | M14: 0.000 | N14: 0.000 | O14: 0.000 | P14: 0.000 | Q14: 0.000 | R14: 0.000
B15: 1.5 | C15: Matched | D15: =IF(ABS(D13)>ABS(D14),ABS(D14),ABS(D13)) -> 0.000 | E15: =IF(ABS(E13)>ABS(E14),ABS(E14),ABS(E13)) -> 0.000 | F15: 0.000 | G15: 0.000 | H15: 0.000 | I15: 0.000 | J15: 0.000 | K15: 0.000 | L15: 0.000 | M15: 0.000 | N15: 0.000 | O15: 0.000 | P15: 0.000 | Q15: 0.000 | R15: 0.000
B16: 1.6 | C16: Unmatched | D16: =IF(ABS(D13)>ABS(D14),D13+D14,D14+D13) -> 0.000 | E16: =IF(ABS(E13)>ABS(E14),E13+E14,E14+E13) -> 0.000 | F16: =IF(ABS(F13)>ABS(F14),F13+F14,F14+F13) -> 0.000 | G16: 0.000 | H16: 0.000 | I16: 0.000 | J16: 0.000 | K16: 0.000 | L16: 0.000 | M16: 0.000 | N16: 0.000 | O16: 0.000 | P16: 0.000 | Q16: 0.000 | R16: 0.000
B17: 1C | C17: Capital Required | D17: 10.000 | E17: 10.000 | F17: 10.000 | G17: 10.000 | H17: 10.000 | I17: 10.000 | J17: 10.000 | K17: 10.000 | L17: 10.000 | M17: 10.000 | N17: 10.000 | O17: 10.000 | P17: 10.000 | Q17: 10.000 | R17: 10.000
B18: 1.7 | C18: Capital Charge 1 | D18: =(D17/100)*D15 -> 0.000 | E18: =(E17/100)*E15 -> 0.000 | F18: 0.000 | G18: 0.000 | H18: 0.000 | I18: 0.000 | J18: 0.000 | K18: 0.000 | L18: 0.000 | M18: 0.000 | N18: 0.000 | O18: 0.000 | P18: 0.000 | Q18: 0.000 | R18: 0.000 | S18: =SUM(D18:R18) -> 0.000
B19: 2.1 | C19: Residual Matched | G19: =IF(ABS(SUMIF(D16:G16,">0"))>ABS(SUMIF(D16:G16,"<0")),ABS(SUMIF(D16:G16,"<0")),ABS(SUMIF(D16:G16,">0"))) -> 0.000 | J19: =IF(ABS(SUMIF(H16:J16,">0"))>ABS(SUMIF(H16:J16,">0")),ABS(SUMIF(H16:J16,"<0")),ABS(SUMIF(H16:J16,">0"))) -> 0.000 | R19: =IF(ABS(SUMIF(K16:R16,">0"))<ABS(SUMIF(K16:R16,"<0")),ABS(SUMIF(K16:R16,">0")),ABS(SUMIF(K16:R16,"<0"))) -> 0.000
B20: 2.2 | C20: Residual UnMatched | G20: =IF(ABS(SUMIF(D16:G16,">0"))>ABS(SUMIF(D16:G16,"<0")),ABS(SUMIF(D16:G16,">0"))+ABS(SUMIF(D16:G16,"<0")),ABS(SUMIF(D16:G16,"<0"))+ABS(SUMIF(D16:G16,">0"))) -> 0.000 | J20: =IF(ABS(SUMIF(H16:J16,">0"))>ABS(SUMIF(H16:J16,">0")),SUMIF(H16:J16,">0")+SUMIF(H16:J16,"<0"),SUMIF(H16:J16,"<0")+SUMIF(H16:J16,">0")) -> 0.000 | R20: =IF(ABS(SUMIF(K16:R16,">0"))<ABS(SUMIF(K16:R16,"<0")),SUMIF(K16:R16,"<0")+SUMIF(K16:R16,">0"),SUMIF(K16:R16,">0")+SUMIF(K16:R16,"<0")) -> 0.000
B21: 2C | C21: Capital Required | G21: 40.000 | J21: 30.000 | R21: 30.000
B22: 2.3 | C22: Capital Charge 2 | G22: =(G21/100)*G19 -> 0.000 | J22: =(J21/100)*J19 -> 0.000 | R22: =(R21/100)*R19 -> 0.000 | S22: =SUM(D22:R22) -> 0.000
B23: 3.1 | C23: Residual Matched | J23: =IF(ABS(G20)<ABS(J20),ABS(G20),ABS(J20)) -> 0.000
B24: 3.2 | C24: Residual Unmatched | J24: =IF(ABS(G20)>ABS(J20),(G20)+(J20),(J20)+(G20)) -> 0.000
B25: 3C | C25: Capital Required | J25: 40.000
B26: 3.3 | C26: Capital Charge 3 | J26: =(J25/100)*J23 -> 0.000 | S26: =SUM(D26:R26) -> 0.000
B27: 4.1 | C27: Residual Matched | R27: =IF(ABS(R20)<ABS(J24),ABS(R20),ABS(J24)) -> 0.000
B28: 4.2 | C28: Residual Unmatched | R28: =IF(ABS(R20)>ABS(J24),(R20)+(J24),(J24)+(R20)) -> 0.000
B29: 4C | C29: Capital Required | R29: 40.000
B30: 4.3 | C30: Capital Charge 4 | R30: =(R29/100)*R27 -> 0.000 | S30: =R30 -> 0.000
B31: 5.1 | C31: Overall Net Open / Capital Charge 5 (100%) | S31: =R28 -> 0.000
B32: 6.0 | C32: Total Capital Charge | S32: =SUM(S18 + S22 + S26+S30 + S31) -> 0.000
B33: 7.0 | C33: Interest Rate Risk Equivalent Assets (Total Capital Charge x Reciprocal CAR) | S33: =S32*12.5 -> 0.000
B35: Notes: | C35: Separate worksheets to be done for each currency in which there are significant interest rate risk exposures.
C36: 1. For each source of Interest Rate Risk exposure, insert long or short position in the appropriate Time Band according to residual maturity.
C37: 2. Multiply individual positions by the weight assigned to each time Band (to reflect price sensitivity to assumed changes in interest rates).
C38: 3. Determine matched (smaller of the weighted long or short position) and unmatched positions in each time band.
C39: 4. Calculate 'Capital Charge 1': 10% of the matched position in each Time Band. Then determine matched and unmatched positions from the residual balances in each Time Zone.
C40: 5. Calculate 'Capital Charge 2': 40% of matched position in Zone 1 plus 30% matched position in Zone 2 plus 30% matched position in Zone 3. Determine matched positions Zones 1 vs. Zone 2.
C41: 6. Calculate 'Capital charge 3': 40% matched position in Zones 1 & 2. Determine matched position Zones 1 and 2 vs. Zone 3.
C42: 7. Calculate 'Capital Charge 4': 40% of matched position in Zones 1 and 2 vs. Zone 3.
C43: 8. Calculate 'Capital Charge 5': 100% of the remaining open (unmatched) position.
C44: 9. Sum all calculations (Rows 1.7 + 2.3+ 3.3 + 4.3 + 5.1) to determine the total capital charge.

Sheet IRR-General - Other
B2: Liabilities2: Other Currency | I2: General Interest Rate Risk
E4: Please Enter the Currency
E5: Other
S6: ($000s)
D7: Zone 1 | H7: Zone 2 | K7: Zone 3
C8: Time Band: Coupon <3% | D8: 0 - 1 Mth | E8: 1 - 3 Mths | F8: 3 - 6 Mths | G8: 6 - 12 Mths | H8: 1 - 1.9 Yrs | I8: 1.9 - 2.8 Yrs | J8: 2.8 - 3.6 Yrs | K8: 3.6 - 4.3 Yrs | L8: 4.3 - 5.7 Yrs | M8: 5.7 - 7.3 Yrs | N8: 7.3 - 9.3 Yrs | O8: 9.3 - 10.6 Yrs | P8: 10.6-12 Yrs | Q8: 12-20 Yrs | R8: Ovr 20 Yrs | S8: Capital Charges
C9: Coupon =>3% | D9: 0 - 1 Mth | E9: 1 - 3 Mths | F9: 3 - 6 Mths | G9: 6 - 12 Mths | H9: 1 - 2 Yrs | I9: 2 - 3 Yrs | J9: 3 - 4 Yrs | K9: 4 - 5 Yrs | L9: 5 - 7 Yrs | M9: 7 - 10 Yrs | N9: 10 - 15 Yrs | O9: 15 - 20 Yrs | P9: Over 20 Yrs
C10: Position:
B11: 1.1 | C11: Total Long
B12: 1.2 | C12: Total Short
B13: 1A | C13: Weight (%) | D13: 0.000 | E13: 0.200 | F13: 0.400 | G13: 0.700 | H13: 1.250 | I13: 1.750 | J13: 2.250 | K13: 2.750 | L13: 3.250 | M13: 3.750 | N13: 4.500 | O13: 5.250 | P13: 6.000 | Q13: 8.000 | R13: 12.500
B14: 1.3 | C14: Weighted Long | D14: =(D13/100) *D11 -> 0.000 | E14: =(E13/100) *E11 -> 0.000 | F14: =(F13/100) *F11 -> 0.000 | G14: 0.000 | H14: 0.000 | I14: 0.000 | J14: 0.000 | K14: 0.000 | L14: 0.000 | M14: 0.000 | N14: 0.000 | O14: 0.000 | P14: 0.000 | Q14: 0.000 | R14: 0.000
B15: 1.4 | C15: Weighted Short | D15: =(D13/100)*D12 -> 0.000 | E15: =(E13/100)*E12 -> 0.000 | F15: =(F13/100)*F12 -> 0.000 | G15: 0.000 | H15: 0.000 | I15: 0.000 | J15: 0.000 | K15: 0.000 | L15: 0.000 | M15: 0.000 | N15: 0.000 | O15: 0.000 | P15: 0.000 | Q15: 0.000 | R15: 0.000
B16: 1.5 | C16: Matched | D16: =IF(ABS(D14)>ABS(D15),ABS(D15),ABS(D14)) -> 0.000 | E16: =IF(ABS(E14)>ABS(E15),ABS(E15),ABS(E14)) -> 0.000 | F16: 0.000 | G16: 0.000 | H16: 0.000 | I16: 0.000 | J16: 0.000 | K16: 0.000 | L16: 0.000 | M16: 0.000 | N16: 0.000 | O16: 0.000 | P16: 0.000 | Q16: 0.000 | R16: 0.000
B17: 1.6 | C17: Unmatched | D17: =IF(ABS(D14)>ABS(D15),D14+D15,D15+D14) -> 0.000 | E17: =IF(ABS(E14)>ABS(E15),E14+E15,E15+E14) -> 0.000 | F17: =IF(ABS(F14)>ABS(F15),F14+F15,F15+F14) -> 0.000 | G17: 0.000 | H17: 0.000 | I17: 0.000 | J17: 0.000 | K17: 0.000 | L17: 0.000 | M17: 0.000 | N17: 0.000 | O17: 0.000 | P17: 0.000 | Q17: 0.000 | R17: 0.000
B18: 1C | C18: Capital Required | D18: 10.000 | E18: 10.000 | F18: 10.000 | G18: 10.000 | H18: 10.000 | I18: 10.000 | J18: 10.000 | K18: 10.000 | L18: 10.000 | M18: 10.000 | N18: 10.000 | O18: 10.000 | P18: 10.000 | Q18: 10.000 | R18: 10.000
B19: 1.7 | C19: Capital Charge 1 | D19: =(D18/100)*D16 -> 0.000 | E19: =(E18/100)*E16 -> 0.000 | F19: 0.000 | G19: 0.000 | H19: 0.000 | I19: 0.000 | J19: 0.000 | K19: 0.000 | L19: 0.000 | M19: 0.000 | N19: 0.000 | O19: 0.000 | P19: 0.000 | Q19: 0.000 | R19: 0.000 | S19: =SUM(D19:R19) -> 0.000
B20: 2.1 | C20: Residual Matched | G20: =IF(ABS(SUMIF(D17:G17,">0"))>ABS(SUMIF(D17:G17,"<0")),ABS(SUMIF(D17:G17,"<0")),ABS(SUMIF(D17:G17,">0"))) -> 0.000 | J20: =IF(ABS(SUMIF(H17:J17,">0"))>ABS(SUMIF(H17:J17,">0")),ABS(SUMIF(H17:J17,"<0")),ABS(SUMIF(H17:J17,">0"))) -> 0.000 | R20: =IF(ABS(SUMIF(K17:R17,">0"))<ABS(SUMIF(K17:R17,"<0")),ABS(SUMIF(K17:R17,">0")),ABS(SUMIF(K17:R17,"<0"))) -> 0.000
B21: 2.2 | C21: Residual UnMatched | G21: =IF(ABS(SUMIF(D17:G17,">0"))>ABS(SUMIF(D17:G17,"<0")),ABS(SUMIF(D17:G17,">0"))+ABS(SUMIF(D17:G17,"<0")),ABS(SUMIF(D17:G17,"<0"))+ABS(SUMIF(D17:G17,">0"))) -> 0.000 | J21: =IF(ABS(SUMIF(H17:J17,">0"))>ABS(SUMIF(H17:J17,">0")),SUMIF(H17:J17,">0")+SUMIF(H17:J17,"<0"),SUMIF(H17:J17,"<0")+SUMIF(H17:J17,">0")) -> 0.000 | R21: =IF(ABS(SUMIF(K17:R17,">0"))<ABS(SUMIF(K17:R17,"<0")),SUMIF(K17:R17,"<0")+SUMIF(K17:R17,">0"),SUMIF(K17:R17,">0")+SUMIF(K17:R17,"<0")) -> 0.000
B22: 2C | C22: Capital Required | G22: 40.000 | J22: 30.000 | R22: 30.000
B23: 2.3 | C23: Capital Charge 2 | G23: =(G22/100)*G20 -> 0.000 | J23: =(J22/100)*J20 -> 0.000 | R23: =(R22/100)*R20 -> 0.000 | S23: =SUM(D23:R23) -> 0.000
B24: 3.1 | C24: Residual Matched | J24: =IF(ABS(G21)<ABS(J21),ABS(G21),ABS(J21)) -> 0.000
B25: 3.2 | C25: Residual Unmatched | J25: =IF(ABS(G21)>ABS(J21),(G21)+(J21),(J21)+(G21)) -> 0.000
B26: 3C | C26: Capital Required | J26: 40.000
B27: 3.3 | C27: Capital Charge 3 | J27: =(J26/100)*J24 -> 0.000 | S27: =SUM(D27:R27) -> 0.000
B28: 4.1 | C28: Residual Matched | R28: =IF(ABS(R21)<ABS(J25),ABS(R21),ABS(J25)) -> 0.000
B29: 4.2 | C29: Residual Unmatched | R29: =IF(ABS(R21)>ABS(J25),(R21)+(J25),(J25)+(R21)) -> 0.000
B30: 4C | C30: Capital Required | R30: 40.000
B31: 4.3 | C31: Capital Charge 4 | R31: =(R30/100)*R28 -> 0.000 | S31: =R31 -> 0.000
B32: 5.1 | C32: Overall Net Open / Capital Charge 5 (100%) | S32: =R29 -> 0.000
B33: 6.0 | C33: Total Capital Charge | S33: =SUM(S19 + S23 + S27+S31 + S32) -> 0.000
B34: 7.0 | C34: Interest Rate Risk Equivalent Assets (Total Capital Charge x Reciprocal CAR) | S34: =S33*12.5 -> 0.000
B36: Notes: | C36: Separate worksheets to be done for each currency in which there are significant interest rate risk exposures.
C37: 1. For each source of Interest Rate Risk exposure, insert long or short position in the appropriate Time Band according to residual maturity.
C38: 2. Multiply individual positions by the weight assigned to each time Band (to reflect price sensitivity to assumed changes in interest rates).
C39: 3. Determine matched (smaller of the weighted long or short position) and unmatched positions in each time band.
C40: 4. Calculate 'Capital Charge 1': 10% of the matched position in each Time Band. Then determine matched and unmatched positions from the residual balances in each Time Zone.
C41: 5. Calculate 'Capital Charge 2': 40% of matched position in Zone 1 plus 30% matched position in Zone 2 plus 30% matched position in Zone 3. Determine matched positions Zones 1 vs. Zone 2.
C42: 6. Calculate 'Capital charge 3': 40% matched position in Zones 1 & 2. Determine matched position Zones 1 and 2 vs. Zone 3.
C43: 7. Calculate 'Capital Charge 4': 40% of matched position in Zones 1 and 2 vs. Zone 3.
C44: 8. Calculate 'Capital Charge 5': 100% of the remaining open (unmatched) position.
C45: 9. Sum all calculations (Rows 1.7 + 2.3+ 3.3 + 4.3 + 5.1) to determine the total capital charge.

Sheet IRR-Specific
E2: Specific Interest Rate Risk
K4: ($000s)
C5: Calculation Of Specific Risk | H5: External Credit Assessment | I5: Net Long or Short Position | J5: Risk Charge | K5: Capital Required
B6: 1.0 | C6: Zone A Government Debt Securities | H6: AAA to AA-> | J6: 0.00% | K6: =ROUND(I6*J6,0) -> 0
H7: A+ to BBB-> | J7: 0.25% | K7: =ROUND(I7*(0.0025),0) -> 0
J8: 1.00% | K8: =ROUND(I8*(0.01),0) -> 0
J9: 1.60% | K9: =ROUND(I9*(0.016),0) -> 0
C10: Zone B Governments | H10: BB+ to B- | J10: 8.00% | K10: =ROUND(I10*J10,0) -> 0
H11: Below B- | J11: 12.00% | K11: =ROUND(I11*J11,0) -> 0
H12: Unrated | J12: 8.00% | K12: =ROUND(I12*J12,0) -> 0
B13: 2.0 | C13: Qualifying Securities:
B14: 2.1 | C14: 6 Mths. or Under to Maturity | J14: 0.25% | K14: =ROUND(I14*J14,0) -> 0
B15: 2.2 | C15: Over 6 Mths up to 2 Yrs. to Maturity | J15: 1.00% | K15: =ROUND(I15*J15,0) -> 0
B16: 2.3 | C16: Over 2 Yrs. to Maturity | J16: 1.60% | K16: =ROUND(I16*J16,0) -> 0
B17: 3.0 | C17: Other | J17: 8.00% | K17: =ROUND(I17*J17,0) -> 0
B18: 4.0 | C18: Capital Required Against Specific Risk: | K18: =SUM(K6:K17) -> 0
B19: 5.0 | C19: Capital Required Against General Risk (taken from IRR - General) | K19: =ROUND('IRR-General - US'!S32+'IRR-General - Great Britain'!S32+'IRR-General - Euro'!S32+'IRR-General - Canadian'!S32+'IRR-General - Swiss'!S32+'IRR-General - Japanese'!S32+'IRR-General - Other'!S32,0) -> 0
B20: 6.0 | C20: Capital Required Against Interest Rate Options (taken from Interest Rate Options) | K20: ='Interest Rate Options'!H59 -> 0
B21: 7.0 | C21: Total Capital Required Against Interest Rate Risk (Total of Rows: 4.0, 5.0 + 6.0) | K21: =SUM(K18+K19+K20) -> 0
B22: 8.0 | C22: Interest Rate Risk Equivalent Assets (Total Capital Required x Reciprocal CAR) | K22: =K21*12.5 -> 0
B24: Notes: | C24: Row 1: | D24: Include government paper/securities issued by national governments and other governments as approved by the CBOB.
C25: Row 2: | D25: Include securities issued by public sector entities and multilateral development banks, and other securities specified by the CBOB.
D26: Risk Charge | E26: .25% (residual term to final maturity 6 months or less);
E27: 1.00% (residual term to maturity greater than 6 and up to and including 24 months);
E28: 1.60% (residual term to final maturity exceeding 24 months)

Sheet FX
B1: N.B. Please select from the drop down list for Currency Type.
C2: Foreign Exchange Risk
E5: ($000s)
B6: Currency | C6: Net Spot Position (1.1) | D6: Net Forward Position (1.2) | E6: Guarantees (1.3) | F6: Net Future Income/Expenses (1.4) | G6: Net Delta Based of Foreign Currency Options (1.5) | H6: Net Open Position (1.6)
B8: USD | H8: =SUM(C8:G8) -> 0
B9: EUR | H9: =SUM(C9:G9) -> 0
B10: JPY | H10: 0
B11: GBP | F11: 0 | H11: 0
B12: CHF | H12: 0
B13: CAD | H13: 0
B14: HKD | H14: 0
B15: MXN | F15: 0 | H15: 0
B16: INR | H16: 0
B17: BRL | F17: 0 | H17: 0
B18: PAB | H18: 0
B19: Other | F19: 0 | H19: 0
B20: Total | C20: =SUM(C8:C19) -> 0 | D20: 0 | E20: 0 | F20: 0 | G20: 0 | H20: 0
B22: Net Long Position (1.7) | E22: =SUMIF(H8:H19,">0") -> 0
B23: Net Short Position (1.8) | E23: =SUMIF(H8:H19,"<0") -> 0
B24: Gold-Absolute Value of Open Position (1.9) | E24: 0
B25: Greater of Absolute Value of Net Long and Net Short Position (1.10) | E25: =MAX(ABS(E22),ABS(E23)) -> 0
B26: Foreign Exchange Option Risk | E26: ='Equity Forex Commodity OptionP2'!G51 -> 0
B27: Total Foreign Exchange Exposure | E27: =E24+E25+E26 -> 0
B28: Total Capital Charge for FX Risk (1.11) (8%) | E28: =0.08 *E27 -> 0

Sheet Equity
C2: Equity Risk
E3: ($000s)
C4: A | D4: B | E4: C | F4: D | G4: E | H4: F
B5: Equity Instruments | C5: Gross Long | D5: Gross Short | E5: Gross Equity Position | F5: Net Open Position | G5: 8% Gross Position | H5: 8% Net Position
E6: (Col A + B) | F6: (Col A - B) | G6: (8% of C) | H6: (8% of D)
E7: =C7 +D7 -> 0 | F7: =C7- D7 -> 0 | G7: =0.08 * E7 -> 0 | H7: =0.08 * F7 -> 0
E8: =C8 +D8 -> 0 | F8: =C8- D8 -> 0 | G8: =0.08 * E8 -> 0 | H8: 0
E9: 0 | F9: 0 | G9: 0 | H9: 0
E10: 0 | F10: 0 | G10: 0 | H10: 0
E11: 0 | F11: 0 | G11: 0 | H11: 0
E12: 0 | F12: 0 | G12: 0 | H12: 0
E13: 0 | F13: 0 | G13: 0 | H13: 0
E14: 0 | F14: 0 | G14: 0 | H14: 0
E15: 0 | F15: 0 | G15: 0 | H15: 0
E16: 0 | F16: 0 | G16: 0 | H16: 0
E17: 0 | F17: 0 | G17: 0 | H17: 0
E18: 0 | F18: 0 | G18: 0 | H18: 0
E19: 0 | F19: 0 | G19: 0 | H19: 0
E20: 0 | F20: 0 | G20: 0 | H20: 0
E21: 0 | F21: 0 | G21: 0 | H21: 0
E22: 0 | F22: 0 | G22: 0 | H22: 0
E23: 0 | F23: 0 | G23: 0 | H23: 0
E24: 0 | F24: 0 | G24: 0 | H24: 0
E25: 0 | F25: 0 | G25: 0 | H25: 0
E26: 0 | F26: 0 | G26: 0 | H26: 0
B27: Total Equity Instruments | C27: =SUM(C7:C26) -> 0 | D27: =SUM(D7:D26) -> 0 | E27: =C27 + D27 -> 0 | F27: =C27 - D27 -> 0 | G27: 0 | H27: 0
B28: Capital Required Against Specific Risk (Total Column E) | H28: =G27 -> 0
B29: Capital Required Against General Risks (Total Column F) | H29: =H27 -> 0
B30: Capital Required Against Equity Options (Taken from Liabilities8A) | H30: ='Equity Forex Commodity OptionP1'!G51 -> 0
B31: Total Capital Requirement Against Equity Position Risk (Total of Rows: 1 + 2 + 3) | H31: =SUM(H28 + H29+ H30) -> 0
B32: Equity Position Risk Equivalent Assets (Total Capital Requirement x Reciprocal of CAR) | H32: =H31 * 12.5 -> 0

Sheet Commodities
B2: Commodities Risk
B3: ($000s)
C4: A | D4: B | E4: C | F4: D | G4: E | H4: F
B5: Commodity Instruments | C5: Gross Long | D5: Gross Short | E5: Gross Equity Position | F5: Net Open Position | G5: 15% of Net Open | H5: 3% Net Position
E6: (Col A + B) | F6: (Col A - B) | G6: (15% of D) | H6: (3% of C)
E7: =C7 +D7 -> 0 | F7: =C7- D7 -> 0 | G7: =0.15 * F7 -> 0 | H7: =0.03 * E7 -> 0
E8: =C8 +D8 -> 0 | F8: =C8- D8 -> 0 | G8: =0.15 * F8 -> 0 | H8: =0.03 * E8 -> 0
E9: 0 | F9: 0 | G9: 0 | H9: 0
E10: 0 | F10: 0 | G10: 0 | H10: 0
E11: 0 | F11: 0 | G11: 0 | H11: 0
E12: 0 | F12: 0 | G12: 0 | H12: 0
E13: 0 | F13: 0 | G13: 0 | H13: 0
E14: 0 | F14: 0 | G14: 0 | H14: 0
E15: 0 | F15: 0 | G15: 0 | H15: 0
E16: 0 | F16: 0 | G16: 0 | H16: 0
E17: 0 | F17: 0 | G17: 0 | H17: 0
E18: 0 | F18: 0 | G18: 0 | H18: 0
E19: 0 | F19: 0 | G19: 0 | H19: 0
E20: 0 | F20: 0 | G20: 0 | H20: 0
E21: 0 | F21: 0 | G21: 0 | H21: 0
E22: 0 | F22: 0 | G22: 0 | H22: 0
E23: 0 | F23: 0 | G23: 0 | H23: 0
E24: 0 | F24: 0 | G24: 0 | H24: 0
E25: 0 | F25: 0 | G25: 0 | H25: 0
E26: 0 | F26: 0 | G26: 0 | H26: 0
B27: Total Commodity Instruments | C27: =SUM(C7:C26) -> 0 | D27: =SUM(D7:D26) -> 0 | E27: =SUM(C27 + D27) -> 0 | F27: =SUM(C27 - D27) -> 0 | G27: =0.15 * F27 -> 0 | H27: =0.03 * E27 -> 0
B28: Capital Required Against Directional Risks (Total Column E) | H28: =G27 -> 0
B29: Capital Required Against Basis, Interest Rate & Forward Gap Risks (Total Column F) | H29: =H27 -> 0
B30: Capital Required Against Commodity Options (Taken from Liabilities8C) | H30: ='Equity Forex Commodity OptionP3'!G50 -> 0
B31: Total Capital Requirement Against Commodity Position Risk (Total of Rows: 1 + 2 + 3) | H31: =SUM(H28 + H29 + H30) -> 0
B32: Commodity Position Risk Equivalent Assets (Total Capital Requirement x CAR Reciprocal) | H32: =H31 * 12.5 -> 0
B34: Note: Each commodity position should be expressed in terms of the standard unit of measurement (e.g. barrels, kilos, grams, etc.) and the net position converted at current spot rates into the domestic currency.

Sheet Interest Rate Options
A2: Interest Rate Options
B4: For underlying instrument: | D4: ZONE 1 | H4: ZONE 2 | K4: ZONE 3
B5: Maturity Time Band | D5: 0 - 1 Mth | E5: > 1 - 3 Mths | F5: > 3 - 6 Mths | G5: > 6 - 12 Mths | H5: > 1 - 1.9 Yrs | I5: > 1.9 - 2.8 Yrs | J5: > 2.8 - 3.6 Yrs | K5: > 3.6 - 4.3 Yrs | L5: > 4.3 - 5.7 Yrs | M5: > 5.7 - 7.3 Yrs | N5: > 7.3 - 9.3 Yrs | O5: > 9.3 - 10.6 Yrs | P5: > 10.6 -12 Yrs | Q5: > 12 - 20 Yrs | R5: > 20 Yrs
B6: Specific Risk for 'Government' Securities | D6: 0.00% | E6: 0.00% | F6: 0.00% | G6: 0.00% | H6: 0.00% | I6: 0.00% | J6: 0.00% | K6: 0.00% | L6: 0.00% | M6: 0.00% | N6: 0.00% | O6: 0.00% | P6: 0.00% | Q6: 0.00% | R6: 0.00%
B7: Specific Risk for 'Qualifying' Securities | D7: 0.25% | E7: 0.25% | F7: 0.25% | G7: 1.00% | H7: 1.00% | I7: 1.60% | J7: 1.60% | K7: 1.60% | L7: 1.60% | M7: 1.60% | N7: 1.60% | O7: 1.60% | P7: 1.60% | Q7: 1.60% | R7: 1.60%
B8: Specific Risk for 'Other' Securities | D8: 8.00% | E8: 8.00% | F8: 8.00% | G8: 8.00% | H8: 8.00% | I8: 8.00% | J8: 8.00% | K8: 8.00% | L8: 8.00% | M8: 8.00% | N8: 8.00% | O8: 8.00% | P8: 8.00% | Q8: 8.00% | R8: 8.00%
H10: ($000s)
D11: Market Value of the Underlying Securities | E11: Market Value of the Options | F11: Risk Charge (Total Market Risk (8%) + Specific Risk (8%)) | G11: Amount the Option is in the Money | H11: Capital Charge
B13: Total Long Cash and Long Put | H13: =SUM(H14:H23) -> 0
F14: 16% | H14: =MAX((D14 * F14) - G14,0) -> 0
F15: 16% | H15: 0
F16: 16% | H16: 0
F17: 16% | H17: 0
F18: 16% | H18: 0
F19: 16% | H19: 0
F20: 16% | H20: 0
F21: 16% | H21: 0
F22: 16% | H22: 0
F23: 16% | H23: 0
B24: Total Short Cash and Long Call | H24: =SUM(H25:H34) -> 0
F25: 16% | H25: =MAX((D25 * F25) - G25,0) -> 0
F26: 16% | H26: 0
F27: 16% | H27: 0
F28: 16% | H28: 0
F29: 16% | H29: 0
F30: 16% | H30: 0
F31: 16% | H31: 0
F32: 16% | H32: 0
F33: 16% | H33: 0
F34: 16% | H34: 0
B35: Total Long Call | H35: =SUM(H36:H45) -> 0
F36: 16% | H36: =IF((D36 *F36)<E36,D36*F36,E36) -> 0
F37: 16% | H37: 0
F38: 16% | H38: 0
F39: 16% | H39: 0
F40: 16% | H40: 0
F41: 16% | H41: 0
F42: 16% | H42: 0
F43: 16% | H43: 0
F44: 16% | H44: 0
F45: 16% | H45: 0
B46: Total Long Put | H46: =SUM(H47:H56) -> 0
F47: 16% | H47: =IF((D47 *F47)<E47,D47*F47,E47) -> 0
F48: 16% | H48: 0
F49: 16% | H49: 0
F50: 16% | H50: 0
F51: 16% | H51: 0
F52: 16% | H52: 0
F53: 16% | H53: 0
F54: 16% | H54: 0
F55: 16% | H55: 0
F56: 16% | H56: 0
B59: Total Capital Charge for Interest Rate Options: | H59: =SUM(H13 + H24 + H35 + H46) -> 0

Sheet Equity Forex Commodity OptionP1
C2: Equity Forex Commodity Options
G3: ($000s)
C4: Market Value of the Underlying Securities | D4: Market Value of the Options | E4: Risk Charge | F4: Amount the Option is in the Money | G4: Capital Charge
B5: Equity Options
B6: Total Long Cash and Long Put | G6: =SUM(G7:G16) -> 0
E7: 16% | G7: =MAX((C7 * E7) - F7,0) -> 0
E8: 16% | G8: =MAX((C8 * E8) - F8,0) -> 0
E9: 16% | G9: 0
E10: 16% | G10: 0
E11: 16% | G11: 0
E12: 16% | G12: 0
E13: 16% | G13: 0
E14: 16% | G14: 0
E15: 16% | G15: 0
E16: 16% | G16: 0
B17: Total Short Cash and Long Call | G17: =SUM(G18:G27) -> 0
E18: 16% | G18: =MAX((C18 * E18) - F18,0) -> 0
E19: 16% | G19: 0
E20: 16% | G20: 0
E21: 16% | G21: 0
E22: 16% | G22: 0
E23: 16% | G23: 0
E24: 16% | G24: 0
E25: 16% | G25: 0
E26: 16% | G26: 0
E27: 16% | G27: 0
B28: Total Long Call | G28: =SUM(G29:G38) -> 0
E29: 16% | G29: =IF((C29 *E29)<D29,C29*E29,D29) -> 0
E30: 16% | G30: =IF((C30 *E30)<D30,C30*E30,D30) -> 0
E31: 16% | G31: 0
E32: 16% | G32: 0
E33: 16% | G33: 0
E34: 16% | G34: 0
E35: 16% | G35: 0
E36: 16% | G36: 0
E37: 16% | G37: 0
E38: 16% | G38: 0
B39: Total Long Put | G39: =SUM(G40:G49) -> 0
E40: 16% | G40: =IF((C40 *E40)<D40,C40*E40,D40) -> 0
E41: 16% | G41: 0
E42: 16% | G42: 0
E43: 16% | G43: 0
E44: 16% | G44: 0
E45: 16% | G45: 0
E46: 16% | G46: 0
E47: 16% | G47: 0
E48: 16% | G48: 0
E49: 16% | G49: 0
B51: Total Capital Charge for Equity Options: | G51: =SUM(G6 + G17 + G28 + G39) -> 0

Sheet Equity Forex Commodity OptionP2
C2: Equity Forex Commodity Options
G3: ($000s)
C4: Market Value of the Underlying Securities | D4: Market Value of the Options | E4: Risk Charge | F4: Amount the Option is in the Money | G4: Capital Charge
B5: Foreign Exchange Options
B6: Total Long Cash and Long Put | G6: =SUM(G7:G16) -> 0
E7: 10% | G7: =MAX((C7 * E7) - F7,0) -> 0
E8: 10% | G8: =MAX((C8 * E8) - F8,0) -> 0
E9: 10% | G9: 0
E10: 10% | G10: 0
E11: 10% | G11: 0
E12: 10% | G12: 0
E13: 10% | G13: 0
E14: 10% | G14: 0
E15: 10% | G15: 0
E16: 10% | G16: 0
B17: Total Short Cash and Long Call | G17: =SUM(G18:G27) -> 0
E18: 10% | G18: =MAX((C18 * E18) - F18,0) -> 0
E19: 10% | G19: 0
E20: 10% | G20: 0
E21: 10% | G21: 0
E22: 10% | G22: 0
E23: 10% | G23: 0
E24: 10% | G24: 0
E25: 10% | G25: 0
E26: 10% | G26: 0
E27: 10% | G27: 0
B28: Total Long Call | G28: =SUM(G29:G38) -> 0
E29: 10% | G29: =IF((C29 *E29)<D29,C29*E29,D29) -> 0
E30: 10% | G30: 0
E31: 10% | G31: 0
E32: 10% | G32: 0
E33: 10% | G33: 0
E34: 10% | G34: 0
E35: 10% | G35: 0
E36: 10% | G36: 0
E37: 10% | G37: 0
E38: 10% | G38: 0
B39: Total Long Put | G39: =SUM(G40:G49) -> 0
E40: 10% | G40: =IF((C40 *E40)<D40,C40*E40,D40) -> 0
E41: 10% | G41: 0
E42: 10% | G42: 0
E43: 10% | G43: 0
E44: 10% | G44: 0
E45: 10% | G45: 0
E46: 10% | G46: 0
E47: 10% | G47: 0
E48: 10% | G48: 0
E49: 10% | G49: 0
B51: Total Capital Charge for Foreign Exchange Options: | G51: =SUM(G6 + G17 + G28 + G39) -> 0

Sheet Equity Forex Commodity OptionP3
C1: Equity Forex Commodity Options
G2: ($000s)
C3: Market Value of the Underlying Securities | D3: Market Value of the Options | E3: Risk Charge | F3: Amount the Option is in the Money | G3: Capital Charge
B4: Commodity Options
B5: Total Long Cash and Long Put | G5: =SUM(G6:G15) -> 0
E6: 18% | G6: =MAX((C6 * E6) - F6,0) -> 0
E7: 18% | G7: =MAX((C7 * E7) - F7,0) -> 0
E8: 18% | G8: 0
E9: 18% | G9: 0
E10: 18% | G10: 0
E11: 18% | G11: 0
E12: 18% | G12: 0
E13: 18% | G13: 0
E14: 18% | G14: 0
E15: 18% | G15: 0
B16: Total Short Cash and Long Call | G16: =SUM(G17:G26) -> 0
E17: 18% | G17: =MAX((C17 * E17) - F17,0) -> 0
E18: 18% | G18: 0
E19: 18% | G19: 0
E20: 18% | G20: 0
E21: 18% | G21: 0
E22: 18% | G22: 0
E23: 18% | G23: 0
E24: 18% | G24: 0
E25: 18% | G25: 0
E26: 18% | G26: 0
B27: Total Long Call | G27: =SUM(G28:G37) -> 0
E28: 18% | G28: =IF((C28 *E28)<D28,C28*E28,D28) -> 0
E29: 18% | G29: 0
E30: 18% | G30: 0
E31: 18% | G31: 0
E32: 18% | G32: 0
E33: 18% | G33: 0
E34: 18% | G34: 0
E35: 18% | G35: 0
E36: 18% | G36: 0
E37: 18% | G37: 0
B38: Total Long Put | G38: =SUM(G39:G48) -> 0
E39: 18% | G39: =IF((C39 *E39)<D39,C39*E39,D39) -> 0
E40: 18% | G40: 0
E41: 18% | G41: 0
E42: 18% | G42: 0
E43: 18% | G43: 0
E44: 18% | G44: 0
E45: 18% | G45: 0
E46: 18% | G46: 0
E47: 18% | G47: 0
E48: 18% | G48: 0
B50: Total Capital Charge for Commodity Options: | G50: =SUM(G5 + G16 + G27 + G38) -> 0

Sheet AppendRatio
F2: Ratio Summary
E5: Appendix Ratios | J5: Current
D7: 1. | E7: Return to Shareholders:
D8: 1.1 | E8: Dividends Payout Ratio | J8: =IF(ISERROR(Form7R!$G$72/Form7R!$G$69),"",(Form7R!$G$72/Form7R!$G$69)) -> 
D10: 2. | E10: Assets Quality:
D11: 2.1 | E11: Non-Performing Loans/Total Loans | J11: =IF(ISERROR(Form2!N51/Form2!N50),"",Form2!N51/Form2!N50) -> 
D12: 2.2 | E12: Specific Provisions/Non-Performing Loans | J12: =IF(ISERROR('Form 1'!$N$67/Form2!$N$51),"",('Form 1'!$N$67/Form2!$N$51)) -> 
D13: 2.3 | E13: General Provisions/Total Loans (on- and off- balance exposures) | J13: =IF(ISERROR('Form 1'!$N$68/(Form2!$N$50+Form2!$N$106)),"",('Form 1'!$N$68/(Form2!$N$50+Form2!$N$106))) -> 
D15: 3. | E15: Management Ratios:
D16: 3.1 | E16: Efficiency Ratios (Non-Interest Expense/Total Operating Income) | J16: =Form7R!$I$44/Form7R!$I$31 -> 
D18: 4. | E18: Earnings Ratios:
D19: 4.1 | E19: Return on Assets(Net Income/Total Assets) | J19: =IF(ISERROR(Form7R!$G$69/Form2!$N$92),"",(Form7R!$G$69/Form2!$N$92)) -> 
D20: 4.2 | E20: Return on Equity (Net Income/Shareholder's Equity) | J20: =IF(ISERROR(Form7R!$G$69/('Form 1'!$N$61+'Form 1'!$N$65+'Form 1'!$N$69)),"",(Form7R!$G$69/('Form 1'!$N$61+'Form 1'!$N$65+'Form 1'!$N$69))) -> 
D21: 4.3 | E21: Profit Margin | J21: =IF(ISERROR(Form7R!$G$69/Form7R!$I$31),"",(Form7R!$G$69/Form7R!$I$31)) -> 
D23: 5. | E23: Liquidity Ratios:
D24: 5.1 | E24: Total Loans/Total Deposits | J24: =IF(ISERROR(Form2!$N$50/'Form 1'!$N$11),"",(Form2!$N$50/'Form 1'!$N$11)) -> 
D25: 5.2 | E25: Liquidity Ratio (Liquid Assets/Total Deposits) | J25: =IF(ISERROR(J33/'Form 1'!$N$11),"",(J33/'Form 1'!$N$11)) -> 
D26: 5.3 | E26: Liquid Assets/Total Assets | J26: =IF(ISERROR(J33/Form2!$N$92),"",(J33/Form2!$N$92)) -> 
D28: 6. | E28: Leverage Ratios:
D29: 6.1 | E29: Third Party Deposits/Eligible Capital (times) | J29: =IF(ISERROR(('Form 1'!N11-'Form 1'!N74)/('New CapSum'!H14)),"",('Form 1'!N11-'Form 1'!N74)/('New CapSum'!H14)) -> 
D30: 6.2 | E30: Total Deposits/Eligible Capital (times) | J30: =IF(ISERROR('Form 1'!N11/('New CapSum'!H14)),"",'Form 1'!N11/('New CapSum'!H14)) -> 
D32: 7. | E32: Other:
E33: Liquid Assets | J33: =Form2!N9+Form2!N10+Form2!N12+Form2!N86+'Assets by Zone'!Q17+'Assets by Zone'!Q19+'Assets by Zone'!Q21+'Assets by Zone'!Q24+'Assets by Zone'!Q26+'Assets by Zone'!Q28+'Assets by Zone'!Q32+'Assets by Zone'!Q34-'Assets by Zone'!Q50-'Assets by Zone'!Q53+Form2!N24+Form2!N26+Form2!N27+Form2!N31+Form2!N32+Form2!N29-'Form 1'!N25-'Form 1'!N27-'Form 1'!N29-'Form 1'!N31+Form2!N34-'Form 1'!N33 -> 0

Sheet Enumerations 1 (hidden)
A1: Enumeration * | B1: Key * | C1: Label * | D1: Parent Key
A2: Country | B2: 5R | C2: DEVELOPED COUNTRIES (5R)
A3: Country | B3: AD | C3: Andorra | D3: 5R
A4: Country | B4: AT | C4: Austria | D4: 5R
A5: Country | B5: BE | C5: Belgium | D5: 5R
A6: Country | B6: DK | C6: Denmark (excludes Faroe Islands and Greenland) | D6: 5R
A7: Country | B7: FO | C7: Faroe Island | D7: 5R
A8: Country | B8: FI | C8: Finland (includes Aland Islands) | D8: 5R
A9: Country | B9: FR | C9: France (includes French Guiana, French Southern Territories, Guadeloupe, Martinique, Mayotte, Monaco, Reunion and St. Pierre and Miquelon) | D9: 5R
A10: Country | B10: DE | C10: Germany (including the European Central Bank) | D10: 5R
A11: Country | B11: GR | C11: Greece | D11: 5R
A12: Country | B12: GL | C12: Greenland | D12: 5R
A13: Country | B13: IS | C13: Iceland | D13: 5R
A14: Country | B14: IE | C14: Ireland | D14: 5R
A15: Country | B15: IT | C15: Italy | D15: 5R
A16: Country | B16: LI | C16: Liechtenstein | D16: 5R
A17: Country | B17: LU | C17: Luxembourg | D17: 5R
A18: Country | B18: NL | C18: Netherlands | D18: 5R
A19: Country | B19: NO | C19: Norway (includes Bouvet Islands, Svalbard and Jan Mayen Islands) | D19: 5R
A20: Country | B20: PT | C20: Portugal (includes the Azores and Madeira) | D20: 5R
A21: Country | B21: SM | C21: San Marino | D21: 5R
A22: Country | B22: ES | C22: Spain (includes Balearic Islands, Canary Islands and Ceuta and Melilla) | D22: 5R
A23: Country | B23: SE | C23: Sweden | D23: 5R
A24: Country | B24: CH | C24: Switzerland (includes Bank for International Settlements) | D24: 5R
A25: Country | B25: U1 | C25: United Kingdom (excludes Guernsey, Isle of Man and Jersey) | D25: 5R
A26: Country | B26: VA | C26: Vatican | D26: 5R
A27: Country | B27: AU | C27: Australia (includes Christmas Islands, Cocos Islands, Norfolk Islands, Heard and McDonald Islands, Territory of Ashmore and Cartier Islands and Territory of Coral Sea Islands) | D27: 5R
A28: Country | B28: CA | C28: Canada | D28: 5R
A29: Country | B29: JP | C29: Japan | D29: 5R
A30: Country | B30: NZ | C30: New Zealand (includes Cook Islands, Minor Islands, Niue, Ross Dependency and Tokelau) | D30: 5R
A31: Country | B31: US | C31: United States (includes American Samoa, Guam, Midway Islands, Northern Mariana Islands, Puerto Rico, US Virgin Islands and Wake Islands) | D31: 5R
A32: Country | B32: 1N | C32: OFFSHORE CENTRES (1N)
A33: Country | B33: AW | C33: Aruba | D33: 1N
A34: Country | B34: BS | C34: Bahamas | D34: 1N
A35: Country | B35: BH | C35: Bahrain | D35: 1N
A36: Country | B36: BB | C36: Barbados | D36: 1N
A37: Country | B37: BM | C37: Bermuda | D37: 1N
A38: Country | B38: KY | C38: Cayman Islands | D38: 1N
A39: Country | B39: GI | C39: Gibraltar | D39: 1N
A40: Country | B40: GG | C40: Guernsey | D40: 1N
A41: Country | B41: HK | C41: Hong Kong SAR | D41: 1N
A42: Country | B42: IM | C42: Isle of Man | D42: 1N
A43: Country | B43: JE | C43: Jersey | D43: 1N
A44: Country | B44: LB | C44: Lebanon | D44: 1N
A45: Country | B45: MO | C45: Macau SAR | D45: 1N
A46: Country | B46: MU | C46: Mauritius | D46: 1N
A47: Country | B47: AN | C47: Netherlands Antilles(including Bonaire, Curacao,Saba,St. Eustatius and St. Maarten) | D47: 1N
A48: Country | B48: PA | C48: Panama | D48: 1N
A49: Country | B49: SG | C49: Singapore | D49: 1N
A50: Country | B50: VU | C50: Vanuatu | D50: 1N
A51: Country | B51: 1Z | C51: West Indies UK (includes Anguilla, Antigua and Barbuda, British Virgin Islands, Montserrat and St. Christopher/St. Kitts - Nevis) | D51: 1N
A52: Country | B52: 3C | C52: DEVELOPING EUROPE (3C) | D52: 4T
A53: Country | B53: AL | C53: Albania | D53: 3C
A54: Country | B54: BY | C54: Belarus | D54: 3C
A55: Country | B55: BA | C55: Bosnia and Herzegovina | D55: 3C
A56: Country | B56: BG | C56: Bulgaria | D56: 3C
A57: Country | B57: HR | C57: Croatia | D57: 3C
A58: Country | B58: CY | C58: Cyprus | D58: 3C
A59: Country | B59: CZ | C59: Czech Republic | D59: 3C
A60: Country | B60: EE | C60: Estonia | D60: 3C
A61: Country | B61: HU | C61: Hungary | D61: 3C
A62: Country | B62: LV | C62: Latvia | D62: 3C
A63: Country | B63: LT | C63: Lithuania | D63: 3C
A64: Country | B64: MK | C64: Macedonia (the former Yugoslav Republic of -) | D64: 3C
A65: Country | B65: MT | C65: Malta | D65: 3C
A66: Country | B66: MD | C66: Moldova | D66: 3C
A67: Country | B67: PL | C67: Poland | D67: 3C
A68: Country | B68: RO | C68: Romania | D68: 3C
A69: Country | B69: RU | C69: Russia | D69: 3C
A70: Country | B70: CS | C70: Serbia and Montenegro | D70: 3C
A71: Country | B71: SK | C71: Slovakia | D71: 3C
A72: Country | B72: SI | C72: Slovenia | D72: 3C
A73: Country | B73: TR | C73: Turkey | D73: 3C
A74: Country | B74: UA | C74: Ukraine | D74: 3C
A75: Country | B75: 2B | C75: Residual Europe (including IBEC and IIB) | D75: 3C
A76: Country | B76: 4U | C76: Developing Latin America and Caribbean (4U) | D76: 4T
A77: Country | B77: AR | C77: Argentina | D77: 4U
A78: Country | B78: BZ | C78: Belize | D78: 4U
A79: Country | B79: BO | C79: Bolivia | D79: 4U
A80: Country | B80: BR | C80: Brazil | D80: 4U
A81: Country | B81: CL | C81: Chile | D81: 4U
A82: Country | B82: CO | C82: Colombia | D82: 4U
A83: Country | B83: CR | C83: Costa Rica | D83: 4U
A84: Country | B84: CU | C84: Cuba | D84: 4U
A85: Country | B85: DM | C85: Dominica | D85: 4U
A86: Country | B86: DO | C86: Dominican Republic | D86: 4U
A87: Country | B87: EC | C87: Ecuador | D87: 4U
A88: Country | B88: SV | C88: El Salvador | D88: 4U
A89: Country | B89: FK | C89: Falkland Islands | D89: 4U
A90: Country | B90: GD | C90: Grenada | D90: 4U
A91: Country | B91: GT | C91: Guatemala | D91: 4U
A92: Country | B92: GY | C92: Guyana | D92: 4U
A93: Country | B93: HT | C93: Haiti | D93: 4U
A94: Country | B94: HN | C94: Honduras | D94: 4U
A95: Country | B95: JM | C95: Jamaica | D95: 4U
A96: Country | B96: MX | C96: Mexico | D96: 4U
A97: Country | B97: NI | C97: Nicaragua | D97: 4U
A98: Country | B98: PY | C98: Paraguay | D98: 4U
A99: Country | B99: PE | C99: Peru | D99: 4U
A100: Country | B100: LC | C100: St. Lucia | D100: 4U
A101: Country | B101: VC | C101: St. Vincent(Including the Grenadines) | D101: 4U
A102: Country | B102: SR | C102: Suriname | D102: 4U
A103: Country | B103: TT | C103: Trinidad and Tobago | D103: 4U
A104: Country | B104: TC | C104: Turks and Caicos | D104: 4U
A105: Country | B105: UY | C105: Uruguay | D105: 4U
A106: Country | B106: VE | C106: Venezuela | D106: 4U
A107: Country | B107: 2H | C107: Residual Latin America and Caribbean | D107: 4U
A108: Country | B108: 4W | C108: Developing Africa and Middle East (4W) | D108: 4T
A109: Country | B109: DZ | C109: Algeria | D109: 4W
A110: Country | B110: AO | C110: Angola | D110: 4W
A111: Country | B111: BJ | C111: Benin | D111: 4W
A112: Country | B112: BW | C112: Botswana | D112: 4W
A113: Country | B113: BF | C113: Burkina Faso (since August 1984, formerly Upper Volta) | D113: 4W
A114: Country | B114: BI | C114: Burundi | D114: 4W
A115: Country | B115: CM | C115: Cameroon | D115: 4W
A116: Country | B116: CV | C116: Cape Verde | D116: 4W
A117: Country | B117: CF | C117: Central African Republic | D117: 4W
A118: Country | B118: TD | C118: Chad | D118: 4W
A119: Country | B119: KM | C119: Comoros Islands | D119: 4W
A120: Country | B120: CG | C120: Congo | D120: 4W
A121: Country | B121: CD | C121: Congo, Democratic Republic (formerly Zaire) | D121: 4W
A122: Country | B122: CI | C122: Cote d'Ivoire | D122: 4W
A123: Country | B123: DJ | C123: Djibouti | D123: 4W
A124: Country | B124: EG | C124: Egypt | D124: 4W
A125: Country | B125: GQ | C125: Equatorial Guinea | D125: 4W
A126: Country | B126: ER | C126: Eritrea | D126: 4W
A127: Country | B127: ET | C127: Ethiopia | D127: 4W
A128: Country | B128: GA | C128: Gabon | D128: 4W
A129: Country | B129: GM | C129: Gambia | D129: 4W
A130: Country | B130: GH | C130: Ghana | D130: 4W
A131: Country | B131: GN | C131: Guinea | D131: 4W
A132: Country | B132: GW | C132: Guinea-Bissau | D132: 4W
A133: Country | B133: IR | C133: Iran | D133: 4W
A134: Country | B134: IQ | C134: Iraq | D134: 4W
A135: Country | B135: IL | C135: Israel | D135: 4W
A136: Country | B136: JO | C136: Jordan | D136: 4W
A137: Country | B137: KE | C137: Kenya | D137: 4W
A138: Country | B138: KW | C138: Kuwait | D138: 4W
A139: Country | B139: LS | C139: Lesotho | D139: 4W
A140: Country | B140: LR | C140: Liberia | D140: 4W
A141: Country | B141: LY | C141: Libya | D141: 4W
A142: Country | B142: MG | C142: Madagascar | D142: 4W
A143: Country | B143: MW | C143: Malawi | D143: 4W
A144: Country | B144: ML | C144: Mali | D144: 4W
A145: Country | B145: MR | C145: Mauritania | D145: 4W
A146: Country | B146: MA | C146: Morocco | D146: 4W
A147: Country | B147: MZ | C147: Mozambique | D147: 4W
A148: Country | B148: NA | C148: Namibia | D148: 4W
A149: Country | B149: NE | C149: Niger | D149: 4W
A150: Country | B150: NG | C150: Nigeria | D150: 4W
A151: Country | B151: OM | C151: Oman | D151: 4W
A152: Country | B152: PS | C152: Palestinian Territory | D152: 4W
A153: Country | B153: QA | C153: Qatar | D153: 4W
A154: Country | B154: RW | C154: Rwanda | D154: 4W
A155: Country | B155: ST | C155: Sao Tome and Principe | D155: 4W
A156: Country | B156: SA | C156: Saudi Arabia | D156: 4W
A157: Country | B157: SN | C157: Senegal | D157: 4W
A158: Country | B158: SC | C158: Seychelles | D158: 4W
A159: Country | B159: SL | C159: Sierra Leone | D159: 4W
A160: Country | B160: SO | C160: Somalia | D160: 4W
A161: Country | B161: ZA | C161: South Africa | D161: 4W
A162: Country | B162: SH | C162: St. Helena (includes Ascension, Gough and Tristan Da Cunha) | D162: 4W
A163: Country | B163: SD | C163: Sudan | D163: 4W
A164: Country | B164: SZ | C164: Swaziland | D164: 4W
A165: Country | B165: SY | C165: Syria | D165: 4W
A166: Country | B166: TZ | C166: Tanzania | D166: 4W
A167: Country | B167: TG | C167: Togo | D167: 4W
A168: Country | B168: TN | C168: Tunisia | D168: 4W
A169: Country | B169: UG | C169: Uganda | D169: 4W
A170: Country | B170: AE | C170: United Arab Emirates | D170: 4W
A171: Country | B171: YE | C171: Yemen | D171: 4W
A172: Country | B172: ZM | C172: Zambia | D172: 4W
A173: Country | B173: ZW | C173: Zimbabwe | D173: 4W
A174: Country | B174: 2W | C174: Residual Africa and Middle East(includes Western Sahara) | D174: 4W
A175: Country | B175: 4Y | C175: Developing Asia and Pacific (4Y) | D175: 4T
A176: Country | B176: AF | C176: Afghanistan | D176: 4Y
A177: Country | B177: AM | C177: Armenia | D177: 4Y
A178: Country | B178: AZ | C178: Azerbaijan | D178: 4Y
A179: Country | B179: BD | C179: Bangladesh | D179: 4Y
A180: Country | B180: BT | C180: Bhutan | D180: 4Y
A181: Country | B181: 1W | C181: British Overseas Territories (includes British Antarctic Territory, British Indian Ocean Territory, Chagos, Pitcairn Islands, South Georgia and South Sandwich Islands) | D181: 4Y
A182: Country | B182: BN | C182: Brunei | D182: 4Y
A183: Country | B183: KH | C183: Cambodia (since March 1991, formerly Kampuchea) | D183: 4Y
A184: Country | B184: CN | C184: China | D184: 4Y
A185: Country | B185: FJ | C185: Fiji | D185: 4Y
A186: Country | B186: PF | C186: French Polynesia (includes Clipperton, Gambier, Masquesas, Society, Tuamotu Archipelago and Tubai) | D186: 4Y
A187: Country | B187: GE | C187: Georgia | D187: 4Y
A188: Country | B188: IN | C188: India | D188: 4Y
A189: Country | B189: ID | C189: Indonesia | D189: 4Y
A190: Country | B190: KZ | C190: Kazakhstan | D190: 4Y
A191: Country | B191: KI | C191: Kiribati (Canton and Enderbury, Gilbert Island, Phoenix Islands, Line Islands) | D191: 4Y
A192: Country | B192: KG | C192: Kyrgyz Republic | D192: 4Y
A193: Country | B193: LA | C193: Laos | D193: 4Y
A194: Country | B194: MY | C194: Malaysia (Including Labuan International Offshore Financial Centre) | D194: 4Y
A195: Country | B195: MV | C195: Maldives | D195: 4Y
A196: Country | B196: MH | C196: Marshall Islands | D196: 4Y
A197: Country | B197: FM | C197: Micronesia | D197: 4Y
A198: Country | B198: MN | C198: Mongolia | D198: 4Y
A199: Country | B199: MM | C199: Myanmar (since March 1990, formerly Burma) | D199: 4Y
A200: Country | B200: NR | C200: Nauru | D200: 4Y
... 33 more rows

Sheet Currency (hidden)
A1: Enumeration * | B1: Key * | C1: Label * | D1: Parent Key
A2: Currency | B2: Dom | C2: Domestic
A3: Currency | B3: Frgn | C3: Foreign
A4: Currency | B4: B$ | C4: B$-Bahamian Dollar | D4: Dom
A5: Currency | B5: USD | C5: USD-United States Dollar | D5: Frgn
A6: Currency | B6: OtherNonB$USD | C6: Other Non B$/USD | D6: Frgn
A7: Currency | B7: EUR | C7: EUR-Euro Currency | D7: OtherNonB$USD
A8: Currency | B8: GBP | C8: GBP-British Pound | D8: OtherNonB$USD
A9: Currency | B9: OtherNonEURGBP | C9: Other Non EUR/GBP | D9: OtherNonB$USD
A10: Currency | B10: JPY | C10: JPY-Japanese Yen | D10: OtherNonEURGBP
A11: Currency | B11: CHF | C11: CHF-Swiss Franc | D11: OtherNonEURGBP
A12: Currency | B12: CAD | C12: CAD-Canadian Dollar | D12: OtherNonEURGBP
A13: Currency | B13: HKD | C13: HKD-Hong Kong Dollar | D13: OtherNonEURGBP
A14: Currency | B14: MXN | C14: MXN-Mexican Peso | D14: OtherNonEURGBP
A15: Currency | B15: INR | C15: INR-Indian Rupee | D15: OtherNonEURGBP
A16: Currency | B16: BRL | C16: BRL-Brazilian Real | D16: OtherNonEURGBP
A17: Currency | B17: PAB | C17: PAB-Panamanian Balboa | D17: OtherNonEURGBP
A18: Currency | B18: Other | C18: Other | D18: OtherNonEURGBP

Sheet Sector (hidden)
A1: Enumeration * | B1: Key * | C1: Label * | D1: Parent Key | E1: Column1 | F1: Column2 | G1: Column3 | H1: Column4 | I1: Column5 | J1: Column6 | K1: Column7 | L1: Column8 | M1: Column9 | N1: Column10 | O1: Column11 | P1: Column12 | Q1: Column13 | R1: Column14 | S1: Column15 | T1: Column16 | U1: Column17 | V1: Column18 | W1: Column19 | X1: Column20 | Y1: Column21 | Z1: Column22 | AA1: Column23 | AB1: Column24 | AC1: Column25 | AD1: Column26 | AE1: Column27 | AF1: Column28 | AG1: Column29 | AH1: Column30 | AI1: Column31 | AJ1: Column32 | AK1: Column33 | AL1: Column34 | AM1: Column35 | AN1: Column36 | AO1: Column37 | AP1: Column38 | AQ1: Column39 | AR1: Column40 | AS1: Column41 | AT1: Column42 | AU1: Column43 | AV1: Column44 | AW1: Column45 | AX1: Column46 | AY1: Column47 | AZ1: Column48 | BA1: Column49 | BB1: Column50 | BC1: Column51 | BD1: Column52 | BE1: Column53 | BF1: Column54 | BG1: Column55 | BH1: Column56 | BI1: Column57 | BJ1: Column58 | BK1: Column59 | BL1: Column60 | BM1: Column61 | BN1: Column62 | BO1: Column63 | BP1: Column64 | BQ1: Column65 | BR1: Column66 | BS1: Column67 | BT1: Column68 | BU1: Column69 | BV1: Column70 | BW1: Column71 | BX1: Column72 | BY1: Column73 | BZ1: Column74 | CA1: Column75 | CB1: Column76 | CC1: Column77 | CD1: Column78 | CE1: Column79 | CF1: Column80 | CG1: Column81 | CH1: Column82 | CI1: Column83 | CJ1: Column84 | CK1: Column85 | CL1: Column86 | CM1: Column87 | CN1: Column88 | CO1: Column89 | CP1: Column90 | CQ1: Column91 | CR1: Column92 | CS1: Column93 | CT1: Column94 | CU1: Column95 | CV1: Column96 | CW1: Column97 | CX1: Column98 | CY1: Column99 | CZ1: Column100 | DA1: Column101 | DB1: Column102 | DC1: Column103 | DD1: Column104 | DE1: Column105 | DF1: Column106 | DG1: Column107 | DH1: Column108 | DI1: Column109 | DJ1: Column110 | DK1: Column111 | DL1: Column112 | DM1: Column113 | DN1: Column114 | DO1: Column115 | DP1: Column116 | DQ1: Column117 | DR1: Column118 | DS1: Column119 | DT1: Column120 | DU1: Column121 | DV1: Column122 | DW1: Column123 | DX1: Column124 | DY1: Column125 | DZ1: Column126 | EA1: Column127 | EB1: Column128 | EC1: Column129 | ED1: Column130 | EE1: Column131 | EF1: Column132 | EG1: Column133 | EH1: Column134 | EI1: Column135 | EJ1: Column136 | EK1: Column137 | EL1: Column138 | EM1: Column139 | EN1: Column140 | EO1: Column141 | EP1: Column142 | EQ1: Column143 | ER1: Column144 | ES1: Column145 | ET1: Column146 | EU1: Column147 | EV1: Column148 | EW1: Column149 | EX1: Column150 | EY1: Column151 | EZ1: Column152 | FA1: Column153 | FB1: Column154 | FC1: Column155 | FD1: Column156 | FE1: Column157 | FF1: Column158 | FG1: Column159 | FH1: Column160 | FI1: Column161 | FJ1: Column162 | FK1: Column163 | FL1: Column164 | FM1: Column165 | FN1: Column166 | FO1: Column167 | FP1: Column168 | FQ1: Column169 | FR1: Column170 | FS1: Column171 | FT1: Column172 | FU1: Column173 | FV1: Column174 | FW1: Column175 | FX1: Column176 | FY1: Column177 | FZ1: Column178 | GA1: Column179 | GB1: Column180 | GC1: Column181 | GD1: Column182 | GE1: Column183 | GF1: Column184 | GG1: Column185 | GH1: Column186 | GI1: Column187 | GJ1: Column188 | GK1: Column189 | GL1: Column190 | GM1: Column191 | GN1: Column192 | GO1: Column193 | GP1: Column194 | GQ1: Column195 | GR1: Column196 | GS1: Column197 | GT1: Column198 | GU1: Column199 | GV1: Column200 | GW1: Column201 | GX1: Column202 | GY1: Column203 | GZ1: Column204 | HA1: Column205 | HB1: Column206 | HC1: Column207 | HD1: Column208 | HE1: Column209 | HF1: Column210 | HG1: Column211 | HH1: Column212 | HI1: Column213 | HJ1: Column214 | HK1: Column215 | HL1: Column216 | HM1: Column217 | HN1: Column218 | HO1: Column219 | HP1: Column220 | HQ1: Column221 | HR1: Column222 | HS1: Column223 | HT1: Column224 | HU1: Column225 | HV1: Column226 | HW1: Column227 | HX1: Column228 | HY1: Column229 | HZ1: Column230 | IA1: Column231 | IB1: Column232 | IC1: Column233 | ID1: Column234 | IE1: Column235 | IF1: Column236 | IG1: Column237 | IH1: Column238 | II1: Column239 | IJ1: Column240 | IK1: Column241 | IL1: Column242 | IM1: Column243 | IN1: Column244 | IO1: Column245 | IP1: Column246 | IQ1: Column247 | IR1: Column248 | IS1: Column249 | IT1: Column250 | IU1: Column251 | IV1: Column252
A2: Sector | B2: Resident | C2: Resident
A3: Sector | B3: Agriculture | C3: Agriculture | D3: Resident
A4: Sector | B4: Livestock & Dairying | C4: Livestock & Dairying | D4: Agriculture
A5: Sector | B5: Food Crops | C5: Food Crops | D5: Agriculture
A6: Sector | B6: Other - Agriculture | C6: Other - Agriculture | D6: Agriculture
A7: Sector | B7: Fisheries | C7: Fisheries | D7: Resident
A8: Sector | B8: Mining & Quarrying | C8: Mining & Quarrying | D8: Resident
A9: Sector | B9: Manufacturing | C9: Manufacturing | D9: Resident
A10: Sector | B10: Food & Non-Alcoholic Beverages | C10: Food & Non-Alcoholic Beverages | D10: Manufacturing
A11: Sector | B11: Alcoholic Beverages & Tobacco | C11: Alcoholic Beverages & Tobacco | D11: Manufacturing
A12: Sector | B12: Building Material & Metal Products | C12: Building Material & Metal Products | D12: Manufacturing
A13: Sector | B13: Furniture & Wood Products | C13: Furniture & Wood Products | D13: Manufacturing
A14: Sector | B14: Textiles, Clothing, etc. | C14: Textiles, Clothing, etc. | D14: Manufacturing
A15: Sector | B15: Petro-Chemicals, Chemical & Plastic Products | C15: Petro-Chemicals, Chemical & Plastic Products | D15: Manufacturing
A16: Sector | B16: Other - Manufacturing | C16: Other - Manufacturing | D16: Manufacturing
A17: Sector | B17: Distribution | C17: Distribution | D17: Resident
A18: Sector | B18: Commission Agents | C18: Commission Agents | D18: Distribution
A19: Sector | B19: Wholesale | C19: Wholesale | D19: Distribution
A20: Sector | B20: Retail | C20: Retail | D20: Distribution
A21: Sector | B21: Other - Distribution | C21: Other - Distribution | D21: Distribution
A22: Sector | B22: Tourism | C22: Tourism | D22: Resident
A23: Sector | B23: Hotels | C23: Hotels | D23: Tourism
A24: Sector | B24: Apartments | C24: Apartments | D24: Tourism
A25: Sector | B25: Other - Tourism | C25: Other - Tourism | D25: Tourism
A26: Sector | B26: Entertainment & Catering | C26: Entertainment & Catering | D26: Resident
A27: Sector | B27: Transport | C27: Transport | D27: Resident
A28: Sector | B28: Public Corporations | C28: Public Corporations | D28: Resident
A29: Sector | B29: Construction | C29: Construction | D29: Resident
A30: Sector | B30: Land Development | C30: Land Development | D30: Construction
A31: Sector | B31: Other - Construction | C31: Other - Construction | D31: Construction
A32: Sector | B32: Private Residence | C32: Private Residence | D32: Other - Construction
A33: Sector | B33: Commercial & Industrial | C33: Commercial & Industrial | D33: Other - Construction
A34: Sector | B34: Government | C34: Government | D34: Resident
A35: Sector | B35: Public Financial Institutions | C35: Public Financial Institutions | D35: Resident
A36: Sector | B36: Private Financial Institutions | C36: Private Financial Institutions | D36: Resident
A37: Sector | B37: Professional & Other Services | C37: Professional & Other Services | D37: Resident
A38: Sector | B38: Personal | C38: Personal | D38: Resident
A39: Sector | B39: Housing | C39: Housing | D39: Personal
A40: Sector | B40: Residential Mortgages | C40: Residential Mortgages | D40: Housing
A41: Sector | B41: Home Improvement | C41: Home Improvement | D41: Housing
A42: Sector | B42: Land Purchases (Real Estate) | C42: Land Purchases (Real Estate) | D42: Personal
A43: Sector | B43: Other - Personal | C43: Other - Personal | D43: Personal
A44: Sector | B44: Miscellaneous | C44: Miscellaneous | D44: Resident
A45: Sector | B45: Non-Resident | C45: Non-Resident

Sheet Nationality (hidden)
A1: Enumeration * | B1: Key * | C1: Label * | D1: Parent Key | E1: Column1 | F1: Column2 | G1: Column3 | H1: Column4 | I1: Column5 | J1: Column6 | K1: Column7 | L1: Column8 | M1: Column9 | N1: Column10 | O1: Column11 | P1: Column12 | Q1: Column13 | R1: Column14 | S1: Column15 | T1: Column16 | U1: Column17 | V1: Column18 | W1: Column19 | X1: Column20 | Y1: Column21 | Z1: Column22 | AA1: Column23 | AB1: Column24 | AC1: Column25 | AD1: Column26 | AE1: Column27 | AF1: Column28 | AG1: Column29 | AH1: Column30 | AI1: Column31 | AJ1: Column32 | AK1: Column33 | AL1: Column34 | AM1: Column35 | AN1: Column36 | AO1: Column37 | AP1: Column38 | AQ1: Column39 | AR1: Column40 | AS1: Column41 | AT1: Column42 | AU1: Column43 | AV1: Column44 | AW1: Column45 | AX1: Column46 | AY1: Column47 | AZ1: Column48 | BA1: Column49 | BB1: Column50 | BC1: Column51 | BD1: Column52 | BE1: Column53 | BF1: Column54 | BG1: Column55 | BH1: Column56 | BI1: Column57 | BJ1: Column58 | BK1: Column59 | BL1: Column60 | BM1: Column61 | BN1: Column62 | BO1: Column63 | BP1: Column64 | BQ1: Column65 | BR1: Column66 | BS1: Column67 | BT1: Column68 | BU1: Column69 | BV1: Column70 | BW1: Column71 | BX1: Column72 | BY1: Column73 | BZ1: Column74 | CA1: Column75 | CB1: Column76 | CC1: Column77 | CD1: Column78 | CE1: Column79 | CF1: Column80 | CG1: Column81 | CH1: Column82 | CI1: Column83 | CJ1: Column84 | CK1: Column85 | CL1: Column86 | CM1: Column87 | CN1: Column88 | CO1: Column89 | CP1: Column90 | CQ1: Column91 | CR1: Column92 | CS1: Column93 | CT1: Column94 | CU1: Column95 | CV1: Column96 | CW1: Column97 | CX1: Column98 | CY1: Column99 | CZ1: Column100 | DA1: Column101 | DB1: Column102 | DC1: Column103 | DD1: Column104 | DE1: Column105 | DF1: Column106 | DG1: Column107 | DH1: Column108 | DI1: Column109 | DJ1: Column110 | DK1: Column111 | DL1: Column112 | DM1: Column113 | DN1: Column114 | DO1: Column115 | DP1: Column116 | DQ1: Column117 | DR1: Column118 | DS1: Column119 | DT1: Column120 | DU1: Column121 | DV1: Column122 | DW1: Column123 | DX1: Column124 | DY1: Column125 | DZ1: Column126 | EA1: Column127 | EB1: Column128 | EC1: Column129 | ED1: Column130 | EE1: Column131 | EF1: Column132 | EG1: Column133 | EH1: Column134 | EI1: Column135 | EJ1: Column136 | EK1: Column137 | EL1: Column138 | EM1: Column139 | EN1: Column140 | EO1: Column141 | EP1: Column142 | EQ1: Column143 | ER1: Column144 | ES1: Column145 | ET1: Column146 | EU1: Column147 | EV1: Column148 | EW1: Column149 | EX1: Column150 | EY1: Column151 | EZ1: Column152 | FA1: Column153 | FB1: Column154 | FC1: Column155 | FD1: Column156 | FE1: Column157 | FF1: Column158 | FG1: Column159 | FH1: Column160 | FI1: Column161 | FJ1: Column162 | FK1: Column163 | FL1: Column164 | FM1: Column165 | FN1: Column166 | FO1: Column167 | FP1: Column168 | FQ1: Column169 | FR1: Column170 | FS1: Column171 | FT1: Column172 | FU1: Column173 | FV1: Column174 | FW1: Column175 | FX1: Column176 | FY1: Column177 | FZ1: Column178 | GA1: Column179 | GB1: Column180 | GC1: Column181 | GD1: Column182 | GE1: Column183 | GF1: Column184 | GG1: Column185 | GH1: Column186 | GI1: Column187 | GJ1: Column188 | GK1: Column189 | GL1: Column190 | GM1: Column191 | GN1: Column192 | GO1: Column193 | GP1: Column194 | GQ1: Column195 | GR1: Column196 | GS1: Column197 | GT1: Column198 | GU1: Column199 | GV1: Column200 | GW1: Column201 | GX1: Column202 | GY1: Column203 | GZ1: Column204 | HA1: Column205 | HB1: Column206 | HC1: Column207 | HD1: Column208 | HE1: Column209 | HF1: Column210 | HG1: Column211 | HH1: Column212 | HI1: Column213 | HJ1: Column214 | HK1: Column215 | HL1: Column216 | HM1: Column217 | HN1: Column218 | HO1: Column219 | HP1: Column220 | HQ1: Column221 | HR1: Column222 | HS1: Column223 | HT1: Column224 | HU1: Column225 | HV1: Column226 | HW1: Column227 | HX1: Column228 | HY1: Column229 | HZ1: Column230 | IA1: Column231 | IB1: Column232 | IC1: Column233 | ID1: Column234 | IE1: Column235 | IF1: Column236 | IG1: Column237 | IH1: Column238 | II1: Column239 | IJ1: Column240 | IK1: Column241 | IL1: Column242 | IM1: Column243 | IN1: Column244 | IO1: Column245 | IP1: Column246 | IQ1: Column247 | IR1: Column248 | IS1: Column249 | IT1: Column250 | IU1: Column251 | IV1: Column252
A2: Nationality | B2: Bah | C2: Male
A3: Nationality | B3: NonBah | C3: Female

Sheet YesNo (hidden)
A2: Y
A3: N

Sheet Zones (hidden)
A1: Country - Zones | B1: ZoneA
A2: Country - Zones | B2: ZoneB
A3: Country - Zones | B3: Australia
A4: Country - Zones | B4: Austria
A5: Country - Zones | B5: Bahamas, The
A6: Country - Zones | B6: Belgium
A7: Country - Zones | B7: Canada
A8: Country - Zones | B8: Denmark
A9: Country - Zones | B9: Finland
A10: Country - Zones | B10: France
A11: Country - Zones | B11: Germany
A12: Country - Zones | B12: Greece
A13: Country - Zones | B13: Iceland
A14: Country - Zones | B14: Ireland
A15: Country - Zones | B15: Italy
A16: Country - Zones | B16: Japan
A17: Country - Zones | B17: Luxembourg
A18: Country - Zones | B18: Mexico
A19: Country - Zones | B19: Netherlands
A20: Country - Zones | B20: New Zealand
A21: Country - Zones | B21: Norway
A22: Country - Zones | B22: Portugal
A23: Country - Zones | B23: Spain
A24: Country - Zones | B24: Sweden
A25: Country - Zones | B25: Switzerland
A26: Country - Zones | B26: United Kingdom
A27: Country - Zones | B27: United States
A28: Country - Zones | B28: Afghanistan
A29: Country - Zones | B29: Albania
A30: Country - Zones | B30: Algeria
A31: Country - Zones | B31: Andorra
A32: Country - Zones | B32: Angola
A33: Country - Zones | B33: Antigua and Barbuda
A34: Country - Zones | B34: Argentina
A35: Country - Zones | B35: Armenia
A36: Country - Zones | B36: Azerbaijan
A37: Country - Zones | B37: Bahrain
A38: Country - Zones | B38: Bangladesh
A39: Country - Zones | B39: Barbados
A40: Country - Zones | B40: Belarus
A41: Country - Zones | B41: Belize
A42: Country - Zones | B42: Benin
A43: Country - Zones | B43: Bhutan
A44: Country - Zones | B44: Bolivia
A45: Country - Zones | B45: Bosnia and Herzegovina
A46: Country - Zones | B46: Botswana
A47: Country - Zones | B47: Brazil
A48: Country - Zones | B48: Brunei
A49: Country - Zones | B49: Bulgaria
A50: Country - Zones | B50: Burkina Faso
A51: Country - Zones | B51: Burundi
A52: Country - Zones | B52: Cambodia
A53: Country - Zones | B53: Cameroon
A54: Country - Zones | B54: Cape Verde
A55: Country - Zones | B55: Central African Republic
A56: Country - Zones | B56: Chad
A57: Country - Zones | B57: Chile
A58: Country - Zones | B58: China, People's Republic of
A59: Country - Zones | B59: Colombia
A60: Country - Zones | B60: Comoros
A61: Country - Zones | B61: Congo, (Congo Â– Kinshasa)
A62: Country - Zones | B62: Congo, (Congo Â– Brazzaville)
A63: Country - Zones | B63: Costa Rica
A64: Country - Zones | B64: Cote d'Ivoire (Ivory Coast)
A65: Country - Zones | B65: Croatia
A66: Country - Zones | B66: Cuba
A67: Country - Zones | B67: Cyprus
A68: Country - Zones | B68: Czech Republic
A69: Country - Zones | B69: Djibouti
A70: Country - Zones | B70: Dominica
A71: Country - Zones | B71: Dominican Republic
A72: Country - Zones | B72: Ecuador
A73: Country - Zones | B73: Egypt
A74: Country - Zones | B74: El Salvador
A75: Country - Zones | B75: Equatorial Guinea
A76: Country - Zones | B76: Eritrea
A77: Country - Zones | B77: Estonia
A78: Country - Zones | B78: Ethiopia
A79: Country - Zones | B79: Fiji
A80: Country - Zones | B80: Gabon
A81: Country - Zones | B81: Gambia, The
A82: Country - Zones | B82: Georgia
A83: Country - Zones | B83: Ghana
A84: Country - Zones | B84: Grenada
A85: Country - Zones | B85: Guatemala
A86: Country - Zones | B86: Guinea
A87: Country - Zones | B87: Guinea-Bissau
A88: Country - Zones | B88: Guyana
A89: Country - Zones | B89: Haiti
A90: Country - Zones | B90: Honduras
A91: Country - Zones | B91: Hungary
A92: Country - Zones | B92: India
A93: Country - Zones | B93: Indonesia
A94: Country - Zones | B94: Iran
A95: Country - Zones | B95: Iraq
A96: Country - Zones | B96: Israel
A97: Country - Zones | B97: Jamaica
A98: Country - Zones | B98: Jordan
A99: Country - Zones | B99: Kazakhstan
A100: Country - Zones | B100: Kenya
A101: Country - Zones | B101: Kiribati
A102: Country - Zones | B102: Korea, North
A103: Country - Zones | B103: Korea, South
A104: Country - Zones | B104: Kuwait
A105: Country - Zones | B105: Kyrgyzstan
A106: Country - Zones | B106: Laos
A107: Country - Zones | B107: Latvia
A108: Country - Zones | B108: Lebanon
A109: Country - Zones | B109: Lesotho
A110: Country - Zones | B110: Liberia
A111: Country - Zones | B111: Libya
A112: Country - Zones | B112: Liechtenstein
A113: Country - Zones | B113: Lithuania
A114: Country - Zones | B114: Macedonia
A115: Country - Zones | B115: Madagascar
A116: Country - Zones | B116: Malawi
A117: Country - Zones | B117: Malaysia
A118: Country - Zones | B118: Maldives
A119: Country - Zones | B119: Mali
A120: Country - Zones | B120: Malta
A121: Country - Zones | B121: Marshall Islands
A122: Country - Zones | B122: Mauritania
A123: Country - Zones | B123: Mauritius
A124: Country - Zones | B124: Micronesia
A125: Country - Zones | B125: Moldova
A126: Country - Zones | B126: Monaco
A127: Country - Zones | B127: Mongolia
A128: Country - Zones | B128: Montenegro
A129: Country - Zones | B129: Morocco
A130: Country - Zones | B130: Mozambique
A131: Country - Zones | B131: Myanmar (Burma)
A132: Country - Zones | B132: Namibia
A133: Country - Zones | B133: Nauru
A134: Country - Zones | B134: Nepal
A135: Country - Zones | B135: Nicaragua
A136: Country - Zones | B136: Niger
A137: Country - Zones | B137: Nigeria
A138: Country - Zones | B138: Oman
A139: Country - Zones | B139: Pakistan
A140: Country - Zones | B140: Palau
A141: Country - Zones | B141: Panama
A142: Country - Zones | B142: Papua New Guinea
A143: Country - Zones | B143: Paraguay
A144: Country - Zones | B144: Peru
A145: Country - Zones | B145: Philippines
A146: Country - Zones | B146: Poland
A147: Country - Zones | B147: Qatar
A148: Country - Zones | B148: Romania
A149: Country - Zones | B149: Russia
A150: Country - Zones | B150: Rwanda
A151: Country - Zones | B151: Saint Kitts and Nevis
A152: Country - Zones | B152: Saint Lucia
A153: Country - Zones | B153: Saint Vincent and the Grenadines
A154: Country - Zones | B154: Samoa
A155: Country - Zones | B155: San Marino
A156: Country - Zones | B156: Sao Tome and Principe
A157: Country - Zones | B157: Saudi Arabia
A158: Country - Zones | B158: Senegal
A159: Country - Zones | B159: Serbia
A160: Country - Zones | B160: Seychelles
A161: Country - Zones | B161: Sierra Leone
A162: Country - Zones | B162: Singapore
A163: Country - Zones | B163: Slovakia
A164: Country - Zones | B164: Slovenia
A165: Country - Zones | B165: Solomon Islands
A166: Country - Zones | B166: Somalia
A167: Country - Zones | B167: South Africa
A168: Country - Zones | B168: Sri Lanka
A169: Country - Zones | B169: Sudan
A170: Country - Zones | B170: Suriname
A171: Country - Zones | B171: Swaziland
A172: Country - Zones | B172: Syria
A173: Country - Zones | B173: Tajikistan
A174: Country - Zones | B174: Tanzania
A175: Country - Zones | B175: Thailand
A176: Country - Zones | B176: Timor-Leste (East Timor)
A177: Country - Zones | B177: Togo
A178: Country - Zones | B178: Tonga
A179: Country - Zones | B179: Trinidad and Tobago
A180: Country - Zones | B180: Tunisia
A181: Country - Zones | B181: Turkey
A182: Country - Zones | B182: Turkmenistan
A183: Country - Zones | B183: Tuvalu
A184: Country - Zones | B184: Uganda
A185: Country - Zones | B185: Ukraine
A186: Country - Zones | B186: United Arab Emirates
A187: Country - Zones | B187: Uruguay
A188: Country - Zones | B188: Uzbekistan
A189: Country - Zones | B189: Vanuatu
A190: Country - Zones | B190: Vatican City
A191: Country - Zones | B191: Venezuela
A192: Country - Zones | B192: Vietnam
A193: Country - Zones | B193: Yemen
A194: Country - Zones | B194: Zambia
A195: Country - Zones | B195: Zimbabwe
A196: Country - Zones | B196: China, Republic of (Taiwan)
A197: Country - Zones | B197: Northern Cyprus
A198: Country - Zones | B198: Christmas Island
A199: Country - Zones | B199: Cocos (Keeling) Islands
A200: Country - Zones | B200: Heard Island and McDonald Islands
... 46 more rows

Sheet Liquidity Risk (hidden)
A2: Cash-Flow Forecast: Baseline Scenario
B3: Licensee Name:
D5: < 1 Mo. | E5: 1-3 Mo. | F5: 3-6 Mo. | G5: 6-12 Mo. | H5: 1-5 Yr. | I5: > 5 Yr.
A7: Inflows: | D7: =MaturAnalSum!$G$77 -> 0 | E7: =MaturAnalSum!$H$77 -> 0 | F7: =MaturAnalSum!$I$77 -> 0 | G7: =MaturAnalSum!$J$77 -> 0 | H7: =MaturAnalSum!$K$77 -> 0 | I7: =MaturAnalSum!$L$77 -> 0
B8: Adjustment - Notes and Coin | D8: =MaturAnalSum!$F$45*D33 -> 0 | E8: =MaturAnalSum!$F$45*E33 -> 0 | F8: =MaturAnalSum!$F$45*F33 -> 0 | G8: =MaturAnalSum!$F$45*G33 -> 0 | H8: =MaturAnalSum!$F$45*H33 -> 0 | I8: =MaturAnalSum!$F$45*I33 -> 0
B9: Adjustment - Deposits with CBOB | D9: =MaturAnalSum!$F$49*D34 -> 0 | E9: =MaturAnalSum!$F$49*E34 -> 0 | F9: =MaturAnalSum!$F$49*F34 -> 0 | G9: =MaturAnalSum!$F$49*G34 -> 0 | H9: =MaturAnalSum!$F$49*H34 -> 0 | I9: =MaturAnalSum!$F$49*I34 -> 0
B10: Adjustment - Government securities
B11: of which: T-Bills (Form 2) | D11: =(Form2!$N$14+Form2!$N$17+Form2!$N$20)*D35 -> 0 | E11: =(Form2!$N$14+Form2!$N$17+Form2!$N$20)*E35 -> 0 | F11: =(Form2!$N$14+Form2!$N$17+Form2!$N$20)*F35 -> 0 | G11: =(Form2!$N$14+Form2!$N$17+Form2!$N$20)*G35 -> 0 | H11: =(Form2!$N$14+Form2!$N$17+Form2!$N$20)*H35 -> 0 | I11: =(Form2!$N$14+Form2!$N$17+Form2!$N$20)*I35 -> 0
B12: Registered Stock (Form 2) | D12: =(Form2!$N$15+Form2!$N$18+Form2!$N$21)*D36 -> 0 | E12: =(Form2!$N$15+Form2!$N$18+Form2!$N$21)*E36 -> 0 | F12: =(Form2!$N$15+Form2!$N$18+Form2!$N$21)*F36 -> 0 | G12: =(Form2!$N$15+Form2!$N$18+Form2!$N$21)*G36 -> 0 | H12: =(Form2!$N$15+Form2!$N$18+Form2!$N$21)*H36 -> 0 | I12: =(Form2!$N$15+Form2!$N$18+Form2!$N$21)*I36 -> 0
B13: Adjustment - Loans | D13: =MaturAnalSum!$F$61*D37 -> 0 | E13: =MaturAnalSum!$F$61*E37 -> 0 | F13: =MaturAnalSum!$F$61*F37 -> 0 | G13: =MaturAnalSum!$F$61*G37 -> 0 | H13: =MaturAnalSum!$F$61*H37 -> 0 | I13: =MaturAnalSum!$F$61*I37 -> 0
B15: Total Adjustments: | D15: =SUM(D8,D9,D11,D12,D13) -> 0 | E15: 0 | F15: 0 | G15: 0 | H15: 0 | I15: 0
B16: TOTAL (Inflows + Adj.) | D16: =D7+D15 -> 0 | E16: 0 | F16: 0 | G16: 0 | H16: 0 | I16: 0
A18: Outflows: | D18: =MaturAnalSum!$G$39 -> 0 | E18: =MaturAnalSum!$H$39 -> 0 | F18: =MaturAnalSum!$I$39 -> 0 | G18: =MaturAnalSum!$J$39 -> 0 | H18: =MaturAnalSum!$K$39 -> 0 | I18: =MaturAnalSum!$L$39 -> 0
B19: Adjustment - Total Deposits | D19: =MaturAnalSum!$F$11 -> 0
B20: of which: Cheque Accounts (Form 1) | D20: ='Form 1'!$N$12*D41 -> 0 | E20: ='Form 1'!$N$12*E41 -> 0 | F20: ='Form 1'!$N$12*F41 -> 0 | G20: ='Form 1'!$N$12*G41 -> 0 | H20: ='Form 1'!$N$12*H41 -> 0 | I20: ='Form 1'!$N$12*I41 -> 0
B21: Savings Accounts (Form 1) | D21: ='Form 1'!$N$13*D42 -> 0 | E21: ='Form 1'!$N$13*E42 -> 0 | F21: ='Form 1'!$N$13*F42 -> 0 | G21: ='Form 1'!$N$13*G42 -> 0 | H21: ='Form 1'!$N$13*H42 -> 0 | I21: ='Form 1'!$N$13*I42 -> 0
B22: Other deposits | D22: =($D$19-SUM(D20:I21))*D43 -> 0 | E22: =($D$19-SUM(D20:I21))*E43 -> 0 | F22: =($D$19-SUM(D20:I21))*F43 -> 0 | G22: =($D$19-SUM(D20:I21))*G43 -> 0 | H22: =($D$19-SUM(D20:I21))*H43 -> 0 | I22: =($D$19-SUM(D20:I21))*I43 -> 0
B24: Total Adjustments: | D24: =SUM(D20:D22) -> 0 | E24: 0 | F24: 0 | G24: 0 | H24: 0 | I24: 0
B25: TOTAL (Outflows + Adj.) | D25: =D18+D24 -> 0 | E25: 0 | F25: 0 | G25: 0 | H25: 0 | I25: 0
A27: Net Inflow (Outflow): | D27: =D16-D25 -> 0 | E27: =E16-E25 -> 0 | F27: =F16-F25 -> 0 | G27: 0 | H27: 0 | I27: 0
A29: Cumulative Net Inflow (Outflow): | D29: =D27 -> 0 | E29: =D29+E27 -> 0 | F29: =E29+F27 -> 0 | G29: =F29+G27 -> 0 | H29: =G29+H27 -> 0 | I29: =H29+I27 -> 0
A31: Assumptions:
B32: Inflows
B33: Notes and Coin | D33: 75% | E33: 0% | F33: 0% | G33: 0% | H33: 0% | I33: -75%
B34: Deposits with CBOB | D34: 75% | E34: 0% | F34: 0% | G34: 0% | H34: 0% | I34: -75%
B35: Treasury Bills | D35: 80% | E35: 0% | F35: -80% | G35: 0% | H35: 0% | I35: 0%
B36: Government Registered Stock | D36: 60% | E36: 0% | F36: 0% | G36: 0% | H36: 0% | I36: -60%
B37: Loans | D37: 15% | E37: 0% | F37: 0% | G37: 0% | H37: 0% | I37: -15%
B38: Market Placements
B40: Outflows
B41: Cheque Deposits | D41: 30% | E41: 0% | F41: 0% | G41: 0% | H41: 0% | I41: -30%
B42: Savings Deposits | D42: 10% | E42: 0% | F42: 0% | G42: 0% | H42: 0% | I42: -10%
B43: Other Deposits | D43: 0% | E43: 10% | F43: 0% | G43: 0% | H43: 0% | I43: -10%

Sheet Interest Risk (hidden)
B2: DURATION SUMMARY
B4: Licensee Name:
B6: Licensee Code:
B8: Reporting Date: | E8: (mmmyy)
B11: (Based upon the BIS Standard Approach to Measuring Interest-Rate Risk)
B12: (figures in Thousands)
B14: Time-band | C14: Middle of Time-band | D14: Proxy of Modified Duration* | E14: Assumed Change in Yield (in bp) | F14: Weighting Factor (in %) | G14: Repricing Gap | H14: Change in Value **
B15: Variable Rate
B16: B$ | C16: 0.5 | D16: 0.04 | E16: 100 | F16: =D16*E16/100 -> 0.04 | G16: =(IntRateSensit!$M$46+IntRateSensit!$M$50+IntRateSensit!$M$54+IntRateSensit!$M$58+IntRateSensit!$M$62+IntRateSensit!$M$66+IntRateSensit!$M$70+IntRateSensit!$M$74)-(IntRateSensit!$M$12+IntRateSensit!$M$16+IntRateSensit!$M$20+IntRateSensit!$M$24+IntRateSensit!$M$28+IntRateSensit!$M$32+IntRateSensit!$M$36) -> 0 | H16: =F16%*G16 -> 0
B17: F/C | C17: 0.5 | D17: 0.04 | E17: 200 | F17: =D17*E17/100 -> 0.08 | G17: =(IntRateSensit!$M$47+IntRateSensit!$M$48+IntRateSensit!$M$51+IntRateSensit!$M$52+IntRateSensit!$M$55+IntRateSensit!$M$56+IntRateSensit!$M$59+IntRateSensit!$M$60+IntRateSensit!$M$63+IntRateSensit!$M$64+IntRateSensit!$M$67+IntRateSensit!$M$68+IntRateSensit!$M$71+IntRateSensit!$M$72+IntRateSensit!$M$75+IntRateSensit!$M$76)-(IntRateSensit!$M$13+IntRateSensit!$M$14+IntRateSensit!$M$17+IntRateSensit!$M$18+IntRateSensit!$M$21+IntRateSensit!$M$22+IntRateSensit!$M$25+IntRateSensit!$M$26+IntRateSensit!$M$29+IntRateSensit!$M$30+IntRateSensit!$M$33+IntRateSensit!$M$34+IntRateSensit!$M$37+IntRateSensit!$M$38) -> 0 | H17: =F17%*G17 -> 0
B18: < 1 month
B19: B$ | C19: 0.5 | D19: 0.04 | E19: 100 | F19: =D19*E19/100 -> 0.04 | G19: =(IntRateSensit!$N$46+IntRateSensit!$N$50+IntRateSensit!$N$54+IntRateSensit!$N$58+IntRateSensit!$N$62+IntRateSensit!$N$66+IntRateSensit!$N$70+IntRateSensit!$N$74)-(IntRateSensit!$N$12+IntRateSensit!$N$16+IntRateSensit!$N$20+IntRateSensit!$N$24+IntRateSensit!$N$28+IntRateSensit!$N$32+IntRateSensit!$N$36) -> 0 | H19: =F19%*G19 -> 0
